Workbook

Sheet CF (hidden)
B2: CONDITIONAL FORMATTING MAP
F3: =INDEX(dms_CF_3.6.5, MATCH(dms_TradingName,dms_CF_TradingName))="Y" | G3: =INDEX(dms_CF_3.6.6.1, MATCH(dms_TradingName,dms_CF_TradingName))="Y" | H3: =INDEX(dms_CF_3.6.6.2, MATCH(dms_TradingName,dms_CF_TradingName))="Y" | I3: =INDEX(dms_CF_3.6.6.3, MATCH(dms_TradingName,dms_CF_TradingName))="Y" | J3: =INDEX(dms_CF_3.6.7.1, MATCH(dms_TradingName,dms_CF_TradingName))="Y" | K3: =INDEX(dms_CF_3.6.7.2, MATCH(dms_TradingName,dms_CF_TradingName))="Y" | L3: =INDEX(dms_CF_3.6.7.3, MATCH(dms_TradingName,dms_CF_TradingName))="Y" | M3: =INDEX(dms_CF_3.6.7.4, MATCH(dms_TradingName,dms_CF_TradingName))="Y" | N3: =INDEX(dms_CF_6.6.1, MATCH(dms_TradingName,dms_CF_TradingName))="Y" | O3: =INDEX(dms_CF_6.8, MATCH(dms_TradingName,dms_CF_TradingName))="Y" | P3: =INDEX(dms_CF_7.12, MATCH(dms_TradingName,dms_CF_TradingName))="Y" | Q3: =INDEX(dms_CF_8.1_A, MATCH(dms_TradingName,dms_CF_TradingName))="Y" | R3: =INDEX(dms_CF_8.1_B, MATCH(dms_TradingName,dms_CF_TradingName))="Y" | S3: =INDEX(dms_CF_8.1_Neg, MATCH(dms_TradingName,dms_CF_TradingName))="Y"
B4: dms_CF_TradingName | C4: JurisdictionList | D4: Sector | E4: Segment | F4: dms_CF_3.6.5 | G4: dms_CF_3.6.6.1 | H4: dms_CF_3.6.6.2 | I4: dms_CF_3.6.6.3 | J4: dms_CF_3.6.7.1 | K4: dms_CF_3.6.7.2 | L4: dms_CF_3.6.7.3 | M4: dms_CF_3.6.7.4 | N4: dms_CF_6.6.1 | O4: dms_CF_6.8 | P4: dms_CF_7.12 | Q4: dms_CF_8.1_A | R4: dms_CF_8.1_B | S4: dms_CF_8.1_Neg | T4: Spare1 | U4: Spare2
B5: ActewAGL Distribution | C5: ACT | D5: Electricity | E5: Distribution | F5: Y | G5: N | H5: Y | I5: Y | J5: Y | K5: Y | L5: N | M5: Y | N5: N | O5: Y | P5: Y | Q5: N | R5: Y | S5: Y | T5: N | U5: N
B6: Ausgrid | C6: NSW | D6: Electricity | E6: Distribution | F6: Y | G6: N | H6: Y | I6: Y | J6: N | K6: N | L6: N | M6: Y | N6: N | O6: Y | P6: Y | Q6: N | R6: Y | S6: Y | T6: N | U6: N
B7: AusNet (D) | C7: Vic | D7: Electricity | E7: Distribution | F7: N | G7: N | H7: N | I7: N | J7: N | K7: N | L7: N | M7: N | N7: N | O7: Y | P7: N | Q7: N | R7: N | S7: Y | T7: N | U7: N
B8: AusNet (T) | C8: Vic | D8: Electricity | E8: Transmission | F8: N | G8: N | H8: N | I8: N | J8: N | K8: N | L8: N | M8: N | N8: N | O8: Y | P8: N | Q8: N | R8: N | S8: Y | T8: N | U8: N
B9: CitiPower | C9: Vic | D9: Electricity | E9: Distribution | F9: N | G9: N | H9: N | I9: N | J9: N | K9: N | L9: N | M9: N | N9: N | O9: Y | P9: N | Q9: N | R9: N | S9: Y | T9: N | U9: N
B10: Directlink | C10: Qld | D10: Electricity | E10: Transmission | F10: N | G10: N | H10: N | I10: N | J10: N | K10: N | L10: N | M10: N | N10: N | O10: Y | P10: N | Q10: N | R10: Y | S10: Y | T10: N | U10: N
B11: ElectraNet | C11: SA | D11: Electricity | E11: Transmission | F11: N | G11: N | H11: N | I11: N | J11: N | K11: N | L11: N | M11: N | N11: N | O11: Y | P11: N | Q11: N | R11: Y | S11: Y | T11: N | U11: N
B12: Endeavour Energy | C12: NSW | D12: Electricity | E12: Distribution | F12: Y | G12: N | H12: Y | I12: Y | J12: N | K12: N | L12: N | M12: Y | N12: N | O12: Y | P12: Y | Q12: N | R12: Y | S12: Y | T12: N | U12: N
B13: Energex | C13: Qld | D13: Electricity | E13: Distribution | F13: Y | G13: N | H13: N | I13: N | J13: N | K13: N | L13: N | M13: N | N13: N | O13: Y | P13: Y | Q13: N | R13: Y | S13: Y | T13: N | U13: N
B14: Ergon Energy | C14: Qld | D14: Electricity | E14: Distribution | F14: Y | G14: N | H14: N | I14: N | J14: N | K14: N | L14: N | M14: N | N14: N | O14: Y | P14: Y | Q14: N | R14: Y | S14: Y | T14: N | U14: N
B15: Essential Energy | C15: NSW | D15: Electricity | E15: Distribution | F15: Y | G15: N | H15: Y | I15: Y | J15: N | K15: N | L15: N | M15: Y | N15: N | O15: Y | P15: Y | Q15: N | R15: Y | S15: Y | T15: N | U15: N
B16: Jemena Electricity | C16: Vic | D16: Electricity | E16: Distribution | F16: N | G16: N | H16: N | I16: N | J16: N | K16: N | L16: N | M16: N | N16: N | O16: Y | P16: N | Q16: N | R16: N | S16: Y | T16: N | U16: N
B17: Murraylink | C17: SA | D17: Electricity | E17: Transmission | F17: N | G17: N | H17: N | I17: N | J17: N | K17: N | L17: N | M17: N | N17: N | O17: Y | P17: N | Q17: N | R17: Y | S17: Y | T17: N | U17: N
B18: Power and Water | C18: NT | D18: Electricity | E18: Distribution | F18: N | G18: N | H18: N | I18: N | J18: N | K18: Y | L18: N | M18: N | N18: Y | O18: Y | P18: Y | Q18: N | R18: Y | S18: Y | T18: N | U18: N
B19: Powercor Australia | C19: Vic | D19: Electricity | E19: Distribution | F19: N | G19: N | H19: N | I19: N | J19: N | K19: N | L19: N | M19: N | N19: N | O19: Y | P19: N | Q19: N | R19: N | S19: Y | T19: N | U19: N
B20: Powerlink | C20: Qld | D20: Electricity | E20: Transmission | F20: N | G20: N | H20: N | I20: N | J20: N | K20: N | L20: N | M20: N | N20: N | O20: Y | P20: N | Q20: N | R20: Y | S20: Y | T20: N | U20: N
B21: SA Power Networks | C21: SA | D21: Electricity | E21: Distribution | F21: Y | G21: N | H21: N | I21: N | J21: N | K21: N | L21: N | M21: N | N21: N | O21: Y | P21: Y | Q21: Y | R21: Y | S21: N | T21: N | U21: N
B22: TasNetworks (D) | C22: Tas | D22: Electricity | E22: Distribution | F22: Y | G22: N | H22: N | I22: N | J22: N | K22: N | L22: N | M22: N | N22: N | O22: Y | P22: Y | Q22: N | R22: Y | S22: Y | T22: N | U22: N
B23: TasNetworks (T) | C23: Tas | D23: Electricity | E23: Transmission | F23: N | G23: N | H23: N | I23: N | J23: N | K23: N | L23: N | M23: N | N23: N | O23: Y | P23: N | Q23: N | R23: Y | S23: Y | T23: N | U23: N
B24: TransGrid | C24: NSW | D24: Electricity | E24: Transmission | F24: N | G24: N | H24: N | I24: N | J24: N | K24: N | L24: N | M24: N | N24: N | O24: Y | P24: N | Q24: N | R24: Y | S24: Y | T24: N | U24: N
B25: United Energy | C25: Vic | D25: Electricity | E25: Distribution | F25: N | G25: N | H25: N | I25: N | J25: N | K25: N | L25: N | M25: N | N25: N | O25: Y | P25: N | Q25: N | R25: N | S25: Y | T25: N | U25: N

Sheet AER only (hidden)
B1: Data in these columns used for data validation and database purposes.
B2: Date last modified: | C2: 2017-01-16 | D2: added (Albury and Victora) for AGN
C3: 2016-10-17 | D3: updated TransGrid's correct legal name, corrected TasNetworks (T) to June financial year
C4: 2017-02-01 | D4: inserted Power and Water, added NRs (dms_FeederCat_1 and dms_FeederCat_2)
C5: 2017-03-03 | D5: inserted AEMO as a business | AB5: FOR ELECTRICITY BUSINESSES ONLY
C6: 2018-03-28 | D6: major changes to accommodate STPIS
C7: Template Version | D7: 5 | AB7: Feeder Types | AF7: TasNetworks (D) | AG7: MAIFI flag | AH7: Feeder Names
AB9: CBD | AC9: Urban | AD9: Short rural | AE9: long rural | AF9: EXTRA
B10: dms_TradingName_List | C10: dms_TradingNameFull_List | D10: dms_ABN_List | E10: dms_JurisdictionList | F10: dms_Sector_List | G10: dms_Segment_List | H10: dms_FormControl_List | I10: dms_RPT_List | J10: dms_RPTMonth_List | K10: dms_CRCPlength_List | L10: dms_FRCPlength_List | M10: dms_663_List | N10: dms_DeterminationRef_List | O10: dms_Addr1_List | P10: dms_Addr2_List | Q10: dms_Suburb_List | R10: dms_State_List | S10: dms_PostCode_List | T10: dms_PAddr1_List | U10: dms_PAddr2_List | V10: dms_PSuburb_List | W10: dms_PState_List | X10: dms_PPostCode_List | Y10: dms_ContactName1_List | Z10: dms_ContactPh1_List | AA10: dms_ContactEmail_List | AB10: dms_CBD_flag | AC10: dms_Urban_flag | AD10: dms_ShortRural_flag | AE10: dms_LongRural_flag | AF10: dms_FeederType_5_flag | AG10: dms_MAIFI_flag_List | AH10: dms_FeederName_1 | AI10: dms_FeederName_2 | AJ10: dms_FeederName_3 | AK10: dms_FeederName_4 | AL10: dms_FeederName_5 | AM10: dms_Public_Lighting_List | AN10: Column1
B11: ActewAGL Distribution | C11: ActewAGL Distribution | D11: 76670568688 | E11: ACT | F11: Electricity | G11: Distribution | H11: Revenue cap | I11: Financial | J11: June | K11: 5 | L11: 5 | M11: 5 | N11: 2014-19 Distribution Determination | O11: 40 Bunda Street | Q11: CANBERRA | R11: ACT | S11: 2600 | T11: GPO BOX 366 | V11: CANBERRA | W11: ACT | X11: 2601 | Y11: Robert Walker | Z11: 02 6248 3847 | AA11: robert.walker@actewagle.com.au | AB11: NO | AC11: YES | AD11: YES | AE11: NO | AF11: NO | AG11: NO | AH11: CBD | AI11: Urban | AJ11: Short rural | AK11: Long rural | AM11: YES | AN11: ActewAGL Distribution
B12: ActewAGL Distribution (Tx Assets) | C12: ActewAGL Distribution (Tx Assets) | D12: 76670568688 | E12: ACT | F12: Electricity | G12: Distribution | H12: Revenue cap | I12: Financial | J12: June | K12: 5 | L12: 5 | M12: 5 | N12: distribution determination | O12: 40 Bunda Street | Q12: CANBERRA | R12: ACT | S12: 2600 | T12: GPO BOX 366 | V12: CANBERRA | W12: ACT | X12: 2601 | Y12: Robert Walker | Z12: 02 6248 3847 | AA12: robert.walker@actewagle.com.au | AB12: NO | AC12: YES | AD12: YES | AE12: NO | AF12: NO | AG12: NO | AH12: CBD | AI12: Urban | AJ12: Short rural | AK12: Long rural | AM12: NO | AN12: ActewAGL Distribution (Tx Assets)
B13: ActewAGL Gas | C13: ActewAGL Gas | D13: 76670568688 | E13: ACT | F13: Gas | G13: Distribution | H13: Weighted average price cap | I13: Financial | J13: June | K13: 5 | L13: 5 | M13: x | O13: 40 Bunda Street | Q13: CANBERRA | R13: ACT | S13: 2600 | T13: GPO BOX 366 | V13: CANBERRA | W13: ACT | X13: 2601 | Y13: Philip Deamer | Z13: 02 6248 3438 | AA13: GasAAReview@actewagl.com.au | AB13: NO | AC13: NO | AD13: NO | AE13: NO | AF13: NO | AG13: - | AH13: CBD | AI13: Urban | AJ13: Short rural | AK13: Long rural | AM13: NO | AN13: ActewAGL Gas
B14: AEMO | C14: Australian Energy Market Operator Ltd | D14: 94072010327 | E14: Vic | F14: Electricity | G14: Transmission | H14: - | I14: Financial | J14: March | K14: 5 | L14: 5 | M14: x | N14: - | O14: Level 22 | P14: 530 Collins Street | Q14: MELBOURNE | R14: VIC | S14: 3000 | T14: GPO Box 2008 | V14: MELBOURNE | W14: VIC | X14: 3001 | AB14: NO | AC14: NO | AD14: NO | AE14: NO | AF14: NO | AG14: - | AH14: CBD | AI14: Urban | AJ14: Short rural | AK14: Long rural | AM14: NO | AN14: AEMO
B15: AGN (Albury and Victoria) | C15: Australian Gas Networks Limited (reporting data for Albury and Victoria) | D15: 19078551685 | E15: Vic | F15: Gas | G15: Distribution | H15: Weighted average price cap | I15: Calendar | J15: December | K15: 5 | L15: 5 | M15: x | O15: Level 6 | P15: 400 King William Street | Q15: ADELAIDE | R15: SA | S15: 5000 | T15: PO Box 6468 | U15: Halifax Street | V15: ADELAIDE | W15: SA | X15: 5000 | Y15: Craig de Laine | Z15: 08 8418 1129 | AA15: craig.delaine@agn.com.au | AB15: NO | AC15: NO | AD15: NO | AE15: NO | AF15: NO | AG15: - | AH15: CBD | AI15: Urban | AJ15: Short rural | AK15: Long rural | AM15: NO | AN15: AGN (Albury)
B16: AGN (Albury) | C16: Australian Gas Networks Limited (reporting data for Albury) | D16: 19078551685 | E16: Vic | F16: Gas | G16: Distribution | H16: Weighted average price cap | I16: Calendar | J16: December | K16: 5 | L16: 5 | M16: x | O16: Level 6 | P16: 400 King William Street | Q16: ADELAIDE | R16: SA | S16: 5000 | T16: PO Box 6468 | U16: Halifax Street | V16: ADELAIDE | W16: SA | X16: 5000 | Y16: Craig de Laine | Z16: 08 8418 1129 | AA16: craig.delaine@agn.com.au | AB16: NO | AC16: NO | AD16: NO | AE16: NO | AF16: NO | AG16: - | AH16: CBD | AI16: Urban | AJ16: Short rural | AK16: Long rural | AM16: NO
B17: AGN (SA) | C17: Australian Gas Networks Limited (reporting data for SA) | D17: 19078551685 | E17: SA | F17: Gas | G17: Distribution | H17: Weighted average price cap | I17: Financial | J17: June | K17: 5 | L17: 5 | M17: 5 | N17: distribution determination | O17: Level 6 | P17: 400 King William Street | Q17: ADELAIDE | R17: SA | S17: 5000 | T17: PO Box 6468 | U17: Halifax Street | V17: ADELAIDE | W17: SA | X17: 5000 | Y17: Craig de Laine | Z17: 08 8418 1129 | AA17: craig.delaine@agn.com.au | AB17: NO | AC17: NO | AD17: NO | AE17: NO | AF17: NO | AG17: - | AH17: CBD | AI17: Urban | AJ17: Short rural | AK17: Long rural | AM17: NO | AN17: AGN (SA)
B18: AGN (Victoria) | C18: Australian Gas Networks Limited (reporting data for Victoria) | D18: 19078551685 | E18: Vic | F18: Gas | G18: Distribution | H18: Weighted average price cap | I18: Calendar | J18: December | K18: 5 | L18: 5 | M18: x | O18: Level 6 | P18: 400 King William Street | Q18: ADELAIDE | R18: SA | S18: 5000 | T18: PO Box 6468 | U18: Halifax Street | V18: ADELAIDE | W18: SA | X18: 5000 | Y18: Craig de Laine | Z18: 08 8418 1129 | AA18: craig.delaine@agn.com.au | AB18: NO | AC18: NO | AD18: NO | AE18: NO | AF18: NO | AG18: - | AH18: CBD | AI18: Urban | AJ18: Short rural | AK18: Long rural | AM18: NO | AN18: AGN (Victoria)
B19: Amadeus | C19: APT Pipelines (NT) Pty Ltd | D19: 39009737393 | E19: NT | F19: Gas | G19: Transmission | H19: Weighted average price cap | I19: Financial | J19: June | K19: 5 | L19: 5 | M19: x | N19: n/a | O19: Level 19, HSBC Building | P19: 580 George Street | Q19: SYDNEY | R19: NSW | S19: 2000 | T19: Level 19, HSBC Building | U19: 580 George Street | V19: SYDNEY | W19: NSW | X19: 2000 | Y19: Alexandra Curran | Z19: 02 9275 0020 | AA19: alexandra.curran@apa.com.au | AB19: NO | AC19: NO | AD19: NO | AE19: NO | AF19: NO | AG19: - | AH19: CBD | AI19: Urban | AJ19: Short rural | AK19: Long rural | AM19: NO | AN19: Amadeus
B20: APA GasNet | C20: APA GasNet Australia (Operations) Pty Ltd | D20: 065083009 | E20: Vic | F20: Gas | G20: Transmission | H20: Weighted average price cap | I20: Calendar | J20: December | K20: 5 | L20: 5 | M20: x | O20: Level 19, HSBC Building | P20: 580 George Street | Q20: SYDNEY | R20: NSW | S20: 2000 | T20: PO Box R41 | V20: ROYAL EXCHANGE | W20: NSW | X20: 1225 | Y20: Alexandra Curran | Z20: 02 9275 0020 | AA20: alexandra.curran@apa.com.au | AB20: NO | AC20: NO | AD20: NO | AE20: NO | AF20: NO | AG20: - | AH20: CBD | AI20: Urban | AJ20: Short rural | AK20: Long rural | AM20: NO | AN20: APA GasNet
B21: Ausgrid | C21: Ausgrid | D21: 78508211731 | E21: NSW | F21: Electricity | G21: Distribution | H21: Revenue cap | I21: Financial | J21: June | K21: 5 | L21: 5 | M21: 5 | N21: 2014-19 Distribution Determination | O21: 570 George St | Q21: SYDNEY | R21: NSW | S21: 2000 | T21: GPO Box 4009 | V21: SYDNEY | W21: NSW | X21: 2001 | Y21: John Thomson | Z21: 02 9269 2312 | AA21: john.thomson@ausgrid.com.au | AB21: YES | AC21: YES | AD21: YES | AE21: YES | AF21: NO | AG21: NO | AH21: CBD | AI21: Urban | AJ21: Short rural | AK21: Long rural | AM21: YES | AN21: Ausgrid
B22: Ausgrid (Tx Assets) | C22: Ausgrid (Tx Assets) | D22: 67505337385 | E22: NSW | F22: Electricity | G22: Distribution | H22: Revenue cap | I22: Financial | J22: June | K22: 5 | L22: 5 | M22: 5 | N22: distribution determination | O22: 570 George St | Q22: SYDNEY | R22: NSW | S22: 2000 | T22: GPO Box 4009 | V22: SYDNEY | W22: NSW | X22: 2001 | Y22: John Thomson | Z22: 02 9269 2312 | AA22: john.thomson@ausgrid.com.au | AB22: YES | AC22: YES | AD22: YES | AE22: YES | AF22: NO | AG22: NO | AH22: CBD | AI22: Urban | AJ22: Short rural | AK22: Long rural | AM22: NO | AN22: Ausgrid (Tx Assets)
B23: AusNet (D) | C23: AusNet Electricity Services Pty Ltd | D23: 91064651118 | E23: Vic | F23: Electricity | G23: Distribution | H23: Revenue cap | I23: Calendar | J23: December | K23: 5 | L23: 5 | M23: 2 | N23: 2016-20 Distribution Determination | O23: Level 32 | P23: 2 Southbank Boulevard | Q23: SOUTHBANK | R23: Vic | S23: 3006 | T23: Locked Bag 14051 | V23: MELBOURNE CITY MAIL CENTRE | W23: VIC | X23: 8001 | Y23: please provide contact details | AB23: NO | AC23: YES | AD23: YES | AE23: YES | AF23: NO | AG23: YES | AH23: CBD | AI23: Urban | AJ23: Short rural | AK23: Long rural | AM23: YES | AN23: AusNet (D)
B24: AusNet (Gas) | C24: AusNet Gas Services | D24: 086015036 | E24: Vic | F24: Gas | G24: Distribution | H24: Weighted average price cap | I24: Calendar | J24: December | K24: 5 | L24: 5 | M24: X | O24: Level 19, HSBC Building | P24: 580 George Street | Q24: SYDNEY | R24: NSW | S24: 2000 | T24: PO Box R41 | V24: ROYAL EXCHANGE | W24: NSW | X24: 1225 | Y24: Alexandra Curran | Z24: 02 9275 0020 | AA24: alexandra.curran@apa.com.au | AB24: NO | AC24: NO | AD24: NO | AE24: NO | AF24: NO | AG24: - | AH24: CBD | AI24: Urban | AJ24: Short rural | AK24: Long rural | AM24: NO | AN24: AusNet (Gas)
B25: AusNet (T) | C25: Ausnet Services (Transmission) Ltd | D25: 48116124362 | E25: Vic | F25: Electricity | G25: Transmission | H25: Revenue cap | I25: Financial | J25: March | K25: 5 | L25: 5 | M25: 2 | N25: transmission determination | O25: Level 32 | P25: 2 Southbank Boulevard | Q25: SOUTHBANK | R25: Vic | S25: 3006 | T25: Locked Bag 14051 | V25: MELBOURNE CITY MAIL CENTRE | W25: Vic | X25: 8001 | Y25: Clare Thompson | Z25: 03 9695 6670 | AA25: clare.e.thompson@ausnetservices.com.au | AB25: NO | AC25: NO | AD25: NO | AE25: NO | AF25: NO | AG25: - | AH25: CBD | AI25: Urban | AJ25: Short rural | AK25: Long rural | AM25: NO | AN25: AusNet (T)
B26: Australian Distribution Co. | C26: Australian Distribution Co. | D26: 11222333444 | E26: - | F26: Electricity | G26: Distribution | H26: Revenue cap | I26: Financial | J26: June | K26: 5 | L26: 5 | M26: 2 | N26: distribution determination | O26: 123 Straight Street | Q26: SYDNEY | R26: NSW | S26: 2000 | T26: PO Box 123 | V26: SYDNEY | W26: NSW | X26: 2000 | Y26: Bob Smith | Z26: 02 1234 5678 | AA26: bob@auselec.net.au | AB26: YES | AC26: YES | AD26: YES | AE26: YES | AF26: NO | AG26: NO | AH26: CBD | AI26: Urban | AJ26: Short rural | AK26: Long rural | AM26: YES | AN26: Australian Distribution Co.
B27: Australian Distribution Co. (Gas) | C27: Australian Gas Distribution Co. | D27: 11222333444 | E27: NSW | F27: Gas | G27: Distribution | H27: Weighted average price cap | I27: Financial | J27: June | K27: 5 | L27: 5 | O27: 123 Straight Street | Q27: SYDNEY | R27: NSW | S27: 2000 | T27: PO Box 123 | V27: SYDNEY | W27: NSW | X27: 2000 | Y27: Bob Smith | Z27: 02 1234 5678 | AA27: bob@auselec.net.au | AB27: NO | AC27: NO | AD27: NO | AE27: NO | AF27: NO | AG27: - | AH27: CBD | AI27: Urban | AJ27: Short rural | AK27: Long rural | AM27: NO | AN27: Australian Distribution Co. (Vic)
B28: Australian Distribution Co. (Vic) | C28: Australian Distribution Co. (Victoria) | D28: 11222333444 | E28: Vic | F28: Electricity | G28: Distribution | H28: Revenue cap | I28: Calendar | J28: December | K28: 5 | L28: 5 | M28: 2 | N28: distribution determination | O28: 123 Straight Street | Q28: MELBOURNE | R28: Vic | S28: 3000 | T28: PO Box 123 | V28: MELBOURNE | W28: VIC | X28: 3000 | Y28: Bob Smith | Z28: 02 1234 5678 | AA28: bob@auselec.net.au | AB28: NO | AC28: NO | AD28: NO | AE28: NO | AF28: NO | AG28: YES | AH28: CBD | AI28: Urban | AJ28: Short rural | AK28: Long rural | AM28: YES | AN28: Australian Distribution Co. (Vic)
B29: Australian Transmission Co. | C29: Australian Transmission Co. | D29: 11222333444 | E29: - | F29: Electricity | G29: Transmission | H29: Revenue cap | I29: Financial | J29: June | K29: 5 | L29: 5 | M29: 5 | N29: transmission determination | O29: 123 Straight Street | Q29: SYDNEY | R29: NSW | S29: 2000 | T29: PO Box 123 | V29: SYDNEY | W29: NSW | X29: 2000 | Y29: Bob Smith | Z29: 02 1234 5678 | AA29: bob@auselec.net.au | AB29: NO | AC29: NO | AD29: NO | AE29: NO | AF29: NO | AG29: - | AH29: CBD | AI29: Urban | AJ29: Short rural | AK29: Long rural | AM29: NO | AN29: Australian Transmission Co.
B30: Central Ranges Pipeline (D) | C30: Central Ranges Pipeline Pty Ltd | D30: 108218355 | E30: NSW | F30: Gas | G30: Distribution | H30: Weighted average price cap | I30: Financial | J30: June | K30: 15 | L30: 5 | M30: 5 | N30: distribution determination | O30: Level 19 | P30: 580 George Street | Q30: SYDNEY | R30: NSW | S30: 2000 | T30: PO Box R41 | V30: ROYAL EXCHANGE | W30: NSW | X30: 1225 | Y30: Scott Young | Z30: 02 9275 0031 | AA30: scott.young@apa.com.au | AB30: NO | AC30: NO | AD30: NO | AE30: NO | AF30: NO | AG30: - | AH30: CBD | AI30: Urban | AJ30: Short rural | AK30: Long rural | AM30: NO
B31: Central Ranges Pipeline (T) | C31: Central Ranges Pipeline Pty Ltd | D31: 108218355 | E31: NSW | F31: Gas | G31: Distribution | H31: Weighted average price cap | I31: Financial | J31: June | K31: 14 | L31: 5 | M31: 5 | N31: transmission determination | O31: Level 19 | P31: 580 George Street | Q31: SYDNEY | R31: NSW | S31: 2000 | T31: PO Box R41 | V31: ROYAL EXCHANGE | W31: NSW | X31: 1225 | Y31: Scott Young | Z31: 02 9275 0031 | AA31: scott.young@apa.com.au | AB31: NO | AC31: NO | AD31: NO | AE31: NO | AF31: NO | AG31: - | AH31: CBD | AI31: Urban | AJ31: Short rural | AK31: Long rural | AM31: NO
B32: CitiPower | C32: CitiPower | D32: 76064651056 | E32: Vic | F32: Electricity | G32: Distribution | H32: Revenue cap | I32: Calendar | J32: December | K32: 5 | L32: 5 | M32: 2 | N32: 2016-20 Distribution Determination | O32: 40 Market Street | Q32: MELBOURNE | R32: Vic | S32: 3000 | T32: Locked Bag 14090 | V32: MELBOURNE | W32: VIC | X32: 8001 | Y32: Hannah Williams | Z32: 03 9683 4088 | AA32: hwilliams@powercor.com.au | AB32: YES | AC32: YES | AD32: NO | AE32: NO | AF32: NO | AG32: YES | AH32: CBD | AI32: Urban | AJ32: Short rural | AK32: Long rural | AM32: YES | AN32: CitiPower
B33: Directlink | C33: Directlink | D33: 16779340889 | E33: Qld | F33: Electricity | G33: Transmission | H33: Revenue cap | I33: Financial | J33: June | K33: 5 | L33: 5 | M33: 5 | N33: transmission determination | O33: Level 19, HSBC Building | P33: 580 George Street | Q33: SYDNEY | R33: NSW | S33: 2000 | T33: PO Box R41 | V33: ROYAL EXCHANGE | W33: NSW | X33: 1225 | Y33: Scott Young | Z33: 02 9275 0031 | AA33: scott.young@apa.com.au | AB33: NO | AC33: NO | AD33: NO | AE33: NO | AF33: NO | AG33: - | AH33: CBD | AI33: Urban | AJ33: Short rural | AK33: Long rural | AM33: NO | AN33: Directlink
B34: ElectraNet | C34: ElectraNet | D34: 41094482416 | E34: SA | F34: Electricity | G34: Transmission | H34: Revenue cap | I34: Financial | J34: June | K34: 5 | L34: 5 | M34: 5 | N34: transmission determination | O34: 52-55 East Terrace | P34: Rymill Park | Q34: ADELAIDE | R34: SA | S34: 5000 | T34: PO Box 7096 | U34: Hutt Street Post Office | V34: ADELAIDE | W34: SA | X34: 5000 | Y34: Bill Jackson | Z34: 08 8404 7969 | AA34: jackson.bill@electranet.com.au | AB34: NO | AC34: NO | AD34: NO | AE34: NO | AF34: NO | AG34: - | AH34: CBD | AI34: Urban | AJ34: Short rural | AK34: Long rural | AM34: NO | AN34: ElectraNet
B35: Endeavour Energy | C35: Endeavour Energy | D35: 11247365823 | E35: NSW | F35: Electricity | G35: Distribution | H35: Revenue cap | I35: Financial | J35: June | K35: 5 | L35: 5 | M35: 5 | N35: 2014-19 Distribution Determination | O35: 51 Huntingwood Drive | Q35: HUNTINGWOOD | R35: NSW | S35: 2148 | T35: PO Box 811 | V35: SEVEN HILLS | W35: NSW | X35: 1730 | Y35: Jon Hocking | Z35: 02 9853 4386 / 0407 348 156 | AA35: Jon.Hocking@Endeavourenergy.com.au | AB35: NO | AC35: YES | AD35: YES | AE35: YES | AF35: NO | AG35: NO | AH35: CBD | AI35: Urban | AJ35: Short rural | AK35: Long rural | AM35: YES | AN35: Endeavour Energy
B36: Energex | C36: Energex | D36: 40078849055 | E36: Qld | F36: Electricity | G36: Distribution | H36: Revenue cap | I36: Financial | J36: June | K36: 5 | L36: 5 | M36: 5 | N36: 2015-20 Distribution Determination | O36: 26 Reddacliff Street | Q36: NEWSTEAD | R36: Qld | S36: 4006 | T36: 26 Reddacliff Street | V36: NEWSTEAD | W36: QLD | X36: 4006 | Y36: Jenny Doyle, Group Manager Regulatory Affairs | Z36: (07) 3851 6416 | AA36: jenny.doyle@ergon.com.au | AB36: YES | AC36: YES | AD36: YES | AE36: NO | AF36: NO | AG36: NO | AH36: CBD | AI36: Urban | AJ36: Short rural | AK36: Long rural | AM36: YES | AN36: Energex
B37: Ergon Energy | C37: Ergon Energy | D37: 50087646062 | E37: Qld | F37: Electricity | G37: Distribution | H37: Revenue cap | I37: Financial | J37: June | K37: 5 | L37: 5 | M37: 5 | N37: 2015-20 Distribution Determination | O37: 22 Walker Street | Q37: TOWNSVILLE | R37: Qld | S37: 4810 | T37: Po Box 264 | V37: FORTITUDE VALLEY | W37: QLD | X37: 4006 | Y37: Jenny Doyle, Group Manager Regulatory Affairs | Z37: (07) 3851 6416 | AA37: jenny.doyle@ergon.com.au | AB37: NO | AC37: YES | AD37: YES | AE37: YES | AF37: NO | AG37: NO | AH37: CBD | AI37: Urban | AJ37: Short rural | AK37: Long rural | AM37: YES | AN37: Ergon Energy
B38: Essential Energy | C38: Essential Energy | D38: 37428185226 | E38: NSW | F38: Electricity | G38: Distribution | H38: Revenue cap | I38: Financial | J38: June | K38: 5 | L38: 5 | M38: 5 | N38: 2014-19 Distribution Determination | O38: 8 Buller Street | Q38: PORT MACQUARIE | R38: NSW | S38: 2444 | T38: PO Box 5730 | V38: PORT MACQUARIE | W38: NSW | X38: 2444 | Y38: Catherine Waddell | Z38: 02 6338 3553 | AA38: catherine.waddell@essentialenergy.com.au | AB38: NO | AC38: NO | AD38: YES | AE38: YES | AF38: NO | AG38: NO | AH38: CBD | AI38: Urban | AJ38: Short rural | AK38: Long rural | AM38: YES | AN38: Essential Energy
B39: Jemena Electricity | C39: Jemena Electricity | D39: 82064651083 | E39: Vic | F39: Electricity | G39: Distribution | H39: Revenue cap | I39: Calendar | J39: December | K39: 5 | L39: 5 | M39: 2 | N39: 2016-20 Distribution Determination | O39: Level 16 | P39: 567 Collins Street | Q39: MELBOURNE | R39: VIC | S39: 3000 | T39: PO Box 16182 | V39: MELBOURNE | W39: VIC | X39: 8001 | Y39: Matthew Serpell | Z39: 03 9173 8231 | AA39: matthew.serpell@jemena.com.au | AB39: NO | AC39: YES | AD39: YES | AE39: NO | AF39: NO | AG39: YES | AH39: CBD | AI39: Urban | AJ39: Short rural | AK39: Long rural | AM39: YES | AN39: Jemena Electricity
B40: JGN | C40: Jemena Gas Networks (NSW) Ltd | D40: 003 004 322 | E40: NSW | F40: Gas | G40: Distribution | H40: Weighted average price cap | I40: Financial | J40: June | K40: 5 | L40: 5 | Y40: please provide contact details | AB40: NO | AC40: NO | AD40: NO | AE40: NO | AF40: NO | AG40: - | AH40: CBD | AI40: Urban | AJ40: Short rural | AK40: Long rural | AM40: NO | AN40: JGN
B41: Multinet Gas | C41: Multinet Gas (DB No.1) Pty Ltd (ACN 086 026 986), Multinet Gas (DB No.2) Pty Ltd (ACN 086 230 122) | D41: 086026986 | E41: Vic | F41: Gas | G41: Distribution | H41: Weighted average price cap | I41: Calendar | J41: December | K41: 5 | L41: 5 | M41: x | O41: 43-45 Centreway | Q41: MT WAVERLEY | R41: Vic | S41: 3149 | Y41: Andrew Schille | Z41: 03 8846 9860 | AA41: andrew.schille@ue.com.au | AB41: NO | AC41: NO | AD41: NO | AE41: NO | AF41: NO | AG41: - | AH41: CBD | AI41: Urban | AJ41: Short rural | AK41: Long rural | AM41: NO | AN41: Multinet Gas
B42: Murraylink | C42: Murraylink | D42: 79181207909 | E42: SA | F42: Electricity | G42: Transmission | H42: Revenue cap | I42: Financial | J42: June | K42: 5 | L42: 5 | M42: 5 | N42: transmission determination | O42: Level 19 | P42: 580 George Street | Q42: SYDNEY | R42: NSW | S42: 2000 | T42: PO Box R41 | V42: ROYAL EXCHANGE | W42: NSW | X42: 1225 | Y42: Scott Young | Z42: 02 9275 0031 | AA42: scott.young@apa.com.au | AB42: NO | AC42: NO | AD42: NO | AE42: NO | AF42: NO | AG42: - | AH42: CBD | AI42: Urban | AJ42: Short rural | AK42: Long rural | AM42: NO | AN42: Murraylink
B43: Power and Water | C43: Power and Water Corporation | D43: 15947352360 | E43: NT | F43: Electricity | G43: Distribution | H43: Revenue cap | I43: Financial | J43: June | K43: 5 | L43: 5 | M43: x | N43: distribution determination | O43: GPO Box 1921 | Q43: DARWIN | R43: NT | S43: 801 | T43: GPO Box 1921 | V43: DARWIN | W43: NT | X43: 801 | Y43: Lucy Moon | Z43: 08 8924 5822 | AA43: Lucy.Moon@powerwater.com.au | AB43: YES | AC43: YES | AD43: YES | AE43: YES | AF43: NO | AG43: NO | AH43: CBD | AI43: Urban | AJ43: Short rural | AK43: Long rural | AM43: NO | AN43: Power and Water
B44: Powercor Australia | C44: Powercor Australia | D44: 89064651109 | E44: Vic | F44: Electricity | G44: Distribution | H44: Revenue cap | I44: Calendar | J44: December | K44: 5 | L44: 5 | M44: 2 | N44: 2016-20 Distribution Determination | O44: 40 Market Street | Q44: MELBOURNE | R44: Vic | S44: 3000 | T44: Locked bag 14090 | V44: MELBOURNE | W44: VIC | X44: 8001 | Y44: Hannah Williams | Z44: 03 9683 4088 | AA44: hwilliams@powercor.com.au | AB44: NO | AC44: NO | AD44: YES | AE44: YES | AF44: NO | AG44: YES | AH44: CBD | AI44: Urban | AJ44: Short rural | AK44: Long rural | AM44: YES | AN44: Powercor Australia
B45: Powerlink | C45: Queensland Electricity Transmission Corporation Limited trading as Powerlink Queensland | D45: 82078849233 | E45: Qld | F45: Electricity | G45: Transmission | H45: Revenue cap | I45: Financial | J45: June | K45: 5 | L45: 5 | M45: 5 | N45: transmission determination | O45: 33 Harold St | Q45: VIRGINIA | R45: Qld | S45: 4014 | T45: PO Box 1193 | V45: VIRGINIA | W45: QLD | X45: 4014 | Y45: Jennifer Harris | Z45: 07 3860 2667 | AA45: jharris@powerlink.com.au | AB45: NO | AC45: NO | AD45: NO | AE45: NO | AF45: NO | AG45: - | AH45: CBD | AI45: Urban | AJ45: Short rural | AK45: Long rural | AM45: NO | AN45: Powerlink
B46: Roma to Brisbane Pipeline | C46: APT Petroleum Pipelines Limited t/a Roma to Brisbane Pipeline | D46: 009 737 393 | E46: Qld | F46: Gas | G46: Transmission | H46: Weighted average price cap | I46: Financial | J46: June | K46: 5 | L46: 5 | M46: x | N46: n/a | O46: 580 George Street | Q46: SYDNEY | R46: NSW | S46: 2000 | T46: PO Box R41 | V46: ROYAL EXCHANGE | W46: NSW | X46: 1225 | Y46: Mark Allen | Z46: 02 9275 0010 | AA46: mark.allen@apa.com.au | AB46: NO | AC46: NO | AD46: NO | AE46: NO | AF46: NO | AG46: - | AH46: CBD | AI46: Urban | AJ46: Short rural | AK46: Long rural | AM46: NO | AN46: Roma to Brisbane Pipeline
B47: SA Power Networks | C47: SA Power Networks | D47: 13332330749 | E47: SA | F47: Electricity | G47: Distribution | H47: Revenue cap | I47: Financial | J47: June | K47: 5 | L47: 5 | M47: 5 | N47: 2015-20 Distribution Determination | O47: 1 Anzac Highway | Q47: KESWICK | R47: SA | S47: 5035 | T47: GPO Box 77 | V47: ADELAIDE | W47: SA | X47: 5000 | Y47: Richard Sibly | Z47: 08 8404 5613 | AA47: richard.sibly@sapowernetworks.com.au | AB47: NO | AC47: NO | AD47: YES | AE47: YES | AF47: NO | AG47: NO | AH47: CBD | AI47: Urban | AJ47: Short rural | AK47: Long rural | AM47: NO | AN47: SA Power Networks
B48: TasNetworks (D) | C48: TasNetworks (D) | D48: 24167357299 | E48: Tas | F48: Electricity | G48: Distribution | H48: Revenue cap | I48: Financial | J48: June | K48: 5 | L48: 5 | M48: 5 | N48: distribution determination | O48: 1-7 Maria Street | Q48: LENAH VALLEY | R48: Tas | S48: 7008 | T48: PO Box 606 | V48: MOONAH | W48: Tas | X48: 7009 | Y48: John Sayers | Z48: 03 6271 6469 | AA48: john.sayers@tasnetworks.com.au | AB48: YES | AC48: YES | AD48: YES | AE48: YES | AF48: YES | AG48: NO | AH48: Critical Infrastructure | AI48: High density commercial | AJ48: Urban | AK48: High density rural | AL48: Low density rural | AM48: YES | AN48: TasNetworks (D)
B49: TasNetworks (T) | C49: TasNetworks (T) | D49: 24167357299 | E49: Tas | F49: Electricity | G49: Transmission | H49: Revenue cap | I49: Financial | J49: June | K49: 5 | L49: 5 | M49: 5 | N49: transmission determination | O49: 1-7 Maria Street | Q49: LENAH VALLEY | R49: Tas | S49: 7008 | T49: PO Box 606 | V49: MOONAH | W49: Tas | X49: 7009 | Y49: John Sayers | Z49: 03 6271 6469 | AA49: john.sayers@tasnetworks.com.au | AB49: NO | AC49: NO | AD49: NO | AE49: NO | AF49: NO | AG49: - | AH49: CBD | AI49: Urban | AJ49: Short rural | AK49: Long rural | AM49: NO | AN49: TasNetworks (T)
B50: TransGrid | C50: NSW Electricity Networks Operations Pty Ltd trading as TransGrid | D50: 70 250 995 390 | E50: NSW | F50: Electricity | G50: Transmission | H50: Revenue cap | I50: Financial | J50: June | K50: 4 | L50: 5 | M50: 5 | N50: transmission determination | O50: 180 Thomas Street | Q50: SYDNEY | R50: NSW | S50: 2000 | T50: PO Box A1000 | V50: SYDNEY SOUTH | W50: NSW | X50: 1235 | Y50: Garrie Chubb | Z50: 0408 210 221 | AA50: garrie.chubb@transgrid.com.au | AB50: NO | AC50: NO | AD50: NO | AE50: NO | AF50: NO | AG50: - | AH50: CBD | AI50: Urban | AJ50: Short rural | AK50: Long rural | AM50: NO | AN50: TransGrid
B51: United Energy | C51: United Energy | D51: 70064651029 | E51: Vic | F51: Electricity | G51: Distribution | H51: Revenue cap | I51: Calendar | J51: December | K51: 5 | L51: 5 | M51: 2 | N51: 2016-20 Distribution Determination | O51: Level 3 | P51: 6 Nexus Court | Q51: MULGRAVE | R51: Vic | S51: 3149 | T51: PO Box 449 | V51: MOUNT WAVERLEY | W51: VIC | X51: 3170 | Y51: Mathew Abraham | Z51: 03 8846 9758 | AA51: mathew.abraham@ue.com.au | AB51: NO | AC51: NO | AD51: YES | AE51: NO | AF51: NO | AG51: YES | AH51: CBD | AI51: Urban | AJ51: Short rural | AK51: Long rural | AM51: YES | AN51: United Energy
Z54: For EB & Reset RINs only | AE54: For AARs only
B55: The Reg Year Ending (dms_RYE) must be set to the last year of the regulatory period. For forecast data is is usually (FRCP_y5) for actual it is a single year (CRY). For historical actual data the RYE will need to be set manually in the business details sheet by setting the dms_Multiyear_flag to 1 and putting the correct value in 'dms_Specified_FinalYear. See cells C67:C68 | N55: Drop down selector box for CA & Reset RINs. | O55: For CA & Reset RINs only | Z55: for DNSP only | AE55: For DNSPs only
B56: dms_Model_List | C56: dms_Worksheet_List | E56: dms_RYE_Formula_Result | N56: dms_0203_ProjectType | O56: dms_020303_01_UOM | P56: dms_020501_01_UOM | Q56: dms_020501_02_UOM | R56: dms_020501_03_UOM | S56: dms_020501_04_UOM | T56: dms_020603_01_UOM | U56: dms_020701_01_UOM | V56: dms_020701_02_UOM | W56: dms_020701_01_Rows | X56: dms_040102_01_UOM | Y56: dms_040102_04_UOM | Z56: dms_030601_01_UOM | AA56: dms_030601_02_UOM | AB56: dms_030701_01_UOM | AC56: dms_030702_01_UOM | AD56: dms_030703_01_UOM | AE56: dms_030605_UOM | AF56: dms_03060703_UOM
B57: ARR | C57: ANNUAL REPORTING STATEMENT | E57: =LEFT(dms_SingleYear_FinalYear_Result,2)&RIGHT(dms_SingleYear_FinalYear_Result,2) -> 2009 | F57: =LEFT(dms_SingleYear_FinalYear_Result,2)&RIGHT(dms_SingleYear_FinalYear_Result,2) | H57: Formula errors are OK | N57: New line on new route - single circuit | O57: Circuit line length in km | P57: 0's | Q57: 0's | R57: 0's | S57: 0's | T57: 0's | U57: km | V57: km | W57: Route line length within zone | X57: 0's | Y57: days | Z57: minutes/customer | AA57: minutes/customer | AB57: Customer / km | AC57: % | AD57: km | AE57: number | AF57: number
B58: CA | C58: CATEGORY ANALYSIS | E58: =LEFT(dms_SingleYear_FinalYear_Result,2)&RIGHT(dms_SingleYear_FinalYear_Result,2) -> 2009 | F58: =LEFT(dms_SingleYear_FinalYear_Result,2)&RIGHT(dms_SingleYear_FinalYear_Result,2) | H58: Formula errors are OK | N58: New line on new route - dual circuit | O58: Circuit line length in km | P58: 0's | Q58: 0's | R58: 0's | S58: 0's | T58: 0's | U58: 0's | V58: 0's | W58: Number of maintenance spans | X58: 0's | Y58: 0's | Z58: minutes/customer | AA58: minutes/customer | AB58: MWh/customer | AC58: Number of spans | AE58: number | AF58: number
B59: CESS | C59: CAPITLAL EXPENDITURE SHARING SCHEMING | E59: 2016 | F59: =LEFT(dms_SingleYear_FinalYear_Result,2)&RIGHT(dms_SingleYear_FinalYear_Result,2) | N59: New line on new route - other | O59: Circuit line length in km | P59: MVA added | Q59: MVA added | R59: MVA added | S59: MVA added | T59: 0's | U59: km | V59: km | W59: Total length of maintenance spans | X59: 0's | Y59: $0s | Z59: interruptions/customer | AA59: interruptions/customer | AB59: kVA / customer | AC59: Number of spans | AE59: number | AF59: number
B60: CPI | C60: CPI | N60: Line rebuild over existing route - single circuit | O60: Circuit line length in km | P60: 0's | Q60: 0's | R60: 0's | S60: 0's | T60: 0's | U60: km | V60: km | W60: Length of vegetation corridors | X60: $0s | Y60: 0's | Z60: interruptions/customer | AA60: interruptions/customer | AC60: Number of spans | AE60: number | AF60: number
B61: EB | C61: ECONOMIC BENCHMARKING | E61: =LEFT(dms_SingleYear_FinalYear_Result,2)&RIGHT(dms_SingleYear_FinalYear_Result,2) -> 2009 | F61: =LEFT(dms_SingleYear_FinalYear_Result,2)&RIGHT(dms_SingleYear_FinalYear_Result,2) | H61: Formula errors are OK | N61: Line rebuild over existing route - dual circuit | O61: Number | P61: total spend $0s | Q61: total spend $0s | R61: total spend $0s | S61: total spend $0s | T61: (per cent) | U61: 0's | V61: 0's | W61: Average number of trees per maintenance span | AC61: Number of spans | AE61: number | AF61: (per cent)
B62: PTRM | C62: POST TAX REVENUE MODEL | E62: =LEFT(dms_MultiYear_FinalYear_Result,2)&RIGHT(dms_MultiYear_FinalYear_Result,2) -> 2018 | F62: =LEFT(dms_MultiYear_FinalYear_Result,2)&RIGHT(dms_MultiYear_FinalYear_Result,2) | N62: Reconductor - Single circuit | O62: Number | P62: net circuit km added | Q62: net circuit km added | R62: net circuit km added | S62: net circuit km added | U62: years | V62: years | W62: Average frequency of cutting cycle | AC62: Years | AE62: number
B63: Reset | C63: REGULATORY REPORTING STATEMENT | E63: =LEFT(dms_MultiYear_FinalYear_Result,2)&RIGHT(dms_MultiYear_FinalYear_Result,2) -> 2018 | F63: =LEFT(dms_MultiYear_FinalYear_Result,2)&RIGHT(dms_MultiYear_FinalYear_Result,2) | H63: Formula errors are OK | N63: Reconductor - Dual circuit | O63: Number | P63: total spend $0s | Q63: total spend $0s | R63: total spend $0s | S63: total spend $0s | AC63: Years | AE63: number
B64: RFM | C64: ROLL FORWARD MODEL | E64: =LEFT(dms_CRCP_FinalYear_Result,2)&RIGHT(dms_CRCP_FinalYear_Result,2) -> 2018 | F64: =LEFT(dms_CRCP_FinalYear_Result,2)&RIGHT(dms_CRCP_FinalYear_Result,2) | N64: Other | P64: net circuit km added | Q64: net circuit km added | R64: net circuit km added | S64: net circuit km added | AC64: Trees | AE64: number
B65: WACC | C65: WEIGHTED AVERAGE COST OF CAPITAL | E65: =LEFT(dms_MultiYear_FinalYear_Result,2)&RIGHT(dms_MultiYear_FinalYear_Result,2) -> 2018 | F65: =LEFT(dms_MultiYear_FinalYear_Result,2)&RIGHT(dms_MultiYear_FinalYear_Result,2) | P65: total spend $0s | Q65: total spend $0s | R65: total spend $0s | S65: total spend $0s | AC65: Trees | AE65: number
P66: 0's | R66: $0s | AC66: Defects | AE66: number
B67: dms_DataQuality_List | P67: 0's | AC67: Defects | AE67: number
B68: Actual | P68: 0's | AC68: Spans | AE68: number
B69: Estimate | P69: $0s | AC69: km | AE69: (per cent)
B70: Consolidated | AC70: Spans | AE70: (per cent)
B71: Recast
B72: Public
O73: For PTRM files - this field set the text for the named range "DMS_Xfactor" which in all cases is simply the text "x factors" - this saves putting in each old gas PTRM file | Z73: for TNSP only
B74: For all files either AER or business needs to be able to specify the type of submission | C74: For PTRM & RFM templates we must provide a choice in case they change their form of control - otherwise it is drawn from the business specific lookup table above. | O74: DMS_Xfactor | Z74: dms_030601_01_UOM | AB74: dms_030701_01_UOM | AC74: dms_030702_01_UOM
B75: dms_SourceList | C75: dms_FormControl_Choices | O75: x factors | Z75: % | AB75: Number of spans | AC75: km
B76: After appeal | C76: Revenue cap | Z76: number | AB76: Years | AC76: %
B77: Draft decision | C77: Revenue yield | Z77: number | AB77: Trees | AC77: km
B78: Final decision | C78: Weighted average price cap | Z78: % | AB78: Defects | AC78: number
B79: PTRM update 1 | Z79: number | AB79: Number of spans
B80: PTRM update 2 | Z80: number | AB80: km
B81: PTRM update 3 | Z81: % | AB81: km
B82: PTRM update 4 | Z82: number | AB82: Number of spans
B83: PTRM update 5 | Z83: number
B84: PTRM update 6 | Z84: %
B85: PTRM update 7 | Z85: number
B86: Regulatory proposal | Z86: %
B87: Reporting | Z87: number
B88: Revised regulatory proposal | Z88: %
Z89: number
B93: Reason for interruption | C93: dms_Reason_Interruption_Detailed | D93: dms_Reason_Interruption | E93: dms_STPIS_Exclusion_List | F93: dms_020301_ProjectType_List | G93: dms_020302_ProjectType_List
B94: Animal | C94: Animal impact | D94: Animal | E94: Weather | F94: New substation establishment | G94: New line on new route - single circuit
C95: Animal nesting/burrowing, etc and other | D95: Asset failure | E95: Equipment failure | F95: Capacity upgrade | G95: New line on new route - dual circuit
C96: Other | D96: Other | E96: Operational error | F96: Voltage upgrade | G96: New line on new route - other
B97: Asset failure | C97: LV | D97: Overloads | E97: Vegetation | F97: Other | G97: Line rebuild over existing route - single circuit
C98: Distribution substation | D98: Planned | E98: Animals | G98: Line rebuild over existing route - dual circuit
C99: HV | D99: Network business | E99: Third party impacts | G99: Reconductor - Single circuit
C100: Zone substation | D100: Third party | E100: Transmission failure | G100: Reconductor - Dual circuit
C101: Subtransmission | D101: Unknown | E101: Load shedding | G101: Reconductor - Other
B102: Other | C102: insert description of 'other' | D102: Vegetation | E102: Inter-distributor connection failure | G102: Line upgrade - raising/retensoring
B103: Overloads | C103: - | D103: Weather | E103: Other | G103: Line upgrade - voltage upgrade
B104: Planned | C104: - | D104: 2 - STPIS Exclusion (3.3)(a) | G104: Line upgrade - capacity
B105: Network business | C105: Network error | D105: 3 - STPIS Exclusion (3.3)(a) | G105: String spare circuit
C106: Switching and protection error | D106: 4 - STPIS Exclusion (3.3)(a) | G106: Other
B107: Third party | C107: Fire | D107: 5 - STPIS Exclusion (3.3)(a)
C108: Other | D108: 6 - STPIS Exclusion (3.3)(a)
C109: Dig-in | D109: 7 - STPIS Exclusion (3.3)(a)
C110: Unauthorised access
C111: Vehicle impact
B112: Unknown | C112: Unknown
B113: Vegetation | C113: Blow-in/Fall-in - NSP responsibility
C114: Grow-in - NSP responsibility
C115: Blow-in/Fall-in - Other responsible party
C116: Grow-in - Other responsible party
B117: Weather
B118: 2 - STPIS Exclusion (3.3)(a)
B119: 3 - STPIS Exclusion (3.3)(a)
B120: 4 - STPIS Exclusion (3.3)(a)
B121: 5 - STPIS Exclusion (3.3)(a)
B122: 6 - STPIS Exclusion (3.3)(a)
B123: 7 - STPIS Exclusion (3.3)(a)
B131: These are indeces and lookup values for various dates. All step from the value placed in FRCP_y1 on the business and other details worksheet | O131: These date tables are currently used in the Recast templates to provide column headings and conditional formatting
B132: dms_FRCPlength_Num_List | C132: dms_FinalYear_List | D132: dms_CRCPlength_Num_List | E132: dms_CFinalYear_List | F132: dms_FRCP_years | H132: dms_CRCP_years | J132: dms_CRCP_index | L132: dms_Financial_Years | M132: dms_Calendar_Years | O132: CRY from input cell on business sheet | P132: CRY - financial | Q132: dms_FinYears | R132: CRY calendar | S132: dms_CalYears
B133: 1 | C133: dms_FRCP_y1 | D133: 1 | E133: CRCP_y1 | F133: =FRCP_y1 -> 2008-09 | G133: dms_FRCP_y1 | H133: =IF(dms_RPT="financial",VALUE(LEFT(dms_FRCP_y1,4)-1)&"-"&TEXT(VALUE(MID(dms_FRCP_y1,3,2)),"00"),VALUE(LEFT(dms_FRCP_y1,4)-1)) -> 2007-08 | I133: dms_CRCP_yZ | J133: 1 | L133: 2005-06 | M133: 2006 | O133: =CRY -> 2008-09 | P133: =VALUE(LEFT(CRY,4))&"-"&TEXT(MID(CRY,3,2)+1,"00") -> 2008-09 | Q133: dms_CRYf_y1 | R133: =VALUE(LEFT(CRY,4)+1) -> 2009 | S133: dms_CRYc_y1
B134: 2 | C134: dms_FRCP_y2 | D134: 2 | E134: CRCP_y2 | F134: =IF(dms_RPT="financial",VALUE(LEFT(dms_FRCP_y1,4)+1)&"-"&TEXT(VALUE(RIGHT(dms_FRCP_y1,2)+1),"00"),VALUE(LEFT(dms_FRCP_y1,4)+1)) -> 2009-10 | G134: dms_FRCP_y2 | H134: =IF(dms_RPT="financial",VALUE(LEFT(dms_CRCP_yZ,4)-1)&"-"&TEXT(VALUE(MID(dms_CRCP_yZ,3,2)),"00"),VALUE(LEFT(dms_CRCP_yZ,4)-1)) -> 2006-07 | I134: dms_CRCP_yY | J134: 2 | L134: 2006-07 | M134: 2007 | P134: =VALUE(LEFT(dms_CRYf_y1,4)+1)&"-"&TEXT(MID(dms_CRYf_y1,3,2)+2,"00") -> 2009-10 | Q134: dms_CRYf_y2 | R134: =VALUE(LEFT(dms_CRYc_y1,4)+1) -> 2010 | S134: dms_CRYc_y2
B135: 3 | C135: dms_FRCP_y3 | D135: 3 | E135: CRCP_y3 | F135: =IF(dms_RPT="financial",VALUE(LEFT(dms_FRCP_y2,4)+1)&"-"&TEXT(VALUE(RIGHT(dms_FRCP_y2,2)+1),"00"),VALUE(LEFT(dms_FRCP_y2,4)+1)) -> 2010-11 | G135: dms_FRCP_y3 | H135: =IF(dms_RPT="financial",VALUE(LEFT(dms_CRCP_yY,4)-1)&"-"&TEXT(VALUE(MID(dms_CRCP_yY,3,2)),"00"),VALUE(LEFT(dms_CRCP_yY,4)-1)) -> 2005-06 | I135: dms_CRCP_yX | J135: 3 | L135: 2007-08 | M135: 2008 | P135: =VALUE(LEFT(dms_CRYf_y2,4)+1)&"-"&TEXT(MID(dms_CRYf_y2,3,2)+2,"00") -> 2010-11 | Q135: dms_CRYf_y3 | R135: =VALUE(LEFT(dms_CRYc_y2,4)+1) -> 2011 | S135: dms_CRYc_y3
B136: 4 | C136: dms_FRCP_y4 | D136: 4 | E136: CRCP_y4 | F136: =IF(dms_RPT="financial",VALUE(LEFT(dms_FRCP_y3,4)+1)&"-"&TEXT(VALUE(RIGHT(dms_FRCP_y3,2)+1),"00"),VALUE(LEFT(dms_FRCP_y3,4)+1)) -> 2011-12 | G136: dms_FRCP_y4 | H136: =IF(dms_RPT="financial",VALUE(LEFT(dms_CRCP_yX,4)-1)&"-"&TEXT(VALUE(MID(dms_CRCP_yX,3,2)),"00"),VALUE(LEFT(dms_CRCP_yX,4)-1)) -> 2004-05 | I136: dms_CRCP_yW | J136: 4 | L136: 2008-09 | M136: 2009 | P136: =VALUE(LEFT(dms_CRYf_y3,4)+1)&"-"&TEXT(MID(dms_CRYf_y3,3,2)+2,"00") -> 2011-12 | Q136: dms_CRYf_y4 | R136: =VALUE(LEFT(dms_CRYc_y3,4)+1) -> 2012 | S136: dms_CRYc_y4
B137: 5 | C137: dms_FRCP_y5 | D137: 5 | E137: CRCP_y5 | F137: =IF(dms_RPT="financial",VALUE(LEFT(dms_FRCP_y4,4)+1)&"-"&TEXT(VALUE(RIGHT(dms_FRCP_y4,2)+1),"00"),VALUE(LEFT(dms_FRCP_y4,4)+1)) -> 2012-13 | G137: dms_FRCP_y5 | H137: =IF(dms_RPT="financial",VALUE(LEFT(dms_CRCP_yW,4)-1)&"-"&TEXT(VALUE(MID(dms_CRCP_yW,3,2)),"00"),VALUE(LEFT(dms_CRCP_yW,4)-1)) -> 2003-04 | I137: dms_CRCP_yV | J137: 5 | L137: 2009-10 | M137: 2010 | P137: =VALUE(LEFT(dms_CRYf_y4,4)+1)&"-"&TEXT(MID(dms_CRYf_y4,3,2)+2,"00") -> 2012-13 | Q137: dms_CRYf_y5 | R137: =VALUE(LEFT(dms_CRYc_y4,4)+1) -> 2013 | S137: dms_CRYc_y5
B138: 6 | C138: dms_FRCP_y6 | D138: 6 | E138: CRCP_y6 | F138: =IF(dms_RPT="financial",VALUE(LEFT(dms_FRCP_y5,4)+1)&"-"&TEXT(VALUE(RIGHT(dms_FRCP_y5,2)+1),"00"),VALUE(LEFT(dms_FRCP_y5,4)+1)) -> 2013-14 | G138: dms_FRCP_y6 | H138: =IF(dms_RPT="financial",VALUE(LEFT(dms_CRCP_yV,4)-1)&"-"&TEXT(VALUE(MID(dms_CRCP_yV,3,2)),"00"),VALUE(LEFT(dms_CRCP_yV,4)-1)) -> 2002-03 | I138: dms_CRCP_yU | J138: 6 | L138: 2010-11 | M138: 2011 | P138: =VALUE(LEFT(dms_CRYf_y5,4)+1)&"-"&TEXT(MID(dms_CRYf_y5,3,2)+2,"00") -> 2013-14 | Q138: dms_CRYf_y6 | R138: =VALUE(LEFT(dms_CRYc_y5,4)+1) -> 2014 | S138: dms_CRYc_y6
B139: 7 | C139: dms_FRCP_y7 | D139: 7 | E139: CRCP_y7 | F139: =IF(dms_RPT="financial",VALUE(LEFT(dms_FRCP_y6,4)+1)&"-"&TEXT(VALUE(RIGHT(dms_FRCP_y6,2)+1),"00"),VALUE(LEFT(dms_FRCP_y6,4)+1)) -> 2014-15 | G139: dms_FRCP_y7 | H139: =IF(dms_RPT="financial",VALUE(LEFT(dms_CRCP_yU,4)-1)&"-"&TEXT(VALUE(MID(dms_CRCP_yU,3,2)),"00"),VALUE(LEFT(dms_CRCP_yU,4)-1)) -> 2001-02 | I139: dms_CRCP_yT | J139: 7 | L139: 2011-12 | M139: 2012 | P139: =VALUE(LEFT(dms_CRYf_y6,4)+1)&"-"&TEXT(MID(dms_CRYf_y6,3,2)+2,"00") -> 2014-15 | Q139: dms_CRYf_y7 | R139: =VALUE(LEFT(dms_CRYc_y6,4)+1) -> 2015 | S139: dms_CRYc_y7
B140: 8 | C140: dms_FRCP_y8 | D140: 8 | E140: CRCP_y8 | F140: =IF(dms_RPT="financial",VALUE(LEFT(dms_FRCP_y7,4)+1)&"-"&TEXT(VALUE(RIGHT(dms_FRCP_y7,2)+1),"00"),VALUE(LEFT(dms_FRCP_y7,4)+1)) -> 2015-16 | G140: dms_FRCP_y8 | H140: =IF(dms_RPT="financial",VALUE(LEFT(dms_CRCP_yT,4)-1)&"-"&TEXT(VALUE(MID(dms_CRCP_yT,3,2)),"00"),VALUE(LEFT(dms_CRCP_yT,4)-1)) -> 2000-01 | I140: dms_CRCP_yS | J140: 8 | L140: 2012-13 | M140: 2013 | P140: =VALUE(LEFT(dms_CRYf_y7,4)+1)&"-"&TEXT(MID(dms_CRYf_y7,3,2)+2,"00") -> 2015-16 | Q140: dms_CRYf_y8 | R140: =VALUE(LEFT(dms_CRYc_y7,4)+1) -> 2016 | S140: dms_CRYc_y8
B141: 9 | C141: dms_FRCP_y9 | D141: 9 | E141: CRCP_y9 | F141: =IF(dms_RPT="financial",VALUE(LEFT(dms_FRCP_y8,4)+1)&"-"&TEXT(VALUE(RIGHT(dms_FRCP_y8,2)+1),"00"),VALUE(LEFT(dms_FRCP_y8,4)+1)) -> 2016-17 | G141: dms_FRCP_y9 | H141: =IF(dms_RPT="financial",VALUE(LEFT(dms_CRCP_yS,4)-1)&"-"&TEXT(VALUE(MID(dms_CRCP_yS,3,2)),"00"),VALUE(LEFT(dms_CRCP_yS,4)-1)) -> 1999-00 | I141: dms_CRCP_yR | J141: 9 | L141: 2013-14 | M141: 2014 | P141: =VALUE(LEFT(dms_CRYf_y8,4)+1)&"-"&TEXT(MID(dms_CRYf_y8,3,2)+2,"00") -> 2016-17 | Q141: dms_CRYf_y9 | R141: =VALUE(LEFT(dms_CRYc_y8,4)+1) -> 2017 | S141: dms_CRYc_y9
B142: 10 | C142: dms_FRCP_y10 | D142: 10 | E142: CRCP_y10 | F142: =IF(dms_RPT="financial",VALUE(LEFT(dms_FRCP_y9,4)+1)&"-"&TEXT(VALUE(RIGHT(dms_FRCP_y9,2)+1),"00"),VALUE(LEFT(dms_FRCP_y9,4)+1)) -> 2017-18 | G142: dms_FRCP_y10 | H142: =IF(dms_RPT="financial",VALUE(LEFT(dms_CRCP_yR,4)-1)&"-"&TEXT(VALUE(MID(dms_CRCP_yR,3,2)),"00"),VALUE(LEFT(dms_CRCP_yR,4)-1)) -> 1998-99 | I142: dms_CRCP_yQ | J142: 10 | L142: 2014-15 | M142: 2015 | P142: =VALUE(LEFT(dms_CRYf_y9,4)+1)&"-"&TEXT(MID(dms_CRYf_y9,3,2)+2,"00") -> 2017-18 | Q142: dms_CRYf_y10 | R142: =VALUE(LEFT(dms_CRYc_y9,4)+1) -> 2018 | S142: dms_CRYc_y10
B143: 11 | C143: dms_FRCP_y11 | D143: 11 | E143: CRCP_y11 | F143: =IF(dms_RPT="financial",VALUE(LEFT(dms_FRCP_y10,4)+1)&"-"&TEXT(VALUE(RIGHT(dms_FRCP_y10,2)+1),"00"),VALUE(LEFT(dms_FRCP_y10,4)+1)) -> 2018-19 | G143: dms_FRCP_y11 | H143: =IF(dms_RPT="financial",VALUE(LEFT(dms_CRCP_yQ,4)-1)&"-"&TEXT(VALUE(MID(dms_CRCP_yQ,3,2)),"00"),VALUE(LEFT(dms_CRCP_yQ,4)-1)) -> 1997-98 | I143: dms_CRCP_yP | J143: 11 | L143: 2015-16 | M143: 2016 | P143: =VALUE(LEFT(dms_CRYf_y10,4)+1)&"-"&TEXT(MID(dms_CRYf_y10,3,2)+2,"00") -> 2018-19 | Q143: dms_CRYf_y11 | R143: =VALUE(LEFT(dms_CRYc_y10,4)+1) -> 2019 | S143: dms_CRYc_y11
B144: 12 | C144: dms_FRCP_y12 | D144: 12 | E144: CRCP_y12 | F144: =IF(dms_RPT="financial",VALUE(LEFT(dms_FRCP_y11,4)+1)&"-"&TEXT(VALUE(RIGHT(dms_FRCP_y11,2)+1),"00"),VALUE(LEFT(dms_FRCP_y11,4)+1)) -> 2019-20 | G144: dms_FRCP_y12 | H144: =IF(dms_RPT="financial",VALUE(LEFT(dms_CRCP_yP,4)-1)&"-"&TEXT(VALUE(MID(dms_CRCP_yP,3,2)),"00"),VALUE(LEFT(dms_CRCP_yP,4)-1)) -> 1996-97 | I144: dms_CRCP_yO | J144: 12 | L144: 2016-17 | M144: 2017 | P144: =VALUE(LEFT(dms_CRYf_y11,4)+1)&"-"&TEXT(MID(dms_CRYf_y11,3,2)+2,"00") -> 2019-20 | Q144: dms_CRYf_y12 | R144: =VALUE(LEFT(dms_CRYc_y11,4)+1) -> 2020 | S144: dms_CRYc_y12
B145: 13 | C145: dms_FRCP_y13 | D145: 13 | E145: CRCP_y13 | F145: =IF(dms_RPT="financial",VALUE(LEFT(dms_FRCP_y12,4)+1)&"-"&TEXT(VALUE(RIGHT(dms_FRCP_y12,2)+1),"00"),VALUE(LEFT(dms_FRCP_y12,4)+1)) -> 2020-21 | G145: dms_FRCP_y13 | H145: =IF(dms_RPT="financial",VALUE(LEFT(dms_CRCP_yO,4)-1)&"-"&TEXT(VALUE(MID(dms_CRCP_yO,3,2)),"00"),VALUE(LEFT(dms_CRCP_yO,4)-1)) -> 1995-96 | I145: dms_CRCP_yN | J145: 13 | L145: 2017-18 | M145: 2018 | P145: =VALUE(LEFT(dms_CRYf_y12,4)+1)&"-"&TEXT(MID(dms_CRYf_y12,3,2)+2,"00") -> 2020-21 | Q145: dms_CRYf_y13 | R145: =VALUE(LEFT(dms_CRYc_y12,4)+1) -> 2021 | S145: dms_CRYc_y13
B146: 14 | C146: dms_FRCP_y14 | D146: 14 | E146: CRCP_y14 | F146: =IF(dms_RPT="financial",VALUE(LEFT(dms_FRCP_y13,4)+1)&"-"&TEXT(VALUE(RIGHT(dms_FRCP_y13,2)+1),"00"),VALUE(LEFT(dms_FRCP_y13,4)+1)) -> 2021-22 | G146: dms_FRCP_y14 | H146: =IF(dms_RPT="financial",VALUE(LEFT(dms_CRCP_yN,4)-1)&"-"&TEXT(VALUE(MID(dms_CRCP_yN,3,2)),"00"),VALUE(LEFT(dms_CRCP_yN,4)-1)) -> 1994-95 | I146: dms_CRCP_yM | J146: 14 | L146: 2018-19 | M146: 2019 | P146: =VALUE(LEFT(dms_CRYf_y13,4)+1)&"-"&TEXT(MID(dms_CRYf_y13,3,2)+2,"00") -> 2021-22 | Q146: dms_CRYf_y14 | R146: =VALUE(LEFT(dms_CRYc_y13,4)+1) -> 2022 | S146: dms_CRYc_y14
B147: 15 | C147: dms_FRCP_y15 | D147: 15 | E147: CRCP_y15 | F147: =IF(dms_RPT="financial",VALUE(LEFT(dms_FRCP_y14,4)+1)&"-"&TEXT(VALUE(RIGHT(dms_FRCP_y14,2)+1),"00"),VALUE(LEFT(dms_FRCP_y14,4)+1)) -> 2022-23 | G147: dms_FRCP_y15 | H147: =IF(dms_RPT="financial",VALUE(LEFT(dms_CRCP_yM,4)-1)&"-"&TEXT(VALUE(MID(dms_CRCP_yM,3,2)),"00"),VALUE(LEFT(dms_CRCP_yM,4)-1)) -> 1993-94 | I147: dms_CRCP_yL | J147: 15 | L147: 2019-20 | M147: 2020 | P147: =VALUE(LEFT(dms_CRYf_y14,4)+1)&"-"&TEXT(MID(dms_CRYf_y14,3,2)+2,"00") -> 2022-23 | Q147: dms_CRYf_y15 | R147: =VALUE(LEFT(dms_CRYc_y14,4)+1) -> 2023 | S147: dms_CRYc_y15
L148: 2020-21 | M148: 2021 | P148: =VALUE(LEFT(dms_CRYf_y15,4)+1)&"-"&TEXT(MID(dms_CRYf_y15,3,2)+2,"00") -> 2023-24 | Q148: dms_CRYf_y16 | R148: =VALUE(LEFT(dms_CRYc_y15,4)+1) -> 2024 | S148: dms_CRYc_y16
B149: These are drop down lists for businesses to select the correct FRCP_y1 on the business and other details worksheet. This also populates the column headings in the worksheets | L149: 2021-22 | M149: 2022 | P149: =VALUE(LEFT(dms_CRYf_y16,4)+1)&"-"&TEXT(MID(dms_CRYf_y16,3,2)+2,"00") -> 2024-25 | Q149: dms_CRYf_y17 | R149: =VALUE(LEFT(dms_CRYc_y16,4)+1) -> 2025 | S149: dms_CRYc_y17
B150: dms_RCP_fyear_list | C150: dms_CRY_ListF | D150: dms_CRY_ListC | E150: dms_RCP_cyear_list | F150: dms_FRCP_fyear_list | G150: dms_FRCP_ListF | H150: dms_FRCP_ListC | I150: dms_FRCP_cyear_list | L150: 2022-23 | M150: 2023 | P150: =VALUE(LEFT(dms_CRYf_y17,4)+1)&"-"&TEXT(MID(dms_CRYf_y17,3,2)+2,"00") -> 2025-26 | Q150: dms_CRYf_y18 | R150: =VALUE(LEFT(dms_CRYc_y17,4)+1) -> 2026 | S150: dms_CRYc_y18
B151: dms_y1 | C151: =CRY -> 2008-09 | D151: 2006 | E151: dms_cy1 | F151: dms_frcp_fy1 | G151: 2010-11 | H151: 2011 | I151: dms_crcp_cy1 | L151: 2023-24 | M151: 2024 | P151: =VALUE(LEFT(dms_CRYf_y18,4)+1)&"-"&TEXT(MID(dms_CRYf_y18,3,2)+2,"00") -> 2026-27 | Q151: dms_CRYf_y19 | R151: =VALUE(LEFT(dms_CRYc_y18,4)+1) -> 2027 | S151: dms_CRYc_y19
B152: dms_y2 | C152: =IF(dms_RPT="financial",VALUE(LEFT(CRY,4)+1)&"-"&TEXT(MID(CRY,3,2)+2,"00"),VALUE(LEFT(CRY,4)+1)) -> 2009-10 | D152: 2007 | E152: dms_cy2 | F152: dms_frcp_fy2 | G152: 2011-12 | H152: 2012 | I152: dms_crcp_cy2 | L152: 2024-25 | M152: 2025 | P152: =VALUE(LEFT(dms_CRYf_y19,4)+1)&"-"&TEXT(MID(dms_CRYf_y19,3,2)+2,"00") -> 2027-28 | Q152: dms_CRYf_y20 | R152: =VALUE(LEFT(dms_CRYc_y19,4)+1) -> 2028 | S152: dms_CRYc_y20
B153: dms_y3 | C153: =IF(dms_RPT="financial",VALUE(LEFT(dms_fy2,4)+1)&"-"&TEXT(MID(dms_fy2,3,2)+2,"00"),VALUE(LEFT(dms_fy2,4)+1)) -> 2010-11 | D153: 2008 | E153: dms_cy3 | F153: dms_frcp_fy3 | G153: 2012-13 | H153: 2013 | I153: dms_crcp_cy3 | L153: 2025-26 | M153: 2026
B154: dms_y4 | C154: =IF(dms_RPT="financial",VALUE(LEFT(dms_fy3,4)+1)&"-"&TEXT(MID(dms_fy3,3,2)+2,"00"),VALUE(LEFT(dms_fy3,4)+1)) -> 2011-12 | D154: 2009 | E154: dms_cy4 | F154: dms_frcp_fy4 | G154: 2013-14 | H154: 2014 | I154: dms_crcp_cy4 | L154: 2026-27 | M154: 2027
B155: dms_y5 | C155: =IF(dms_RPT="financial",VALUE(LEFT(dms_fy4,4)+1)&"-"&TEXT(MID(dms_fy4,3,2)+2,"00"),VALUE(LEFT(dms_fy4,4)+1)) -> 2012-13 | D155: 2010 | E155: dms_cy5 | F155: dms_frcp_fy5 | G155: 2014-15 | H155: 2015 | I155: dms_crcp_cy5 | L155: 2027-28 | M155: 2028
B156: dms_y6 | C156: =IF(dms_RPT="financial",VALUE(LEFT(dms_fy5,4)+1)&"-"&TEXT(MID(dms_fy5,3,2)+2,"00"),VALUE(LEFT(dms_fy5,4)+1)) -> 2013-14 | D156: 2011 | E156: dms_cy6 | F156: dms_frcp_fy6 | G156: 2015-16 | H156: 2016 | I156: dms_crcp_cy6 | L156: 2028-29 | M156: 2029
B157: dms_y7 | C157: =IF(dms_RPT="financial",VALUE(LEFT(dms_fy6,4)+1)&"-"&TEXT(MID(dms_fy6,3,2)+2,"00"),VALUE(LEFT(dms_fy6,4)+1)) -> 2014-15 | D157: 2012 | E157: dms_cy7 | F157: dms_frcp_fy7 | G157: 2016-17 | H157: 2017 | I157: dms_crcp_cy7 | L157: 2029-30 | M157: 2030
B158: dms_y8 | C158: =IF(dms_RPT="financial",VALUE(LEFT(dms_fy7,4)+1)&"-"&TEXT(MID(dms_fy7,3,2)+2,"00"),VALUE(LEFT(dms_fy7,4)+1)) -> 2015-16 | D158: 2013 | E158: dms_cy8 | F158: dms_frcp_fy8 | G158: 2017-18 | H158: 2018 | I158: dms_crcp_cy8 | L158: 2030-31 | M158: 2031
B159: dms_y9 | C159: =IF(dms_RPT="financial",VALUE(LEFT(dms_fy8,4)+1)&"-"&TEXT(MID(dms_fy8,3,2)+2,"00"),VALUE(LEFT(dms_fy8,4)+1)) -> 2016-17 | D159: 2014 | E159: dms_cy9 | F159: dms_frcp_fy9 | G159: 2018-19 | H159: 2019 | I159: dms_crcp_cy9 | L159: 2031-32 | M159: 2032
B160: dms_y10 | C160: =IF(dms_RPT="financial",VALUE(LEFT(dms_fy9,4)+1)&"-"&TEXT(MID(dms_fy9,3,2)+2,"00"),VALUE(LEFT(dms_fy9,4)+1)) -> 2017-18 | D160: 2015 | E160: dms_cy10 | F160: dms_frcp_fy10 | G160: 2019-20 | H160: 2020 | I160: dms_crcp_cy10 | L160: 2032-33 | M160: 2033
B161: dms_y11 | C161: =IF(dms_RPT="financial",VALUE(LEFT(dms_fy10,4)+1)&"-"&TEXT(MID(dms_fy10,3,2)+2,"00"),VALUE(LEFT(dms_fy10,4)+1)) -> 2018-19 | D161: 2016 | E161: dms_cy11 | F161: dms_frcp_fy11 | G161: 2020-21 | H161: 2021 | I161: dms_crcp_cy11 | L161: 2033-34 | M161: 2034
B162: dms_y12 | C162: =IF(dms_RPT="financial",VALUE(LEFT(dms_fy11,4)+1)&"-"&TEXT(MID(dms_fy11,3,2)+2,"00"),VALUE(LEFT(dms_fy11,4)+1)) -> 2019-20 | D162: 2017 | E162: dms_cy12 | F162: dms_frcp_fy12 | G162: 2021-22 | H162: 2022 | I162: dms_crcp_cy12 | L162: 2034-35 | M162: 2035
B163: dms_y13 | C163: =IF(dms_RPT="financial",VALUE(LEFT(dms_fy12,4)+1)&"-"&TEXT(MID(dms_fy12,3,2)+2,"00"),VALUE(LEFT(dms_fy12,4)+1)) -> 2020-21 | D163: 2018 | E163: dms_cy13 | F163: dms_frcp_fy13 | G163: 2022-23 | H163: 2023 | I163: dms_crcp_cy13 | L163: 2035-36 | M163: 2036
B164: dms_y14 | C164: =IF(dms_RPT="financial",VALUE(LEFT(dms_fy13,4)+1)&"-"&TEXT(MID(dms_fy13,3,2)+2,"00"),VALUE(LEFT(dms_fy13,4)+1)) -> 2021-22 | D164: 2019 | E164: dms_cy14 | F164: dms_frcp_fy14 | G164: 2023-24 | H164: 2024 | I164: dms_crcp_cy14
B165: dms_y15 | C165: =IF(dms_RPT="financial",VALUE(LEFT(dms_fy14,4)+1)&"-"&TEXT(MID(dms_fy14,3,2)+2,"00"),VALUE(LEFT(dms_fy14,4)+1)) -> 2022-23 | D165: 2020 | E165: dms_cy15 | F165: dms_frcp_fy15 | G165: 2024-25 | H165: 2025 | I165: dms_crcp_cy15
B166: dms_y16 | C166: =IF(dms_RPT="financial",VALUE(LEFT(dms_fy15,4)+1)&"-"&TEXT(MID(dms_fy15,3,2)+2,"00"),VALUE(LEFT(dms_fy15,4)+1)) -> 2023-24 | D166: 2021 | E166: dms_cy16
B167: dms_y17 | C167: =IF(dms_RPT="financial",VALUE(LEFT(dms_fy16,4)+1)&"-"&TEXT(MID(dms_fy16,3,2)+2,"00"),VALUE(LEFT(dms_fy16,4)+1)) -> 2024-25 | D167: 2022 | E167: dms_cy17
B168: dms_y18 | C168: =IF(dms_RPT="financial",VALUE(LEFT(dms_fy17,4)+1)&"-"&TEXT(MID(dms_fy17,3,2)+2,"00"),VALUE(LEFT(dms_fy17,4)+1)) -> 2025-26 | D168: 2023 | E168: dms_cy18
B169: dms_y19 | C169: =IF(dms_RPT="financial",VALUE(LEFT(dms_fy18,4)+1)&"-"&TEXT(MID(dms_fy18,3,2)+2,"00"),VALUE(LEFT(dms_fy18,4)+1)) -> 2026-27 | D169: 2024 | E169: dms_cy19
B170: dms_y20 | C170: =IF(dms_RPT="financial",VALUE(LEFT(dms_fy19,4)+1)&"-"&TEXT(MID(dms_fy19,3,2)+2,"00"),VALUE(LEFT(dms_fy19)+1)) -> 2027-28 | D170: 2025 | E170: dms_cy20
B176: These "row descriptions" are the column headings in the various templates but become row descriptions in the ETL process
C177: Table 6.3 sustained interruptions - row descriptions
C178: dms_060301_CustNo_Affected_Row | D178: dms_060301_Avg_Duration_Sustained_Int_Row | E178: dms_060301_Effect_unplanned_SAIDI_Row | F178: dms_060301_Effect_unplanned_SAIFI_Row
C179: Number of customers affected by the interruption | D179: Average duration of sustained customer interruption | E179: Effect on unplanned SAIDI | F179: Effect on unplanned SAIFI
C183: Table 6.1 telephone answering - row descriptions and start date
C184: dms_060101_Rows | D184: dms_060102_Rows | E184: dms_060101_StartDateTxt
C185: Total number of calls (after removing excluded events) | D185: Number of calls answered within 30 seconds (after excluding excluded events) | E185: =dms_060701_StartDateTxt -> 1-Jul-2008
H189: dms_0603_FeederList | I189: =INDEX(dms_FeederName_1,MATCH(dms_TradingName,dms_TradingName_List)) -> CBD | J189: =INDEX(dms_FeederName_2,MATCH(dms_TradingName,dms_TradingName_List)) -> Urban | K189: =INDEX(dms_FeederName_3,MATCH(dms_TradingName,dms_TradingName_List)) -> Short rural | L189: =INDEX(dms_FeederName_4,MATCH(dms_TradingName,dms_TradingName_List)) -> Long rural
C190: Table 6.7.1 - daily performance data - unplanned - MAIFI -- row descriptions and header named range values
C191: These headings (Lists) are determined from the INDEX/MATCH function on the NSP selected on the Business & other details sheet
B192: dms_060701_Feeder_Header_Lvl4 | C192: =INDEX(dms_FeederName_1,MATCH(dms_TradingName,dms_TradingName_List)) -> CBD | D192: =INDEX(dms_FeederName_1,MATCH(dms_TradingName,dms_TradingName_List)) -> CBD | E192: =INDEX(dms_FeederName_2,MATCH(dms_TradingName,dms_TradingName_List)) -> Urban | F192: =INDEX(dms_FeederName_2,MATCH(dms_TradingName,dms_TradingName_List)) -> Urban | G192: =INDEX(dms_FeederName_3,MATCH(dms_TradingName,dms_TradingName_List)) -> Short rural | H192: =INDEX(dms_FeederName_3,MATCH(dms_TradingName,dms_TradingName_List)) -> Short rural | I192: =INDEX(dms_FeederName_4,MATCH(dms_TradingName,dms_TradingName_List)) -> Long rural | J192: =INDEX(dms_FeederName_4,MATCH(dms_TradingName,dms_TradingName_List)) -> Long rural | K192: =IF((INDEX(dms_FeederName_5,MATCH(dms_TradingName,dms_TradingName_List))=0),"Network",(INDEX(dms_FeederName_5,MATCH(dms_TradingName,dms_TradingName_List)))) -> Network | L192: =IF((INDEX(dms_FeederName_5,MATCH(dms_TradingName,dms_TradingName_List))=0),"Network",(INDEX(dms_FeederName_5,MATCH(dms_TradingName,dms_TradingName_List)))) -> Network | M192: Network | N192: Network
B194: dms_060701_Rows | C194: All events | D194: After removing excluded events | E194: All events | F194: After removing excluded events | G194: All events | H194: After removing excluded events | I194: All events | J194: After removing excluded events | K194: All events | L194: After removing excluded events | M194: All events | N194: After removing excluded events
C195: the number of column headings changes from 10 to 12 depending on the number of feeder categories for the NSP
C200: Table 6.8.1 - row descriptions
C201: dms_060801_01_Rows | D201: dms_060801_02_Rows | E201: dms_060801_03_Rows | F201: dms_060801_04_Rows
C202: Number of interruptions | D202: Duration of interruptions | E202: Total unplanned minutes off supply | F202: Effect on unplanned MAIFI
C207: Table 7.9.4 - market impact component - row descriptions
B208: dms_070904_01_Rows | C208: without exclusions | D208: with exclusions
C214: Use this to add to existing files
C215: ARRs 6.7 STPIS daily performance
C216: dms_060101_Values | D216: dms_060102_Values | E216: dms_060701_Values
C218: ARR's 6.8 STPIS exclusions
C219: dms_060801_Event_Date | D219: dms_060801_OutageID | E219: dms_060801_FeederID | F219: dms_060801_FeederClass | G219: dms_060801_CauseID | H219: dms_060801_01_Values | I219: dms_060801_02_Values | J219: dms_060801_03_Values | K219: dms_060801_Excl_Cat | L219: dms_060801_04_Values
C220: dms_060801_StartCell
C222: CA 6.3 sustained interruptions
C223: dms_060301_Event_Date | D223: dms_060301_Event_Time | E223: dms_060301_AssetID | F223: dms_060301_FeederClass | G223: dms_060301_Reason | H223: dms_060301_DetailedReason | I223: dms_060301_CustNo_Affected_Values | J223: dms_060301_Avg_Duration_Sustained_Int_Values | K223: dms_060301_Effect_unplanned_SAIDI_Values | L223: dms_060301_Effect_unplanned_SAIFI_Values | M223: dms_060301_MED

Sheet Instructions
B2: =CONCATENATE(dms_Segment," Network Service Provider") -> Distribution Network Service Provider
B3: Historical Reporting RIN Template
C4: =CONCATENATE("This template is to be used by ",dms_TradingName," to fulfil its reporting obligations to the AER.") -> This template is to be used by Ergon Energy to fulfil its reporting obligations to the AER.
C5: INSTRUCTIONS
C6: Complete the Business & other details worksheet before entering data or values in any other worksheets. The Business & other details worksheet is linked to other worksheets within the workbook and automatically generates certain column headings and conditional formatting.
C8: Identifying CONFIDENTIAL INFORMATION: Please use the macro at the top of each worksheet to identify confidential information.
C9: -Do this by selecting the cell or cells that contain confidential information and then run the Mark selection CONFIDENTIAL macro. This will format the cells a specific colour that is identified by the AER's database which in turn marks that information as confidential. -To reverse this, select the cell or cells and run the Return selection to NON-CONFIDENTIAL macro.
C11: UNITS OF MEASURE All amounts are to be unrounded and reported on a one for one basis: that is 1000 is to be entered as '1000'. Applicable units of measure may be identified in the table column headings or row descriptors.
C13: COLOUR CODING OF INPUT / NON-INPUT CELLS:
D14: Yellow = Input cell (mandatory)
D15: Darker yellow = input cell (mandatory)
D16: Orange = input cell (if data available)
D17: Grey = Not applicable/No inputs required
D18: PLEASE DO NOT ENTER TEXT into cells that are to contain numeric data.
C21: WORKSHEET NAVIGATION Many tables in the worksheets have been "grouped" to allow for easy navigation. To ungroup or group data use the outline symbols in the left margin of excel (for Row groupings) or above the columns (for column groupings).
C23: RETURNING COMPLETED RESPONSES Please return two (2) files to the AER: 1. A confidential version which must contain a complete set of all responses with confidential information marked using the Mark selected cells CONFIDENTIAL macro and which has been completed using the locked template file provided by the AER. 2. A public version with confidential information either removed completely or aggregated in some form together with writtten consent to disclose the public version of the response. Use the drop down box on the Business and other details worksheet to identify the file as either confidential ('consolidated') or public.
C25: SUBMITTING AMENDED DATA TO THE AER If an NSP wishes to correct data previously submitted to the AER it should resubmit that data using the original completed submission as the starting point. Please make any necessary changes to the data. Data that is not being amended should be left unchanged. NSPs must identify the reason for the amendments in the Amendment Reason box on the Business and other details worksheet. NSPs may provide further details regarding any amendments in the Amendments worksheet. .
C26: NSP may use Amended Data macro to highlight cells that contain amended data. NB: if data is also CONFIDENTIAL, re-apply the Confidentiality macro after applying the Amended macro
C27: Please resubmit two (2) files - a confidential version and a public version of the amended submission to the AER

Sheet Contents
B1: REGULATORY REPORTING STATEMENT
B2: =INDEX(dms_TradingNameFull_List,MATCH(dms_TradingName,dms_TradingName_List)) -> Ergon Energy
B3: =CONCATENATE((LOOKUP(dms_Model,dms_Model_List,dms_Worksheet_List))&" "&CRY) -> CATEGORY ANALYSIS 2008-09
B4: CONTENTS
E7: 1. Business details | L7: 2. Expenditure
E27: 4. Alternative control services | L27: 5. Network information | S27: 6. Service & quality

Sheet Business & other details
B1: =IF(dms_DataQuality="backcast",INDEX(dms_Worksheet_List,MATCH(dms_Model,dms_Model_List))&" BACKCAST",INDEX(dms_Worksheet_List,MATCH(dms_Model,dms_Model_List))) -> CATEGORY ANALYSIS
B2: =INDEX(dms_TradingNameFull_List,MATCH(dms_TradingName,dms_TradingName_List)) -> Ergon Energy
B3: =IF(SUM(dms_SingleYear_Model)>0,CONCATENATE(CRY),CONCATENATE(FRCP_y1," to ",dms_MultiYear_FinalYear_Result)) -> 2008-09
B4: BUSINESS & OTHER DETAILS
B7: Instructions
B8: Complete the following business details regulatory template before entering data or values in any other regulatory template. This regulatory template is linked to other cells within the spreadsheet and automatically generates column headings and conditional formatting to distinguish business specific input and non-input cells.
B10: SUBMISSION PARTICULARS INPUT SHEETS
B12: ENTITY DETAILS
B14: Short name | C14: Ergon Energy | F14: Select business name from drop down list first
B15: ACN / ABN | C15: =INDEX(dms_ABN_List,MATCH(dms_TradingName,dms_TradingName_List)) -> 50087646062
B18: Business address | C18: Address 1 | E18: 420 Flinders Street
D19: Address 2 | E19: =IF(ISBLANK(INDEX(dms_Addr2_List,MATCH(dms_TradingName,dms_TradingName_List))),"",(INDEX(dms_Addr2_List,MATCH(dms_TradingName,dms_TradingName_List)))) -> 
C20: Suburb | E20: =INDEX(dms_Suburb_List,MATCH(dms_TradingName,dms_TradingName_List)) -> TOWNSVILLE
D21: State | E21: =INDEX(dms_State_List,MATCH(dms_TradingName,dms_TradingName_List)) -> Qld | F21: p/code | G21: =INDEX(dms_PostCode_List,MATCH(dms_TradingName,dms_TradingName_List)) -> 4810
B23: Postal address | C23: Address 1 | E23: Po Box 1090
D24: Address 2 | E24: =IF(ISBLANK(INDEX(dms_PAddr2_List,MATCH(dms_TradingName,dms_TradingName_List))),"",(INDEX(dms_PAddr2_List,MATCH(dms_TradingName,dms_TradingName_List)))) -> 
C25: Suburb | E25: TOWNSVILLE
D26: State | E26: =INDEX(dms_PState_List,MATCH(dms_TradingName,dms_TradingName_List)) -> QLD | F26: p/code | G26: =INDEX(dms_PostCode_List,MATCH(dms_TradingName,dms_TradingName_List)) -> 4810
B29: Contact name/s | C29: Karen Stafford | F29: Group Manager Legal, Regulation & Pricing
B30: Contact phone/s | C30: (07) 3851 6793
B31: Contact email address/s | C31: karen.stafford@energyq.com.au
B33: REGULATORY CONTROL PERIODS
B35: Forthcoming regulatory control period | C35: 2008-09 | D35: =dms_FRCP_y2 -> 2009-10 | E35: =dms_FRCP_y3 -> 2010-11 | F35: =dms_FRCP_y4 -> 2011-12 | G35: =dms_FRCP_y5 -> 2012-13
C36: =dms_FRCP_y6 -> 2013-14 | D36: =dms_FRCP_y7 -> 2014-15 | E36: =dms_FRCP_y8 -> 2015-16 | F36: =dms_FRCP_y9 -> 2016-17 | G36: =dms_FRCP_y10 -> 2017-18
B39: Current regulatory control period | C39: =dms_CRCP_FirstYear_Result -> 2003-04 | D39: =IF(dms_RPT="financial",VALUE(LEFT(CRCP_y1,4)+1)&"-"&TEXT(MID(CRCP_y1,3,2)+2,"00"),VALUE(LEFT(CRCP_y1,4)+1)) -> 2004-05 | E39: =IF(dms_RPT="financial",VALUE(LEFT(CRCP_y1,4)+2)&"-"&TEXT(VALUE(MID(CRCP_y1,3,2)+3),"00"),VALUE(LEFT(CRCP_y1,4)+2)) -> 2005-06 | F39: =IF(dms_RPT="financial",VALUE(LEFT(CRCP_y1,4)+3)&"-"&TEXT(MID(CRCP_y1,3,2)+4,"00"),VALUE(LEFT(CRCP_y1,4)+3)) -> 2006-07 | G39: =IF(dms_RPT="financial",VALUE(LEFT(CRCP_y1,4)+4)&"-"&TEXT(MID(CRCP_y1,3,2)+5,"00"),VALUE(LEFT(CRCP_y1,4)+4)) -> 2007-08
C40: =IF(dms_RPT="financial",VALUE(LEFT(CRCP_y1,4)+5)&"-"&TEXT(MID(CRCP_y1,3,2)+6,"00"),VALUE(LEFT(CRCP_y1,4)+5)) -> 2008-09 | D40: =IF(dms_RPT="financial",VALUE(LEFT(CRCP_y1,4)+6)&"-"&TEXT(MID(CRCP_y1,3,2)+7,"00"),VALUE(LEFT(CRCP_y1,4)+6)) -> 2009-10 | E40: =IF(dms_RPT="financial",VALUE(LEFT(CRCP_y1,4)+7)&"-"&TEXT(MID(CRCP_y1,3,2)+8,"00"),VALUE(LEFT(CRCP_y1,4)+7)) -> 2010-11 | F40: =IF(dms_RPT="financial",VALUE(LEFT(CRCP_y1,4)+8)&"-"&TEXT(MID(CRCP_y1,3,2)+9,"00"),VALUE(LEFT(CRCP_y1,4)+8)) -> 2011-12 | G40: =IF(dms_RPT="financial",VALUE(LEFT(CRCP_y1,4)+9)&"-"&TEXT(MID(CRCP_y1,3,2)+10,"00"),VALUE(LEFT(CRCP_y1,4)+9)) -> 2012-13
C41: =IF(dms_RPT="financial",VALUE(LEFT(CRCP_y1,4)+10)&"-"&TEXT(MID(CRCP_y1,3,2)+11,"00"),VALUE(LEFT(CRCP_y1,4)+10)) -> 2013-14 | D41: =IF(dms_RPT="financial",VALUE(LEFT(CRCP_y1,4)+11)&"-"&TEXT(MID(CRCP_y1,3,2)+12,"00"),VALUE(LEFT(CRCP_y1,4)+11)) -> 2014-15 | E41: =IF(dms_RPT="financial",VALUE(LEFT(CRCP_y1,4)+12)&"-"&TEXT(MID(CRCP_y1,3,2)+13,"00"),VALUE(LEFT(CRCP_y1,4)+12)) -> 2015-16 | F41: =IF(dms_RPT="financial",VALUE(LEFT(CRCP_y1,4)+13)&"-"&TEXT(MID(CRCP_y1,3,2)+14,"00"),VALUE(LEFT(CRCP_y1,4)+13)) -> 2016-17 | G41: =IF(dms_RPT="financial",VALUE(LEFT(CRCP_y1,4)+14)&"-"&TEXT(MID(CRCP_y1,3,2)+15,"00"),VALUE(LEFT(CRCP_y1,4)+14)) -> 2017-18
B44: Previous regulatory control period | C44: =IF(dms_RPT="financial",VALUE(LEFT(PRCP_y2,4)-1)&"-"&TEXT(VALUE(MID(PRCP_y2,3,2)),"00"),VALUE(LEFT(PRCP_y2,4)-1)) -> 1998-99 | D44: =IF(dms_RPT="financial",VALUE(LEFT(PRCP_y3,4)-1)&"-"&TEXT(VALUE(MID(PRCP_y3,3,2)),"00"),VALUE(LEFT(PRCP_y3,4)-1)) -> 1999-00 | E44: =IF(dms_RPT="financial",VALUE(LEFT(PRCP_y4,4)-1)&"-"&TEXT(VALUE(MID(PRCP_y4,3,2)),"00"),VALUE(LEFT(PRCP_y4,4)-1)) -> 2000-01 | F44: =IF(dms_RPT="financial",VALUE(LEFT(PRCP_y5,4)-1)&"-"&TEXT(VALUE(RIGHT(PRCP_y5,2)-1),"00"),VALUE(LEFT(PRCP_y5,4)-1)) -> 2001-02 | G44: =IF(dms_RPT="financial",VALUE(LEFT(CRCP_y1,4)-1)&"-"&TEXT(VALUE(RIGHT(CRCP_y1,2)-1),"00"),VALUE(LEFT(CRCP_y1,4)-1)) -> 2002-03
B48: Commencing regulatory year | C48: 2008-09 | D48: CRY
B50: Last completed regulatory year | C50: 2017-18 | D50: dms_FinalYear
C54: IF THIS IS AN ABC RIN - make sure the the named range CRY is applied and the named range dms_dollar_nom_UOM is applied
C55: IF THIS IS A RESET RIN - make sure the named ranges CRY and dms_dollar_nom_UOM are NOT present in the workbook
C56: FOR ABC RINS THAT SPAN MULTIPLE YEARS - make sure MultiYear Flag is set and final year entered as required
B58: Source | C58: Reporting | E58: Please select the correct submission type from the dropdown list.
B59: Data quality (actual, estimate, public, consolidated) | C59: Recast | E59: Use Consolidated for Consolidated Confidential version Use Public for Consolidated Public version
B60: Amended RIN submission - amendment reason | C60: .
B61: Submission Date | C61: 2019-01-31 | D61: dms_SubmissionDate | E61: Please enter date this file submitted to AER (dd/mm/yyyy)
B62: EBSS - First application of scheme in forthcoming period? | C62: No
B63: Sector | C63: =INDEX(dms_Sector_List,MATCH(dms_TradingName,dms_TradingName_List)) -> Electricity | D63: dms_Sector | E63: =INDEX(dms_Sector_List,MATCH(dms_TradingName,dms_TradingName_List))
B64: Segment | C64: =INDEX(dms_Segment_List,MATCH(dms_TradingName,dms_TradingName_List)) -> Distribution | D64: dms_Segment | E64: =INDEX(dms_Segment_List,MATCH(dms_TradingName,dms_TradingName_List))
B65: Regulatory Year Ending | C65: =IF(dms_MultiYear_Flag=1,LEFT(dms_Specified_FinalYear,2)&RIGHT(dms_Specified_FinalYear,2),INDEX(dms_RYE_Formula_Result,MATCH(dms_Model,dms_Model_List))) -> 2018 | D65: dms_RYE | E65: =IF(dms_MultiYear_Flag=1,LEFT(dms_Specified_FinalYear,2)&RIGHT(dms_Specified_FinalYear,2),INDEX(dms_RYE_Formula_Result,MATCH(dms_Model,dms_Model_List)))
B66: Reporting Period Type | C66: =INDEX(dms_RPT_List,MATCH(dms_TradingName,dms_TradingName_List)) -> Financial | D66: dms_RPT | E66: =INDEX(dms_RPT_List,MATCH(dms_TradingName,dms_TradingName_List))
B67: Model or RIN Type | C67: CA | D67: dms_Model | E67: Drop down selection
B68: EB/CA Unit of Measure for Monetary Values | C68: $0s | D68: dms_dollar_nom_UOM | E68: If the cover sheet is attached to an ABC RIN apply the NAMED RANGE to the cell
B69: Security Classification | C69: Public | D69: dms_Classification | E69: Always Public
B70: Jurisdiction | C70: =INDEX(dms_JurisdictionList,MATCH(dms_TradingName,dms_TradingName_List)) -> Qld | D70: dms_Jurisdiction | E70: =INDEX(dms_JurisdictionList,MATCH(dms_TradingName,dms_TradingName_List))
B71: FORECAST and MultiYear RINS
B72: CRY-1 (last full calendar year before CRY) | C72: =IF(dms_RPT="financial",VALUE(LEFT(dms_SingleYear_FinalYear_Result,4)),VALUE(LEFT(dms_SingleYear_FinalYear_Result,4)-1)) -> 2008 | D72: dms_Cal_Year_B4_CRY | E72: '=IF(dms_RPT="financial",VALUE(LEFT(dms_SingleYear_FinalYear_Result,4)),VALUE(LEFT(dms_SingleYear_FinalYear_Result,4)-1))
B73: Dollar $ real month | C73: =INDEX(dms_RPTMonth_List,MATCH(dms_TradingName,dms_TradingName_List)) -> June | D73: dms_RPTMonth | E73: =INDEX(dms_RPTMonth_List,MATCH(dms_TradingName,dms_TradingName_List))
B74: Dollar $ real (the last month before the FRCP_y1) | C74: =IF(SUM(dms_SingleYear_Model)>0,CONCATENATE(dms_RPTMonth)&" "&VALUE((LEFT(CRY,2))&RIGHT(CRY,2)),CONCATENATE(dms_RPTMonth)&" "&VALUE((LEFT(dms_CRCP_FinalYear_Result,2)&RIGHT(dms_CRCP_FinalYear_Result,2)))) -> June 2009 | D74: dms_DollarReal | E74: =IF(SUM(dms_SingleYear_Model)>0,CONCATENATE(dms_RPTMonth)&" "&VALUE((LEFT(CRY,2))&RIGHT(CRY,2)),CONCATENATE(dms_RPTMonth)&" "&VALUE((LEFT(dms_CRCP_FinalYear_Result,2)&RIGHT(dms_CRCP_FinalYear_Result,2))))
B75: Dollar $ real previous year (PRCP_y5) | C75: =IF(SUM(dms_SingleYear_Model)>0,CONCATENATE(dms_RPTMonth)&" "&VALUE(((LEFT(CRY,2))&RIGHT(CRY,2))-1),CONCATENATE(dms_RPTMonth)&" "&VALUE(((LEFT(dms_CRCP_FirstYear_Result,2)&RIGHT(dms_CRCP_FirstYear_Result,2))))-1) -> June 2008 | D75: dms_DollarReal_Prev | E75: =IF(SUM(dms_SingleYear_Model)>0,CONCATENATE(dms_RPTMonth)&" "&VALUE(((LEFT(CRY,2))&RIGHT(CRY,2))-1),CONCATENATE(dms_RPTMonth)&" "&VALUE(((LEFT(dms_CRCP_FirstYear_Result,2)&RIGHT(dms_CRCP_FirstYear_Result,2))))-1)
B76: This block works out the various RYE's for ALL RIN types and MODELS
B77: Single Year Model T/F | C77: =IF(dms_Model="EB",1,0) -> 0 | D77: dms_EB
C78: =IF(dms_Model="CA",1,0) -> 1 | D78: dms_CA | E78: =dms_SingleYear_Model
C79: =IF(dms_Model="ARR",1,0) -> 0 | D79: dms_ARR
B80: Is this a single Year RIN? | C80: =IF(SUM(dms_SingleYear_Model)=1,"yes","no") -> yes | D80: dms_SingleYearModel | E80: =IF(SUM(dms_SingleYear_Model)=1,"yes","no")
B81: Single Year Final Year Reference | C81: CRY | D81: dms_SingleYear_FinalYear_Ref | E81: This is the reference for EB, CA & ARR RINs
B82: Single Year Final Year Result | C82: =IFERROR(IF(SUM(dms_SingleYear_Model)<>0,(INDIRECT(dms_SingleYear_FinalYear_Ref)),"not a single year RIN"),"CRY not present") -> 2008-09 | D82: dms_SingleYear_FinalYear_Result | E82: =IFERROR(IF(SUM(dms_SingleYear_Model)<>0,(INDIRECT(dms_SingleYear_FinalYear_Ref)),"not a single year RIN"),"CRY not present")
B83: FRCP length in years | C83: =INDEX(dms_FRCPlength_List,MATCH(dms_TradingName,dms_TradingName_List)) -> 5 | D83: dms_FRCPlength_Num | E83: =INDEX(dms_FRCPlength_List,MATCH(dms_TradingName,dms_TradingName_List))
B84: Multi Year Final Year Reference | C84: =INDEX(dms_FinalYear_List,MATCH(dms_FRCPlength_Num,dms_FRCPlength_Num_List)) -> dms_FRCP_y5 | D84: dms_MultiYear_FinalYear_Ref | E84: =INDEX(dms_FinalYear_List,MATCH(dms_FRCPlength_Num,dms_FRCPlength_Num_List))
B85: Multi Year Final Year Result | C85: =IF(dms_MultiYear_Flag=0,INDIRECT(dms_MultiYear_FinalYear_Ref),dms_Specified_FinalYear) -> 2017-18 | D85: dms_MultiYear_FinalYear_Result | E85: =IF(dms_MultiYear_Flag=0,INDIRECT(dms_MultiYear_FinalYear_Ref),dms_Specified_FinalYear) | I85: Formula errors OK
B86: CRCP length in years | C86: =INDEX(dms_CRCPlength_List,MATCH(dms_TradingName,dms_TradingName_List)) -> 5 | D86: dms_CRCPlength_Num | E86: =INDEX(dms_CRCPlength_List,MATCH(dms_TradingName,dms_TradingName_List))
B87: CRCP Final Year Reference | C87: =INDEX(dms_CFinalYear_List,MATCH(dms_CRCPlength_Num,dms_CRCPlength_Num_List)) -> CRCP_y5 | D87: dms_CRCP_FinalYear_Ref | E87: =INDEX(dms_CFinalYear_List,MATCH(dms_CRCPlength_Num,dms_CRCPlength_Num_List))
B88: CRCP First Year Result | C88: =INDEX(dms_CRCP_years,MATCH(dms_CRCPlength_Num,dms_CRCP_index)) -> 2003-04 | D88: dms_CRCP_FirstYear_Result | E88: =INDEX(dms_CRCP_years,MATCH(dms_CRCPlength_Num,dms_CRCP_index))
B89: CRCP Final Year Result | C89: =IF(dms_MultiYear_Flag=0,(IF(SUM(dms_SingleYear_Model)>0,CRY,dms_CRCP_yZ)),dms_Specified_FinalYear) -> 2017-18 | D89: dms_CRCP_FinalYear_Result | E89: =IF(dms_MultiYear_Flag=0,(IF(SUM(dms_SingleYear_Model)>0,CRY,dms_CRCP_yZ)),dms_Specified_FinalYear)
B90: PTRM/ RFMs
B91: Form of control | C91: =INDEX(dms_FormControl_List,MATCH(dms_TradingName,dms_TradingName_List)) -> Revenue cap | D91: dms_FormControl | E91: =INDEX(dms_FormControl_List,MATCH(dms_TradingName,dms_TradingName_List))
B92: ABC RINS THAT SPAN MULTIPLE YEARS
B93: Is this a multi year ABC RIN? | C93: Yes
B94: Multiyear EB, CA or ARR? | C94: =IF(dms_MultiYear_ResponseFlag="No",0,1) -> 1 | D94: dms_MultiYear_Flag | E94: This is set from the answer provided above
C95: =IF(dms_MultiYear_Flag=1,FRY,"not a Multiple year submission") -> 2017-18 | D95: dms_Specified_FinalYear | E95: The result here is returned to dms_CRCP_FinalYear_Result if response to Q in C73 is "yes" and dms_MultiYear_Flag is set to 1
B96: Start year for 5.2 in Multi year ABC RINS | C96: =IFERROR(IF(dms_MultiYear_Flag=1,FRY,CRY),"not an ABC") -> 2017-18 | D96: dms_0502_Inst_Year | E96: =IF(dms_MultiYear_Flag=1,FRY,CRY) | G96: For single year RINS this is CRY - multi year RINS need to start a the end of the span of years (ie. FRY)
B97: EB RINS
B98: Calendar Year for table 3.6 data | C98: =IF(dms_RPT="financial",VALUE(LEFT(dms_SingleYear_FinalYear_Result,4)),VALUE(LEFT(dms_SingleYear_FinalYear_Result,4)-1)) -> 2008 | D98: dms_0306_Year | E98: =IF(dms_RPT="financial",VALUE(LEFT(dms_SingleYear_FinalYear_Result,4)),VALUE(LEFT(dms_SingleYear_FinalYear_Result,4)-1))
B99: CA RINS
B100: Find how many rows in tables 6.3 sustained interruptions? | E100: dms_060301_MaxRows only returns a valid value when cover sheet is attached to a CA file
C101: =IF(dms_Model<>"CA","not a CA","Is a CA") -> Is a CA | E101: =IF(dms_Model<>"CA","not a CA","Is a CA")
B102: dms_060301_Avg_Duration_Sustained_Int_Values present? | C102: =IFERROR(IF(INDEX(dms_060301_Avg_Duration_Sustained_Int_Values,1,1)<>"","yes","no"),"no") -> no | D102: dms_060301_checkvalue | E102: =IFERROR(IF(INDEX(dms_060301_Avg_Duration_Sustained_Int_Values,1,1)<>"","yes","no"),"no")
C103: 6.3 not collected in backcast RIN | E103: =IF(AND(dms_Model="CA",(dms_060301_checkvalue="no")),"error - NR not present","no errors")
B104: Table 6.3.1 - last row reference | C104: 0 | D104: dms_060301_LastRow | E104: =IFERROR(IF(dms_Model="CA",LOOKUP(2,1/(dms_060301_Avg_Duration_Sustained_Int_Values<>""),(ROW(dms_060301_Avg_Duration_Sustained_Int_Values))),"not a CA"),"6.3 not present")
B105: Table 6.3.1 - max number rows | C105: 0 | D105: dms_060301_MaxRows | E105: =IFERROR(IF(dms_Model="CA",(dms_060301_LastRow-15),"not a CA"),"error")
B106: Table 6.6.3 - Public lighting repair - no. business days | C106: =INDEX(dms_663_List,MATCH(dms_TradingName,dms_TradingName_List)) -> 5 | D106: dms_663 | E106: =INDEX(dms_663_List,MATCH(dms_TradingName,dms_TradingName_List))
B107: ARR or RESET RINS
B108: How many rows in tables 6.1 or 6.7? (leap year?) | C108: insert dms_LeapYear NR if required | E108: 'dms_LeapYear is used to determine dms_060701_Max_Rows BUT it is only found on worksheet 6.1 or 6.7 and the date value in the cell is used to determine whether it is a leap year
B109: Is dms_LeapYear named range present? | C109: =IFERROR(IF(dms_LeapYear,"yes"),"no") -> no
B110: Table 6.7.1 - includes a leap year? | C110: =IFERROR(IF(MONTH(DATE(YEAR(dms_LeapYear),2,29))=2,"is a leap year","not a leap year"), "dms_LeapYear not present") -> dms_LeapYear not present | D110: dms_LeapYear_Result | E110: =IFERROR(IF(MONTH(DATE(YEAR(dms_LeapYear),2,29))=2,"is a leap year","not a leap year"),"dms_LeapYear not present")
B111: MaxRows if Reset and leap year | C111: =IF(dms_LeapYear_Result="is a leap year",1827,1826) -> 1826 | D111: dms_060701_Reset_MaxRows | E111: =IF(dms_LeapYear_Result="is a leap year",1827,1826) | H111: number of days present in Reset RIN table
B112: MaxRows if ARR and leap year | C112: =IF(dms_LeapYear_Result="is a leap year",366,365) -> 365 | D112: dms_060701_ARR_MaxRows | E112: =IF(dms_LeapYear_Result="is a leap year",366,365) | H112: number of days present in ARR RIN table
B113: Table 6.7.1 - Max Rows (leap year/ non leap year) | C113: =IF(dms_Model="ARR",dms_060701_ARR_MaxRows,IF(dms_Model="Reset",dms_060701_Reset_MaxRows,"not a relevant RIN type")) -> not a relevant RIN type | D113: dms_060701_MaxRows | E113: =IF(dms_Model="ARR",dms_060701_ARR_MaxRows,IF(dms_Model="Reset",dms_060701_Reset_MaxRows,"not a relevant RIN type"))
B114: How many columns in 6.7? (4 or 5 feeder categories) | C114: =IF(dms_FifthFeeder_flag_NSP="NO","This NSP has only 4 feeder categories","This NSP has 5 feeder categories") -> This NSP has only 4 feeder categories
B115: Table 6.7.1 - Last column (# of feeder categories > 4) | C115: =IF(dms_FifthFeeder_flag_NSP="NO",10,12) -> 10 | D115: dms_060701_MaxCols | E115: =IF(dms_FifthFeeder_flag_NSP="NO",8,10)
B116: Table 6.7.1 - Number of offset rows | C116: =IF(dms_Model="ARR",15,9) -> 9 | D116: dms_060701_OffsetRows | E116: =IF(dms_Model="ARR",15,9)
B117: Start date for telephone answering in 6.1 or 6.7? | E117: Using 060101 as naming standard not 060701 for start dates
B118: Table 6.1.1 and 6.7.1 - Start Date as Text | C118: =IF(dms_SingleYearModel="yes",(CONCATENATE(IF(LEN(CRY)=4,"1-Jan-","1-Jul-"),LEFT(CRY,4))),(CONCATENATE(IF(LEN(PRCP_y4)=4,"1-Jan-","1-Jul-"),LEFT(PRCP_y4,4)))) -> 1-Jul-2008 | D118: dms_060101_StartDateTxt | E118: =IF(SUM(dms_SingleYear_Model)>1,(CONCATENATE(IF(LEN(CRY)=4,"1-Jan-","1-Jul-"),LEFT(CRY,4))),(CONCATENATE(IF(LEN(CRCP_y4)=4,"1-Jan-","1-Jul-"),LEFT(CRCP_y4,4))))
B119: Table 6.1.1 and 6.7.1 - Start Date as Date Value | C119: =DATEVALUE(dms_060701_StartDateTxt) -> 39630 | D119: dms_060101_StartDateVal | E119: =DATEVALUE(dms_060701_StartDateTxt)
B120: ARRs
B121: How many rows in table 6.8? | C121: insert dms_060801_StartCell NR if required | E121: dms_060801_StartCell is only found on worksheet 6.8 and is used to determine the starting date for the date range
B122: Is dms_060801_StartCell named range present? | C122: yes | E122: =IFERROR(IF((ROW(dms_060801_StartCell)-1)=1,"yes","yes"),"no")
B123: Table 6.8 - Number of offset rows | C123: 12 | D123: dms_0608_OffsetRows | E123: =IFERROR(IF(dms_Model="ARR",(ROW(dms_060801_StartCell)-1),"not an ARR"),"6.8 error")
B124: Table 6.8 - Last row | C124: 6.8 not present | D124: dms_0608_LastRow | E124: =IFERROR(IF(dms_060801_StartCell<>"",IF(dms_Model="ARR",(LOOKUP(2,1/(dms_060801_01_Values<>""),(ROW(dms_060801_01_Values)))),"not an ARR"),0),"6.8 not present")
B125: Table 6.8 - MaxRows | C125: =IFERROR(IF(dms_Model="ARR",(MAX(0,dms_0608_LastRow-dms_0608_OffsetRows)),"not an ARR"),"6.8 not present") -> not an ARR | D125: dms_060801_MaxRows | E125: =IFERROR(IF(dms_Model="ARR",(MAX(0,dms_0608_LastRow-dms_0608_OffsetRows)),"not an ARR"),"6.8 not present")
B126: TNSP RESET RINS
B127: Table 7.9.4 only appears in TNSPs Reset RIN
B128: Table 7.9.4 - first year | C128: =LEFT(PRCP_y3,4) -> 2000 | D128: dms_070904_Start_Year | E128: =LEFT(PRCP_y3,4)
B129: SUBSET FILES
B130: Is this Submission File a Subset File | C130: YES | D130: dms_Partial
B131: MISC
B132: Distribution Determination Reference | C132: =INDEX(dms_DeterminationRef_List,MATCH(dms_TradingName,dms_TradingName_List)) -> 2015-20 Distribution Determination | D132: dms_DeterminationRef
B133: Public lighting NSP? | C133: =INDEX(dms_Public_Lighting_List,MATCH(dms_TradingName,dms_TradingName_List)) -> YES | D133: dms_Public_Lighting | E133: =INDEX(dms_Public_Lighting_List,MATCH(dms_TradingName,dms_TradingName_List))
B134: CBD Feeder for this business | C134: =INDEX(dms_CBD_flag,MATCH(dms_TradingName,dms_TradingName_List)) -> NO | D134: dms_CBD_flag_NSP
B135: Urban Feeder for this business | C135: =INDEX(dms_Urban_flag,MATCH(dms_TradingName,dms_TradingName_List)) -> YES | D135: dms_Urban_flag_NSP
B136: Short rural Feeder for this business | C136: =INDEX(dms_ShortRural_flag,MATCH(dms_TradingName,dms_TradingName_List)) -> YES | D136: dms_ShortRural_flag_NSP
B137: Long rural Feeder for this business | C137: =INDEX(dms_LongRural_flag,MATCH(dms_TradingName,dms_TradingName_List)) -> YES | D137: dms_LongRural_flag_NSP
B138: Fifth Feeder Category (eg. TasNetworks (D)) | C138: =INDEX(dms_FeederType_5_flag,MATCH(dms_TradingName,dms_TradingName_List)) -> NO | D138: dms_FifthFeeder_flag_NSP | E138: =INDEX(dms_FeederType_5_flag,MATCH(dms_TradingName,dms_TradingName_List))
B140: DISCARD FILES
B141: discard this record? | C141: NO | D141: dms_DISCARD | E141: If record is to be discarded from DB set this flag to YES
B143: USES NAMED RANGES FLAG | C143: yes | D143: dms_Defined_Names_Used
B145: REGULATORY YEARS FOR MULTI RYE SUBMISSIONS
B146: Multiple RYE flag | C146: YES | D146: dms_Multi_RYE_flag
C147: Manually specify RYE | D147: Named ranges to apply
C148: 2013 | D148: dms_RYE_01
C149: 2014 | D149: dms_RYE_02
C150: 2015 | D150: dms_RYE_03
C151: 2016 | D151: dms_RYE_04
C152: 2017 | D152: dms_RYE_05
C153: 2018 | D153: dms_RYE_06
C154: 2019 | D154: dms_RYE_07
C155: 2020 | D155: dms_RYE_08
C156: 2021 | D156: dms_RYE_09

Sheet 2.1 Expenditure summary
B1: REGULATORY REPORTING STATEMENT
B2: =INDEX(dms_TradingNameFull_List,MATCH(dms_TradingName,dms_TradingName_List)) -> Ergon Energy
B3: =IF(SUM(dms_SingleYear_Model)>0,("CATEGORY ANALYSIS "&CRY&" to "&FRY),("CATEGORY ANALYSIS "&CRY)) -> CATEGORY ANALYSIS 2008-09 to 2017-18
B4: 2.1 EXPENDITURE SUMMARY & RECONCILIATION
B6: There are EIGHT tables on this worksheet - see the Instructions sheet on how to group or ungroup tables.
B8: 2.1.1 - STANDARD CONTROL SERVICES CAPEX
C9: EXPENDITURE ($0's)
C10: =IF(dms_RPT="financial",dms_CRYf_y1,dms_CRYc_y1) -> 2008-09 | D10: =IF(dms_RPT="financial",dms_CRYf_y2,dms_CRYc_y2) -> 2009-10 | E10: =IF(dms_RPT="financial",dms_CRYf_y3,dms_CRYc_y3) -> 2010-11 | F10: =IF(dms_RPT="financial",dms_CRYf_y4,dms_CRYc_y4) -> 2011-12 | G10: =IF(dms_RPT="financial",dms_CRYf_y5,dms_CRYc_y5) -> 2012-13 | H10: =IF(dms_RPT="financial",dms_CRYf_y6,dms_CRYc_y6) -> 2013-14 | I10: =IF(dms_RPT="financial",dms_CRYf_y7,dms_CRYc_y7) -> 2014-15 | J10: =IF(dms_RPT="financial",dms_CRYf_y8,dms_CRYc_y8) -> 2015-16 | K10: =IF(dms_RPT="financial",dms_CRYf_y9,dms_CRYc_y9) -> 2016-17 | L10: =IF(dms_RPT="financial",dms_CRYf_y10,dms_CRYc_y10) -> 2017-18
B11: Replacement expenditure | C11: 78325936.38 | D11: 83670250.31 | E11: 139275179.5 | F11: 166650925.1 | G11: 180845966.8 | H11: 126283864.3 | I11: 176429592.5 | J11: 156516249.8 | K11: 147984291.7 | L11: 179504275.4
B12: Connections | C12: 94296189 | D12: 68354275 | E12: 62244301 | F12: 61277762 | G12: 45236143 | H12: 36424000 | I12: 76274370.99 | J12: 71796244.19 | K12: 41538202.1 | L12: 43012569.05
B13: Augmentation Expenditure | C13: 204203000 | D13: 155458000 | E13: 152019000 | F13: 154521000 | G13: 131367000 | H13: 146760000 | I13: 157402865.4 | J13: 95832581 | K13: 54971651.75 | L13: 44548822.32
B14: Non-network | C14: 116767075.9 | D14: 137895560 | E14: 156518237 | F14: 155475849.2 | G14: 136891455.2 | H14: 112549445.9 | I14: 206142282.7 | J14: 159612641.4 | K14: 122920392.2 | L14: 103992210.3
B15: capitalised network overheads | C15: 58502229.39 | D15: 54933818.08 | E15: 68234886.46 | F15: 69063726.68 | G15: 87509966.01 | H15: 83145911.11 | I15: 89455655.48 | J15: 67791289.15 | K15: 53560524.07 | L15: 45587183.74
B16: capitalised corporate overheads | C16: 20216058.59 | D16: 19603549.49 | E16: 25482996.17 | F16: 27625362.54 | G16: 18950494.13 | H16: 21518778.93 | I16: 24075824.45 | J16: 16650199.86 | K16: 9335358.067 | L16: 9590478.007
B17: Metering | C17: 661607.1129 | D17: 1684197.961 | E17: 1016931.917 | F17: 1070807.985 | G17: 804405.6766 | H17: 611186.7729 | I17: 10547102.45 | J17: 767746.261 | K17: 646589.0625 | L17: 1069353.33
B18: Public Lighting | C18: 0 | D18: 0 | E18: 0 | F18: 0 | G18: 0 | H18: 0 | I18: 0 | J18: 0 | K18: 0 | L18: 0
B25: balancing item
B26: capcons (included in the above items) | C26: 92614000 | D26: 59530000 | E26: 69522000 | F26: 54734000 | G26: 67526000 | H26: 59991000 | I26: 44164803 | J26: 32347165.35 | K26: 31414928.33 | L26: 42755462.92
B27: TOTAL GROSS CAPEX (includes capcons) | C27: =+SUM(C11:C25) -> 572972096.4 | D27: 521599650.8 | E27: 604791532 | F27: 635685433.5 | H27: 527293187.1 | I27: 740327694 | J27: 568966951.6
B29: 2.1.2 - STANDARD CONTROL SERVICES OPEX
C30: EXPENDITURE ($0's)
C31: =IF(dms_RPT="financial",dms_CRYf_y1,dms_CRYc_y1) -> 2008-09 | D31: =IF(dms_RPT="financial",dms_CRYf_y2,dms_CRYc_y2) -> 2009-10 | E31: =IF(dms_RPT="financial",dms_CRYf_y3,dms_CRYc_y3) -> 2010-11 | F31: =IF(dms_RPT="financial",dms_CRYf_y4,dms_CRYc_y4) -> 2011-12 | G31: =IF(dms_RPT="financial",dms_CRYf_y5,dms_CRYc_y5) -> 2012-13 | H31: =IF(dms_RPT="financial",dms_CRYf_y6,dms_CRYc_y6) -> 2013-14 | I31: =IF(dms_RPT="financial",dms_CRYf_y7,dms_CRYc_y7) -> 2014-15 | J31: =IF(dms_RPT="financial",dms_CRYf_y8,dms_CRYc_y8) -> 2015-16 | K31: =IF(dms_RPT="financial",dms_CRYf_y9,dms_CRYc_y9) -> 2016-17 | L31: =IF(dms_RPT="financial",dms_CRYf_y10,dms_CRYc_y10) -> 2017-18
B32: Vegetation management | C32: 49615293 | D32: 54758008 | E32: 51880951 | F32: 63106594 | G32: 43652748 | H32: 42398996 | I32: 48914581.38 | J32: 40283408 | K32: 40842285.57 | L32: 42479035
B33: Maintenance | C33: 64130237.2 | D33: 65536330.68 | E33: 66184103.58 | F33: 80331747.43 | G33: 82684880.74 | H33: 67742038.48 | I33: 79129133.01 | J33: 77980501.08 | K33: 69409167.1 | L33: 76562603.51
B34: Emergency response | C34: 22455404.82 | D34: 30325076.63 | E34: 56138942.17 | F34: 35090925.1 | G34: 40390135.68 | H34: 37846342.55 | I34: 43616414.89 | J34: 40532588.03 | K34: 47968966.59 | L34: 48704149.56
B35: Non-network | C35: 35578485.73 | D35: 36101249.75 | E35: 40185125.94 | F35: 43884116.7 | G35: 43952651.82 | H35: 43785720.61 | I35: 43339472.78 | J35: 41186663.83 | K35: 40411601.92 | L35: 43536089.69
B36: network overheads | C36: 86949609 | D36: 93357612 | E36: 125363667 | F36: 155499364 | G36: 190918251 | H36: 249168512 | I36: 254997684.3 | J36: 236039735.3 | K36: 113600116.3 | L36: 118237899
B37: corporate overheads | C37: 59241655.22 | D37: 65788007.67 | E37: 58574511.65 | F37: 73659871.86 | G37: 36190326.37 | H37: 48616005.64 | I37: 56972542.48 | J37: 84672827.61 | K37: 51628158.86 | L37: 61828251.44
B38: Metering | C38: 2176962.223 | D38: 1821997.207 | E38: 2209866.086 | F38: 2627085.405 | G38: 2849545.6 | H38: 3005747.994 | I38: 16997626.15 | J38: 1852898.989 | K38: 3217551.427 | L38: 1746261.172
B39: Public Lighting | C39: 0 | D39: 0 | E39: 0 | F39: 0 | G39: 0 | H39: 0 | I39: 0 | J39: 0 | K39: 0 | L39: 0
B46: balancing tem
B47: TOTAL OPEX | C47: =+SUM(C32:C46) -> 320147647.2 | D47: 347688281.9 | E47: 400537167.4 | F47: 454199704.5 | H47: 492563363.3 | I47: 543967455 | J47: 522548622.8
B49: 2.1.3 - ALTERNATIVE CONTROL SERVICES CAPEX
C50: EXPENDITURE ($0's)
C51: =IF(dms_RPT="financial",dms_CRYf_y1,dms_CRYc_y1) -> 2008-09 | D51: =IF(dms_RPT="financial",dms_CRYf_y2,dms_CRYc_y2) -> 2009-10 | E51: =IF(dms_RPT="financial",dms_CRYf_y3,dms_CRYc_y3) -> 2010-11 | F51: =IF(dms_RPT="financial",dms_CRYf_y4,dms_CRYc_y4) -> 2011-12 | G51: =IF(dms_RPT="financial",dms_CRYf_y5,dms_CRYc_y5) -> 2012-13 | H51: =IF(dms_RPT="financial",dms_CRYf_y6,dms_CRYc_y6) -> 2013-14 | I51: =IF(dms_RPT="financial",dms_CRYf_y7,dms_CRYc_y7) -> 2014-15 | J51: =IF(dms_RPT="financial",dms_CRYf_y8,dms_CRYc_y8) -> 2015-16 | K51: =IF(dms_RPT="financial",dms_CRYf_y9,dms_CRYc_y9) -> 2016-17 | L51: =IF(dms_RPT="financial",dms_CRYf_y10,dms_CRYc_y10) -> 2017-18
B52: Connections | C52: 68951000 | D52: 54181000 | E52: 42044000 | F52: 39225000 | G52: 51354000 | H52: 49680000 | I52: 2768510.21 | J52: 9170607.222 | K52: 12968585.62 | L52: 22164838.21
B53: capitalised network overheads | C53: 0 | D53: 0 | E53: 0 | F53: 0 | G53: 0 | H53: 1241489.315 | I53: 1219577.905 | J53: 3148142.531 | K53: 4912049.723 | L53: 3937631.537
B54: capitalised corporate overheads | C54: 0 | D54: 0 | E54: 29777.2882 | F54: 456289.4248 | G54: 806140.8832 | H54: 328622.9129 | I54: 335044.2027 | J54: 773214.4203 | K54: 856148.1389 | L54: 830191.7043
B55: Metering | C55: 4696825.743 | D55: 14414008.53 | E55: 8029676.653 | F55: 8451476.884 | G55: 5962190.724 | H55: 4203775.133 | I55: 0 | J55: 7477229.491 | K55: 8712852.231 | L55: 3256902.92
B56: Public lighting | C56: 6397823.666 | D56: 8074410.795 | E56: 9688021.438 | F56: 9812862.357 | G56: 9452111.731 | H56: 7460861.177 | I56: 8944839.061 | J56: 9388076.017 | K56: 5987511.243 | L56: 5685063.494
B57: Fee and quoted | C57: 0 | D57: 0 | E57: 0 | F57: 0 | G57: 5205000 | H57: 2842000 | I57: 14058300 | J57: 10961856 | K57: 22464488 | L57: 29587484
B65: TOTAL CAPEX | C65: =+SUM(C52:C64) -> 80045649.41 | D65: 76669419.33 | E65: 59791475.38 | F65: 57945628.66 | H65: 65756748.54 | I65: 27326271.38 | J65: 40919125.68
B67: 2.1.4 - ALTERNATIVE CONTROL SERVICES OPEX
C68: EXPENDITURE ($0's)
C69: =IF(dms_RPT="financial",dms_CRYf_y1,dms_CRYc_y1) -> 2008-09 | D69: =IF(dms_RPT="financial",dms_CRYf_y2,dms_CRYc_y2) -> 2009-10 | E69: =IF(dms_RPT="financial",dms_CRYf_y3,dms_CRYc_y3) -> 2010-11 | F69: =IF(dms_RPT="financial",dms_CRYf_y4,dms_CRYc_y4) -> 2011-12 | G69: =IF(dms_RPT="financial",dms_CRYf_y5,dms_CRYc_y5) -> 2012-13 | H69: =IF(dms_RPT="financial",dms_CRYf_y6,dms_CRYc_y6) -> 2013-14 | I69: =IF(dms_RPT="financial",dms_CRYf_y7,dms_CRYc_y7) -> 2014-15 | J69: =IF(dms_RPT="financial",dms_CRYf_y8,dms_CRYc_y8) -> 2015-16 | K69: =IF(dms_RPT="financial",dms_CRYf_y9,dms_CRYc_y9) -> 2016-17 | L69: =IF(dms_RPT="financial",dms_CRYf_y10,dms_CRYc_y10) -> 2017-18
B70: Connections | C70: 0 | D70: 0 | E70: 0 | F70: 0 | G70: 0 | H70: 0 | I70: 0 | J70: 0 | K70: 3818726.998 | L70: 4212299.246
B71: network overheads | C71: 9904714.971 | D71: 10512639.71 | E71: 8884916.298 | F71: 14813057.84 | G71: 15792626.41 | H71: 15443359.95 | I71: 11228756.36 | J71: 18126880.89 | K71: 20685859.22 | L71: 18346402.99
B72: corporate overheads | C72: 6404559.182 | D72: 6690869.824 | E72: 4802272.463 | F72: 9435928.736 | G72: 7051372.725 | H72: 7026926.383 | I72: 7546639.433 | J72: 10409415.89 | K72: 9556760.762 | L72: 10549468.63
B73: Metering | C73: 17657843.29 | D73: 15983623.08 | E73: 18474913.01 | F73: 21910330.78 | G73: 24130545.86 | H73: 22742628.2 | I73: 8530292.883 | J73: 20170890.39 | K73: 20191896.82 | L73: 19477182.76
B74: Public lighting | C74: 8719589.628 | D74: 6309986.006 | E74: 7525280.182 | F74: 9359936.02 | G74: 7750378.858 | H74: 10449793.91 | I74: 10787503.47 | J74: 9764115.543 | K74: 8337436.887 | L74: 9525275.097
B75: Fee and quoted | C75: 10348716.2 | D75: 6211227.632 | E75: 6626328.622 | F75: 13431949.2 | G75: 14837465.93 | H75: 9503561.265 | I75: 9142368.111 | J75: 7326435.996 | K75: 7630624.162 | L75: 5652192.808
B83: TOTAL OPEX | C83: =+SUM(C70:C82) -> 53035423.27 | D83: 45708346.26 | E83: 46313710.57 | F83: 68951202.57 | H83: 65166269.71 | I83: 47235560.26 | J83: 65797738.71
B85: 2.1.5 - DUAL FUNCTION ASSETS CAPEX
C86: EXPENDITURE ($0's)
C87: =IF(dms_RPT="financial",dms_CRYf_y1,dms_CRYc_y1) -> 2008-09 | D87: =IF(dms_RPT="financial",dms_CRYf_y2,dms_CRYc_y2) -> 2009-10 | E87: =IF(dms_RPT="financial",dms_CRYf_y3,dms_CRYc_y3) -> 2010-11 | F87: =IF(dms_RPT="financial",dms_CRYf_y4,dms_CRYc_y4) -> 2011-12 | G87: =IF(dms_RPT="financial",dms_CRYf_y5,dms_CRYc_y5) -> 2012-13 | H87: =IF(dms_RPT="financial",dms_CRYf_y6,dms_CRYc_y6) -> 2013-14 | I87: =IF(dms_RPT="financial",dms_CRYf_y7,dms_CRYc_y7) -> 2014-15 | J87: =IF(dms_RPT="financial",dms_CRYf_y8,dms_CRYc_y8) -> 2015-16 | K87: =IF(dms_RPT="financial",dms_CRYf_y9,dms_CRYc_y9) -> 2016-17 | L87: =IF(dms_RPT="financial",dms_CRYf_y10,dms_CRYc_y10) -> 2017-18
B88: Replacement expenditure
B89: Connections
B90: Augmentation Expenditure
B91: Non-network
B92: Capitalised network overheads
B93: Capitalised corporate overheads
B101: capcons (included in the above items)
B102: TOTAL GROSS CAPEX (includes capcons) | C102: =SUM(C88:C100) -> 0 | D102: 0 | E102: 0 | F102: 0 | H102: 0 | I102: 0 | J102: 0
B104: 2.1.6 - DUAL FUNCTION ASSETS OPEX
C105: EXPENDITURE ($0's)
C106: =IF(dms_RPT="financial",dms_CRYf_y1,dms_CRYc_y1) -> 2008-09 | D106: =IF(dms_RPT="financial",dms_CRYf_y2,dms_CRYc_y2) -> 2009-10 | E106: =IF(dms_RPT="financial",dms_CRYf_y3,dms_CRYc_y3) -> 2010-11 | F106: =IF(dms_RPT="financial",dms_CRYf_y4,dms_CRYc_y4) -> 2011-12 | G106: =IF(dms_RPT="financial",dms_CRYf_y5,dms_CRYc_y5) -> 2012-13 | H106: =IF(dms_RPT="financial",dms_CRYf_y6,dms_CRYc_y6) -> 2013-14 | I106: =IF(dms_RPT="financial",dms_CRYf_y7,dms_CRYc_y7) -> 2014-15 | J106: =IF(dms_RPT="financial",dms_CRYf_y8,dms_CRYc_y8) -> 2015-16 | K106: =IF(dms_RPT="financial",dms_CRYf_y9,dms_CRYc_y9) -> 2016-17 | L106: =IF(dms_RPT="financial",dms_CRYf_y10,dms_CRYc_y10) -> 2017-18
B107: Vegetation management
B108: Maintenance
B109: Emergency response
B110: Non-network
B111: network overheads
B112: corporate overheads
B113: Metering
B120: TOTAL OPEX | C120: =SUM(C107:C119) -> 0 | D120: 0 | E120: 0 | F120: 0 | H120: 0 | I120: 0 | J120: 0
B122: 2.1.7 - STANDARD CONTROL SERVICES CAPCONS
C123: EXPENDITURE ($0's)
C124: =IF(dms_RPT="financial",dms_CRYf_y1,dms_CRYc_y1) -> 2008-09 | D124: =IF(dms_RPT="financial",dms_CRYf_y2,dms_CRYc_y2) -> 2009-10 | E124: =IF(dms_RPT="financial",dms_CRYf_y3,dms_CRYc_y3) -> 2010-11 | F124: =IF(dms_RPT="financial",dms_CRYf_y4,dms_CRYc_y4) -> 2011-12 | G124: =IF(dms_RPT="financial",dms_CRYf_y5,dms_CRYc_y5) -> 2012-13 | H124: =IF(dms_RPT="financial",dms_CRYf_y6,dms_CRYc_y6) -> 2013-14 | I124: =IF(dms_RPT="financial",dms_CRYf_y7,dms_CRYc_y7) -> 2014-15 | J124: =IF(dms_RPT="financial",dms_CRYf_y8,dms_CRYc_y8) -> 2015-16 | K124: =IF(dms_RPT="financial",dms_CRYf_y9,dms_CRYc_y9) -> 2016-17 | L124: =IF(dms_RPT="financial",dms_CRYf_y10,dms_CRYc_y10) -> 2017-18
B125: Replacement expenditure
B126: Connections | C126: 92614000 | D126: 59530000 | E126: 69522000 | F126: 54734000 | G126: 67526000 | H126: 59991000 | I126: 44164803 | J126: 32347165.35 | K126: 31414928.33 | L126: 42755462.92
B127: Augmentation Expenditure
B128: Non-network
B129: capitalised network overheads
B130: capitalised corporate overheads
B131: Metering
B132: Public Lighting
B140: TOTAL CAPCONS | C140: =+SUM(C125:C139) -> 92614000 | D140: 59530000 | E140: 69522000 | F140: 54734000 | H140: 59991000 | I140: 44164803 | J140: 32347165.35
B142: 2.1.8 - STANDARD CONTROL SERVICES CAPITALISED OVERHEADS
C143: EXPENDITURE ($0's)
C144: =IF(dms_RPT="financial",dms_CRYf_y1,dms_CRYc_y1) -> 2008-09 | D144: =IF(dms_RPT="financial",dms_CRYf_y2,dms_CRYc_y2) -> 2009-10 | E144: =IF(dms_RPT="financial",dms_CRYf_y3,dms_CRYc_y3) -> 2010-11 | F144: =IF(dms_RPT="financial",dms_CRYf_y4,dms_CRYc_y4) -> 2011-12 | G144: =IF(dms_RPT="financial",dms_CRYf_y5,dms_CRYc_y5) -> 2012-13 | H144: =IF(dms_RPT="financial",dms_CRYf_y6,dms_CRYc_y6) -> 2013-14 | I144: =IF(dms_RPT="financial",dms_CRYf_y7,dms_CRYc_y7) -> 2014-15 | J144: =IF(dms_RPT="financial",dms_CRYf_y8,dms_CRYc_y8) -> 2015-16 | K144: =IF(dms_RPT="financial",dms_CRYf_y9,dms_CRYc_y9) -> 2016-17 | L144: =IF(dms_RPT="financial",dms_CRYf_y10,dms_CRYc_y10) -> 2017-18
B145: Vegetation management
B146: Maintenance
B147: Emergency response
B148: Non-network | C148: 14305482.02 | D148: 16590813.32 | E148: 21048565.6 | F148: 20296528.57 | G148: 23531641.31 | H148: 20009038.38 | I148: 29120308.49 | J148: 16544438.36 | K148: 12468187.17 | L148: 7068527.204
B149: Metering
B150: Public Lighting
B151: Replacement expenditure | C151: 14452880.11 | D151: 16912333.46 | E151: 30336817.73 | F151: 35130305.07 | G151: 43976178 | H151: 36556658.33 | I151: 38344931.43 | J151: 34895779.1 | K151: 31840345.16 | L151: 33314658.58
B152: Connections | C152: 15782389.98 | D152: 12532218.85 | E152: 12297751.49 | F152: 11716743.2 | G152: 9977553.065 | H152: 9563923.338 | I152: 15036438.87 | J152: 13621150.99 | K152: 9277488.013 | L152: 8286602.566
B153: Augmentation Expenditure | C153: 34177535.87 | D153: 28502001.94 | E153: 30034747.82 | F153: 29545512.39 | G153: 28975087.76 | H153: 38535069.98 | I153: 31029801.13 | J153: 19380120.56 | K153: 9309861.796 | L153: 6507873.395
B157: capcons (included in the above items)
B158: TOTAL CAPITALISED OVERHEADS | C158: =+SUM(C145:C156) -> 78718287.98 | D158: =+SUM(D145:D156) -> 74537367.57 | E158: 93717882.64 | F158: 96689089.23 | H158: 104664690 | I158: 113531479.9 | J158: 84441489.01

Sheet 2.2 Repex
B1: REGULATORY REPORTING STATEMENT
B2: =INDEX(dms_TradingNameFull_List,MATCH(dms_TradingName,dms_TradingName_List)) -> Ergon Energy
B3: =IF(SUM(dms_SingleYear_Model)>0,("CATEGORY ANALYSIS "&CRY&" to "&FRY),("CATEGORY ANALYSIS "&CRY)) -> CATEGORY ANALYSIS 2008-09 to 2017-18
B4: 2.2 REPEX
B6: There are TWO tables on this worksheet. These tables have been 'grouped' (and sub-grouped) for ease of navigation. See the Instructions sheet on how to group or ungroup tables.
B8: 2.2.1 - REPLACEMENT EXPENDITURE, VOLUMES AND ASSET FAILURES BY ASSET CATEGORY
B9: EXPENDITURE
E10: EXPENDITURE ($0's)
B11: ASSET GROUP | C11: ASSET CATEGORY | E11: =IF(dms_RPT="financial",dms_CRYf_y1,dms_CRYc_y1) -> 2008-09 | F11: =IF(dms_RPT="financial",dms_CRYf_y2,dms_CRYc_y2) -> 2009-10 | G11: =IF(dms_RPT="financial",dms_CRYf_y3,dms_CRYc_y3) -> 2010-11 | H11: =IF(dms_RPT="financial",dms_CRYf_y4,dms_CRYc_y4) -> 2011-12 | I11: =IF(dms_RPT="financial",dms_CRYf_y5,dms_CRYc_y5) -> 2012-13 | J11: =IF(dms_RPT="financial",dms_CRYf_y6,dms_CRYc_y6) -> 2013-14 | K11: =IF(dms_RPT="financial",dms_CRYf_y7,dms_CRYc_y7) -> 2014-15 | L11: =IF(dms_RPT="financial",dms_CRYf_y8,dms_CRYc_y8) -> 2015-16 | M11: =IF(dms_RPT="financial",dms_CRYf_y9,dms_CRYc_y9) -> 2016-17 | N11: =IF(dms_RPT="financial",dms_CRYf_y10,dms_CRYc_y10) -> 2017-18
B12: POLES BY: HIGHEST OPERATING VOLTAGE ; MATERIAL TYPE | C12: Staking of a wooden pole | E12: 2607205.681 | F12: 2552773.321 | G12: 4214450.368 | H12: 3269695.501 | I12: 6135882.295 | J12: 5971323 | K12: 3183100 | L12: 4190818 | M12: 3262914 | N12: 4719361.5
C13: ˂ = 1 kV; Wood | E13: 740871.1744 | F13: 1023316.519 | G13: 2242477.229 | H13: 2468460.695 | I13: 3201654.455 | J13: 5515386 | K13: 7973139 | L13: 9695002 | M13: 10906737 | N13: 10704322.57
C14: > 1 kV & < = 11 kV; Wood | E14: 694600.3431 | F14: 959405.3228 | G14: 2102430.404 | H14: 2314297.555 | I14: 3001697.59 | J14: 5410422 | K14: 6115568 | L14: 7769078 | M14: 9077908 | N14: 11148039.08
C15: ˃ 11 kV & < = 22 kV; Wood | E15: 2199756.238 | F15: 3038380.527 | G15: 6658258.924 | H15: 7329229.796 | I15: 9506184.952 | J15: 5410422 | K15: 6115568 | L15: 7769078 | M15: 9077908 | N15: 11148039.08
C16: > 22 kV & < = 66 kV; Wood | E16: 1301672.098 | F16: 1300180.103 | G16: 2420984.181 | H16: 3095560.306 | I16: 5092263.202 | J16: 2606650 | K16: 2970035 | L16: 2812312 | M16: 3550678 | N16: 4036260.217
C17: > 66 kV & < = 132 kV; Wood | E17: 0 | F17: 0 | G17: 0 | H17: 0 | I17: 0 | J17: 232416 | K17: 455234 | L17: - | M17: 511636 | N17: 68385.95367
C18: > 132 kV; Wood | E18: 0 | F18: 0 | G18: 0 | H18: 0 | I18: 0 | J18: - | K18: - | L18: - | M18: - | N18: 0
C19: ˂ = 1 kV; Concrete | E19: 0 | F19: 0 | G19: 0 | H19: 0 | I19: 0 | J19: - | K19: 17534 | L19: 74242 | M19: - | N19: 0
C20: > 1 kV & < = 11 kV; Concrete | E20: 0 | F20: 0 | G20: 0 | H20: 0 | I20: 0 | J20: - | K20: - | L20: - | M20: - | N20: 0
C21: ˃ 11 kV & < = 22 kV; Concrete | E21: 0 | F21: 5814.990758 | G21: 0 | H21: 0 | I21: 16362.78526 | J21: - | K21: - | L21: - | M21: - | N21: 0
C22: > 22 kV & < = 66 kV; Concrete | E22: 0 | F22: 0 | G22: 0 | H22: 23047.64307 | I22: 2255320.06 | J22: 139211 | K22: 1632678 | L22: - | M22: - | N22: 0
C23: > 66 kV & < = 132 kV; Concrete | E23: 0 | F23: 0 | G23: 0 | H23: 0 | I23: 0 | J23: - | K23: 1127112 | L23: - | M23: - | N23: 0
C24: > 132 kV; Concrete | E24: 0 | F24: 0 | G24: 0 | H24: 0 | I24: 0 | J24: - | K24: - | L24: - | M24: - | N24: 0
C25: ˂ = 1 kV; Steel | E25: 0 | F25: 0 | G25: 0 | H25: 0 | I25: 0 | J25: - | K25: - | L25: - | M25: - | N25: 0
C26: > 1 kV & < = 11 kV; Steel | E26: 0 | F26: 0 | G26: 0 | H26: 0 | I26: 0 | J26: - | K26: - | L26: - | M26: - | N26: 0
C27: ˃ 11 kV & < = 22 kV; Steel | E27: 0 | F27: 0 | G27: 6572.285548 | H27: 0 | I27: 21335.30157 | J27: 25904 | K27: - | L27: 100730 | M27: - | N27: 0
C28: > 22 kV & < = 66 kV; Steel | E28: 0 | F28: 0 | G28: 0 | H28: 0 | I28: 0 | J28: - | K28: - | L28: - | M28: - | N28: 0
C29: > 66 kV & < = 132 kV; Steel | E29: 0 | F29: 0 | G29: 0 | H29: 0 | I29: 0 | J29: - | K29: - | L29: - | M29: - | N29: 0
C30: > 132 kV; Steel | E30: 0 | F30: 0 | G30: 0 | H30: 0 | I30: 0 | J30: - | K30: - | L30: - | M30: - | N30: 0
C31: Other | E31: 0 | F31: 0 | G31: 0 | H31: 0 | I31: 0 | J31: - | K31: - | L31: - | M31: - | N31: 0
B32: POLE TOP STRUCTURES BY: HIGHEST OPERATING VOLTAGE | C32: ˂ = 1 kV | E32: 367135.0521 | F32: 513677.0068 | G32: 1125771.909 | H32: 1191199.395 | I32: 1296155.291 | J32: 2812603 | K32: 3811394 | L32: 4414163 | M32: 4028439 | N32: 5909001.589
C33: > 1 kV & < = 11 kV | E33: 1887888.741 | F33: 2641440.304 | G33: 5788966.161 | H33: 6125391.293 | I33: 6665093.357 | J33: 3414431 | K33: 4935863 | L33: 6018791 | M33: 5498661 | N33: 8935144.471
C34: ˃ 11 kV & < = 22 kV | E34: 460360.6762 | F34: 644114.2611 | G34: 1411635.843 | H34: 1493674.704 | I34: 1625279.949 | J34: 3436221 | K34: 4554900 | L34: 6074784 | M34: 5257642 | N34: 8431002.377
C35: > 22 kV & < = 66 kV | E35: 485298.961 | F35: 679002.2691 | G35: 1488099.43 | H35: 1574577.248 | I35: 1713304.697 | J35: 1242178 | K35: 2063089 | L35: 2857929 | M35: 981843 | N35: 2200311.015
C36: > 66 kV & < = 132 kV | E36: 111905.0747 | F36: 156567.0117 | G36: 343100.8777 | H36: 363072.0174 | I36: 395047.1438 | J36: -598 | K36: 3942523 | L36: 165186 | M36: 35608 | N36: 7372.750903
C37: > 132 kV | E37: 0 | F37: 0 | G37: 0 | H37: 0 | I37: 0 | J37: - | K37: - | L37: - | M37: - | N37: 0
C38: Other | E38: 0 | F38: 0 | G38: 0 | H38: 0 | I38: 0 | J38: - | K38: - | L38: - | M38: - | N38: 0
B39: STAKING WOODEN POLES BY: HIGHEST OPERATING VOLTAGE | C39: ˂ = 1 Kv | D39: for year wooden pole staked
C40: > 1 kV & < = 11 kV | D40: for year wooden pole staked
C41: ˃ 11 kV & < = 22 kV | D41: for year wooden pole staked
C42: > 22 kV & < = 66 kV | D42: for year wooden pole staked
C43: > 66 kV & < = 132 kV | D43: for year wooden pole staked
C44: > 132 kV | D44: for year wooden pole staked
B45: OVERHEAD CONDUCTORS BY: HIGHEST OPERATING VOLTAGE; NUMBER OF PHASES (AT HV) | C45: ˂ = 1 kV | D45: per km | E45: 859849.7606 | F45: 516899.8682 | G45: 1542240.793 | H45: 2794825.288 | I45: 1415332.058 | J45: 3543270 | K45: 5238089 | L45: 6614456 | M45: 4772793 | N45: 7747295.044
C46: > 1 kV & < = 11 kV | D46: per km | E46: 6139803.066 | F46: 9174411.777 | G46: 15135236.27 | H46: 19179349.26 | I46: 15930192.7 | J46: 1502441 | K46: 2562035 | L46: 1694515 | M46: 2496807 | N46: 2726539.626
C47: ˃ 11 kV & < = 22 kV ; SWER | D47: per km | E47: 994386.921 | F47: 1485864.446 | G47: 2451264.451 | H47: 3106238.727 | I47: 2580013.578 | J47: 345473 | K47: 716511 | L47: 529115 | M47: 378435 | N47: 971624.6269
C48: ˃ 11 kV & < = 22 kV ; Single-Phase | D48: per km | E48: 626563.3353 | F48: 936243.3909 | G48: 1544542.066 | H48: 1957241.448 | I48: 1625666.909 | J48: - | K48: - | L48: - | M48: - | N48: 0
C49: ˃ 11 kV & < = 22 kV ; Multiple-Phase | D49: per km | E49: 2093768.271 | F49: 3128617.005 | G49: 5161350.8 | H49: 6540456.185 | I49: 5432443.3 | J49: 390440 | K49: 238369 | L49: 307383 | M49: 314127 | N49: 392594.9854
C50: > 22 kV & < = 66 kV | D50: per km | E50: 1931626.593 | F50: 2886336.512 | G50: 4761655.146 | H50: 6033962.438 | I50: 5011754.209 | J50: 542332 | K50: 238679 | L50: 71314 | M50: 10849 | N50: 33781.60862
C51: > 66 kV & < = 132 kV | D51: per km | E51: 487590.2467 | F51: 728582.6033 | G51: 1201959.331 | H51: 1523121.106 | I51: 1265090.51 | J51: - | K51: - | L51: 376429 | M51: - | N51: 0
C52: > 132 kV | D52: per km | E52: 0 | F52: 0 | G52: 0 | H52: 0 | I52: 0 | J52: - | K52: - | L52: - | M52: - | N52: 0
C53: Other | D53: per km | E53: 0 | F53: 0 | G53: 0 | H53: 0 | I53: 0 | J53: - | K53: - | L53: - | M53: - | N53: 0
B54: UNDERGROUND CABLES BY: HIGHEST OPERATING VOLTAGE | C54: ˂ = 1 kV | D54: per km | E54: 61732.16441 | F54: 94941.5614 | G54: 104498.0715 | H54: 121124.0301 | I54: 197629.6654 | J54: 829379 | K54: 1475723 | L54: 1780866 | M54: 1511180 | N54: 1431662.547
C55: > 1 kV & < = 11 kV | D55: per km | E55: 1347515.18 | F55: 257661.3708 | G55: 1008375.328 | H55: 895974.316 | I55: 910186.1608 | J55: 671569 | K55: 576081 | L55: 834643 | M55: 732795 | N55: 689970.2351
C56: > 11 kV & < = 22 kV | D56: per km | E56: 41294.13107 | F56: 157287.1417 | G56: 99104.79266 | H56: 321190.428 | I56: 144494.8942 | J56: 28347 | K56: 414309 | L56: 189283 | M56: 66360 | N56: 2685119.177
C57: > 22 kV & < = 33 kV | D57: per km | E57: 0 | F57: 0 | G57: 0 | H57: 12594.14171 | I57: 13277.16461 | J57: 108623 | K57: 281812 | L57: 206562 | M57: 47296 | N57: 12895.64714
C58: > 33 kV & < = 66 kV | D58: per km | E58: 0 | F58: 0 | G58: 0 | H58: 0 | I58: 0 | J58: - | K58: - | L58: - | M58: - | N58: 0
C59: > 66 kV & < = 132 kV | D59: per km | E59: 0 | F59: 0 | G59: 0 | H59: 0 | I59: 0 | J59: - | K59: - | L59: - | M59: - | N59: 0
C60: > 132 kV | D60: per km | E60: 0 | F60: 0 | G60: 0 | H60: 0 | I60: 0 | J60: - | K60: - | L60: - | M60: - | N60: 0
C61: Other | D61: per km | E61: 0 | F61: 0 | G61: 0 | H61: 0 | I61: 0 | J61: - | K61: - | L61: - | M61: - | N61: 0
B62: SERVICE LINES BY: CONNECTION VOLTAGE; CUSTOMER TYPE; CONNECTION COMPLEXITY | C62: ˂ = 11 kV ; Residential ; Simple Type | D62: per number of spans | E62: 1881753.367 | F62: 2098003.27 | G62: 4672107.281 | H62: 10193412.91 | I62: 6320630.758 | J62: 2002003 | K62: 6154952 | L62: 4281021 | M62: 3625246 | N62: 3116851.347
C63: ˂ = 11 kV ; Commercial & Industrial ; Simple Type | D63: per number of spans | E63: 508666.944 | F63: 507851.1415 | G63: 651016.0051 | H63: 585496.6716 | I63: 838402.2979 | J63: 1854072 | K63: 1717378 | L63: 1971284 | M63: 1350613 | N63: 1852706.195
C64: ˂ = 11 kV ; Residential ; Complex Type | D64: per number of spans | E64: 0 | F64: 0 | G64: 0 | H64: 0 | I64: 0 | J64: 102974 | K64: 37302 | L64: 95833 | M64: 124882 | N64: 30566.60388
C65: ˂ = 11 kV ; Commercial & Industrial ; Complex Type | D65: per number of spans | E65: 0 | F65: 0 | G65: 0 | H65: 0 | I65: 0 | J65: - | K65: - | L65: - | M65: - | N65: 0
C66: ˂ = 11 kV ; Subdivision ; Complex Type | D66: per number of spans | E66: 0 | F66: 0 | G66: 0 | H66: 0 | I66: 0 | J66: - | K66: - | L66: - | M66: - | N66: 0
C67: > 11 kV & < = 22 kV ; Commercial & Industrial | D67: per number of spans | E67: 0 | F67: 0 | G67: 0 | H67: 0 | I67: 0 | J67: - | K67: - | L67: - | M67: - | N67: 0
C68: > 11 kV & < = 22 kV ; Subdivision | D68: per number of spans | E68: 0 | F68: 0 | G68: 0 | H68: 0 | I68: 0 | J68: - | K68: - | L68: - | M68: - | N68: 0
C69: > 22 kV & < = 33 kV ; Commercial & Industrial | D69: per number of spans | E69: 0 | F69: 0 | G69: 0 | H69: 0 | I69: 0 | J69: - | K69: - | L69: - | M69: - | N69: 0
C70: > 22 kV & < = 33 kV ; Subdivision | D70: per number of spans | E70: 0 | F70: 0 | G70: 0 | H70: 0 | I70: 0 | J70: - | K70: - | L70: - | M70: - | N70: 0
C71: > 33 kV & < = 66 kV ; Commercial & Industrial | D71: per number of spans | E71: 0 | F71: 0 | G71: 0 | H71: 0 | I71: 0 | J71: - | K71: - | L71: - | M71: - | N71: 0
C72: > 33 kV & < = 66 kV ; Subdivision | D72: per number of spans | E72: 0 | F72: 0 | G72: 0 | H72: 0 | I72: 0 | J72: - | K72: - | L72: - | M72: - | N72: 0
C73: > 66 kV & < = 132 kV ; Commercial & Industrial | D73: per number of spans | E73: 0 | F73: 0 | G73: 0 | H73: 0 | I73: 0 | J73: - | K73: - | L73: - | M73: - | N73: 0
C74: > 66 kV & < = 132 kV ; Subdivision | D74: per number of spans | E74: 0 | F74: 0 | G74: 0 | H74: 0 | I74: 0 | J74: - | K74: - | L74: - | M74: - | N74: 0
C75: > 132 kV ; Commercial & Industrial | D75: per number of spans | E75: 0 | F75: 0 | G75: 0 | H75: 0 | I75: 0 | J75: - | K75: - | L75: - | M75: - | N75: 0
C76: > 132 kV ; Subdivision | D76: per number of spans | E76: 0 | F76: 0 | G76: 0 | H76: 0 | I76: 0 | J76: - | K76: - | L76: - | M76: - | N76: 0
C77: Other | D77: per number of spans | E77: 0 | F77: 0 | G77: 0 | H77: 0 | I77: 0 | J77: - | K77: - | L77: - | M77: - | N77: 0
B78: TRANSFORMERS BY: MOUNTING TYPE; HIGHEST OPERATING VOLTAGE ; AMPERE RATING; NUMBER OF PHASES (AT LV) | C78: Pole Mounted ; < = 22kV ; < = 60 kVA ; Single Phase | E78: 2873207.591 | F78: 2980718.858 | G78: 5141089.124 | H78: 4326334.568 | I78: 5229385.675 | J78: 5357315 | K78: 7766457 | L78: 8160735 | M78: 8048591 | N78: 7105972.703
C79: Pole Mounted ; < = 22kV ; > 60 kVA and < = 600 kVA ; Single Phase | E79: 666800.5047 | F79: 707025.1205 | G79: 610427.2166 | H79: 849395.0083 | I79: 989353.9497 | J79: 524162 | K79: 1013314 | L79: 819166 | M79: 2595791 | N79: 643944.9887
C80: Pole Mounted ; < = 22kV ; > 600 kVA ; Single Phase | E80: 0 | F80: 0 | G80: 0 | H80: 0 | I80: 0 | J80: 2920 | K80: - | L80: - | M80: 9237 | N80: 53935.78858
C81: Pole Mounted ; < = 22kV ; < = 60 kVA ; Multiple Phase | E81: 1395956.222 | F81: 1254325.184 | G81: 2382186.637 | H81: 1630462.661 | I81: 1945485.98 | J81: 1978099 | K81: 5302192 | L81: 3398538 | M81: 3158479 | N81: 3054285.951
C82: Pole Mounted ; < = 22kV ; > 60 kVA and < = 600 kVA ; Multiple Phase | E82: 8723193.811 | F82: 7374447.25 | G82: 12613179.08 | H82: 9081283.627 | I82: 10690562.26 | J82: 11371121 | K82: 13371781 | L82: 14037230 | M82: 14377180 | N82: 15538686.04
C83: Pole Mounted ; < = 22kV ; > 600 kVA ; Multiple Phase | E83: 1802384.882 | F83: 2444917.387 | G83: 3048948.954 | H83: 3425278.446 | I83: 3136428.64 | J83: 1149127 | K83: 2699866 | L83: 2359955 | M83: 1877888 | N83: 2584242.093
C84: Kiosk Mounted ; < = 22kV ; < = 60 kVA ; Single Phase | E84: 0 | F84: 0 | G84: 0 | H84: 0 | I84: 0 | J84: - | K84: - | L84: - | M84: - | N84: 0
C85: Kiosk Mounted ; < = 22kV ; > 60 kVA and < = 600 kVA ; Single Phase | E85: 0 | F85: 0 | G85: 0 | H85: 0 | I85: 0 | J85: - | K85: - | L85: - | M85: - | N85: 0
C86: Kiosk Mounted ; < = 22kV ; > 600 kVA ; Single Phase | E86: 0 | F86: 0 | G86: 0 | H86: 0 | I86: 0 | J86: - | K86: - | L86: - | M86: - | N86: 0
C87: Kiosk Mounted ; < = 22kV ; < = 60 kVA ; Multiple Phase | E87: 0 | F87: 0 | G87: 0 | H87: 0 | I87: 0 | J87: - | K87: - | L87: - | M87: - | N87: 0
C88: Kiosk Mounted ; < = 22kV ; > 60 kVA and < = 600 kVA ; Multiple Phase | E88: 2653984.989 | F88: 1341590.043 | G88: 2395071.823 | H88: 2609307.416 | I88: 3432174.785 | J88: 1046385 | K88: 6326711 | L88: 3014855 | M88: 2256509 | N88: 3623901.388
C89: Kiosk Mounted ; < = 22kV ; > 600 kVA ; Multiple Phase | E89: 500941.3472 | F89: 1076203.382 | G89: 1246198.494 | H89: 844328.9123 | I89: 1097503.572 | J89: 777943 | K89: 479084 | L89: 501705 | M89: 1170361 | N89: 1429476.458
C90: Ground Outdoor / Indoor Chamber Mounted; ˂ 22 kV ; < = 60 kVA ; Single Phase | E90: 0 | F90: 0 | G90: 0 | H90: 0 | I90: 0 | J90: - | K90: - | L90: - | M90: - | N90: 0
C91: Ground Outdoor / Indoor Chamber Mounted; ˂ 22 kV ; > 60 kVA and < = 600 kVA ; Single Phase | E91: 0 | F91: 0 | G91: 0 | H91: 0 | I91: 0 | J91: 14358 | K91: 17863 | L91: - | M91: - | N91: 0
C92: Ground Outdoor / Indoor Chamber Mounted; ˂ 22 kV ; > 600 kVA ; Single Phase | E92: 0 | F92: 0 | G92: 0 | H92: 0 | I92: 0 | J92: - | K92: - | L92: - | M92: - | N92: 0
C93: Ground Outdoor / Indoor Chamber Mounted; ˂ 22 kV ; < = 60 kVA ; Multiple Phase | E93: 0 | F93: 0 | G93: 0 | H93: 0 | I93: 0 | J93: - | K93: - | L93: - | M93: - | N93: 0
C94: Ground Outdoor / Indoor Chamber Mounted; ˂ 22 kV ; > 60 kVA and < = 600 kVA ; Multiple Phase | E94: 105076.4685 | F94: 0 | G94: 173195.7697 | H94: 0 | I94: 165270.9878 | J94: - | K94: - | L94: 135392 | M94: 59890 | N94: 121506.3395
C95: Ground Outdoor / Indoor Chamber Mounted; ˂ 22 kV ; > 600 kVA ; Multiple Phase | E95: 713237.908 | F95: 0 | G95: 204003.7587 | H95: 55080.26246 | I95: 1731125.562 | J95: 6491 | K95: 570057 | L95: 165479 | M95: 325840 | N95: 352376.487
C96: Ground Outdoor / Indoor Chamber Mounted; > = 22 kV & < = 33 kV ; < = 15 MVA | E96: 1300360.165 | F96: 178922.275 | G96: 665663.4909 | H96: 1701833.881 | I96: 2788056.33 | J96: 628598 | K96: 70131 | L96: 184711 | M96: 176271 | N96: 499236.3515
C97: Ground Outdoor / Indoor Chamber Mounted; > = 22 kV & < = 33 kV ; > 15 MVA and < = 40 MVA | E97: 0 | F97: 0 | G97: 0 | H97: 0 | I97: 0 | J97: - | K97: - | L97: - | M97: 96909 | N97: 2956888.801
C98: Ground Outdoor / Indoor Chamber Mounted; > = 22 kV & < = 33 kV ; > 40 MVA | E98: 0 | F98: 0 | G98: 0 | H98: 0 | I98: 0 | J98: - | K98: - | L98: - | M98: - | N98: 0
C99: Ground Outdoor / Indoor Chamber Mounted; > 33 kV & < = 66 kV ; < = 15 MVA | E99: 0 | F99: 2331824.998 | G99: 661657.6426 | H99: 0 | I99: 795943.1048 | J99: 1162881 | K99: 3152453 | L99: 1880098 | M99: 1409633 | N99: 426709.5057
C100: Ground Outdoor / Indoor Chamber Mounted; > 33 kV & < = 66 kV ; > 15 MVA and < = 40 MVA | E100: 1872330.905 | F100: 3304662.435 | G100: 0 | H100: 0 | I100: 0 | J100: - | K100: - | L100: 19377 | M100: 371032 | N100: 6690.215866
C101: Ground Outdoor / Indoor Chamber Mounted; > 33 kV & < = 66 kV ; > 40 MVA | E101: 0 | F101: 0 | G101: 0 | H101: 0 | I101: 0 | J101: - | K101: - | L101: - | M101: - | N101: 0
C102: Ground Outdoor / Indoor Chamber Mounted; > 66 kV & < = 132 kV ; < = 100 MVA | E102: 4099835.486 | F102: 0 | G102: 2053280.618 | H102: 0 | I102: 7410000.783 | J102: - | K102: - | L102: - | M102: - | N102: 14066.94916
C103: Ground Outdoor / Indoor Chamber Mounted; > 66 kV & < = 132 kV ; > 100 MVA | E103: 0 | F103: 0 | G103: 0 | H103: 0 | I103: 0 | J103: - | K103: - | L103: - | M103: - | N103: 0
C104: Ground Outdoor / Indoor Chamber Mounted; > 132 kV ; < = 100 MVA | E104: 0 | F104: 0 | G104: 0 | H104: 0 | I104: 0 | J104: - | K104: - | L104: - | M104: - | N104: 0
C105: Ground Outdoor / Indoor Chamber Mounted; > 132 kV ; > 100 MVA | E105: 0 | F105: 0 | G105: 0 | H105: 0 | I105: 0 | J105: - | K105: - | L105: - | M105: - | N105: 0
C106: Other | E106: 0 | F106: 0 | G106: 0 | H106: 0 | I106: 0 | J106: 12087 | K106: - | L106: 86948 | M106: - | N106: 0
B107: SWITCHGEAR BY: HIGHEST OPERATING VOLTAGE ; SWITCH FUNCTION | C107: ˂ = 11 kV ; FUSE | E107: 803147.7241 | F107: 1102350.941 | G107: 1998264.785 | H107: 2571243.271 | I107: 2660850.71 | J107: 6914825 | K107: 11276036 | L107: 8422061 | M107: 8645008 | N107: 13203902.89
C108: ˂ = 11 kV ; Switch | E108: 3926399.403 | F108: 3347438.023 | G108: 6916527.675 | H108: 11019174.66 | I108: 17323863.73 | J108: 3673689 | K108: 5202304 | L108: 4215459 | M108: 4812670 | N108: 4838847.365
C109: ˂ = 11 kV ; Circuit Breaker | E109: 606577.1182 | F109: 1293400.341 | G109: 1132784.952 | H109: 1309131.685 | I109: 1604748.047 | J109: 749614 | K109: 1105015 | L109: 2875867 | M109: 2182445 | N109: 1914709.534
C110: > 11 kV & < = 22 kV ; Switch | E110: 379998.8387 | F110: 2136118.534 | G110: 4074112.783 | H110: 3208965.397 | I110: 5369727.557 | J110: 1732825 | K110: 2907303 | L110: 4344940 | M110: 3249565 | N110: 3793903.446
C111: > 11 kV & < = 22 kV ; Circuit Breaker | E111: 1740218.18 | F111: 731067.283 | G111: 1050218.779 | H111: 1246682.548 | I111: 2037792.427 | J111: 389065 | K111: 721862 | L111: 1123193 | M111: 602608 | N111: 876599.246
C112: > 22 kV & < = 33 kV ; Switch | E112: 86366.44034 | F112: 228655.0393 | G112: 432540.6192 | H112: 3242137.629 | I112: 936586.9328 | J112: 64947 | K112: 21774 | L112: 159133 | M112: 324554 | N112: 243460.3064
C113: > 22 kV & < = 33 kV ; Circuit Breaker | E113: 185070.9436 | F113: 1469925.252 | G113: 0 | H113: 267209.1453 | I113: 1114984.444 | J113: 915623 | K113: 995273 | L113: 699856 | M113: 654533 | N113: 728390.0188
C114: > 33 kV & < = 66 kV ; Switch | E114: 617026.5259 | F114: 1089051.287 | G114: 309019.3766 | H114: 296958.4301 | I114: 61955.96893 | J114: 201770 | K114: 65790 | L114: 249349 | M114: 209000 | N114: 489813.7109
C115: > 33 kV & < = 66 kV ; Circuit Breaker | E115: 1085749.536 | F115: 479086.7489 | G115: 634392.9081 | H115: 522542.3285 | I115: 0 | J115: 6258465 | K115: 3692306 | L115: 1126537 | M115: 2307847 | N115: 7711395.762
C116: > 66 kV & < = 132 kV ; Switch | E116: 0 | F116: 0 | G116: 110452.3367 | H116: 0 | I116: 2790248.571 | J116: - | K116: - | L116: - | M116: - | N116: 0
C117: > 66 kV & < = 132 kV ; Circuit Breaker | E117: 0 | F117: 0 | G117: 133881.6202 | H117: 0 | I117: 966319.8513 | J117: - | K117: - | L117: - | M117: - | N117: 0
C118: > 132 kV ; Switch | E118: 0 | F118: 0 | G118: 0 | H118: 0 | I118: 0 | J118: - | K118: - | L118: - | M118: - | N118: 0
C119: > 132 kV ; Circuit Breaker | E119: 0 | F119: 0 | G119: 0 | H119: 0 | I119: 0 | J119: - | K119: - | L119: - | M119: - | N119: 0
C120: Other | E120: 0 | F120: 0 | G120: 0 | H120: 0 | I120: 0 | J120: - | K120: - | L120: 39488 | M120: - | N120: 0
B121: PUBLIC LIGHTING BY: ASSET TYPE ; LIGHTING OBLIGATION | C121: Luminaires ; Major Road | E121: 0 | F121: 0 | G121: 0 | H121: 0 | I121: 0 | J121: 496389 | K121: 655503 | L121: 787308 | M121: 806999 | N121: 1039012.077
C122: Luminaires ; Minor Road | E122: 0 | F122: 0 | G122: 0 | H122: 0 | I122: 0 | J122: 1066091 | K122: 1910982 | L122: 1082160 | M122: 1655592 | N122: 934426.3963
C123: Brackets ; Major Road | E123: 0 | F123: 0 | G123: 0 | H123: 0 | I123: 0 | J123: 174758 | K123: 249594 | L123: 326442 | M123: 197209 | N123: 287486.6165
C124: Brackets ; Minor Road | E124: 0 | F124: 0 | G124: 0 | H124: 0 | I124: 0 | J124: 274544 | K124: 246592 | L124: 297908 | M124: 217832 | N124: 217900.6129
C125: Lamps ; Major Road | E125: 0 | F125: 0 | G125: 0 | H125: 0 | I125: 0 | J125: 32761 | K125: 50218 | L125: 257403 | M125: 129827 | N125: 82910.11294
C126: Lamps ; Minor Road | E126: 0 | F126: 0 | G126: 0 | H126: 0 | I126: 0 | J126: 20125 | K126: 34481 | L126: 32035 | M126: 80552 | N126: 63221.08121
C127: Poles / Columns ; Major Road | E127: 0 | F127: 0 | G127: 0 | H127: 0 | I127: 0 | J127: 166843 | K127: 106498 | L127: 395954 | M127: 272679 | N127: 155802.0317
C128: Poles / Columns ; Minor Road | E128: 0 | F128: 0 | G128: 0 | H128: 0 | I128: 0 | J128: 679359 | K128: 295304 | L128: 494793 | M128: 542132 | N128: 253525.2048
C129: Other | E129: 0 | F129: 0 | G129: 0 | H129: 0 | I129: 0 | J129: - | K129: - | L129: - | M129: - | N129: 0
B130: SCADA, NETWORK CONTROL AND PROTECTION SYSTEMS BY: FUNCTION | C130: Field Devices | E130: 5694016.031 | F130: 5471388.439 | G130: 12348262.28 | H130: 10356581.12 | I130: 5752390.576 | J130: 5478195 | K130: 6053608 | L130: 6076438 | M130: 4395521 | N130: 3864158.032
C131: Local Network Wiring Assets | E131: 0 | F131: 0 | G131: 0 | H131: 0 | I131: 0 | J131: - | K131: - | L131: - | M131: - | N131: 0
C132: Communications Network Assets | E132: 562328.1378 | F132: 1786777.265 | G132: 4064797.727 | H132: 7088383.255 | I132: 7920824.218 | J132: 624690 | K132: 5824618 | L132: 2915740 | M132: 4081014 | N132: 2165140.815
C133: Master Station Assets | E133: 51408.59544 | F133: 249524.3484 | G133: 747934.8206 | H133: 37112.38128 | I133: 78978.06477 | J133: 5792137 | K133: 6887481 | L133: 2356319 | M133: 934105 | N133: 0
C134: Communications Site Infrastructure | E134: 260026.7717 | F134: 2132732.263 | G134: 5173050.352 | H134: 4418583.766 | I134: 3532088.325 | J134: 2414199 | K134: 1824576 | L134: 1401960 | M134: 413193 | N134: 484591.5649
C135: Communications Linear Assets | E135: 322566.2567 | F135: 302646.2372 | G135: 460849.0138 | H135: 540291.5836 | I135: 1249367.149 | J135: 430969 | K135: 240737 | L135: 149507 | M135: 35008 | N135: 0
C136: AFLC | E136: 192782.2329 | F136: 832503.9624 | G136: 0 | H136: 556685.7193 | I136: 0 | J136: 1258541 | K136: 4817137 | L136: 3500032 | M136: 532326 | N136: 336792.5148
C137: Other | E137: 0 | F137: 0 | G137: 0 | H137: 0 | I137: 0 | J137: - | K137: - | L137: - | M137: - | N137: 0
B138: OTHER BY: DNSP DEFINED | C138: CURRENT TRANSFORMERS | E138: 6903557.464 | F138: 1686285.546 | G138: 1234800.482 | H138: 1067945.884 | I138: 2488056.815 | J138: 2776678 | K138: 888689 | L138: 1189251 | M138: 1557623 | N138: 2330745.636
C139: VOLTAGE TRANSFORMERS | E139: 370141.8872 | F139: 849290.1458 | G139: 741498.2043 | H139: 1175720.239 | I139: 1560978.221 | J139: 1116568 | K139: 1557324 | L139: 1828527 | M139: 1239826 | N139: 992678.8088
C140: CAPACITOR BANKS | E140: 0 | F140: 0 | G140: 380790.2237 | H140: 3293352.715 | I140: 1374218.327 | J140: 313822 | K140: 166032 | L140: 266762 | M140: 143895 | N140: 97573.2291
C141: STATIC VAR COMPENSATOR | E141: 0 | F141: 0 | G141: 0 | H141: 7395725.46 | I141: 0 | J141: 365844 | K141: 498 | L141: - | M141: - | N141: 27747.11779
C142: REGULATORS | J142: 46775 | K142: 29171 | L142: - | M142: 160526 | N142: 366209.8887
C143: Other non AER Asset Categories | J143: 9684774 | K143: 9284002 | L143: 4242823 | M143: 4045236 | N143: 4592563.101
B156: ASSET REPLACEMENTS
E157: VOLUMES (0's)
B158: ASSET GROUP | C158: ASSET CATEGORY | E158: =IF(dms_RPT="financial",dms_CRYf_y1,dms_CRYc_y1) -> 2008-09 | F158: =IF(dms_RPT="financial",dms_CRYf_y2,dms_CRYc_y2) -> 2009-10 | G158: =IF(dms_RPT="financial",dms_CRYf_y3,dms_CRYc_y3) -> 2010-11 | H158: =IF(dms_RPT="financial",dms_CRYf_y4,dms_CRYc_y4) -> 2011-12 | I158: =IF(dms_RPT="financial",dms_CRYf_y5,dms_CRYc_y5) -> 2012-13 | J158: =IF(dms_RPT="financial",dms_CRYf_y6,dms_CRYc_y6) -> 2013-14 | K158: =IF(dms_RPT="financial",dms_CRYf_y7,dms_CRYc_y7) -> 2014-15 | L158: =IF(dms_RPT="financial",dms_CRYf_y8,dms_CRYc_y8) -> 2015-16 | M158: =IF(dms_RPT="financial",dms_CRYf_y9,dms_CRYc_y9) -> 2016-17 | N158: =IF(dms_RPT="financial",dms_CRYf_y10,dms_CRYc_y10) -> 2017-18
B159: POLES BY: HIGHEST OPERATING VOLTAGE ; MATERIAL TYPE | C159: Staking of a wooden pole
C160: ˂ = 1 kV; Wood
C161: > 1 kV & < = 11 kV; Wood
C162: ˃ 11 kV & < = 22 kV; Wood
C163: > 22 kV & < = 66 kV; Wood
C164: > 66 kV & < = 132 kV; Wood
C165: > 132 kV; Wood
C166: ˂ = 1 kV; Concrete
C167: > 1 kV & < = 11 kV; Concrete
C168: ˃ 11 kV & < = 22 kV; Concrete
C169: > 22 kV & < = 66 kV; Concrete
C170: > 66 kV & < = 132 kV; Concrete
C171: > 132 kV; Concrete
C172: ˂ = 1 kV; Steel
C173: > 1 kV & < = 11 kV; Steel
C174: ˃ 11 kV & < = 22 kV; Steel
C175: > 22 kV & < = 66 kV; Steel
C176: > 66 kV & < = 132 kV; Steel
C177: > 132 kV; Steel
C178: Other
B179: POLE TOP STRUCTURES BY: HIGHEST OPERATING VOLTAGE | C179: ˂ = 1 kV
C180: > 1 kV & < = 11 kV
C181: ˃ 11 kV & < = 22 kV
C182: > 22 kV & < = 66 kV
C183: > 66 kV & < = 132 kV
C184: > 132 kV
C185: Other
B186: STAKING WOODEN POLES BY: HIGHEST OPERATING VOLTAGE | C186: ˂ = 1 Kv
C187: > 1 kV & < = 11 kV
C188: ˃ 11 kV & < = 22 kV
C189: > 22 kV & < = 66 kV
C190: > 66 kV & < = 132 kV
C191: > 132 kV
B192: OVERHEAD CONDUCTORS BY: HIGHEST OPERATING VOLTAGE; NUMBER OF PHASES (AT HV) | C192: ˂ = 1 kV
C193: > 1 kV & < = 11 kV
C194: ˃ 11 kV & < = 22 kV ; SWER
C195: ˃ 11 kV & < = 22 kV ; Single-Phase
C196: ˃ 11 kV & < = 22 kV ; Multiple-Phase
C197: > 22 kV & < = 66 kV
C198: > 66 kV & < = 132 kV
C199: > 132 kV
C200: Other
B201: UNDERGROUND CABLES BY: HIGHEST OPERATING VOLTAGE | C201: ˂ = 1 kV
C202: > 1 kV & < = 11 kV
C203: > 11 kV & < = 22 kV
C204: > 22 kV & < = 33 kV
C205: > 33 kV & < = 66 kV
C206: > 66 kV & < = 132 kV
C207: > 132 kV
C208: Other
B209: SERVICE LINES BY: CONNECTION VOLTAGE; CUSTOMER TYPE; CONNECTION COMPLEXITY | C209: ˂ = 11 kV ; Residential ; Simple Type
C210: ˂ = 11 kV ; Commercial & Industrial ; Simple Type
C211: ˂ = 11 kV ; Residential ; Complex Type
C212: ˂ = 11 kV ; Commercial & Industrial ; Complex Type
C213: ˂ = 11 kV ; Subdivision ; Complex Type
C214: > 11 kV & < = 22 kV ; Commercial & Industrial
... 260 more rows

Sheet 2.3(a) Augex
B1: REGULATORY REPORTING STATEMENT
B2: =INDEX(dms_TradingNameFull_List,MATCH(dms_TradingName,dms_TradingName_List)) -> Ergon Energy
B3: =IF(SUM(dms_SingleYear_Model)>0,("CATEGORY ANALYSIS "&CRY&" to "&FRY),("CATEGORY ANALYSIS "&CRY)) -> CATEGORY ANALYSIS 2008-09 to 2017-18
B4: 2.3 AUGEX PROJECT DATA
B7: There are TWO tables on this worksheet - each has been 'grouped' (and sub-grouped) for easy navigation. Both rows and columns have been grouped. See the Instructions sheet on how to group or ungroup tables.
B9: 2.3.1 - AUGEX ASSET DATA - SUBTRANSMISSION SUBSTATIONS, SWITCHING STATIONS AND ZONE SUBSTATIONS
B10: NOTE: DNSP MUST PROVIDE EXPENDITURE INFORMATION ON A PROJECT CLOSE BASIS.
B11: AUG231_1 | C11: AUG231_2 | D11: AUG231_3 | E11: AUG231_4 | F11: AUG231_5 | G11: AUG231_6 | H11: ED_AUG231_00001 | I11: ED_AUG231_00002 | J11: ED_AUG231_00003 | K11: ED_AUG231_00004 | L11: ED_AUG231_00005 | M11: ED_AUG231_00006 | N11: ED_AUG231_00007 | O11: ED_AUG231_00008 | P11: ED_AUG231_00009 | Q11: ED_AUG231_00010 | R11: ED_AUG231_00011 | U11: ED_AUG231_00012 | V11: ED_AUG231_00013 | W11: ED_AUG231_00014 | X11: ED_AUG231_00015 | Y11: ED_AUG231_00016 | Z11: ED_AUG231_00017 | AA11: ED_AUG231_00018 | AB11: ED_AUG231_00019 | AC11: ED_AUG231_00020 | AD11: ED_AUG231_00021 | AE11: ED_AUG231_00022 | AF11: ED_AUG231_00023
B12: PROJECT DESCRIPTION AND CHANGES | L12: PLANT AND EQUIPMENT EXPENDITURE AND VOLUME | X12: OTHER EXPENDITURE | Z12: TOTAL DIRECT EXPENDITURE ($0's) | AA12: YEARS INCURRED | AB12: ALL RELATED PARTY CONTRACTS | AD12: ALL NON RELATED PARTYCONTRACTS | AE12: LAND AND EASEMENTS
B13: SUBSTATION ID | C13: SUBSTATION TYPE (drop down) | D13: PROJECT ID | E13: PROJECT TYPE (drop down) | F13: PROJECT TRIGGER (drop down) | G13: VOLTAGE (KV) | H13: SUBSTATION RATING NORMAL CYCLIC (MVA) | J13: SUBSTATION RATING N-1 EMERGENCY (MVA) | L13: TRANSFORMERS | O13: SWITCHGEAR | Q13: CAPACITORS | U13: OTHER PLANT ITEM | V13: INSTALLATION (LABOUR) | X13: CIVIL WORKS | Y13: OTHER DIRECT | AB13: RELATED PARTY MARGINS | AC13: TOTAL | AE13: LAND PURCHASE | AF13: EASEMENTS
H14: PRE | I14: POST | J14: PRE | K14: POST | L14: UNITS ADDED | M14: MVA ADDED | N14: EXPENDITURE ($0's) | O14: UNITS ADDED | P14: EXPENDITURE ($0's) | Q14: MVAR ADDED | R14: EXPENDITURE ($0's) | U14: EXPENDITURE ($0's) | V14: VOLUME | W14: EXPENDITURE ($0's) | X14: EXPENDITURE ($0's) | AB14: EXPENDITURE ($0's) | AE14: EXPENDITURE ($0's)
B15: T083/ROMA | C15: Subtransmission substation | D15: NN01163 | E15: Substation upgrade - capacity | F15: Demand growth | G15: 132/66/33 | H15: 74 | I15: 160 | J15: 34 | K15: 80 | N15: 5149917.808 | P15: 721906.2388 | R15: 0 | U15: 4789584.864 | W15: 20786212.6 | X15: 0 | Y15: 969609.5333 | Z15: =SUM(N15,P15,R15,U15,W15,X15,Y15) -> 32417231.05 | AA15: 2007, 2008, 2009, 2010, 2011, 2012, 2013, 2014, 2015, 2016, 2017, 2018 | AB15: 0 | AC15: 0 | AD15: 15970584.92 | AE15: 161392.6005 | AF15: 0
B16: SW TAPS STH TOOWOOMBA 110KV BUS | C16: Subtransmission substation | D16: 00164975 | E16: Substation upgrade - voltage | F16: Demand growth | G16: 110kV | H16: 120 | I16: 120 | J16: 60 | K16: 60 | N16: 0 | P16: 2215731.071 | R16: 0 | U16: 2043691.379 | W16: 10563920.36 | X16: 1485383.436 | Y16: 1395490.893 | Z16: 17704217.13 | AA16: 2013, 2014, 2015, 2016, 2017 | AB16: 0 | AC16: 0 | AD16: 10139160.52 | AE16: 0 | AF16: 0
B17: BLBS - 40000001 | C17: Zone substation | D17: 00121891 | E17: Substation upgrade - capacity | F17: Fault level issues | G17: 66/11kV | H17: 20 | I17: 52 | J17: 0 | K17: 20 | N17: 739382.0437 | P17: 166280.439 | R17: 0 | U17: 723057.1839 | W17: 5122655.009 | X17: 0 | Y17: 1111751.814 | Z17: 7863126.49 | AA17: 2011, 2012, 2013, 2014, 2015, 2016, 2017 | AB17: 0 | AC17: 0 | AD17: 3644487.331 | AE17: 0 | AF17: 0
B18: MILE - 60007202 | C18: Subtransmission substation | D18: 00134390 | E18: Substation upgrade - capacity | F18: Fault level issues | G18: 33/11kV | H18: 0 | I18: 0 | J18: 0 | K18: 0 | N18: 0 | P18: 89414.9637 | R18: 0 | U18: 729016.748 | W18: 2554696.273 | X18: 0 | Y18: 1004657.338 | Z18: 4377785.323 | AA18: 2011, 2012, 2013, 2014, 2015, 2016, 2017 | AB18: 0 | AC18: 0 | AD18: 1662203.454 | AE18: 0 | AF18: 0
B19: DURO - 20005132 | C19: Zone substation | D19: 00210861 | E19: Other | F19: Other | G19: 132kV | H19: 0 | I19: 0 | J19: 0 | K19: 0 | N19: 0 | P19: 313086.4801 | R19: 0 | U19: 1201188.28 | W19: 5592978.465 | X19: 0 | Y19: 279228.0984 | Z19: 7386481.324 | AA19: 2015, 2016, 2017 | AB19: 0 | AC19: 0 | AD19: 4036654.035 | AE19: 0 | AF19: 3903.254184
B20: GLSO - 40000021 | C20: Subtransmission substation | D20: NN01466 | E20: Substation upgrade - capacity | F20: Demand growth | G20: 66/11kV | H20: 40 | I20: 40 | J20: 20 | K20: 20 | N20: 1487559.707 | P20: 865327.3472 | R20: 0 | U20: 2225230.611 | W20: 4543733.04 | X20: 4797498.884 | Y20: 1026130.329 | Z20: 14945479.92 | AA20: 2007, 2010, 2011, 2012, 2013, 2014, 2015, 2016, 2017 | AB20: 0 | AC20: 0 | AD20: 6422654.808 | AE20: 0 | AF20: 0
B21: DACE - 82845513 | C21: Zone substation | D21: NS00409 | E21: Substation upgrade - capacity | F21: Demand growth | G21: 33/11kV | H21: 18.3 | I21: 40 | J21: 8.3 | K21: 20 | N21: 1231407.095 | P21: 1490808.835 | R21: 0 | U21: 3392625.017 | W21: 14411288.63 | X21: 1121945.09 | Y21: 750838.3041 | Z21: 22398912.97 | AA21: 2007, 2008, 2009, 2010, 2011, 2012, 2013, 2014, 2015, 2016, 2017 | AB21: 0 | AC21: 0 | AD21: 11381592.69 | AE21: 44418.33095 | AF21: 0
Z22: 0
Z23: 0
Z24: 0
Z25: 0
Z26: 0
Z27: 0
Z28: 0
Z29: 0
Z30: 0
Z31: 0
Z32: 0
Z33: 0
Z34: 0
Z35: 0
Z36: 0
Z37: 0
Z38: 0
Z39: 0
Z40: 0
Z41: 0
Z42: 0
Z43: 0
Z44: 0
Z45: 0
Z46: 0
Z47: =SUM(N47,P47,R47,U47,W47,X47,Y47) -> 0
Z48: 0
Z49: 0
Z50: 0
Z51: 0
Z52: 0
Z53: 0
Z54: 0
Z55: 0
Z56: 0
Z57: 0
Z58: 0
Z59: 0
Z60: 0
Z61: 0
Z62: 0
Z63: 0
Z64: 0
Z65: 0
Z66: 0
D67: Non material projects - [actual] | Z67: 22817348.84 | AA67: 2007-2018 | AE67: 332080 | AF67: 57264
B70: AUG232_1 | C70: AUG232_2 | D70: AUG232_3 | E70: AUG232_4 | F70: AUG232_5 | G70: AUG232_6 | H70: ED_AUG232_00001 | I70: ED_AUG232_00002 | J70: ED_AUG232_00003 | K70: ED_AUG232_00004 | L70: ED_AUG232_00005 | M70: ED_AUG232_00006 | N70: ED_AUG232_00007 | O70: ED_AUG232_00008 | P70: ED_AUG232_00009 | Q70: ED_AUG232_00010 | R70: ED_AUG232_00011 | S70: ED_AUG232_00012 | T70: ED_AUG232_00013 | U70: ED_AUG232_00014 | V70: ED_AUG232_00015 | W70: ED_AUG232_00016 | X70: ED_AUG232_00017 | Y70: ED_AUG232_00018 | Z70: ED_AUG232_00019 | AA70: ED_AUG232_00020 | AB70: ED_AUG232_00021
B71: 2.3.2 - AUGEX ASSET DATA - SUBTRANSMISSION LINES
B72: NOTE: DNSP MUST PROVIDE EXPENDITURE INFORMATION ON A PROJECT CLOSE BASIS.
B73: PROJECT DESCRIPTION AND CHANGES | L73: PLANT AND EQUIPMENT EXPENDITURE AND VOLUME | X73: OTHER EXPENDITURE | Z73: TOTAL DIRECT EXPENDITURE ($0's) | AA73: YEARS INCURRED | AB73: ALL RELATED PARTY CONTRACTS | AD73: ALL NON RELATED PARTYCONTRACTS | AE73: LAND AND EASEMENTS
B74: LINE ID | C74: PROJECT ID | D74: PROJECT TYPE | E74: PROJECT TRIGGER | F74: PROJECT TRIGGER (drop down) | G74: VOLTAGE (KV) | H74: ROUTE LINE LENGTH ADDED | L74: POLES/TOWERS (INCLUDING STRUCTURES, AND CIVIL WORKS) | O74: OVERHEAD LINES | R74: UNDERGROUND CABLES | U74: OTHER PLANT ITEM | V74: INSTALLATION (LABOUR) | X74: CIVIL WORKS | Y74: OTHER DIRECT | AB74: RELATED PARTY MARGINS | AC74: TOTAL | AE74: LAND PURCHASE | AF74: EASEMENTS
H75: KM ADDED | L75: POLES/TOWERS ADDED | M75: POLES/TOWERS UPGRADED | N75: EXPENDITURE ($0's) | O75: CIRCUIT KM ADDED | P75: CIRCUIT KM UPGRADED | Q75: EXPENDITURE ($0's) | R75: CIRCUIT KM ADDED | S75: CIRCUIT KM UPGRADED | T75: EXPENDITURE ($0's) | U75: EXPENDITURE ($0's) | V75: VOLUME | W75: EXPENDITURE ($0's) | X75: EXPENDITURE ($0's) | AB75: EXPENDITURE ($0's) | AE75: EXPENDITURE ($0's)
B76: SW TAPS 110KV SUB TRANS LINE SOTO-CETO | C76: 00164985 | D76: New line on new route - dual circuit | E76: Demand growth | F76: Demand growth | G76: Other | K76: 3 | N76: 0 | Q76: 0 | T76: 2611899.487 | U76: 361233.7825 | W76: 15707399.89 | X76: 0 | Y76: 855249.5048 | Z76: =SUM(N76,Q76,T76,U76,W76,X76,Y76) -> 19535782.66 | AA76: 2013, 2014, 2015, 2016, 2017 | AB76: 0 | AC76: 0 | AD76: 15332011.86 | AE76: 0 | AF76: 0 | AH76: New line on new route - single circuit
B77: BORE - 40017973 | C77: 147032 | D77: New line on new route - dual circuit | E77: Demand growth | F77: Demand growth | G77: 66 | K77: 10.7 | N77: 1232364.518 | Q77: 154732.5104 | T77: 0 | U77: 581801.0292 | W77: 2439126.451 | X77: 629592.9759 | Y77: 786961.2297 | Z77: 5824578.714 | AA77: 2012, 2013, 2014, 2015, 2016, 2017 | AB77: 0 | AC77: 0 | AD77: 1703059.174 | AE77: 0 | AF77: 0 | AH77: New line on new route - dual circuit
Z78: 0 | AH78: New line on new route - other
Z79: 0 | AH79: Line rebuild over existing route - single circuit
Z80: 0 | AH80: Line rebuild over existing route - dual circuit
Z81: 0 | AH81: Reconductor - Single circuit
Z82: 0 | AH82: Reconductor - Dual circuit
Z83: 0 | AH83: Reconductor - Other
Z84: 0 | AH84: Line upgrade - raising/retensoring
Z85: 0 | AH85: Line upgrade - voltage upgrade
Z86: 0 | AH86: Line upgrade - capacity
Z87: 0 | AH87: String spare circuit
Z88: 0 | AH88: Other
Z89: 0
Z90: 0
Z91: 0
Z92: 0
Z93: 0
Z94: 0
Z95: 0
Z96: 0
Z97: 0
Z98: 0
Z99: 0
Z100: 0
Z101: 0
Z102: 0
Z103: 0
Z104: 0
Z105: 0
Z106: 0
Z107: 0
Z108: =SUM(N108,Q108,T108,U108,W108,X108,Y108) -> 0
Z109: 0
Z110: 0
Z111: 0
Z112: 0
Z113: 0
Z114: 0
Z115: 0
Z116: 0
Z117: 0
Z118: 0
Z119: 0
Z120: 0
Z121: 0
Z122: 0
Z123: 0
Z124: 0
Z125: 0
Z126: 0
Z127: 0
Z128: 0
Z129: 0
C130: Non material projects - [actual] | Z130: 9100200 | AA130: 2007-2018 | AE130: 0 | AF130: 1076534

Sheet 2.3(b) Augex
B1: REGULATORY REPORTING STATEMENT
B2: =INDEX(dms_TradingNameFull_List,MATCH(dms_TradingName,dms_TradingName_List)) -> Ergon Energy
B3: =IF(SUM(dms_SingleYear_Model)>0,("CATEGORY ANALYSIS "&CRY&" to "&FRY),("CATEGORY ANALYSIS "&CRY)) -> CATEGORY ANALYSIS 2008-09 to 2017-18
B4: 2.3 AUGEX PROJECT DATA
B6: There are FOUR tables on this worksheet. These tables have been 'grouped' (and sub-grouped) for easy navigation. See the Instructions sheet on how to group or ungroup tables.
B8: NOTE: DNSP MUST PROVIDE EXPENDITURE INFORMATION ON AN AS INCURRED BASIS.
B9: 2.3.3 - AUGEX DATA - HV/LV FEEDERS AND DISTRIBUTION SUBSTATIONS
B10: PROJECT TYPE | C10: Units | D10: VOLUME (0's)
D11: =IF(dms_RPT="financial",dms_CRYf_y1,dms_CRYc_y1) -> 2008-09 | E11: =IF(dms_RPT="financial",dms_CRYf_y2,dms_CRYc_y2) -> 2009-10 | F11: =IF(dms_RPT="financial",dms_CRYf_y3,dms_CRYc_y3) -> 2010-11 | G11: =IF(dms_RPT="financial",dms_CRYf_y4,dms_CRYc_y4) -> 2011-12 | H11: =IF(dms_RPT="financial",dms_CRYf_y5,dms_CRYc_y5) -> 2012-13 | I11: =IF(dms_RPT="financial",dms_CRYf_y6,dms_CRYc_y6) -> 2013-14 | J11: =IF(dms_RPT="financial",dms_CRYf_y7,dms_CRYc_y7) -> 2014-15 | K11: =IF(dms_RPT="financial",dms_CRYf_y8,dms_CRYc_y8) -> 2015-16 | L11: =IF(dms_RPT="financial",dms_CRYf_y9,dms_CRYc_y9) -> 2016-17 | M11: =IF(dms_RPT="financial",dms_CRYf_y10,dms_CRYc_y10) -> 2017-18
B12: DESCRIPTOR METRICS - UNITS ADDED
B13: HV Feeder Augmentations - Overhead Lines | C13: Circuit Line Length in KM
B14: HV Feeder Augmentations - Underground Cables | C14: Circuit Line Length in KM
B15: LV Feeder Augmentations - Overhead Lines | C15: Circuit Line Length in KM
B16: LV Feeder Augmentations - Underground Cables | C16: Circuit Line Length in KM
B17: Distribution Substation Augmentations - Pole Mounted | C17: Number
B18: Distribution Substation Augmentations - Ground Mounted | C18: Number
B19: Distribution Substation Augmentations - Indoor | C19: Number
B20: DESCRIPTOR METRICS - UNITS UPGRADED
B21: HV Feeder Augmentations - Overhead Lines | C21: Circuit Line Length in KM
B22: HV Feeder Augmentations - Underground Cables | C22: Circuit Line Length in KM
B23: LV Feeder Augmentations - Overhead Lines | C23: Circuit Line Length in KM
B24: LV Feeder Augmentations - Underground Cables | C24: Circuit Line Length in KM
B25: Distribution Substation Augmentations - Pole Mounted | C25: Number
B26: Distribution Substation Augmentations - Ground Mounted | C26: Number
B27: Distribution Substation Augmentations - Indoor | C27: Number
B29: COST METRICS
B30: TOTAL DIRECT EXPENDITURE - Project Type | D30: EXPENDITURE ($0's)
D31: =IF(dms_RPT="financial",dms_CRYf_y1,dms_CRYc_y1) -> 2008-09 | E31: =IF(dms_RPT="financial",dms_CRYf_y2,dms_CRYc_y2) -> 2009-10 | F31: =IF(dms_RPT="financial",dms_CRYf_y3,dms_CRYc_y3) -> 2010-11 | G31: =IF(dms_RPT="financial",dms_CRYf_y4,dms_CRYc_y4) -> 2011-12 | H31: =IF(dms_RPT="financial",dms_CRYf_y5,dms_CRYc_y5) -> 2012-13 | I31: =IF(dms_RPT="financial",dms_CRYf_y6,dms_CRYc_y6) -> 2013-14 | J31: =IF(dms_RPT="financial",dms_CRYf_y7,dms_CRYc_y7) -> 2014-15 | K31: =IF(dms_RPT="financial",dms_CRYf_y8,dms_CRYc_y8) -> 2015-16 | L31: =IF(dms_RPT="financial",dms_CRYf_y9,dms_CRYc_y9) -> 2016-17 | M31: =IF(dms_RPT="financial",dms_CRYf_y10,dms_CRYc_y10) -> 2017-18
B32: HV Feeder Augmentations - Overhead Lines | L32: 11576514.35 | M32: 13232767.29
B33: HV Feeder Augmentations - Underground Cables | L33: 2486632.076 | M33: 680799.2798
B34: HV Feeder Non-Material Projects | L34: 6408960.033 | M34: 10178868.69
B35: LV Feeder Augmentations - Overhead Lines | L35: 1303557.883 | M35: 1520389.368
B36: LV Feeder Augmentations - Underground Cables | L36: 42185.47491 | M36: 368272.9942
B37: LV Feeder Non-Material Projects | L37: 337145.4191 | M37: 545150.7286
B38: Distribution Substation Augmentations - Pole Mounted | L38: 4114716.855 | M38: 3499710.439
B39: Distribution Substation Augmentations - Ground Mounted | L39: 199047.8561 | M39: 76958.27515
B40: Distribution Substation Augmentations - Indoor | M40: 0
B44: 2.3.4 - AUGEX - TOTAL EXPENDITURE
B45: AUGMENTATION CAPEX (as incurred) | D45: EXPENDITURE ($0's)
D46: =IF(dms_RPT="financial",dms_CRYf_y1,dms_CRYc_y1) -> 2008-09 | E46: =IF(dms_RPT="financial",dms_CRYf_y2,dms_CRYc_y2) -> 2009-10 | F46: =IF(dms_RPT="financial",dms_CRYf_y3,dms_CRYc_y3) -> 2010-11 | G46: =IF(dms_RPT="financial",dms_CRYf_y4,dms_CRYc_y4) -> 2011-12 | H46: =IF(dms_RPT="financial",dms_CRYf_y5,dms_CRYc_y5) -> 2012-13 | I46: =IF(dms_RPT="financial",dms_CRYf_y6,dms_CRYc_y6) -> 2013-14 | J46: =IF(dms_RPT="financial",dms_CRYf_y7,dms_CRYc_y7) -> 2014-15 | K46: =IF(dms_RPT="financial",dms_CRYf_y8,dms_CRYc_y8) -> 2015-16 | L46: =IF(dms_RPT="financial",dms_CRYf_y9,dms_CRYc_y9) -> 2016-17 | M46: =IF(dms_RPT="financial",dms_CRYf_y10,dms_CRYc_y10) -> 2017-18
B47: Subtransmission Substations, Switching Stations, Zone Substations | L47: 20102472.02 | M47: 10969710.54
B48: Subtransmission Lines | L48: 4897944.587 | M48: 1254617.255
B49: HV Feeders | L49: 20472106.46 | M49: 24092435.26
B50: HV Feeders - Land Purchases and Easements | M50: 25770.07858
B51: Distribution Substations | L51: 4313763.58 | M51: 3576668.714
B52: Distribution Substations - Land Purchases And Easements | M52: 0
B53: LV Feeders | L53: 1682888.777 | M53: 2433813.091
B54: LV Feeders - Land Purchases And Easements | L54: 0 | M54: 1837.890633
B55: Other Assets | L55: 3502476.328 | M55: 2193969.495

Sheet 2.5 Connections
B1: REGULATORY REPORTING STATEMENT
B2: =INDEX(dms_TradingNameFull_List,MATCH(dms_TradingName,dms_TradingName_List)) -> Ergon Energy
B3: =IF(SUM(dms_SingleYear_Model)>0,("CATEGORY ANALYSIS "&CRY&" to "&FRY),("CATEGORY ANALYSIS "&CRY)) -> CATEGORY ANALYSIS 2008-09 to 2017-18
B4: 2.5 CONNECTIONS
B6: There are THREE tables on this worksheet - each has been 'grouped' (and sub-grouped) for easy navigation. See the Instructions sheet on how to group or ungroup tables.
B8: 2.5.1 - DESCRIPTOR METRICS
E9: VOLUMES AND EXPENDITURE
D10: Units | E10: =IF(dms_RPT="financial",dms_CRYf_y1,dms_CRYc_y1) -> 2008-09 | F10: =IF(dms_RPT="financial",dms_CRYf_y2,dms_CRYc_y2) -> 2009-10 | G10: =IF(dms_RPT="financial",dms_CRYf_y3,dms_CRYc_y3) -> 2010-11 | H10: =IF(dms_RPT="financial",dms_CRYf_y4,dms_CRYc_y4) -> 2011-12 | I10: =IF(dms_RPT="financial",dms_CRYf_y5,dms_CRYc_y5) -> 2012-13 | J10: =IF(dms_RPT="financial",dms_CRYf_y6,dms_CRYc_y6) -> 2013-14 | K10: =IF(dms_RPT="financial",dms_CRYf_y7,dms_CRYc_y7) -> 2014-15 | L10: =IF(dms_RPT="financial",dms_CRYf_y8,dms_CRYc_y8) -> 2015-16 | M10: =IF(dms_RPT="financial",dms_CRYf_y9,dms_CRYc_y9) -> 2016-17 | N10: =IF(dms_RPT="financial",dms_CRYf_y10,dms_CRYc_y10) -> 2017-18
B11: RESIDENTIAL | C11: Underground connections | D11: 0's | L11: 259.0224949 | M11: 4593.594164 | N11: 4596.168568
C12: Overhead connections | D12: 0's | L12: 9562.513586 | M12: 3396.496488 | N12: 2603.580178
C13: Distribution substation installed (MVA added) | D13: MVA | L13: 40.50557533 | M13: 12.87201802 | N13: 20.27943532
C14: Distribution substations installed | D14: 0's | L14: 674.7376101 | M14: 313.2191052 | N14: 532.901546
C15: Distribution substation installed (total spend $0's) | D15: total spend $0s | L15: 8489849.204 | M15: 4596303.295 | N15: 5152107.594
C16: Augmentation HV (net circuit KM added) | D16: KM | L16: 82.07708685 | M16: 61.7856865 | N16: 106.5820255
C17: Augmentation HV (total spend $0's) | D17: total spend $0s | L17: 6333254.56 | M17: 3987949.412 | N17: 4687021.845
C18: Augmentation LV (net circuit KM added) | D18: KM | L18: 11.72529812 | M18: 9.439479881 | N18: 13.40148703
C19: Augmentation LV (total spend $0's) | D19: total spend $0s | L19: 7649324.406 | M19: 6135332.399 | N19: 5808037.313
C20: Mean days to connect residential customer with LV single phase connection | D20: 0's | L20: 13.32420241 | M20: 7.723210812 | N20: 6.865076277
C21: Volume of GSL breaches for residential customers | D21: 0's | L21: 59.6924268 | M21: 24.02776697 | N21: 48.05553394
C22: Volume of customer complaints relating to connection services | D22: 0's | L22: 155.6266842 | M22: 87.52972254 | N22: 24.02776697
C23: GSL payments | D23: $0s | L23: 6470.232691 | M23: 6051.564739 | N23: 9875.412225
B24: COMMERCIAL/INDUSTRIAL | C24: Underground connections | D24: 0's | L24: 459.4184991 | M24: 375.8629262 | N24: 514.0225863
C25: Overhead connections | D25: 0's | L25: 2480.433521 | M25: 1082.107648 | N25: 991.1453876
C26: Distribution substation installed (MVA added) | D26: MVA | L26: 142.8354498 | M26: 79.80651173 | N26: 135.1926599
C27: Distribution substations installed (0's) | D27: 0's | L27: 778.1334208 | M27: 314.9353742 | N27: 639.3102283
C28: Distribution substation installed (total spend ($0's) | D28: total spend $0s | L28: 20060444.81 | M28: 11727602.08 | N28: 12044863.86
C29: Augmentation HV (net circuit KM added) | D29: KM | L29: 109.7914279 | M29: 98.68547149 | N29: 129.6237959
C30: Augmentation HV (total spend $0's) | D30: total spend $0s | L30: 16768772.02 | M30: 13926681.67 | N30: 11469012.68
C31: Augmentation LV (net circuit KM added) | D31: KM | L31: 2.131872386 | M31: 3.432538139 | N31: 9.428324133
C32: Augmentation LV (total spend $0's) | D32: total spend $0s | L32: 5266372.882 | M32: 4170886.532 | N32: 5382856.537
B33: SUBDIVISION | C33: Underground connections | D33: 0's | L33: 6112.07813 | M33: 2363.302509 | N33: 2552.092106
C34: Overhead connections | D34: 0's | L34: 343.2314541 | M34: 181.9245214 | N34: 193.0802703
C35: Distribution substation installed (MVA added) | D35: MVA | L35: 44.7693201 | M35: 11.15574895 | N35: 18.32803739
C36: Distribution substations installed | D36: 0's | L36: 222.7806643 | M36: 54.06247568 | N36: 76.37397359
C37: Distribution substation installed (total spend $0's) | D37: total spend $0s | L37: 2845269.37 | M37: 662219.846 | N37: 598385.7924
C38: Augmentation HV (net circuit KM added) | D38: KM | L38: 33.04402198 | M38: 20.59522883 | N38: 13.55595124
C39: Augmentation HV (total spend $0's) | D39: total spend $0s | L39: 6073152.272 | M39: 2773297.736 | N39: 1786636.959
C40: Augmentation LV (net circuit KM added) | D40: KM | L40: 104.4617469 | M40: 54.92061022 | N40: 68.68680442
C41: Augmentation LV (total spend $0's) | D41: total spend $0s | L41: 4660404.145 | M41: 2251747.593 | N41: 2454235.593
C42: Cost per lot ($) | D42: $0s | L42: 1880.311444 | M42: 1917.07255 | N42: 1512.891185
B43: EMBEDDED GENERATION | C43: Underground connections | D43: 0's | L43: 0 | M43: 3185.395393 | N43: 2957.131607
C44: Overhead connections | D44: 0's | L44: 6.395617157 | M44: 6595.622034 | N44: 5368.489649
C45: Distribution substation installed (MVA added) | D45: MVA | L45: 0 | M45: 0.8581345347 | N45: 0.223114979
C46: Distribution substations installed | D46: 0's | L46: 0 | M46: 11.15574895 | N46: 3.432538139
C47: Distribution substation installed (total spend $0's) | D47: total spend $0s | L47: 108193.5895 | M47: 3832496.625 | N47: 4186243.707
C48: Augmentation HV (net circuit KM added) | D48: KM | L48: 0 | M48: 4.290672673 | N48: 0.956940145
C49: Augmentation HV (total spend $0's) | D49: total spend $0s | L49: 1996101.961 | M49: 1688252.693 | N49: 13229983.69
C50: Augmentation LV (net circuit KM added) | D50: KM | L50: 0 | M50: 0.8581345347 | N50: -0.09439479881
C51: Augmentation LV (total spend $0's) | D51: total spend $0s | L51: 0 | M51: 2572743.972 | N51: 2596225.107
B55: 2.5.2 - COST METRICS BY CONNECTION CLASSIFICATION
E56: EXPENDITURE ($0's)
E57: =IF(dms_RPT="financial",dms_CRYf_y1,dms_CRYc_y1) -> 2008-09 | F57: =IF(dms_RPT="financial",dms_CRYf_y2,dms_CRYc_y2) -> 2009-10 | G57: =IF(dms_RPT="financial",dms_CRYf_y3,dms_CRYc_y3) -> 2010-11 | H57: =IF(dms_RPT="financial",dms_CRYf_y4,dms_CRYc_y4) -> 2011-12 | I57: =IF(dms_RPT="financial",dms_CRYf_y5,dms_CRYc_y5) -> 2012-13 | J57: =IF(dms_RPT="financial",dms_CRYf_y6,dms_CRYc_y6) -> 2013-14 | K57: =IF(dms_RPT="financial",dms_CRYf_y7,dms_CRYc_y7) -> 2014-15 | L57: =IF(dms_RPT="financial",dms_CRYf_y8,dms_CRYc_y8) -> 2015-16 | M57: =IF(dms_RPT="financial",dms_CRYf_y9,dms_CRYc_y9) -> 2016-17 | N57: =IF(dms_RPT="financial",dms_CRYf_y10,dms_CRYc_y10) -> 2017-18
B58: RESIDENTIAL | C58: Simple connection LV | L58: 4649226.738 | M58: 4868834.809 | N58: 4150475.802
C59: Complex connection LV | L59: 9826048.189 | M59: 426858.429 | N59: 627206.2407
C60: Complex connection HV | L60: 6388011.702 | M60: 9423891.868 | N60: 10869484.71
B61: COMMERCIAL/INDUSTRIAL | C61: Simple connection LV | L61: 1206222.989 | M61: 3417258.195 | N61: 5244357.056
C62: Complex connection HV (customer connected at LV, minor HV works) | L62: 12152090.45 | M62: 18779770.57 | N62: 18479252.71
C63: Complex connection HV (customer connected at LV, upstream asset works) | L63: 3986144.075 | M63: 6488372.379 | N63: 4183237.662
C64: Complex connection HV (customer connected at HV) | L64: 25765320.39 | M64: 1036181.146 | N64: 250729.7483
C65: Complex connection sub-transmission | L65: 197633.0976 | M65: 103588.8522 | N65: 733282.825
B66: SUBDIVISION | C66: Complex connection LV | L66: 5384641.7 | M66: 1159212.752 | N66: 1469844.582
C67: Complex connection HV (no upstream asset works) | L67: 8114387.037 | M67: 974306.2136 | N67: 2055732.503
C68: Complex connection HV (with upstream asset works) | L68: 409128.6955 | M68: 3553746.209 | N68: 1313681.259
B69: EMBEDDED GENERATION | C69: Simple connection LV | L69: 0 | M69: 2444872.487 | N69: 2595840.663
C70: Complex connection HV (small capacity) | L70: 2104295.55 | M70: 1504841.025 | N70: 171.6269069
C71: Complex connection HV (large capacity) | L71: 0 | M71: 4143779.778 | N71: 17416409.32
B73: 2.5.3 - VOLUMES BY CONNECTION CLASSIFICATION
E74: VOLUMES (0's)
E75: =IF(dms_RPT="financial",dms_CRYf_y1,dms_CRYc_y1) -> 2008-09 | F75: =IF(dms_RPT="financial",dms_CRYf_y2,dms_CRYc_y2) -> 2009-10 | G75: =IF(dms_RPT="financial",dms_CRYf_y3,dms_CRYc_y3) -> 2010-11 | H75: =IF(dms_RPT="financial",dms_CRYf_y4,dms_CRYc_y4) -> 2011-12 | I75: =IF(dms_RPT="financial",dms_CRYf_y5,dms_CRYc_y5) -> 2012-13 | J75: =IF(dms_RPT="financial",dms_CRYf_y6,dms_CRYc_y6) -> 2013-14 | K75: =IF(dms_RPT="financial",dms_CRYf_y7,dms_CRYc_y7) -> 2014-15 | L75: =IF(dms_RPT="financial",dms_CRYf_y8,dms_CRYc_y8) -> 2015-16 | M75: =IF(dms_RPT="financial",dms_CRYf_y9,dms_CRYc_y9) -> 2016-17 | N75: =IF(dms_RPT="financial",dms_CRYf_y10,dms_CRYc_y10) -> 2017-18
B76: RESIDENTIAL | C76: Simple connection LV | L76: 8463.533371 | M76: 8915.159681 | N76: 8560.750118
C77: Complex connection LV | L77: 490.3721339 | M77: 87.52972254 | N77: 134.7271219
C78: Complex connection HV | L78: 240.6332568 | M78: 737.1375653 | N78: 891.6017815
B79: COMMERCIAL/INDUSTRIAL | C79: Simple connection LV | L79: 2195.828557 | M79: 1775.480352 | N79: 2016.616156
C80: Complex connection HV (customer connected at LV, minor HV works) | L80: 363.818726 | M80: 573.2338692 | N80: 638.4520938
C81: Complex connection HV (customer connected at LV, upstream asset works) | L81: 119.3402727 | M81: 63.50195557 | N81: 76.37397359
C82: Complex connection HV (customer connected at HV) | L82: 211.8171912 | M82: 6.006941743 | N82: 6.006941743
C83: Complex connection sub-transmission | L83: 49.95366922 | M83: 1.716269069 | N83: 15.44642162
B84: SUBDIVISION | C84: Complex connection LV | L84: 6126.181169 | M84: 187.9314631 | N84: 194.7965394
C85: Complex connection HV (no upstream asset works) | L85: 303.4759135 | M85: 50.62993755 | N85: 60.92755196
C86: Complex connection HV (with upstream asset works) | L86: 15.30130656 | M86: 146.7410054 | N86: 119.2807003
B87: EMBEDDED GENERATION | C87: Simple connection LV | M87: 11114.55849 | N87: 9055.03561
C88: Complex connection HV (small capacity) | L88: 6.395617157 | M88: 20.59522883 | N88: 0.8581345347
C89: Complex connection HV (large capacity) | M89: 7.723210812 | N89: 22.3114979

Sheet 2.6 Non-network
B1: REGULATORY REPORTING STATEMENT
B2: =INDEX(dms_TradingNameFull_List,MATCH(dms_TradingName,dms_TradingName_List)) -> Ergon Energy
B3: =IF(SUM(dms_SingleYear_Model)>0,("CATEGORY ANALYSIS "&CRY&" to "&FRY),("CATEGORY ANALYSIS "&CRY)) -> CATEGORY ANALYSIS 2008-09 to 2017-18
B4: 2.6 NON-NETWORK EXPENDITURE
B6: There are THREE tables on this worksheet - each has been 'grouped' (and sub-grouped) for easy navigation. See the Instructions sheet on how to group or ungroup tables.
B8: 2.6.1 - NON-NETWORK EXPENDITURE
F9: EXPENDITURE ($0's)
B10: SERVICE SUBCATEGORY | C10: ASSET CATEGORY | F10: =IF(dms_RPT="financial",dms_CRYf_y1,dms_CRYc_y1) -> 2008-09 | G10: =IF(dms_RPT="financial",dms_CRYf_y2,dms_CRYc_y2) -> 2009-10 | H10: =IF(dms_RPT="financial",dms_CRYf_y3,dms_CRYc_y3) -> 2010-11 | I10: =IF(dms_RPT="financial",dms_CRYf_y4,dms_CRYc_y4) -> 2011-12 | J10: =IF(dms_RPT="financial",dms_CRYf_y5,dms_CRYc_y5) -> 2012-13 | K10: =IF(dms_RPT="financial",dms_CRYf_y6,dms_CRYc_y6) -> 2013-14 | L10: =IF(dms_RPT="financial",dms_CRYf_y7,dms_CRYc_y7) -> 2014-15 | M10: =IF(dms_RPT="financial",dms_CRYf_y8,dms_CRYc_y8) -> 2015-16 | N10: =IF(dms_RPT="financial",dms_CRYf_y9,dms_CRYc_y9) -> 2016-17 | O10: =IF(dms_RPT="financial",dms_CRYf_y10,dms_CRYc_y10) -> 2017-18
B11: OPEX
B12: IT & COMMUNICATIONS | C12: Total | F12: 10195697.64 | G12: 10732385.88 | H12: 12271579.32 | I12: 14760059.44 | J12: 15383733.2 | K12: 15476737.2 | L12: 18354277.02 | M12: 20513515.71 | N12: 21985569.39 | O12: 21437862.43
B13: MOTOR VEHICLES | C13: Car | F13: 1250947.543 | G13: 1157485.396 | H13: 1131209.114 | I13: 1066371.114 | J13: 1141709.172 | K13: 964346.4143 | L13: 244644.2914 | M13: 144002.3105 | N13: 120816.5325 | O13: 85446.00022
C14: Light commercial vehicle | F14: 4008418.693 | G14: 3836940.617 | H14: 4252253.477 | I14: 4514131.606 | J14: 4426535.417 | K14: 4151937.699 | L14: 3398472.257 | M14: 3061240.292 | N14: 2802083.339 | O14: 3074551.074
C15: Elevated work platform (LCV) | F15: 0 | G15: 0 | H15: 0 | I15: 0 | J15: 0 | K15: 0 | L15: 0 | M15: 0 | N15: 0 | O15: 0
C16: Elevated work platform (HCV) | F16: 2247794.678 | G16: 2461501.963 | H16: 2889313.629 | I16: 3186044.635 | J16: 3366275.62 | K16: 3340552.465 | L16: 3104319.863 | M16: 2739839.337 | N16: 2351270.377 | O16: 2734146.518
C17: Heavy commercial vehicle | F17: 1399955.695 | G17: 1310090.436 | H17: 1375672.31 | I17: 1575171.476 | J17: 1625442.097 | K17: 1574803.245 | L17: 518872.3251 | M17: 1264448.454 | N17: 1102104.597 | O17: 1225377.782
B18: BUILDINGS AND PROPERTY | C18: Total buildings and property expenditure | F18: 13142754.36 | G18: 13721199.54 | H18: 15481032.75 | I18: 15812001.38 | J18: 15436037.01 | K18: 16007315.37 | L18: 15764134.42 | M18: 11679618.04 | N18: 10475977.53 | O18: 13152457.82
B19: OTHER | C19: Other expenditure | N19: 0 | O19: 0
B20: OTHER - DNSP nominated | C20: Office furniture and equipment | F20: 0 | G20: 0 | H20: 0 | I20: 0 | J20: 0 | K20: 0 | L20: 0 | M20: 0 | N20: 0 | O20: 0
C21: Plant and equipment | F21: 0 | G21: 0 | H21: 0 | I21: 0 | J21: 0 | K21: 0 | L21: 0 | M21: 0 | N21: 0 | O21: 0
C22: Crane borer plant HCV | F22: 1200094.929 | G22: 1161368.99 | H22: 1068071.454 | I22: 1194906.531 | J22: 1202552.406 | K22: 1193927.051 | L22: 1119067.748 | M22: 1017959.204 | N22: 917723.3381 | O22: 1025544.149
C23: Other fleet assets | F23: 578370.3705 | G23: 679164.7714 | H23: 831302.1115 | I23: 845880.022 | J23: 921389.7135 | K23: 932553.2911 | L23: 822361.7826 | M23: 762413.9557 | N23: 654512.1092 | O23: 713524.4612
C24: EWP Hired | F24: 908486.3981 | G24: 599156.3364 | H24: 368231.4984 | I24: 301918.6226 | J24: 82305.98111 | K24: 28085.45327 | L24: 3622.778679 | M24: 0 | N24: 1285.217404 | O24: 72395.78298
C25: Car Hired | F25: 23014.46865 | G25: 3120.605919 | H25: 2730.530179 | I25: 4290.833138 | J25: 4680.908878 | K25: 1170.22722 | L25: 31.11226107 | M25: 0 | N25: 97.92495491 | O25: 30.71093233
C26: LCV Hired | F26: 50709.84618 | G26: 22234.31717 | H26: 37057.19529 | I26: 72944.16335 | J26: 54610.60358 | K26: 0 | L26: 8648.590846 | M26: 1690.588257 | N26: 0 | O26: 0
C27: Other Hire | F27: 572241.1104 | G27: 416600.8902 | H27: 476672.5541 | I27: 550396.8689 | J27: 307379.683 | K27: 114292.1918 | L27: 1020.594903 | M27: 1935.945897 | N27: 161.5571241 | O27: 14752.96212
C28: Mobile Radios | F28: 0 | G28: 0 | H28: 0 | I28: 0 | J28: 0 | K28: 0 | L28: 0 | M28: 0 | N28: 0 | O28: 0
B31: CAPEX
B32: IT & COMMUNICATIONS | C32: Total | F32: 24585901.25 | G32: 32983250.11 | H32: 23415699.84 | I32: 38202673.32 | J32: 37678583.91 | K32: 39973235.64 | L32: 69922433.74 | M32: 67700199.52 | N32: 52752712 | O32: 54366282.92
B33: MOTOR VEHICLES | C33: Car | F33: 4443765.278 | G33: 1771497.319 | H33: 1811622.597 | I33: 798994.5051 | J33: 1003402.315 | K33: 496141.3709 | L33: 493079.6705 | M33: 314881.335 | N33: 0 | O33: 286504.3088
C34: Light commercial vehicle | F34: 18428839.44 | G34: 16290443.11 | H34: 17999129.1 | I34: 14337586.99 | J34: 7577378.874 | K34: 8668722.979 | L34: 14671072.68 | M34: 13052923.79 | N34: 13924617.25 | O34: 2227078.721
C35: Elevated work platform (LCV) | F35: 0 | G35: 0 | H35: 0 | I35: 0 | J35: 0 | K35: 0 | L35: 0 | M35: 0 | N35: 0 | O35: 0
C36: Elevated work platform (HCV) | F36: 7610091.926 | G36: 8511556.381 | H36: 11203635.13 | I36: 13810276.99 | J36: 12178615.68 | K36: 11188093.41 | L36: 12174744.55 | M36: 12453990.25 | N36: 8031149.599 | O36: 8110981.134
C37: Heavy commercial vehicle | F37: 6647780.305 | G37: 3756370.206 | H37: 3549021.702 | I37: 4754635.567 | J37: 5346130.954 | K37: 7181984.024 | L37: 2420213.412 | M37: 5948821.221 | N37: 4174294.388 | O37: 3117415.388
B38: BUILDINGS AND PROPERTY | C38: Total buildings and property expenditure | F38: 34113772.59 | G38: 55842204.05 | H38: 76533566 | I38: 52417305.67 | J38: 36182503.15 | K38: 26394568.16 | L38: 83417897.04 | M38: 46055353.45 | N38: 30764585.54 | O38: 27539313.06
B39: OTHER | C39: Other expenditure | F39: 0 | G39: 0 | H39: 0 | I39: 0 | J39: 0 | K39: 0 | L39: 0 | M39: 0 | N39: 0 | O39: 0
B40: OTHER - DNSP nominated | C40: Office furniture and equipment | F40: 2709631.402 | G40: 2101181.237 | H40: 5077178.6 | I40: 5539600.726 | J40: 15115254.21 | K40: 3569574.302 | L40: 1494247.886 | M40: 1324045.7 | N40: 1072511.85 | O40: 716141.8379
C41: Plant and equipment | F41: 12729513.33 | G41: 11082195.42 | H41: 10206524.66 | I41: 16389650.28 | J41: 12687128.44 | K41: 7494406.525 | L41: 14805528.31 | M41: 7382648.795 | N41: 5900966.379 | O41: 3639994.268
C42: Crane borer plant HCV | F42: 2299151.762 | G42: 941742.8173 | H42: 3262630.031 | I42: 3577813.83 | J42: 3010066.208 | K42: 2643936.318 | L42: 3721080.871 | M42: 3134562.963 | N42: 4654030.608 | O42: 1636631.96
C43: Other fleet assets | F43: 3198628.595 | G43: 4615119.301 | H43: 3459229.325 | I43: 2893713.766 | J43: 3372250.483 | K43: 3254859.786 | L43: 3021984.474 | M43: 2245214.361 | N43: 691827.4622 | O43: 1337044.994
C44: EWP Hired | F44: 0 | G44: 0 | H44: 0 | I44: 0 | J44: 0 | K44: 0 | L44: 0 | M44: 0 | N44: 0 | O44: 0
C45: Car Hired | F45: 0 | G45: 0 | H45: 0 | I45: 0 | J45: 0 | K45: 0 | L45: 0 | M45: 0 | N45: 0 | O45: 0
C46: LCV Hired | F46: 0 | G46: 0 | H46: 0 | I46: 0 | J46: 0 | K46: 0 | L46: 0 | M46: 0 | N46: 0 | O46: 0
C47: Other Hire | N47: 953697.0777 | O47: 1014821.749
C48: Mobile Radios | F48: 0 | G48: 0 | H48: 0 | I48: 2753597.51 | J48: 2740140.937 | K48: 1683923.425 | L48: 0
B54: 2.6.2 - ANNUAL DESCRIPTOR METRICS
B55: IT & COMMUNICATIONS
F56: VOLUMES (0's)
F57: =IF(dms_RPT="financial",dms_CRYf_y1,dms_CRYc_y1) -> 2008-09 | G57: =IF(dms_RPT="financial",dms_CRYf_y2,dms_CRYc_y2) -> 2009-10 | H57: =IF(dms_RPT="financial",dms_CRYf_y3,dms_CRYc_y3) -> 2010-11 | I57: =IF(dms_RPT="financial",dms_CRYf_y4,dms_CRYc_y4) -> 2011-12 | J57: =IF(dms_RPT="financial",dms_CRYf_y5,dms_CRYc_y5) -> 2012-13 | K57: =IF(dms_RPT="financial",dms_CRYf_y6,dms_CRYc_y6) -> 2013-14 | L57: =IF(dms_RPT="financial",dms_CRYf_y7,dms_CRYc_y7) -> 2014-15 | M57: =IF(dms_RPT="financial",dms_CRYf_y8,dms_CRYc_y8) -> 2015-16 | N57: =IF(dms_RPT="financial",dms_CRYf_y9,dms_CRYc_y9) -> 2016-17 | O57: =IF(dms_RPT="financial",dms_CRYf_y10,dms_CRYc_y10) -> 2017-18
B58: Employee numbers
B59: User numbers
B60: Number of devices
B62: MOTOR VEHICLES
F63: VOLUMES / %
B64: ASSET CATEGORY | C64: DESCRIPTOR METRIC | E64: Units | F64: =IF(dms_RPT="financial",dms_CRYf_y1,dms_CRYc_y1) -> 2008-09 | G64: =IF(dms_RPT="financial",dms_CRYf_y2,dms_CRYc_y2) -> 2009-10 | H64: =IF(dms_RPT="financial",dms_CRYf_y3,dms_CRYc_y3) -> 2010-11 | I64: =IF(dms_RPT="financial",dms_CRYf_y4,dms_CRYc_y4) -> 2011-12 | J64: =IF(dms_RPT="financial",dms_CRYf_y5,dms_CRYc_y5) -> 2012-13 | K64: =IF(dms_RPT="financial",dms_CRYf_y6,dms_CRYc_y6) -> 2013-14 | L64: =IF(dms_RPT="financial",dms_CRYf_y7,dms_CRYc_y7) -> 2014-15 | M64: =IF(dms_RPT="financial",dms_CRYf_y8,dms_CRYc_y8) -> 2015-16 | N64: =IF(dms_RPT="financial",dms_CRYf_y9,dms_CRYc_y9) -> 2016-17 | O64: =IF(dms_RPT="financial",dms_CRYf_y10,dms_CRYc_y10) -> 2017-18
B65: CAR | C65: Average kilometres travelled | E65: 0's
C66: Number purchased | E66: 0's
C67: Number leased | E67: 0's
C68: Number in fleet | E68: 0's
C69: Proportion of total fleet expenditure allocated as regulatory expenditure | E69: (per cent)
B70: LIGHT COMMERCIAL VEHICLE | C70: Average kilometres travelled | E70: 0's
C71: Number purchased | E71: 0's
C72: Number leased | E72: 0's
C73: Number in fleet | E73: 0's
C74: Proportion of total fleet expenditure allocated as regulatory expenditure | E74: (per cent)
B75: ELEVATED WORK PLATFORM (LCV) | C75: Average kilometres travelled | E75: 0's
C76: Number purchased | E76: 0's
C77: Number leased | E77: 0's
C78: Number in fleet | E78: 0's
C79: Proportion of total fleet expenditure allocated as regulatory expenditure | E79: (per cent)
B80: ELEVATED WORK PLATFORM (HCV) | C80: Average kilometres travelled | E80: 0's
C81: Number purchased | E81: 0's
C82: Number leased | E82: 0's
C83: Number in fleet | E83: 0's
C84: Proportion of total fleet expenditure allocated as regulatory expenditure | E84: (per cent)
B85: HEAVY COMMERCIAL VEHICLE | C85: Average kilometres travelled | E85: 0's
C86: Number purchased | E86: 0's
C87: Number leased | E87: 0's
C88: Number in fleet | E88: 0's
C89: Proportion of total fleet expenditure allocated as regulatory expenditure | E89: (per cent)

Sheet 2.7 Vegetation management
B1: REGULATORY REPORTING STATEMENT
B2: =INDEX(dms_TradingNameFull_List,MATCH(dms_TradingName,dms_TradingName_List)) -> Ergon Energy
B3: =IF(SUM(dms_SingleYear_Model)>0,("CATEGORY ANALYSIS "&CRY&" to "&FRY),("CATEGORY ANALYSIS "&CRY)) -> CATEGORY ANALYSIS 2008-09 to 2017-18
B4: 2.7 VEGETATION MANAGEMENT
B6: There are THREE tables on this worksheet. Each has been 'grouped' (and sub-grouped) for easy navigation. See the Instructions sheet on how to group and ungroup data.
B8: 2.7.1 - DESCRIPTOR METRICS BY ZONE
B9: URBAN AND CBD
B10: ZONES | C10: ASSET | D10: Units | E10: VOLUMES (0's)
E11: =IF(dms_RPT="financial",dms_CRYf_y1,dms_CRYc_y1) -> 2008-09 | F11: =IF(dms_RPT="financial",dms_CRYf_y2,dms_CRYc_y2) -> 2009-10 | G11: =IF(dms_RPT="financial",dms_CRYf_y3,dms_CRYc_y3) -> 2010-11 | H11: =IF(dms_RPT="financial",dms_CRYf_y4,dms_CRYc_y4) -> 2011-12 | I11: =IF(dms_RPT="financial",dms_CRYf_y5,dms_CRYc_y5) -> 2012-13 | J11: =IF(dms_RPT="financial",dms_CRYf_y6,dms_CRYc_y6) -> 2013-14 | K11: =IF(dms_RPT="financial",dms_CRYf_y7,dms_CRYc_y7) -> 2014-15 | L11: =IF(dms_RPT="financial",dms_CRYf_y8,dms_CRYc_y8) -> 2015-16 | M11: =IF(dms_RPT="financial",dms_CRYf_y9,dms_CRYc_y9) -> 2016-17 | N11: =IF(dms_RPT="financial",dms_CRYf_y10,dms_CRYc_y10) -> 2017-18
B12: ZONE 1 | C12: Route line length within zone | D12: KM
C13: Number of maintenance spans | D13: 0's
C14: Total length of maintenance spans | D14: KM
C15: Length of vegetation corridors | D15: KM
C16: Average number of trees per maintenance span | D16: 0's
C17: Average frequency of cutting cycle | D17: years
B18: ZONE 2 | C18: Route line length within zone | D18: KM
C19: Number of maintenance spans | D19: 0's
C20: Total length of maintenance spans | D20: KM
C21: Length of vegetation corridors | D21: KM
C22: Average number of trees per maintenance span | D22: 0's
C23: Average frequency of cutting cycle | D23: years
B24: ` | C24: Route line length within zone | D24: KM
C25: Number of maintenance spans | D25: 0's
C26: Total length of maintenance spans | D26: KM
C27: Length of vegetation corridors | D27: KM
C28: Average number of trees per maintenance span | D28: 0's
C29: Average frequency of cutting cycle | D29: years
B30: ZONE 4 | C30: Route line length within zone | D30: KM
C31: Number of maintenance spans | D31: 0's
C32: Total length of maintenance spans | D32: KM
C33: Length of vegetation corridors | D33: KM
C34: Average number of trees per maintenance span | D34: 0's
C35: Average frequency of cutting cycle | D35: years
B36: ZONE 5 | C36: Route line length within zone | D36: KM
C37: Number of maintenance spans | D37: 0's
C38: Total length of maintenance spans | D38: KM
C39: Length of vegetation corridors | D39: KM
C40: Average number of trees per maintenance span | D40: 0's
C41: Average frequency of cutting cycle | D41: years
B42: ZONE 6 | C42: Route line length within zone | D42: KM
C43: Number of maintenance spans | D43: 0's
C44: Total length of maintenance spans | D44: KM
C45: Length of vegetation corridors | D45: KM
C46: Average number of trees per maintenance span | D46: 0's
C47: Average frequency of cutting cycle | D47: years
B48: ZONE 7 | C48: Route line length within zone | D48: KM
C49: Number of maintenance spans | D49: 0's
C50: Total length of maintenance spans | D50: KM
C51: Length of vegetation corridors | D51: KM
C52: Average number of trees per maintenance span | D52: 0's
C53: Average frequency of cutting cycle | D53: years
B54: ZONE 8 | C54: Route line length within zone | D54: KM
C55: Number of maintenance spans | D55: 0's
C56: Total length of maintenance spans | D56: KM
C57: Length of vegetation corridors | D57: KM
C58: Average number of trees per maintenance span | D58: 0's
C59: Average frequency of cutting cycle | D59: years
B60: ZONE 9 | C60: Route line length within zone | D60: KM
C61: Number of maintenance spans | D61: 0's
C62: Total length of maintenance spans | D62: KM
C63: Length of vegetation corridors | D63: KM
C64: Average number of trees per maintenance span | D64: 0's
C65: Average frequency of cutting cycle | D65: years
B66: ZONE 10 | C66: Route line length within zone | D66: KM
C67: Number of maintenance spans | D67: 0's
C68: Total length of maintenance spans | D68: KM
C69: Length of vegetation corridors | D69: KM
C70: Average number of trees per maintenance span | D70: 0's
C71: Average frequency of cutting cycle | D71: years
B72: ZONE 11 | C72: Route line length within zone | D72: KM
C73: Number of maintenance spans | D73: 0's
C74: Total length of maintenance spans | D74: KM
C75: Length of vegetation corridors | D75: KM
C76: Average number of trees per maintenance span | D76: 0's
C77: Average frequency of cutting cycle | D77: years
B78: ZONE 12 | C78: Route line length within zone | D78: KM
C79: Number of maintenance spans | D79: 0's
C80: Total length of maintenance spans | D80: KM
C81: Length of vegetation corridors | D81: KM
C82: Average number of trees per maintenance span | D82: 0's
C83: Average frequency of cutting cycle | D83: years
B84: ZONE 13 | C84: Route line length within zone | D84: KM
C85: Number of maintenance spans | D85: 0's
C86: Total length of maintenance spans | D86: KM
C87: Length of vegetation corridors | D87: KM
C88: Average number of trees per maintenance span | D88: 0's
C89: Average frequency of cutting cycle | D89: years
B90: ZONE 14 | C90: Route line length within zone | D90: KM
C91: Number of maintenance spans | D91: 0's
C92: Total length of maintenance spans | D92: KM
C93: Length of vegetation corridors | D93: KM
C94: Average number of trees per maintenance span | D94: 0's
C95: Average frequency of cutting cycle | D95: years
B96: ZONE 15 | C96: Route line length within zone | D96: KM
C97: Number of maintenance spans | D97: 0's
C98: Total length of maintenance spans | D98: KM
C99: Length of vegetation corridors | D99: KM
C100: Average number of trees per maintenance span | D100: 0's
C101: Average frequency of cutting cycle | D101: years
B102: ZONE 16 | C102: Route line length within zone | D102: KM
C103: Number of maintenance spans | D103: 0's
C104: Total length of maintenance spans | D104: KM
C105: Length of vegetation corridors | D105: KM
C106: Average number of trees per maintenance span | D106: 0's
C107: Average frequency of cutting cycle | D107: years
B108: ZONE 17 | C108: Route line length within zone | D108: KM
C109: Number of maintenance spans | D109: 0's
C110: Total length of maintenance spans | D110: KM
C111: Length of vegetation corridors | D111: KM
C112: Average number of trees per maintenance span | D112: 0's
C113: Average frequency of cutting cycle | D113: years
B114: ZONE 18 | C114: Route line length within zone | D114: KM
C115: Number of maintenance spans | D115: 0's
C116: Total length of maintenance spans | D116: KM
C117: Length of vegetation corridors | D117: KM
C118: Average number of trees per maintenance span | D118: 0's
C119: Average frequency of cutting cycle | D119: years
B121: RURAL
B122: ZONES | C122: ASSET | D122: Units | E122: VOLUMES (0's)
E123: =IF(dms_RPT="financial",dms_CRYf_y1,dms_CRYc_y1) -> 2008-09 | F123: =IF(dms_RPT="financial",dms_CRYf_y2,dms_CRYc_y2) -> 2009-10 | G123: =IF(dms_RPT="financial",dms_CRYf_y3,dms_CRYc_y3) -> 2010-11 | H123: =IF(dms_RPT="financial",dms_CRYf_y4,dms_CRYc_y4) -> 2011-12 | I123: =IF(dms_RPT="financial",dms_CRYf_y5,dms_CRYc_y5) -> 2012-13 | J123: =IF(dms_RPT="financial",dms_CRYf_y6,dms_CRYc_y6) -> 2013-14 | K123: =IF(dms_RPT="financial",dms_CRYf_y7,dms_CRYc_y7) -> 2014-15 | L123: =IF(dms_RPT="financial",dms_CRYf_y8,dms_CRYc_y8) -> 2015-16 | M123: =IF(dms_RPT="financial",dms_CRYf_y9,dms_CRYc_y9) -> 2016-17 | N123: =IF(dms_RPT="financial",dms_CRYf_y10,dms_CRYc_y10) -> 2017-18
B124: =IF(ISBLANK(B12),"",B12) -> ZONE 1 | C124: Route line length within zone | D124: KM
C125: Number of maintenance spans | D125: 0's
C126: Total length of maintenance spans | D126: KM
C127: Length of vegetation corridors | D127: KM
C128: Average number of trees per maintenance span | D128: 0's
C129: Average frequency of cutting cycle | D129: years
B130: =IF(ISBLANK(B18),"",B18) -> ZONE 2 | C130: Route line length within zone | D130: KM
C131: Number of maintenance spans | D131: 0's
C132: Total length of maintenance spans | D132: KM
C133: Length of vegetation corridors | D133: KM
C134: Average number of trees per maintenance span | D134: 0's
C135: Average frequency of cutting cycle | D135: years
B136: =IF(ISBLANK(B24),"",B24) -> ` | C136: Route line length within zone | D136: KM
C137: Number of maintenance spans | D137: 0's
C138: Total length of maintenance spans | D138: KM
C139: Length of vegetation corridors | D139: KM
C140: Average number of trees per maintenance span | D140: 0's
C141: Average frequency of cutting cycle | D141: years
B142: =IF(ISBLANK(B30),"",B30) -> ZONE 4 | C142: Route line length within zone | D142: KM
C143: Number of maintenance spans | D143: 0's
C144: Total length of maintenance spans | D144: KM
C145: Length of vegetation corridors | D145: KM
C146: Average number of trees per maintenance span | D146: 0's
C147: Average frequency of cutting cycle | D147: years
B148: =IF(ISBLANK(B36),"",B36) -> ZONE 5 | C148: Route line length within zone | D148: KM
C149: Number of maintenance spans | D149: 0's
C150: Total length of maintenance spans | D150: KM
C151: Length of vegetation corridors | D151: KM
C152: Average number of trees per maintenance span | D152: 0's
C153: Average frequency of cutting cycle | D153: years
B154: =IF(ISBLANK(B42),"",B42) -> ZONE 6 | C154: Route line length within zone | D154: KM
C155: Number of maintenance spans | D155: 0's
C156: Total length of maintenance spans | D156: KM
C157: Length of vegetation corridors | D157: KM
C158: Average number of trees per maintenance span | D158: 0's
C159: Average frequency of cutting cycle | D159: years
B160: =IF(ISBLANK(B48),"",B48) -> ZONE 7 | C160: Route line length within zone | D160: KM
C161: Number of maintenance spans | D161: 0's
C162: Total length of maintenance spans | D162: KM
C163: Length of vegetation corridors | D163: KM
C164: Average number of trees per maintenance span | D164: 0's
C165: Average frequency of cutting cycle | D165: years
B166: =IF(ISBLANK(B54),"",B54) -> ZONE 8 | C166: Route line length within zone | D166: KM
C167: Number of maintenance spans | D167: 0's
C168: Total length of maintenance spans | D168: KM
C169: Length of vegetation corridors | D169: KM
C170: Average number of trees per maintenance span | D170: 0's
C171: Average frequency of cutting cycle | D171: years
B172: =IF(ISBLANK(B60),"",B60) -> ZONE 9 | C172: Route line length within zone | D172: KM
C173: Number of maintenance spans | D173: 0's
C174: Total length of maintenance spans | D174: KM
C175: Length of vegetation corridors | D175: KM
C176: Average number of trees per maintenance span | D176: 0's
C177: Average frequency of cutting cycle | D177: years
B178: =IF(ISBLANK(B66),"",B66) -> ZONE 10 | C178: Route line length within zone | D178: KM
C179: Number of maintenance spans | D179: 0's
C180: Total length of maintenance spans | D180: KM
C181: Length of vegetation corridors | D181: KM
C182: Average number of trees per maintenance span | D182: 0's
C183: Average frequency of cutting cycle | D183: years
B184: =IF(ISBLANK(B72),"",B72) -> ZONE 11 | C184: Route line length within zone | D184: KM
C185: Number of maintenance spans | D185: 0's
C186: Total length of maintenance spans | D186: KM
C187: Length of vegetation corridors | D187: KM
C188: Average number of trees per maintenance span | D188: 0's
C189: Average frequency of cutting cycle | D189: years
B190: =IF(ISBLANK(B78),"",B78) -> ZONE 12 | C190: Route line length within zone | D190: KM
C191: Number of maintenance spans | D191: 0's
C192: Total length of maintenance spans | D192: KM
C193: Length of vegetation corridors | D193: KM
C194: Average number of trees per maintenance span | D194: 0's
C195: Average frequency of cutting cycle | D195: years
B196: =IF(ISBLANK(B84),"",B84) -> ZONE 13 | C196: Route line length within zone | D196: KM
C197: Number of maintenance spans | D197: 0's
C198: Total length of maintenance spans | D198: KM
C199: Length of vegetation corridors | D199: KM
C200: Average number of trees per maintenance span | D200: 0's
C201: Average frequency of cutting cycle | D201: years
B202: =IF(ISBLANK(B90),"",B90) -> ZONE 14 | C202: Route line length within zone | D202: KM
C203: Number of maintenance spans | D203: 0's
... 200 more rows

Sheet 2.8 Maintenance
B1: REGULATORY REPORTING STATEMENT
B2: =INDEX(dms_TradingNameFull_List,MATCH(dms_TradingName,dms_TradingName_List)) -> Ergon Energy
B3: =IF(SUM(dms_SingleYear_Model)>0,("CATEGORY ANALYSIS "&CRY&" to "&FRY),("CATEGORY ANALYSIS "&CRY)) -> CATEGORY ANALYSIS 2008-09 to 2017-18
B4: 2.8 MAINTENANCE
B6: There are TWO tables on this worksheet. It has been 'grouped' (and sub-grouped) for easy navigation. See the Instructions sheet on how to group or ungroup data.
B8: 2.8.1 - DESCRIPTOR METRICS FOR ROUTINE AND NON-ROUTINE MAINTENANCE
B9: ASSET QUANTITY AT YEAR END
F10: VOLUME | Q10: AVERAGE AGE OF ASSET GROUP | R10: INSPECTION CYCLE (YEARS) | S10: MAINTENANCE CYCLE (YEARS)
F11: (0's)
B12: MAINTENANCE ACTIVITY | C12: MAINTENANCE ASSET CATEGORY | D12: ASSET QUANTITY | E12: Units | F12: =IF(dms_RPT="financial",dms_CRYf_y1,dms_CRYc_y1) -> 2008-09 | G12: =IF(dms_RPT="financial",dms_CRYf_y2,dms_CRYc_y2) -> 2009-10 | H12: =IF(dms_RPT="financial",dms_CRYf_y3,dms_CRYc_y3) -> 2010-11 | I12: =IF(dms_RPT="financial",dms_CRYf_y4,dms_CRYc_y4) -> 2011-12 | J12: =IF(dms_RPT="financial",dms_CRYf_y5,dms_CRYc_y5) -> 2012-13 | K12: =IF(dms_RPT="financial",dms_CRYf_y6,dms_CRYc_y6) -> 2013-14 | L12: =IF(dms_RPT="financial",dms_CRYf_y7,dms_CRYc_y7) -> 2014-15 | M12: =IF(dms_RPT="financial",dms_CRYf_y8,dms_CRYc_y8) -> 2015-16 | N12: =IF(dms_RPT="financial",dms_CRYf_y9,dms_CRYc_y9) -> 2016-17 | O12: =IF(dms_RPT="financial",dms_CRYf_y10,dms_CRYc_y10) -> 2017-18 | Q12: =dms_CRCP_FinalYear_Result -> 2017-18
B13: Pole top, overhead line & service line maintenance | C13: Pole tops and overhead lines | D13: Number of poles | E13: Number
C14: Service lines | D14: Number of customers | E14: Number
B15: Pole inspection and treatment | C15: All poles | D15: Number of poles | E15: Number
B16: Overhead asset inspection | C16: All overhead assets | D16: Line patrolled (route KM) | E16: KM
B17: Network underground cable maintenance: by voltage | C17: LV - 11 to 22 KV | D17: Length (KM) | E17: KM
C18: 33 KV and above | D18: Length (KM) | E18: KM
B19: Network underground cable maintenance: by location | C19: Cbd | D19: Length (KM) | E19: KM
C20: Non-CBD | D20: Length (KM) | E20: KM
B21: Distribution substation equipment & property maintenance | C21: Distribution substation transformers | D21: Number of installed transformers | E21: Number
C22: Distribution substation switchgear (within-substations and stand-alone switchgear) | D22: Number of switches | E22: Number
C23: Distribution substation - other equipment | D23: Earth mat | E23: Number
C24: Distribution substation - property | D24: Number of distribution substation properties maintained | E24: Number
B25: Zone substation equipment maintenance | C25: Transformers - zone substation | D25: Number | E25: Number
C26: Transformers - distribution | D26: Number of distribution transformers within zone substation | E26: Number
C27: Transformers - HV | D27: Number of HV transformers | E27: Number
C28: Zone substation - other equipment | D28: <DNSP to nominate> | E28: =D28 -> <DNSP to nominate>
B29: Zone substation property maintenance | C29: All zone substation properties | D29: Number of zone substation properties maintained | E29: Number
B30: Public lighting maintenance | C30: Minor roads | D30: Number of public lights maintained | E30: Number
C31: Major roads | D31: Number of public lights maintained | E31: Number
B32: SCADA & network control maintenance | C32: SCADA & network control | D32: Number of systems | E32: Number
B33: Protection systems maintenance | C33: Protection systems | D33: Number of systems | E33: Number
B34: Subtransmission asset maintenance | C34: Subtransmission asset maintenance - for DNSPs with dual function assets | D34: <DNSP to nominate> | E34: =D34 -> <DNSP to nominate>
B35: Various assets | C35: includes rates, electricity, communications equip, metering | D35: Various | E35: Number
B36: Ground clearance - access tracks | C36: Access tracks | D36: Number | E36: Number
B37: Other | C37: < DNSP to nominate > | D37: < DNSP to nominate >
C38: < DNSP to nominate > | D38: < DNSP to nominate >
B48: ASSET QUANTITY INSPECTED / MAINTAINED
F49: VOLUME
F50: (0's)
B51: MAINTENANCE ACTIVITY | C51: MAINTENANCE ASSET CATEGORY | D51: ASSET QUANTITY | E51: Units | F51: =IF(dms_RPT="financial",dms_CRYf_y1,dms_CRYc_y1) -> 2008-09 | G51: =IF(dms_RPT="financial",dms_CRYf_y2,dms_CRYc_y2) -> 2009-10 | H51: =IF(dms_RPT="financial",dms_CRYf_y3,dms_CRYc_y3) -> 2010-11 | I51: =IF(dms_RPT="financial",dms_CRYf_y4,dms_CRYc_y4) -> 2011-12 | J51: =IF(dms_RPT="financial",dms_CRYf_y5,dms_CRYc_y5) -> 2012-13 | K51: =IF(dms_RPT="financial",dms_CRYf_y6,dms_CRYc_y6) -> 2013-14 | L51: =IF(dms_RPT="financial",dms_CRYf_y7,dms_CRYc_y7) -> 2014-15 | M51: =IF(dms_RPT="financial",dms_CRYf_y8,dms_CRYc_y8) -> 2015-16 | N51: =IF(dms_RPT="financial",dms_CRYf_y9,dms_CRYc_y9) -> 2016-17 | O51: =IF(dms_RPT="financial",dms_CRYf_y10,dms_CRYc_y10) -> 2017-18
B52: Pole top, overhead line & service line maintenance | C52: Pole tops and overhead lines | D52: Number of poles | E52: Number
C53: Service lines | D53: Number of customers | E53: Number
B54: Pole inspection and treatment | C54: All poles | D54: Number of poles | E54: Number
B55: Overhead asset inspection | C55: All overhead assets | D55: Line patrolled (route KM) | E55: KM
B56: Network underground cable maintenance: by voltage | C56: LV - 11 to 22 KV | D56: Length (KM) | E56: KM
C57: 33 KV and above | D57: Length (KM) | E57: KM
B58: Network underground cable maintenance: by location | C58: Cbd | D58: Length (KM) | E58: KM
C59: Non-CBD | D59: Length (KM) | E59: KM
B60: Distribution substation equipment & property maintenance | C60: Distribution substation transformers | D60: Number of installed transformers | E60: Number
C61: Distribution substation switchgear (within-substations and stand-alone switchgear) | D61: Number of switches | E61: Number
C62: Distribution substation - other equipment | D62: Earth mat | E62: Number
C63: Distribution substation - property | D63: Number of distribution substation properties maintained | E63: Number
B64: Zone substation equipment maintenance | C64: Transformers - zone substation | D64: Number | E64: Number
C65: Transformers - distribution | D65: Number of distribution transformers within zone substation | E65: Number
C66: Transformers - HV | D66: Number of HV transformers | E66: Number
C67: Zone substation - other equipment | D67: =IF(ISBLANK(D28),"",D28) -> <DNSP to nominate> | E67: =IF(ISBLANK(E28),"",E28) -> <DNSP to nominate>
B68: Zone substation property maintenance | C68: All zone substation properties | D68: Number of zone substation properties maintained | E68: Number
B69: Public lighting maintenance | C69: Minor roads | D69: Number of public lights maintained | E69: Number
C70: Major roads | D70: Number of public lights maintained | E70: Number
B71: SCADA & network control maintenance | C71: SCADA & network control | D71: Number of systems | E71: Number
B72: Protection systems maintenance | C72: Protection systems | D72: Number of systems | E72: Number
B73: Subtransmission asset maintenance | C73: Subtransmission asset maintenance - for DNSPs with dual function assets | D73: =IF(ISBLANK(D34),"",D34) -> <DNSP to nominate> | E73: =IF(ISBLANK(E34),"",E34) -> <DNSP to nominate>
B74: Various assets | C74: includes rates, electricity, communications equip, metering | D74: Various | E74: Number
B75: Ground clearance - access tracks | C75: Access tracks | D75: Number | E75: Number
B76: Other | C76: =IF(ISBLANK(C37),"",C37) -> < DNSP to nominate > | D76: < DNSP to nominate >
C77: < DNSP to nominate > | D77: < DNSP to nominate >
B89: 2.8.2 - COST METRICS FOR ROUTINE AND NON-ROUTINE MAINTENANCE
B90: ROUTINE MAINTENANCE
F91: EXPENDITURE
F92: ($0'S)
B93: MAINTENANCE ACTIVITY | C93: MAINTENANCE ASSET CATEGORY | D93: ASSET QUANTITY | E93: Units | F93: =IF(dms_RPT="financial",dms_CRYf_y1,dms_CRYc_y1) -> 2008-09 | G93: =IF(dms_RPT="financial",dms_CRYf_y2,dms_CRYc_y2) -> 2009-10 | H93: =IF(dms_RPT="financial",dms_CRYf_y3,dms_CRYc_y3) -> 2010-11 | I93: =IF(dms_RPT="financial",dms_CRYf_y4,dms_CRYc_y4) -> 2011-12 | J93: =IF(dms_RPT="financial",dms_CRYf_y5,dms_CRYc_y5) -> 2012-13 | K93: =IF(dms_RPT="financial",dms_CRYf_y6,dms_CRYc_y6) -> 2013-14 | L93: =IF(dms_RPT="financial",dms_CRYf_y7,dms_CRYc_y7) -> 2014-15 | M93: =IF(dms_RPT="financial",dms_CRYf_y8,dms_CRYc_y8) -> 2015-16 | N93: =IF(dms_RPT="financial",dms_CRYf_y9,dms_CRYc_y9) -> 2016-17 | O93: =IF(dms_RPT="financial",dms_CRYf_y10,dms_CRYc_y10) -> 2017-18
B94: Pole top, overhead line & service line maintenance | C94: Pole tops and overhead lines | D94: Number of poles | E94: Number | F94: 0 | G94: 1214658.345 | H94: 1688724.762 | I94: 2332693.46 | J94: 2960131.822 | K94: 463142.2338 | L94: 1436353.772 | M94: 4057042.649 | N94: 997146.3409 | O94: 1257316.75
C95: Service lines | D95: Number of customers | E95: Number | F95: 0 | G95: 0 | H95: 0 | I95: 0 | J95: 0 | K95: 0 | L95: 0 | M95: 0 | N95: 0 | O95: 0
B96: Pole inspection and treatment | C96: All poles | D96: Number of poles | E96: Number | F96: 20187987.15 | G96: 19042718.58 | H96: 18775074.1 | I96: 25934658.73 | J96: 25026325.45 | K96: 20166231.98 | L96: 21125940.55 | M96: 21978794.9 | N96: 20661254.69 | O96: 24646875.28
B97: Overhead asset inspection | C97: All overhead assets | D97: Line patrolled (route KM) | E97: KM | F97: 891704.3826 | G97: 906148.8989 | H97: 1114935.023 | I97: 1540094.614 | J97: 644798.0829 | K97: 476007.1934 | L97: 1033289.031 | M97: 17110.94542 | N97: 0 | O97: 0
B98: Network underground cable maintenance: by voltage | C98: LV - 11 to 22 KV | D98: Length (KM) | E98: KM | F98: 0 | G98: 0 | H98: 0 | I98: 0 | J98: 0 | K98: 0 | L98: 118154.8421 | M98: 43709.0092 | N98: 183944.2089 | O98: 78274.81004
C99: 33 KV and above | D99: Length (KM) | E99: KM | F99: 0 | G99: 0 | H99: 0 | I99: 0 | J99: 0 | K99: 0 | L99: 0 | M99: 0 | N99: 0 | O99: 0
B100: Network underground cable maintenance: by location | C100: Cbd | D100: Length (KM) | E100: KM | F100: 0 | G100: 0 | H100: 0 | I100: 0 | J100: 0 | K100: 0 | L100: 0 | M100: 0 | N100: 0 | O100: 0
C101: Non-CBD | D101: Length (KM) | E101: KM | F101: 0 | G101: 0 | H101: 0 | I101: 0 | J101: 0 | K101: 0 | L101: 118154.8421 | M101: 43709.0092 | N101: 183944.2089 | O101: 78274.81004
B102: Distribution substation equipment & property maintenance | C102: Distribution substation transformers | D102: Number of installed transformers | E102: Number | F102: 516710.9083 | G102: 524902.5019 | H102: 449551.5507 | I102: 620980.2146 | J102: 552048.081 | K102: 646575.9205 | L102: 674589.9452 | M102: 743205.1667 | N102: 740100.1675 | O102: 665095.0595
C103: Distribution substation switchgear (within-substations and stand-alone switchgear) | D103: Number of switches | E103: Number | F103: 191.880706 | G103: 70423.28245 | H103: 1381105.458 | I103: 1907776.771 | J103: 392352.5529 | K103: 392013.4435 | L103: 2470079.572 | M103: 3902566.66 | N103: 2687820.399 | O103: 2173508.968
C104: Distribution substation - other equipment | D104: Earth mat | E104: Number | F104: 1554754.337 | G104: 2488614.711 | H104: 2569591.088 | I104: 3549459.969 | J104: 5142655.674 | K104: 2943998.48 | L104: 3140594.915 | M104: 3986375.6 | N104: 3293652.515 | O104: 2772903.484
C105: Distribution substation - property | D105: Number of distribution substation properties maintained | E105: Number | F105: 0 | G105: 0 | H105: 63380.62768 | I105: 87555.33648 | J105: 55267.31979 | K105: 13635.64033 | L105: 4906.955064 | M105: 445.7723954 | N105: 973.3136476 | O105: 381.7764829
B106: Zone substation equipment maintenance | C106: Transformers - zone substation | D106: Number | E106: Number | F106: 908680.5927 | G106: 1108477.983 | H106: 1298701.242 | I106: 1405264.446 | J106: 1381341.738 | K106: 489672.6204 | L106: 720152.8774 | M106: 1011300.892 | N106: 953847.6099 | O106: 942902.1402
C107: Transformers - distribution | D107: Number of distribution transformers within zone substation | E107: Number | F107: 223358.4979 | G107: 230136.123 | H107: 232212.4315 | I107: 251269.1184 | J107: 183405.675 | K107: 112445.1869 | L107: 26775.48079 | M107: 4807.440791 | N107: 17006.75934 | O107: 13502.82645
C108: Transformers - HV | D108: Number of HV transformers | E108: Number | F108: 0 | G108: 0 | H108: 0 | I108: 0 | J108: 0 | K108: 0 | L108: 0 | M108: 0 | N108: 0 | O108: 0
C109: Zone substation - other equipment | D109: =IF(ISBLANK(D28),"",D28) -> <DNSP to nominate> | E109: =IF(ISBLANK(E28),"",E28) -> <DNSP to nominate> | F109: 2638723.525 | G109: 3313321.037 | H109: 4818395.843 | I109: 4380055.919 | J109: 7795788.796 | K109: 6062976.727 | L109: 2426053.662 | M109: 3768308.967 | N109: 4490964.134 | O109: 3921024.285
B110: Zone substation property maintenance | C110: All zone substation properties | D110: Number of zone substation properties maintained | E110: Number | F110: 213884.7447 | G110: 228605.5851 | H110: 237011.6488 | I110: 256458.6719 | J110: 1111183.316 | K110: 992397.3674 | L110: 1608068.111 | M110: 1224083.537 | N110: 1658407.379 | O110: 1921176.803
B111: Public lighting maintenance | C111: Minor roads | D111: Number of public lights maintained | E111: Number | F111: 2438983.466 | G111: 1254757.241 | H111: 0 | I111: 0 | J111: 0 | K111: 0 | L111: 0 | M111: 0 | N111: 0 | O111: 0
C112: Major roads | D112: Number of public lights maintained | E112: Number | F112: 623949.4829 | G112: 320996.4899 | H112: 0 | I112: 0 | J112: 0 | K112: 0 | L112: 0 | M112: 0 | N112: 0 | O112: 0
B113: SCADA & network control maintenance | C113: SCADA & network control | D113: Number of systems | E113: Number | F113: 47730.7894 | G113: 54568.58433 | H113: 65737.62121 | I113: 46630.65722 | J113: 33789.37675 | K113: 318812.6311 | L113: 258884.6807 | M113: 61192.05334 | N113: 13298.82346 | O113: 1243.96288
B114: Protection systems maintenance | C114: Protection systems | D114: Number of systems | E114: Number | F114: 880072.9863 | G114: 897668.3179 | H114: 978712.347 | I114: 694194.6851 | J114: 1155072.753 | K114: 1039096.435 | L114: 638507.1805 | M114: 1009572.824 | N114: 1402517.711 | O114: 1367037.495
B115: Subtransmission asset maintenance | C115: Subtransmission asset maintenance - for DNSPs with dual function assets | D115: =IF(ISBLANK(D34),"",D34) -> <DNSP to nominate> | E115: =IF(ISBLANK(E34),"",E34) -> <DNSP to nominate> | F115: 0 | G115: 0 | H115: 0 | I115: 0 | J115: 0 | K115: 0 | L115: 0 | M115: 0 | N115: 0 | O115: 0
B116: Various assets | C116: includes rates, electricity, communications equip, metering | D116: Various | E116: Number | F116: 8650950.262 | G116: 6004480.368 | H116: 4305637.013 | I116: 5231305.077 | J116: 4118545.095 | K116: 5358207.961 | L116: 8965801.602 | M116: 6301996.263 | N116: 5434452.6 | O116: 5793367.069
B117: Ground clearance - access tracks | C117: Access tracks | D117: Number | E117: Number | F117: 392651.6532 | G117: 433350.7097 | H117: 415228.1849 | I117: 409399.8518 | J117: 557302.307 | K117: 698555.0447 | L117: 903685.3296 | M117: 914270.7897 | N117: 901216.8805 | O117: 1029231.474
B118: Other | C118: =IF(ISBLANK(C37),"",C37) -> < DNSP to nominate > | D118: =IF(ISBLANK(D37),"",D37) -> < DNSP to nominate >
C119: =IF(ISBLANK(C38),"",C38) -> < DNSP to nominate > | D119: < DNSP to nominate >
B129: NON-ROUTINE MAINTENANCE
F130: EXPENDITURE
F131: ($0'S)
B132: MAINTENANCE ACTIVITY | C132: MAINTENANCE ASSET CATEGORY | D132: ASSET QUANTITY | E132: Units | F132: =IF(dms_RPT="financial",dms_CRYf_y1,dms_CRYc_y1) -> 2008-09 | G132: =IF(dms_RPT="financial",dms_CRYf_y2,dms_CRYc_y2) -> 2009-10 | H132: =IF(dms_RPT="financial",dms_CRYf_y3,dms_CRYc_y3) -> 2010-11 | I132: =IF(dms_RPT="financial",dms_CRYf_y4,dms_CRYc_y4) -> 2011-12 | J132: =IF(dms_RPT="financial",dms_CRYf_y5,dms_CRYc_y5) -> 2012-13 | K132: =IF(dms_RPT="financial",dms_CRYf_y6,dms_CRYc_y6) -> 2013-14 | L132: =IF(dms_RPT="financial",dms_CRYf_y7,dms_CRYc_y7) -> 2014-15 | M132: =IF(dms_RPT="financial",dms_CRYf_y8,dms_CRYc_y8) -> 2015-16 | N132: =IF(dms_RPT="financial",dms_CRYf_y9,dms_CRYc_y9) -> 2016-17 | O132: =IF(dms_RPT="financial",dms_CRYf_y10,dms_CRYc_y10) -> 2017-18
B133: Pole top, overhead line & service line maintenance | C133: Pole tops and overhead lines | D133: Number of poles | E133: Number | F133: 9572789.573 | G133: 9608995.672 | H133: 9715492.448 | I133: 11659635.29 | J133: 12244550.46 | K133: 11931325.68 | L133: 12791414.95 | M133: 10885005.39 | N133: 8994802.423 | O133: 9549221.018
C134: Service lines | D134: Number of customers | E134: Number | F134: 478639.4786 | G134: 480449.7836 | H134: 485774.6224 | I134: 582981.7643 | J134: 612227.5229 | K134: 596566.2841 | L134: 639570.7474 | M134: 544250.2694 | N134: 461271.9191 | O134: 434028.7192
B135: Pole inspection and treatment | C135: All poles | D135: Number of poles | E135: Number | F135: 239319.7393 | G135: 240224.8918 | H135: 242887.3112 | I135: 291490.8821 | J135: 306113.7614 | K135: 298283.142 | L135: 319785.3737 | M135: 272125.1347 | N135: 230635.9596 | O135: 217014.3596
B136: Overhead asset inspection | C136: All overhead assets | D136: Line patrolled (route KM) | E136: KM | F136: 239319.7393 | G136: 240224.8918 | H136: 242887.3112 | I136: 291490.8821 | J136: 306113.7614 | K136: 298283.142 | L136: 319785.3737 | M136: 272125.1347 | N136: 230635.9596 | O136: 217014.3596
B137: Network underground cable maintenance: by voltage | C137: LV - 11 to 22 KV | D137: Length (KM) | E137: KM | F137: 239319.7393 | G137: 240224.8918 | H137: 242887.3112 | I137: 291490.8821 | J137: 306113.7614 | K137: 298283.142 | L137: 319785.3737 | M137: 272125.1347 | N137: 230635.9596 | O137: 217014.3596
C138: 33 KV and above | D138: Length (KM) | E138: KM | F138: 0 | G138: 0 | H138: 0 | I138: 0 | J138: 0 | K138: 0 | L138: 0 | M138: 0 | N138: 0 | O138: 0
B139: Network underground cable maintenance: by location | C139: Cbd | D139: Length (KM) | E139: KM | F139: 0 | G139: 0 | H139: 0 | I139: 0 | J139: 0 | K139: 0 | L139: 0 | M139: 0 | N139: 0 | O139: 0
C140: Non-CBD | D140: Length (KM) | E140: KM | F140: 239319.7393 | G140: 240224.8918 | H140: 242887.3112 | I140: 291490.8821 | J140: 306113.7614 | K140: 298283.142 | L140: 319785.3737 | M140: 272125.1347 | N140: 230635.9596 | O140: 217014.3596
B141: Distribution substation equipment & property maintenance | C141: Distribution substation transformers | D141: Number of installed transformers | E141: Number | F141: 239319.7393 | G141: 240224.8918 | H141: 242887.3112 | I141: 291490.8821 | J141: 306113.7614 | K141: 298283.142 | L141: 319785.3737 | M141: 272125.1347 | N141: 230635.9596 | O141: 217014.3596
C142: Distribution substation switchgear (within-substations and stand-alone switchgear) | D142: Number of switches | E142: Number | F142: 239319.7393 | G142: 240224.8918 | H142: 242887.3112 | I142: 291490.8821 | J142: 306113.7614 | K142: 298283.142 | L142: 319785.3737 | M142: 272125.1347 | N142: 230635.9596 | O142: 217014.3596
C143: Distribution substation - other equipment | D143: Earth mat | E143: Number | F143: 598299.3483 | G143: 600562.2295 | H143: 607218.278 | I143: 728727.2053 | J143: 765284.4036 | K143: 745707.8551 | L143: 799463.4342 | M143: 680312.8367 | N143: 576589.8989 | O143: 542535.8991
C144: Distribution substation - property | D144: Number of distribution substation properties maintained | E144: Number | F144: 119659.8697 | G144: 120112.4459 | H144: 121443.6556 | I144: 145745.4411 | J144: 153056.8807 | K144: 149141.571 | L144: 159892.6868 | M144: 136062.5673 | N144: 115317.9798 | O144: 108507.1798
B145: Zone substation equipment maintenance | C145: Transformers - zone substation | D145: Number | E145: Number | F145: 225573.2422 | G145: 357776.0045 | H145: 510200.42 | I145: 538406.459 | J145: 448781.2481 | K145: 359344.2854 | L145: 440567.964 | M145: 453191.5215 | N145: 428824.0497 | O145: 551217.1915
C146: Transformers - distribution | D146: Number of distribution transformers within zone substation | E146: Number | F146: 45114.64843 | G146: 71555.2009 | H146: 102040.084 | I146: 107681.2918 | J146: 89756.24962 | K146: 71868.85709 | L146: 88113.59279 | M146: 90638.3043 | N146: 85764.80995 | O146: 110243.4383
C147: Transformers - HV | D147: Number of HV transformers | E147: Number | F147: 0 | G147: 0 | H147: 0 | I147: 0 | J147: 0 | K147: 0 | L147: 0 | M147: 0 | N147: 0 | O147: 0
C148: Zone substation - other equipment | D148: =IF(ISBLANK(D28),"",D28) -> <DNSP to nominate> | E148: =IF(ISBLANK(E28),"",E28) -> <DNSP to nominate> | F148: 4060318.359 | G148: 6439968.081 | H148: 9183607.56 | I148: 9691316.262 | J148: 8078062.466 | K148: 6468197.138 | L148: 7930223.352 | M148: 8157447.387 | N148: 7718832.895 | O148: 10200787.01
B149: Zone substation property maintenance | C149: All zone substation properties | D149: Number of zone substation properties maintained | E149: Number | F149: 180458.5937 | G149: 286220.8036 | H149: 408160.336 | I149: 430725.1672 | J149: 359024.9985 | K149: 287475.4284 | L149: 352454.3712 | M149: 362553.2172 | N149: 343059.2398 | O149: 440973.7532
B150: Public lighting maintenance | C150: Minor roads | D150: Number of public lights maintained | E150: Number | F150: 1805881.994 | G150: 1757230.02 | H150: 0 | I150: 0 | J150: 0 | K150: 0 | L150: 0 | M150: 0 | N150: 0 | O150: 0
C151: Major roads | D151: Number of public lights maintained | E151: Number | F151: 1203921.329 | G151: 1171486.68 | H151: 0 | I151: 0 | J151: 0 | K151: 0 | L151: 0 | M151: 0 | N151: 0 | O151: 0
B152: SCADA & network control maintenance | C152: SCADA & network control | D152: Number of systems | E152: Number | F152: 975961.5764 | G152: 1124573.609 | H152: 1264271.42 | I152: 1365607.634 | J152: 1097743.197 | K152: 881728.836 | L152: 1036786.892 | M152: 979090.5724 | N152: 1014923.135 | O152: 888069.6198
B153: Protection systems maintenance | C153: Protection systems | D153: Number of systems | E153: Number | F153: 486542.4743 | G153: 511736.1783 | H153: 840557.0741 | I153: 866605.0126 | J153: 1437463.441 | K153: 1320908.743 | L153: 1170910.433 | M153: 1524692.67 | N153: 1060858.467 | O153: 1220529.603
B154: Subtransmission asset maintenance | C154: Subtransmission asset maintenance - for DNSPs with dual function assets | D154: =IF(ISBLANK(D34),"",D34) -> <DNSP to nominate> | E154: =IF(ISBLANK(E34),"",E34) -> <DNSP to nominate> | F154: 0 | G154: 0 | H154: 0 | I154: 0 | J154: 0 | K154: 0 | L154: 0 | M154: 0 | N154: 0 | O154: 0
B155: Various assets | C155: includes rates, electricity, communications equip, metering | D155: Various | E155: Number | F155: 951983.6534 | G155: 1439219.064 | H155: 1160403.227 | I155: 1326609.405 | J155: 1455851.803 | K155: 1491364.758 | L155: 1321463.342 | M155: 0 | N155: 212893.1681 | O155: 421029.5593
B156: Ground clearance - access tracks | C156: Access tracks | D156: Number | E156: Number | F156: 2058159.7 | G156: 2271491.688 | H156: 2176498.964 | I156: 2782454.564 | J156: 3302501.227 | K156: 1773224.475 | L156: 5129351.03 | M156: 3738138.196 | N156: 3622301.574 | O156: 4348271.721
B157: Other | C157: =IF(ISBLANK(C37),"",C37) -> < DNSP to nominate > | D157: < DNSP to nominate >
C158: < DNSP to nominate > | D158: < DNSP to nominate >

Sheet 2.9 Emergency Response
B1: REGULATORY REPORTING STATEMENT
B2: =INDEX(dms_TradingNameFull_List,MATCH(dms_TradingName,dms_TradingName_List)) -> Ergon Energy
B3: =IF(SUM(dms_SingleYear_Model)>0,("CATEGORY ANALYSIS "&CRY&" to "&FRY),("CATEGORY ANALYSIS "&CRY)) -> CATEGORY ANALYSIS 2008-09 to 2017-18
B4: 2.9 EMERGENCY RESPONSE
B6: There is ONE table on this worksheet. It has been 'sub-grouped' for easy navigation. See the Instructions sheet on how to group or ungroup data.
B8: 2.9.1 - EMERGENCY RESPONSE EXPENDITURE (OPEX)
D9: EXPENDITURE ($0's)
D10: =IF(dms_RPT="financial",dms_CRYf_y1,dms_CRYc_y1) -> 2008-09 | E10: =IF(dms_RPT="financial",dms_CRYf_y2,dms_CRYc_y2) -> 2009-10 | F10: =IF(dms_RPT="financial",dms_CRYf_y3,dms_CRYc_y3) -> 2010-11 | G10: =IF(dms_RPT="financial",dms_CRYf_y4,dms_CRYc_y4) -> 2011-12 | H10: =IF(dms_RPT="financial",dms_CRYf_y5,dms_CRYc_y5) -> 2012-13 | I10: =IF(dms_RPT="financial",dms_CRYf_y6,dms_CRYc_y6) -> 2013-14 | J10: =IF(dms_RPT="financial",dms_CRYf_y7,dms_CRYc_y7) -> 2014-15 | K10: =IF(dms_RPT="financial",dms_CRYf_y8,dms_CRYc_y8) -> 2015-16 | L10: =IF(dms_RPT="financial",dms_CRYf_y9,dms_CRYc_y9) -> 2016-17 | M10: =IF(dms_RPT="financial",dms_CRYf_y10,dms_CRYc_y10) -> 2017-18
B11: (A) TOTAL EMERGENCY RESPONSE EXPENDITURE | C11: Total Expenditure | D11: 22455404.82 | E11: 30325076.63 | F11: 56138942.17 | G11: 35090925.1 | H11: 40390135.68 | I11: 37846342.55 | J11: 43616414.89 | K11: 40532588.03 | L11: 47968966.59 | M11: 48704149.56
B12: (B) MAJOR EVENTS O&M EXPENDITURE | C12: Severe Thunderstorms in Southeast Queensland | D12: 1992.838679
C13: Severe Storms and Lightning | D13: 2214.312991 | E13: 1977948.504
C14: Ellie - 1st Feb to 1st Mar 2009 | D14: 128979.0003
C15: Hamish - 4th Mar to 11th Mar 2009 | D15: 430.1307286
C16: Tropical Cyclone Ului | E16: 21244.15668
C17: Olga - 23rd Jan to 30th Jan 2010
C18: Mackay CB Failure | F18: 2104.018829
C19: Cyclone Anthony | F19: 1885.693114
C20: Cyclone Yasi | F20: 23494305.59
C21: Southern Storms -Toowoomba | F21: 4597.237227
C22: Bushfires, Storms & Hailstorms across All Regions | F22: 168.6112456
C23: Heavy rain, damaging winds and flash flooding in Southern Region | G23: 1133816.021
C24: Heavy Rain & Tornado-like winds in Townsville | G24: 951221.2023
C25: Storms in Southern Region
C26: Cyclone Oswald | H26: 6981671.921
C27: Jasmine - 1st Feb to 6th Feb 2012 | H27: 2054.30436
C28: Severe Storms and Winds - 17th November 2013 | I28: 11.09909332
C29: Severe Storms - 22nd January 2014 | I29: 14.52981601
C30: Cyclone Dylan 30th January 2014 | I30: 1433735.639
C31: Cyclone Ita 11th April 2014 | I31: 3012286.663
C32: Severe Stroms and Lightning 6th December 2014 | J32: 22067.4269
C33: Severe Stroms and Lightning 31st December 2014 | J33: 11992.04471
C34: Cyclone Marcia | J34: 5669458.057
C35: Cyclone Nathan | J35: 0
C36: Cyclone ITA (2014-15 Costs) | J36: 34843.11818
C37: Severe Storms and Lightning 23rd December 2015 (SW) | K37: 323751.657
C38: Severe Storms and Lightning 29th January 2016 (WB) | K38: 49021.13887
C39: Severe Storms and Lightning 12th November 2016 (WB) | L39: 42932.42999
C40: Severe Storms and Lightning 13th November 2016 (WB) | L40: 131436.2793
C41: Cyclone Debbie | L41: 7044665.742
C42: PWO(00050983) CYCLONE DEBBIE- WE F&L RESPONSE | M42: 853.0061976
C43: PWO(00050998) TC DEBBIE - ZONE2, BURDEKIN/WHITSUNDAYS | M43: 62841.11314
C44: PWO(00051002) TC DEBBIE - ZONE 3, MACKAY SARINA | M44: 11973.46768
C45: PWO(00051013) TC DEBBIE - ASSET MANAGEMENT RESPONSE | M45: 9154.599304
C46: PWO(00051055) TC DEBBIE - EXTERNAL CONTRACTORS | M46: 25012.06418
C47: PWO(00051060) TC DEBBIE - IR ZONE FITZROY | M47: 6085.431862
C48: PWO(00057181) BUNDABERG STORM 7.11.17 | M48: 772064.6548
C49: PWO(00060274) CYCLONE LINDA - 13.03.18 | M49: 306554.1692
C50: PWO(00060684) TROPICAL CYCLONE NORA | M50: 455218.8938
C51: PWO(00060806) TC IRIS 2018 | M51: 144803.1034
C52: Tasha - 25th Dec 2010 | F52: 0
B55: (C) MAJOR EVENT DAYS O&M EXPENDITURE | C55: 2009-07-01 | J55: 0 | K55: 0 | L55: 0
C56: 2009-07-02 | J56: 0 | K56: 0 | L56: 0
C57: 2009-07-03 | J57: 0 | K57: 0 | L57: 0
C58: 2009-07-04 | J58: 0 | K58: 0 | L58: 0
C59: 2009-07-05 | J59: 0 | K59: 0 | L59: 0
C60: 2009-07-06 | J60: 0 | K60: 0 | L60: 0
C61: 2009-07-07 | J61: 0 | K61: 0 | L61: 0
C62: 2009-07-08 | J62: 0 | K62: 0 | L62: 0
C63: 2009-07-09 | J63: 0 | K63: 0 | L63: 0
C64: 2009-07-10 | J64: 0 | K64: 0 | L64: 0
C65: 2009-07-11 | J65: 0 | K65: 0 | L65: 0
C66: 2009-07-12 | J66: 0 | K66: 0 | L66: 0
C67: 2009-07-13 | J67: 0 | K67: 0 | L67: 0
C68: 2009-07-14 | J68: 0 | K68: 0 | L68: 0
C69: 2009-07-15 | J69: 0 | K69: 0 | L69: 0
C70: 2009-07-16 | J70: 0 | K70: 0 | L70: 0
C71: 2009-07-17 | J71: 0 | K71: 0 | L71: 0
C72: 2009-07-18 | J72: 0 | K72: 0 | L72: 0
C73: 2009-07-19 | J73: 0 | K73: 0 | L73: 0
C74: 2009-07-20 | J74: 0 | K74: 0 | L74: 0
C75: 2009-07-21 | J75: 0 | K75: 0 | L75: 0
C76: 2009-07-22 | J76: 0 | K76: 0 | L76: 0
C77: 2009-07-23 | J77: 0 | K77: 0 | L77: 0
C78: 2009-07-24 | J78: 0 | K78: 0 | L78: 0
C79: 2009-07-25 | J79: 0 | K79: 0 | L79: 0
C80: 2009-07-26 | J80: 0 | K80: 0 | L80: 0
C81: 2009-07-27 | J81: 0 | K81: 0 | L81: 0
C82: 2009-07-28 | J82: 0 | K82: 0 | L82: 0
C83: 2009-07-29 | J83: 0 | K83: 0 | L83: 0
C84: 2009-07-30 | J84: 0 | K84: 0 | L84: 0
C85: 2009-07-31 | J85: 0 | K85: 0 | L85: 0
C86: 2009-08-01 | J86: 0 | K86: 0 | L86: 0
C87: 2009-08-02 | J87: 0 | K87: 0 | L87: 0
C88: 2009-08-03 | J88: 0 | K88: 0 | L88: 0
C89: 2009-08-04 | J89: 0 | K89: 0 | L89: 0
C90: 2009-08-05 | J90: 0 | K90: 0 | L90: 0
C91: 2009-08-06 | J91: 0 | K91: 0 | L91: 0
C92: 2009-08-07 | J92: 0 | K92: 0 | L92: 0
C93: 2009-08-08 | J93: 0 | K93: 0 | L93: 0
C94: 2009-08-09 | J94: 0 | K94: 0 | L94: 0
C95: 2009-08-10 | J95: 0 | K95: 0 | L95: 0
C96: 2009-08-11 | J96: 0 | K96: 0 | L96: 0
C97: 2009-08-12 | J97: 0 | K97: 0 | L97: 0
C98: 2009-08-13 | J98: 0 | K98: 0 | L98: 0
C99: 2009-08-14 | J99: 0 | K99: 0 | L99: 0
C100: 2009-08-15 | J100: 0 | K100: 0 | L100: 0
C101: 2009-08-16 | J101: 0 | K101: 0 | L101: 0
C102: 2009-08-17 | J102: 0 | K102: 0 | L102: 0
C103: 2009-08-18 | J103: 0 | K103: 0 | L103: 0
C104: 2009-08-19 | J104: 0 | K104: 0 | L104: 0
C105: 2009-08-20 | J105: 0 | K105: 0 | L105: 0
C106: 2009-08-21 | J106: 0 | K106: 0 | L106: 0
C107: 2009-08-22 | J107: 0 | K107: 0 | L107: 0
C108: 2009-08-23 | J108: 0 | K108: 0 | L108: 0
C109: 2009-08-24 | J109: 0 | K109: 0 | L109: 0
C110: 2009-08-25 | J110: 0 | K110: 0 | L110: 0
C111: 2009-08-26 | J111: 0 | K111: 0 | L111: 0
C112: 2009-08-27 | J112: 0 | K112: 0 | L112: 0
C113: 2009-08-28 | J113: 0 | K113: 0 | L113: 0
C114: 2009-08-29 | J114: 0 | K114: 0 | L114: 0
C115: 2009-08-30 | J115: 0 | K115: 0 | L115: 0
C116: 2009-08-31 | J116: 0 | K116: 0 | L116: 0
C117: 2009-09-01 | J117: 0 | K117: 0 | L117: 0
C118: 2009-09-02 | J118: 0 | K118: 0 | L118: 0
C119: 2009-09-03 | J119: 0 | K119: 0 | L119: 0
C120: 2009-09-04 | J120: 0 | K120: 0 | L120: 0
C121: 2009-09-05 | J121: 0 | K121: 0 | L121: 0
C122: 2009-09-06 | J122: 0 | K122: 0 | L122: 0
C123: 2009-09-07 | J123: 0 | K123: 0 | L123: 0
C124: 2009-09-08 | J124: 0 | K124: 0 | L124: 0
C125: 2009-09-09 | J125: 0 | K125: 0 | L125: 0
C126: 2009-09-10 | J126: 0 | K126: 0 | L126: 0
C127: 2009-09-11 | J127: 0 | K127: 0 | L127: 0
C128: 2009-09-12 | J128: 0 | K128: 0 | L128: 0
C129: 2009-09-13 | J129: 0 | K129: 0 | L129: 0
C130: 2009-09-14 | J130: 0 | K130: 0 | L130: 0
C131: 2009-09-15 | J131: 0 | K131: 0 | L131: 0
C132: 2009-09-16 | J132: 0 | K132: 0 | L132: 0
C133: 2009-09-17 | J133: 0 | K133: 0 | L133: 0
C134: 2009-09-18 | J134: 0 | K134: 0 | L134: 0
C135: 2009-09-19 | J135: 0 | K135: 0 | L135: 0
C136: 2009-09-20 | J136: 0 | K136: 0 | L136: 0
C137: 2009-09-21 | J137: 0 | K137: 0 | L137: 0
C138: 2009-09-22 | J138: 0 | K138: 0 | L138: 0
C139: 2009-09-23 | J139: 0 | K139: 0 | L139: 0
C140: 2009-09-24 | J140: 0 | K140: 0 | L140: 0
C141: 2009-09-25 | J141: 0 | K141: 0 | L141: 0
C142: 2009-09-26 | J142: 0 | K142: 0 | L142: 0
C143: 2009-09-27 | J143: 0 | K143: 0 | L143: 0
C144: 2009-09-28 | J144: 0 | K144: 0 | L144: 0
C145: 2009-09-29 | J145: 0 | K145: 0 | L145: 0
C146: 2009-09-30 | J146: 0 | K146: 0 | L146: 0
C147: 2009-10-01 | J147: 0 | K147: 0 | L147: 0
C148: 2009-10-02 | J148: 0 | K148: 0 | L148: 0
C149: 2009-10-03 | J149: 0 | K149: 0 | L149: 0
C150: 2009-10-04 | J150: 0 | K150: 0 | L150: 0
C151: 2009-10-05 | J151: 0 | K151: 0 | L151: 0
C152: 2009-10-06 | J152: 0 | K152: 0 | L152: 0
C153: 2009-10-07 | J153: 0 | K153: 0 | L153: 0
C154: 2009-10-08 | J154: 0 | K154: 0 | L154: 0
C155: 2009-10-09 | J155: 0 | K155: 0 | L155: 0
C156: 2009-10-10 | J156: 0 | K156: 0 | L156: 0
C157: 2009-10-11 | J157: 0 | K157: 0 | L157: 0
C158: 2009-10-12 | J158: 0 | K158: 0 | L158: 0
C159: 2009-10-13 | J159: 0 | K159: 0 | L159: 0
C160: 2009-10-14 | J160: 0 | K160: 0 | L160: 0
C161: 2009-10-15 | G161: 168.6112456 | J161: 0 | K161: 0 | L161: 0
C162: 2009-10-16 | J162: 0 | K162: 0 | L162: 0
C163: 2009-10-17 | J163: 0 | K163: 0 | L163: 0
C164: 2009-10-18 | J164: 0 | K164: 0 | L164: 0
C165: 2009-10-19 | J165: 0 | K165: 0 | L165: 0 | M165: 138650.3324
C166: 2009-10-20 | J166: 0 | K166: 0 | L166: 0
C167: 2009-10-21 | J167: 0 | K167: 0 | L167: 0
C168: 2009-10-22 | J168: 0 | K168: 0 | L168: 0
C169: 2009-10-23 | J169: 0 | K169: 0 | L169: 0
C170: 2009-10-24 | J170: 0 | K170: 0 | L170: 0
C171: 2009-10-25 | J171: 0 | K171: 0 | L171: 0
C172: 2009-10-26 | J172: 0 | K172: 0 | L172: 0
C173: 2009-10-27 | J173: 0 | K173: 0 | L173: 0
C174: 2009-10-28 | J174: 0 | K174: 0 | L174: 0
C175: 2009-10-29 | J175: 0 | K175: 0 | L175: 0
C176: 2009-10-30 | J176: 0 | K176: 0 | L176: 0
C177: 2009-10-31 | J177: 0 | K177: 0 | L177: 0
C178: 2009-11-01 | J178: 0 | K178: 0 | L178: 0
C179: 2009-11-02 | J179: 0 | K179: 0 | L179: 0
C180: 2009-11-03 | J180: 0 | K180: 0 | L180: 0
C181: 2009-11-04 | J181: 0 | K181: 0 | L181: 0
C182: 2009-11-05 | J182: 0 | K182: 0 | L182: 0
C183: 2009-11-06 | J183: 0 | K183: 0 | L183: 0
C184: 2009-11-07 | J184: 0 | K184: 0 | L184: 0 | M184: 176426.0118
C185: 2009-11-08 | J185: 0 | K185: 0 | L185: 0
C186: 2009-11-09 | J186: 0 | K186: 0 | L186: 0
C187: 2009-11-10 | J187: 0 | K187: 0 | L187: 0
C188: 2009-11-11 | J188: 0 | K188: 0 | L188: 0
C189: 2009-11-12 | J189: 0 | K189: 0 | L189: 170895.243
C190: 2009-11-13 | J190: 0 | K190: 0 | L190: 131436.2793
C191: 2009-11-14 | J191: 0 | K191: 0 | L191: 0
C192: 2009-11-15 | J192: 0 | K192: 0 | L192: 0
C193: 2009-11-16 | J193: 0 | K193: 0 | L193: 0
C194: 2009-11-17 | I194: 119.9324908 | J194: 0 | K194: 0 | L194: 0
C195: 2009-11-18 | J195: 0 | K195: 0 | L195: 0
C196: 2009-11-19 | J196: 0 | K196: 0 | L196: 0
C197: 2009-11-20 | D197: 2388.085805 | J197: 0 | K197: 0 | L197: 0
C198: 2009-11-21 | J198: 0 | K198: 0 | L198: 0
C199: 2009-11-22 | J199: 0 | K199: 0 | L199: 0
C200: 2009-11-23 | J200: 0 | K200: 0 | L200: 0
C201: 2009-11-24 | J201: 0 | K201: 0 | L201: 0
C202: 2009-11-25 | J202: 0 | K202: 0 | L202: 0
C203: 2009-11-26 | J203: 0 | K203: 0 | L203: 0
C204: 2009-11-27 | J204: 0 | K204: 0 | L204: 0
... 267 more rows

Sheet 2.10 Overheads
B1: REGULATORY REPORTING STATEMENT
B2: =INDEX(dms_TradingNameFull_List,MATCH(dms_TradingName,dms_TradingName_List)) -> Ergon Energy
B3: =IF(SUM(dms_SingleYear_Model)>0,("CATEGORY ANALYSIS "&CRY&" to "&FRY),("CATEGORY ANALYSIS "&CRY)) -> CATEGORY ANALYSIS 2008-09 to 2017-18
B4: 2.10 OVERHEADS
B6: There are TWO tables on this worksheet. Each table has been 'grouped' (and sub-grouped) for easy navigation. See the Instructions sheet on how to group or ungroup data.
B8: 2.10.1 - NETWORK OVERHEADS EXPENDITURE
D9: EXPENDITURE ($0's)
D10: =IF(dms_RPT="financial",dms_CRYf_y1,dms_CRYc_y1) -> 2008-09 | E10: =IF(dms_RPT="financial",dms_CRYf_y2,dms_CRYc_y2) -> 2009-10 | F10: =IF(dms_RPT="financial",dms_CRYf_y3,dms_CRYc_y3) -> 2010-11 | G10: =IF(dms_RPT="financial",dms_CRYf_y4,dms_CRYc_y4) -> 2011-12 | H10: =IF(dms_RPT="financial",dms_CRYf_y5,dms_CRYc_y5) -> 2012-13 | I10: =IF(dms_RPT="financial",dms_CRYf_y6,dms_CRYc_y6) -> 2013-14 | J10: =IF(dms_RPT="financial",dms_CRYf_y7,dms_CRYc_y7) -> 2014-15 | K10: =IF(dms_RPT="financial",dms_CRYf_y8,dms_CRYc_y8) -> 2015-16 | L10: =IF(dms_RPT="financial",dms_CRYf_y9,dms_CRYc_y9) -> 2016-17 | M10: =IF(dms_RPT="financial",dms_CRYf_y10,dms_CRYc_y10) -> 2017-18
B11: NETWORK OVERHEADS
B12: Standard Control Services | C12: Total Overhead Expenditure - Standard Control Services
C13: Network management
C14: Network planning
C15: Network control and operational switching
C16: Quality and standard functions
C17: Project governance and related functions
C18: Other - DNSP to nominate
C19: METER READING
C20: FEED-IN TARIFFS/ SOLAR BONUS
C21: NON-NETWORK ALTERNATIVES/ DEMAND MANAGEMENT
C22: Other
B32: Alternative Control Services | C32: Total Overhead Expenditure - Alternative Control Services
C33: Network management | D33: 0 | E33: 0 | F33: 0 | G33: 0 | H33: 0 | I33: 31077.72579 | J33: 64640.32162 | K33: 126394.4806 | L33: 170575.1721 | M33: 419539.9651
C34: Network planning | D34: 95764.06678 | E34: 106253.9248 | F34: 70982.06632 | G34: 143371.0017 | H34: 141939.6419 | I34: 242755.4149 | J34: 417771.1757 | K34: 651038.795 | L34: 701348.6336 | M34: 548622.8555
C35: Network control and operational switching | D35: 0 | E35: 0 | F35: 0 | G35: 0 | H35: 0 | I35: 10847.09295 | J35: 65327.68121 | K35: 119694.5289 | L35: 145765.6994 | M35: 11619.54233
C36: Quality and standard functions | D36: 8459.811296 | E36: 7999.241238 | F36: 0 | G36: 0 | H36: 0 | I36: 76925.67004 | J36: 90233.4385 | K36: 105749.2795 | L36: 109390.4347 | M36: 156167.9655
C37: Project governance and related functions | D37: 230662.2845 | E37: 350280.7327 | F37: 214426.961 | G37: 427746.7805 | H37: 443921.4109 | I37: 323739.686 | J37: 265424.9971 | K37: 334461.2636 | L37: 349689.935 | M37: 381627.085
C38: Other - DNSP to nominate
C39: METER READING | D39: 2956000.882 | E39: 3294639.389 | F39: 3299487.737 | G39: 3555704.316 | H39: 3504237.231 | I39: 3522908.967 | J39: 0 | K39: 2947852.818 | L39: 3091163.597 | M39: 3452406.875
C40: FEED-IN TARIFFS/ SOLAR BONUS | D40: 0 | E40: 0 | F40: 0 | G40: 0 | H40: 0 | I40: 0 | J40: 0 | K40: 0 | L40: 0 | M40: 0
C41: NON-NETWORK ALTERNATIVES/ DEMAND MANAGEMENT | D41: 0 | E41: 0 | F41: 0 | G41: 0 | H41: 0 | I41: 0 | J41: 0 | K41: 0 | L41: 0 | M41: 0
C42: Other | D42: 6613827.757 | E42: 6753466.57 | F42: 5300019.483 | G42: 10686235.61 | H42: 11702528.3 | I42: 11235105.3 | J42: 10325358.75 | K42: 13841689.72 | L42: 16117925.75 | M42: 13376418.71
B52: Negotiated Services | C52: Total
B53: Unregulated Services | C53: Total | D53: 0 | E53: 0 | F53: 0 | G53: 0 | H53: 0 | I53: 0 | K53: 12267456.07 | L53: 12272408.1 | M53: 10588623.11
B55: CAPITALISED NETWORK OVERHEADS
B56: Standard Control Services | C56: Capitalised Overheads - Standard Control Services
C57: Network management | D57: 1802576.186 | E57: 1715967.899 | F57: 3431348.753 | G57: 4000523.783 | H57: 3271652.844 | I57: 3378119.447 | J57: 4865333.754 | K57: 4058252.332 | L57: 3820967.484 | M57: 6118861.357
C58: Network planning | D58: 9909773.162 | E58: 10102664.66 | F58: 12661812.2 | G58: 13574150.77 | H58: 14496653.96 | I58: 14249604.99 | J58: 18962916.65 | K58: 14829483.74 | L58: 11984618.31 | M58: 9185132.794
C59: Network control and operational switching | D59: 649007.7019 | E59: 674636.5408 | F59: 891370.2174 | G59: 1157298.808 | H59: 1318991.368 | I59: 1179068.761 | J59: 2489908.068 | K59: 2188040.432 | L59: 1908975.255 | M59: 527781.6097
C60: Quality and standard functions | D60: 9030991.886 | E60: 7684468.672 | F60: 8988034.367 | G60: 9286193.207 | H60: 10303769.44 | I60: 8361747.693 | J60: 8854109.381 | K60: 6578259.84 | L60: 5596860.142 | M60: 5276743.751
C61: Project governance and related functions | D61: 7626955.283 | E61: 9668311.809 | F61: 11168967.06 | G61: 12325146.32 | H61: 16101828.56 | I61: 14201048.88 | J61: 14896447.5 | K61: 9162484.52 | L61: 6670840.08 | M61: 6948148.983
C62: Other - DNSP to nominate
C63: METER READING | D63: 0 | E63: 0 | F63: 0 | G63: 0 | H63: 0 | I63: 0 | J63: 0 | K63: 0 | L63: 0 | M63: 0
C64: FEED-IN TARIFFS/ SOLAR BONUS | D64: 0 | E64: 0 | F64: 0 | G64: 0 | H64: 0 | I64: 0 | J64: 0 | K64: 0 | L64: 0 | M64: 0
C65: NON-NETWORK ALTERNATIVES/ DEMAND MANAGEMENT | D65: 0 | E65: 0 | F65: 0 | G65: 0 | H65: 0 | I65: 0 | J65: 0 | K65: 0 | L65: 0 | M65: 0
C66: Other | D66: 29482925.01 | E66: 25087768.61 | F66: 31093354.03 | G66: 28720413.51 | H66: 42017069.88 | I66: 41776321.28 | J66: 39386940.12 | K66: 30974768.28 | L66: 23578262.8 | M66: 17530515.25
B78: 2.10.2 - CORPORATE OVERHEADS EXPENDITURE
D79: EXPENDITURE ($0's)
D80: =IF(dms_RPT="financial",dms_CRYf_y1,dms_CRYc_y1) -> 2008-09 | E80: =IF(dms_RPT="financial",dms_CRYf_y2,dms_CRYc_y2) -> 2009-10 | F80: =IF(dms_RPT="financial",dms_CRYf_y3,dms_CRYc_y3) -> 2010-11 | G80: =IF(dms_RPT="financial",dms_CRYf_y4,dms_CRYc_y4) -> 2011-12 | H80: =IF(dms_RPT="financial",dms_CRYf_y5,dms_CRYc_y5) -> 2012-13 | I80: =IF(dms_RPT="financial",dms_CRYf_y6,dms_CRYc_y6) -> 2013-14 | J80: =IF(dms_RPT="financial",dms_CRYf_y7,dms_CRYc_y7) -> 2014-15 | K80: =IF(dms_RPT="financial",dms_CRYf_y8,dms_CRYc_y8) -> 2015-16 | L80: =IF(dms_RPT="financial",dms_CRYf_y9,dms_CRYc_y9) -> 2016-17 | M80: =IF(dms_RPT="financial",dms_CRYf_y10,dms_CRYc_y10) -> 2017-18
B81: CORPORATE OVERHEADS
B82: Standard Control Services | C82: Total Overhead Expenditure - Standard Control Services
C83: ASSET MANAGEMENT | D83: 0 | E83: 0 | F83: 0 | G83: 0 | H83: 0 | I83: 0 | J83: 633649.7135 | K83: 1099341.926 | L83: 312214.2759 | M83: 489621.6286
C84: CORPORATE GOVERNANCE | D84: 4702133.114 | E84: 4794067.637 | F84: 3922108.905 | G84: 4198657.434 | H84: 1817433.3 | I84: 2378942.352 | J84: 0 | K84: 0 | L84: 0 | M84: 0
C85: CORPORATE | D85: 7620766.416 | E85: 7559913.691 | F85: 5323492.963 | G85: 11480992.09 | H85: -1939220.955 | I85: -522061.3203 | J85: 1960469.801 | K85: -6087694.875 | L85: -493263.1649 | M85: -1814303.335
C86: CUSTOMER AND STAKEHOLDER ENGAGEMENT | D86: 4025249.482 | E86: 3500982.473 | F86: 2857366.337 | G86: 2923326.71 | H86: 1947558.345 | I86: 2416870.661 | J86: 0 | K86: 0 | L86: 0 | M86: 0
C87: CUSTOMER SERVICE/RETAIL | D87: -35.13435272 | E87: 0 | F87: 0 | G87: 0 | H87: 0 | I87: 0 | J87: 0 | K87: 0 | L87: 0 | M87: 0
C88: EMPLOYEE AND SHARED SERVICES | D88: 20398099.74 | E88: 22138394.9 | F88: 22653327.02 | G88: 24118966.9 | H88: 14705702.24 | I88: 18106548.24 | J88: 21675881.18 | K88: 6792034.694 | L88: 4982266.584 | M88: 6024735.179
C89: ENERGY SOLUTIONS AND MARKET DEVELOPMENT | D89: 633040.5505 | E89: 2103341.501 | F89: 1401385.54 | G89: 1449007.395 | H89: 1101683.704 | I89: 1437693.202 | J89: 0 | K89: 0 | L89: 0 | M89: 0
C90: FINANCE AND STRATEGIC SERVICES | D90: 4309072.551 | E90: 4957431.017 | F90: 3863562.761 | G90: 4335358.341 | H90: 2797903.869 | I90: 3401258.284 | J90: 5287866.928 | K90: 18798354.86 | L90: 12787010.38 | M90: 17292570.9
C91: OFFICE OF THE CHIEF EXECUTIVE | D91: 334684.5542 | E91: 346023.4922 | F91: 347134.9768 | G91: 364342.2878 | H91: 242401.5383 | I91: 412794.5876 | J91: 486918.5832 | K91: 589151.2771 | L91: 335798.4533 | M91: 440904.338
C92: OPERATIONS | D92: 2102216.141 | E92: 2106953.419 | F92: 2208242.385 | G92: 2955617.531 | H92: 923993.2972 | I92: 1274221.551 | J92: 3044629.442 | K92: 2124902.185 | L92: 1812152.541 | M92: 2134770.245
C93: SPARQ SERVICES | D93: 15116427.38 | E93: 18280899.84 | F93: 15997891.21 | G93: 21833602.77 | H93: 14592871.43 | I93: 19709738.23 | J93: 21054818.6 | K93: 20170411.44 | L93: 20086062.92 | M93: 24740874.6
C94: MAJOR PROJECTS | D94: 0 | E94: 0 | F94: 0 | G94: 0 | H94: 0 | I94: 0 | J94: 0 | K94: 0 | L94: 0 | M94: 0
C95: STRATEGY REVENUE & TRANSFORMATION | D95: 0 | E95: 0 | F95: 0 | G95: 0 | H95: 0 | I95: 0 | J95: 2828308.232 | K95: 0 | L95: 87284.26132 | M95: 1285952.175
C96: Corporate Restructure | E96: 0 | F96: 0 | G96: 0 | H96: 0 | I96: 0 | K96: 39676264.09 | L96: 10710013.83 | M96: 10243811.13
C97: Self Insurance | E97: 0 | F97: 0 | G97: 0 | H97: 0 | I97: 0 | K97: 1510062.018 | L97: 1008618.79 | M97: 989314.5927
B102: Alternative Control Services | C102: ASSET MANAGEMENT | D102: 0 | E102: 0 | F102: 0 | G102: 0 | H102: 0 | I102: 0 | J102: 48645.95998 | K102: 178432.5954 | L102: 25372.58662 | M102: 25619.1467
C103: CORPORATE GOVERNANCE | D103: 541794.8475 | E103: 526423.7649 | F103: 338268.7791 | G103: 562020.4254 | H103: 377194.0994 | I103: 359935.7353 | J103: 0 | K103: 0 | L103: 0 | M103: 0
C104: CORPORATE | D104: 878089.1307 | E104: 830133.934 | F104: 459133.4684 | G104: 1536813.175 | H104: -402470.177 | I104: -78987.11379 | J104: 268252.6029 | K104: -1542546.483 | L104: -122920.5892 | M104: -390048.8615
C105: CUSTOMER AND STAKEHOLDER ENGAGEMENT | D105: 221433.7281 | E105: 150689.5228 | F105: 101951.9163 | G105: 179152.4461 | H105: 204567.6188 | I105: 231242.6842 | J105: 0 | K105: 0 | L105: 0 | M105: 0
C106: CUSTOMER SERVICE/RETAIL | D106: -4.048292725 | E106: 0 | F106: 0 | G106: 0 | H106: 0 | I106: 0 | J106: 0 | K106: 0 | L106: 0 | M106: 0
C107: EMPLOYEE AND SHARED SERVICES | D107: 2295533.906 | E107: 2358902.665 | F107: 1937196.895 | G107: 3205756.42 | H107: 3029837.044 | I107: 2721205.887 | J107: 2964281.562 | K107: 1722995.843 | L107: 1243728.686 | M107: 1295230.964
C108: ENERGY SOLUTIONS AND MARKET DEVELOPMENT | D108: 16544.10913 | E108: 70914.22403 | F108: 63279.12746 | G108: 69740.3427 | H108: 82270.60746 | I108: 118685.2962 | J108: 0 | K108: 0 | L108: 0 | M108: 0
C109: FINANCE AND STRATEGIC SERVICES | D109: 428897.3109 | E109: 477341.0277 | F109: 302515.5382 | G109: 515913.2579 | H109: 489419.4868 | I109: 437543.9011 | J109: 723542.9319 | K109: 4549042.129 | L109: 3056608.982 | M109: 3462150.882
C110: OFFICE OF THE CHIEF EXECUTIVE | D110: 38563.42699 | E110: 37995.91564 | F110: 29939.23106 | G110: 48769.8296 | H110: 50308.54775 | I110: 62455.21702 | J110: 66625.44728 | K110: 149283.6367 | L110: 83680.57188 | M110: 94788.37885
C111: OPERATIONS | D111: 241943.0974 | E111: 231092.0301 | F111: 190222.825 | G111: 395178.5746 | H111: 191609.0548 | I111: 192790.4564 | J111: 215602.434 | K111: 241275.7334 | L111: 243116.6003 | M111: 466335.5962
C112: SPARQ SERVICES | D112: 1741763.21 | E112: 2007376.793 | F112: 1379764.626 | G112: 2922584.4 | H112: 3028636.593 | I112: 2982054.551 | J112: 2880947.154 | K112: 5110932.439 | L112: 5005422.791 | M112: 5318931.353
C113: MAJOR PROJECTS | D113: 0 | E113: 0 | F113: 0 | G113: 0 | H113: 0 | I113: 0 | J113: 0 | K113: 0 | L113: 0 | M113: 0
C114: STRATEGY REVENUE & TRANSFORMATION | D114: 0 | E114: 0 | F114: 0 | G114: 0 | H114: 0 | I114: 0 | J114: 378741.3401 | K114: 0 | L114: 21751.13325 | M114: 276461.166
C115: Corporate Restructure
C116: Self Insurance
B122: Negotiated Services | C122: Total
B123: Unregulated Services | C123: Total | D123: 28119394.6 | E123: 26921845.62 | F123: 33404230.34 | G123: 33752960.47 | H123: 34306932.83 | I123: 21271327.59 | J123: 15811769.65 | K123: 12316053.41 | L123: 10174258.04 | M123: 6016711.658
B126: CAPITALISED CORPORATE OVERHEADS
B127: Standard Control Services | C127: Capitalised Overheads - Standard Control Services
C128: ASSET MANAGEMENT | D128: 0 | E128: 0 | F128: 0 | G128: 0 | H128: 0 | I128: 0 | J128: 291352.9704 | K128: 435009.2107 | L128: 78786.76813 | M128: 100922.0983
C129: CORPORATE GOVERNANCE | D129: 1577085.984 | E129: 1395297.214 | F129: 1675770.955 | G129: 1584482.75 | H129: 985096.0704 | I129: 1050972.081 | J129: 0 | K129: 0 | L129: 0 | M129: 0
C130: CORPORATE | D130: 2555989.72 | E130: 2200287.379 | F130: 2274530.132 | G130: 4332678.77 | H130: -1051108.144 | I130: -230664.7372 | J130: 832447.0758 | K130: -2315998.474 | L130: -114768.5152 | M130: -342391.9207
C131: CUSTOMER AND STAKEHOLDER ENGAGEMENT | D131: 1448237.106 | E131: 1105164.15 | F131: 1320453.354 | G131: 1186434.585 | H131: 1128180.498 | I131: 1162735.059 | J131: 0 | K131: 0 | L131: 0 | M131: 0
C132: CUSTOMER SERVICE/RETAIL | D132: -11.7839912 | E132: 0 | F132: 0 | G132: 0 | H132: 0 | I132: 0 | J132: 0 | K132: 0 | L132: 0 | M132: 0
C133: EMPLOYEE AND SHARED SERVICES | D133: 6863695.347 | E133: 6469881.638 | F133: 9690455.189 | G133: 9111005.285 | H133: 7979002.311 | I133: 8012509.72 | J133: 9204892.844 | K133: 2584470.855 | L133: 1159625.884 | M133: 1136976.445
C134: ENERGY SOLUTIONS AND MARKET DEVELOPMENT | D134: 411122.9352 | E134: 930875.7014 | F134: 967204.5598 | G134: 937413.9804 | H134: 1019699.381 | I134: 1014297.175 | J134: 0 | K134: 0 | L134: 0 | M134: 0
C135: FINANCE AND STRATEGIC SERVICES | D135: 1472624.336 | E135: 1467549.555 | F135: 1671910.917 | G135: 1661323.971 | H135: 1549685.55 | I135: 1545111.78 | J135: 2245313.526 | K135: 7187527.27 | L135: 2990399.036 | M135: 3290759.125
C136: OFFICE OF THE CHIEF EXECUTIVE | D136: 112252.526 | E136: 100708.9702 | F136: 148317.8376 | G136: 137494.9205 | H136: 131387.932 | I136: 182386.9177 | J136: 206753.4785 | K136: 224136.3089 | L136: 78130.88962 | M136: 83206.57579
C137: OPERATIONS | D137: 705043.1443 | E137: 613190.6183 | F137: 943449.4783 | G137: 1115340.776 | H137: 500818.6821 | I137: 562975.3093 | J137: 1648628.334 | K137: 861437.1615 | L137: 449411.4581 | M137: 409273.2619
C138: SPARQ SERVICES | D138: 5070019.322 | E138: 5320594.232 | F138: 6835302.658 | G138: 8239530.734 | H138: 7909715.479 | I138: 8708443.649 | J138: 8940215.335 | K138: 7673617.531 | L138: 4673463.945 | M138: 4669050.094
C139: MAJOR PROJECTS | D139: 0 | E139: 0 | F139: 0 | G139: 0 | H139: 0 | I139: 0 | J139: 0 | K139: 0 | L139: 0 | M139: 0
C140: STRATEGY REVENUE & TRANSFORMATION | D140: 0 | E140: 0 | F140: 0 | G140: 0 | H140: 0 | I140: 0 | J140: 1205783.259 | K140: 0 | L140: 20308.60154 | M140: 242682.328
C141: Corporate Restructure | K141: 0 | L141: 0 | M141: 0
C142: Self Insurance | K142: 0

Sheet 2.11 Labour
B1: REGULATORY REPORTING STATEMENT
B2: =INDEX(dms_TradingNameFull_List,MATCH(dms_TradingName,dms_TradingName_List)) -> Ergon Energy
B3: =IF(SUM(dms_SingleYear_Model)>0,("CATEGORY ANALYSIS "&CRY&" to "&FRY),("CATEGORY ANALYSIS "&CRY)) -> CATEGORY ANALYSIS 2008-09 to 2017-18
B4: 2.11 LABOUR
B6: There are TWO tables on this worksheet. Each table has been 'grouped' (and sub-grouped) for easy navigation. See the Instructions sheet on how to group or ungroup data.
B8: 2.11.1 - COST METRICS PER ANNUM
B9: AVERAGE STAFFING LEVEL (ASL)
D10: VOLUME (0's)
B11: INTERNAL LABOUR | D11: =IF(dms_RPT="financial",dms_CRYf_y1,dms_CRYc_y1) -> 2008-09 | E11: =IF(dms_RPT="financial",dms_CRYf_y2,dms_CRYc_y2) -> 2009-10 | F11: =IF(dms_RPT="financial",dms_CRYf_y3,dms_CRYc_y3) -> 2010-11 | G11: =IF(dms_RPT="financial",dms_CRYf_y4,dms_CRYc_y4) -> 2011-12 | H11: =IF(dms_RPT="financial",dms_CRYf_y5,dms_CRYc_y5) -> 2012-13 | I11: =IF(dms_RPT="financial",dms_CRYf_y6,dms_CRYc_y6) -> 2013-14 | J11: =IF(dms_RPT="financial",dms_CRYf_y7,dms_CRYc_y7) -> 2014-15 | K11: =IF(dms_RPT="financial",dms_CRYf_y8,dms_CRYc_y8) -> 2015-16 | L11: =IF(dms_RPT="financial",dms_CRYf_y9,dms_CRYc_y9) -> 2016-17 | M11: =IF(dms_RPT="financial",dms_CRYf_y10,dms_CRYc_y10) -> 2017-18
B12: CORPORATE OVERHEADS | C12: Executive manager
C13: Senior manager
C14: Manager
C15: Professional
C16: Semi professional
C17: Support staff
C18: Intern, junior staff, apprentice
B19: NETWORK OVERHEADS | C19: Executive manager
C20: Senior manager
C21: Manager
C22: Professional
C23: Semi professional
C24: Support staff
C25: Intern, junior staff, apprentice
B26: TOTAL DIRECT NETWORK LABOUR | C26: Skilled electrical worker
C27: Skilled non electical worker
C28: Apprentice
C29: Unskilled worker
B31: TOTAL LABOUR EXPENDITURE
D32: EXPENDITURE ($0's)
B33: INTERNAL LABOUR | D33: =IF(dms_RPT="financial",dms_CRYf_y1,dms_CRYc_y1) -> 2008-09 | E33: =IF(dms_RPT="financial",dms_CRYf_y2,dms_CRYc_y2) -> 2009-10 | F33: =IF(dms_RPT="financial",dms_CRYf_y3,dms_CRYc_y3) -> 2010-11 | G33: =IF(dms_RPT="financial",dms_CRYf_y4,dms_CRYc_y4) -> 2011-12 | H33: =IF(dms_RPT="financial",dms_CRYf_y5,dms_CRYc_y5) -> 2012-13 | I33: =IF(dms_RPT="financial",dms_CRYf_y6,dms_CRYc_y6) -> 2013-14 | J33: =IF(dms_RPT="financial",dms_CRYf_y7,dms_CRYc_y7) -> 2014-15 | K33: =IF(dms_RPT="financial",dms_CRYf_y8,dms_CRYc_y8) -> 2015-16 | L33: =IF(dms_RPT="financial",dms_CRYf_y9,dms_CRYc_y9) -> 2016-17 | M33: =IF(dms_RPT="financial",dms_CRYf_y10,dms_CRYc_y10) -> 2017-18
B34: CORPORATE OVERHEADS | C34: Executive manager | D34: 2790866.725 | E34: 2657973.621 | F34: 3158535.615 | G34: 3254846.798 | H34: 2627790.097 | I34: 3392000.767 | J34: 2752151.713 | K34: 2364170.506
C35: Senior manager | D35: 1527169.993 | E35: 1558282.832 | F35: 1885073.861 | G35: 2407809.242 | H35: 1975253.048 | I35: 4193929.998 | J35: 3322916.708 | K35: 6066748.777
C36: Manager | D36: 5903750.053 | E36: 5754122.624 | F36: 6393573.192 | G36: 7750844.132 | H36: 6924018.565 | I36: 8259113.749 | J36: 9300136.496 | K36: 13585730.87
C37: Professional | D37: 27284319.7 | E37: 23611047.74 | F37: 27725619.38 | G37: 28065482.45 | H37: 23058464.47 | I37: 21934826.09 | J37: 25044264.45 | K37: 22465228.11
C38: Semi professional | D38: 864034.2792 | E38: 850163.7639 | F38: 2387588.908 | G38: 2778810.945 | H38: 2596932.007 | I38: 1924461.859 | J38: 7335421.986 | K38: 7290714.024
C39: Support staff | D39: 15904321.19 | E39: 15472908.39 | F39: 24478713.17 | G39: 24229712.85 | H39: 20455207.59 | I39: 22948807.96 | J39: 22413055.17 | K39: 21784474.65
C40: Intern, junior staff, apprentice | D40: 0 | E40: 0 | F40: 0 | G40: 0 | H40: 0 | I40: 748074.5923 | J40: 377244.4588 | K40: 361735.8226
B41: NETWORK OVERHEADS | C41: Executive manager | D41: 911659.6841 | E41: 454674.147 | F41: 498762.622 | G41: 508235.0281 | H41: 247608.9712 | I41: 68159.77725 | J41: 0 | K41: 1003090.185
C42: Senior manager | D42: 4938468.236 | E42: 4043815.938 | F42: 4952482.676 | G42: 4976178.754 | H42: 4487458.029 | I42: 4244418.722 | J42: 3565065.989 | K42: 5148038.239
C43: Manager | D43: 8275159.071 | E43: 9518252.765 | F43: 9189338.606 | G43: 15097822.42 | H43: 10997036.66 | I43: 13222996.79 | J43: 13292357.69 | K43: 23910261.35
C44: Professional | D44: 46353855.74 | E44: 48617116.3 | F44: 57221397.47 | G44: 66347157.27 | H44: 60416366.28 | I44: 46813144.79 | J44: 53526553.16 | K44: 43427361.3
C45: Semi professional | D45: 49990902.32 | E45: 52947532.17 | F45: 59372334.11 | G45: 62301895.34 | H45: 58825363.98 | I45: 33300679.32 | J45: 36708260.74 | K45: 45668544.65
C46: Support staff | D46: 40673958.99 | E46: 41578521.87 | F46: 42617464.21 | G46: 47190502.26 | H46: 44732074.25 | I46: 31817993.79 | J46: 31103646.18 | K46: 30679685.98
C47: Intern, junior staff, apprentice | D47: 0 | E47: 0 | F47: 0 | G47: 0 | H47: 0 | I47: 31334985 | J47: 32027798.86 | K47: 27045911.41
B48: TOTAL DIRECT NETWORK LABOUR | C48: Skilled electrical worker | D48: 82761037.99 | E48: 104500099.6 | F48: 115453927.7 | G48: 117205384.5 | H48: 113924178.7 | I48: 78502392.34 | J48: 88031288.65 | K48: 90041649.11
C49: Skilled non electical worker | D49: 0 | E49: 0 | F49: 0 | G49: 0 | H49: 0 | I49: 48415320.29 | J49: 52169477.16 | K49: 44287296.81
C50: Apprentice | D50: 26923845.36 | E50: 13183015.69 | F50: 13850087.46 | G50: 14247220.39 | H50: 13774871.83 | I50: 8626839.955 | J50: 9699046.751 | K50: 9433453.892
C51: Unskilled worker | D51: 11460276.41 | E51: 14470577.64 | F51: 15987401.26 | G51: 16229933.01 | H51: 15775570.35 | I51: 8592339.327 | J51: 8828263.539 | K51: 8701299.986
B53: AVERAGE PRODUCTIVE WORK HOURS PER ASL
D54: VOLUME (0's)
B55: INTERNAL LABOUR | D55: =IF(dms_RPT="financial",dms_CRYf_y1,dms_CRYc_y1) -> 2008-09 | E55: =IF(dms_RPT="financial",dms_CRYf_y2,dms_CRYc_y2) -> 2009-10 | F55: =IF(dms_RPT="financial",dms_CRYf_y3,dms_CRYc_y3) -> 2010-11 | G55: =IF(dms_RPT="financial",dms_CRYf_y4,dms_CRYc_y4) -> 2011-12 | H55: =IF(dms_RPT="financial",dms_CRYf_y5,dms_CRYc_y5) -> 2012-13 | I55: =IF(dms_RPT="financial",dms_CRYf_y6,dms_CRYc_y6) -> 2013-14 | J55: =IF(dms_RPT="financial",dms_CRYf_y7,dms_CRYc_y7) -> 2014-15 | K55: =IF(dms_RPT="financial",dms_CRYf_y8,dms_CRYc_y8) -> 2015-16 | L55: =IF(dms_RPT="financial",dms_CRYf_y9,dms_CRYc_y9) -> 2016-17 | M55: =IF(dms_RPT="financial",dms_CRYf_y10,dms_CRYc_y10) -> 2017-18
B56: CORPORATE OVERHEADS | C56: Executive manager
C57: Senior manager
C58: Manager
C59: Professional
C60: Semi professional
C61: Support staff
C62: Intern, junior staff, apprentice
B63: NETWORK OVERHEADS | C63: Executive manager
C64: Senior manager
C65: Manager
C66: Professional
C67: Semi professional
C68: Support staff
C69: Intern, junior staff, apprentice
B70: TOTAL DIRECT NETWORK LABOUR | C70: Skilled electrical worker
C71: Skilled non electical worker
C72: Apprentice
C73: Unskilled worker
B75: STAND DOWN OCCURENCES PER ASL
D76: VOLUME (0's)
B77: INTERNAL LABOUR | D77: =IF(dms_RPT="financial",dms_CRYf_y1,dms_CRYc_y1) -> 2008-09 | E77: =IF(dms_RPT="financial",dms_CRYf_y2,dms_CRYc_y2) -> 2009-10 | F77: =IF(dms_RPT="financial",dms_CRYf_y3,dms_CRYc_y3) -> 2010-11 | G77: =IF(dms_RPT="financial",dms_CRYf_y4,dms_CRYc_y4) -> 2011-12 | H77: =IF(dms_RPT="financial",dms_CRYf_y5,dms_CRYc_y5) -> 2012-13 | I77: =IF(dms_RPT="financial",dms_CRYf_y6,dms_CRYc_y6) -> 2013-14 | J77: =IF(dms_RPT="financial",dms_CRYf_y7,dms_CRYc_y7) -> 2014-15 | K77: =IF(dms_RPT="financial",dms_CRYf_y8,dms_CRYc_y8) -> 2015-16 | L77: =IF(dms_RPT="financial",dms_CRYf_y9,dms_CRYc_y9) -> 2016-17 | M77: =IF(dms_RPT="financial",dms_CRYf_y10,dms_CRYc_y10) -> 2017-18
B78: CORPORATE OVERHEADS | C78: Executive manager
C79: Senior manager
C80: Manager
C81: Professional
C82: Semi professional
C83: Support staff
C84: Intern, junior staff, apprentice
B85: NETWORK OVERHEADS | C85: Executive manager
C86: Senior manager
C87: Manager
C88: Professional
C89: Semi professional
C90: Support staff
C91: Intern, junior staff, apprentice
B92: TOTAL DIRECT NETWORK LABOUR | C92: Skilled electrical worker
C93: Skilled non electical worker
C94: Apprentice
C95: Unskilled worker

Sheet 2.12 Input tables
B1: REGULATORY REPORTING STATEMENT
B2: =INDEX(dms_TradingNameFull_List,MATCH(dms_TradingName,dms_TradingName_List)) -> Ergon Energy
B3: =IF(SUM(dms_SingleYear_Model)>0,("CATEGORY ANALYSIS "&CRY&" to "&FRY),("CATEGORY ANALYSIS "&CRY)) -> CATEGORY ANALYSIS 2008-09 to 2017-18
B4: 2.12 INPUT TABLES
B6: There are SIX tables on this worksheet. Each table has been 'grouped' for easy navigation. See the Instructions sheet on how to group or ungroup data.
B8: 2.12 INPUT TABLES
B9: 2.12.1 - DIRECT MATERIALS EXPENDITURE
D10: EXPENDITURE
D11: Actual ($0's)
D12: =IF(dms_RPT="financial",dms_CRYf_y1,dms_CRYc_y1) -> 2008-09 | E12: =IF(dms_RPT="financial",dms_CRYf_y2,dms_CRYc_y2) -> 2009-10 | F12: =IF(dms_RPT="financial",dms_CRYf_y3,dms_CRYc_y3) -> 2010-11 | G12: =IF(dms_RPT="financial",dms_CRYf_y4,dms_CRYc_y4) -> 2011-12 | H12: =IF(dms_RPT="financial",dms_CRYf_y5,dms_CRYc_y5) -> 2012-13 | I12: =IF(dms_RPT="financial",dms_CRYf_y6,dms_CRYc_y6) -> 2013-14 | J12: =IF(dms_RPT="financial",dms_CRYf_y7,dms_CRYc_y7) -> 2014-15 | K12: =IF(dms_RPT="financial",dms_CRYf_y8,dms_CRYc_y8) -> 2015-16 | L12: =IF(dms_RPT="financial",dms_CRYf_y9,dms_CRYc_y9) -> 2016-17 | M12: =IF(dms_RPT="financial",dms_CRYf_y10,dms_CRYc_y10) -> 2017-18
B13: VEGETATION MANAGEMENT | C13: Zone 1 | D13: 90000 | E13: 78000 | F13: 184000 | G13: 165000 | H13: 156000 | I13: 788000 | J13: 169672 | K13: 43199 | L13: 185774.1931 | M13: 59930.59666
C14: Zone 2 | D14: 61000 | E14: 53000 | F14: 124000 | G14: 111000 | H14: 142000 | I14: 733000 | J14: 319441 | K14: 102420 | L14: 108730.8069 | M14: 224658.1983
C15: Zone 3 | D15: 73000 | E15: 64000 | F15: 150000 | G15: 133000 | H15: 145000 | I15: 1092000 | J15: 517662 | K15: 267986 | L15: 151819.833 | M15: 292515.4765
C16: Zone 4
C17: Zone 5
C18: Zone 6
C19: Zone 7
C20: Zone 8
C21: Zone 9
C22: Zone 10
C23: Zone 11
C24: Zone 12
C25: Zone 13
C26: Zone 14
C27: Zone 15
C28: Zone 16
C29: Zone 17
C30: Zone 18
B31: ROUTINE MAINTENANCE | C31: Pole top, overhead line & service line maintenance | D31: 0 | E31: 25179.61229 | F31: 59685.00691 | G31: 44763.75518 | H31: 64347.89808 | I31: 8393.204097 | J31: 37297.53385 | K31: 98258.30779 | L31: 18565.16977 | M31: 19872.13303
C32: Pole inspection and treatment | D32: 806680.1715 | E32: 400076.062 | F32: 663063.1237 | G32: 498929.3547 | H32: 546490.8445 | I32: 368368.402 | J32: 548562.1008 | K32: 532306.3296 | L32: 384677.4393 | M32: 389548.6037
C33: Overhead asset inspection | D33: 35437.97285 | E33: 18651.56466 | F33: 39168.28579 | G33: 29842.50346 | H33: 13988.6735 | I33: 8393.204097 | J33: 26830.27576 | K33: 414.0647355 | L33: 0 | M33: 0
C34: Network underground cable maintenance | D34: 0 | E34: 0 | F34: 0 | G34: 0 | H34: 0 | I34: 0 | J34: 6136.364773 | K34: 2116.952589 | L34: 3424.728475 | M34: 1237.148426
C35: Distribution substation equipment & property maintenance | D35: 82999.46274 | E35: 64347.89808 | F35: 157605.7214 | G35: 118437.4356 | H35: 134291.2656 | I35: 72741.10217 | J35: 163332.6843 | K35: 209073.7815 | L35: 125162.3859 | M35: 88696.98943
C36: Zone substation equipment maintenance | D36: 151077.6737 | E36: 97920.71447 | F36: 223818.7759 | G36: 116572.2791 | H36: 204234.633 | I36: 122167.7485 | J36: 82390.48915 | K36: 115873.778 | L36: 101689.7757 | M36: 77088.70731
C37: Zone substation property maintenance | D37: 8393.204097 | E37: 4662.891165 | F37: 8393.204097 | G37: 4662.891165 | H37: 24247.03406 | I37: 17718.98643 | J37: 41756.19038 | K37: 29645.72945 | L37: 30876.72618 | M37: 30364.56883
C38: Public lighting maintenance | D38: 122167.7485 | E38: 32640.23816 | F38: 0 | G38: 0 | H38: 0 | I38: 0 | J38: 0 | K38: 0 | L38: 0 | M38: 0
C39: Scada & network control maintenance | D39: 1865.156466 | E39: 932.578233 | F39: 1865.156466 | G39: 932.578233 | H39: 932.578233 | I39: 5595.469398 | J39: 6722.023903 | K39: 1481.866812 | L39: 247.6014855 | M39: 19.66107255
C40: Protection systems maintenance | D40: 35437.97285 | E40: 18651.56466 | F40: 34505.39462 | G40: 13056.09526 | H40: 25179.61229 | I40: 18651.56466 | J40: 16580.3084 | K40: 24451.26869 | L40: 26112.49558 | M40: 21606.29051
C41: Subtransmission asset maintenance - for dnsps with dual function assets | D41: 0 | E41: 0 | F41: 0 | G41: 0 | H41: 0 | I41: 0 | J41: 0 | K41: 0 | L41: 0 | M41: 0
C42: Other | D42: 361840.3544 | E42: 135223.8438 | F42: 166931.5037 | G42: 108179.075 | H42: 101651.0274 | I42: 110044.2315 | J42: 256274.3636 | K42: 231824.9601 | L42: 117959.3954 | M42: 107832.482
B43: NON-ROUTINE MAINTENANCE | C43: Pole top, overhead line & service line maintenance | D43: 630422.8855 | E43: 470019.4294 | F43: 1042622.464 | G43: 1470675.873 | H43: 1716876.527 | I43: 1622657.215 | J43: 1935588.504 | K43: 1540983.879 | L43: 1279865.59 | M43: 1470962.55
C44: Pole inspection and treatment | D44: 14921.25173 | E44: 11190.9388 | F44: 25179.61229 | G44: 35437.97285 | H44: 41033.44225 | I44: 38634.85104 | J44: 46085.21854 | K44: 36689.49284 | L44: 31216.23391 | M44: 31975.55949
C45: Overhead asset inspection | D45: 14921.25173 | E45: 11190.9388 | F45: 25179.61229 | G45: 35437.97285 | H45: 41033.44225 | I45: 38634.85104 | J45: 46085.21854 | K45: 36689.49284 | L45: 31216.23391 | M45: 31975.55949
C46: Network underground cable maintenance | D46: 29842.50346 | E46: 22381.87759 | F46: 49426.64635 | G46: 69943.36748 | H46: 82066.8845 | I46: 77269.70207 | J46: 92170.43708 | K46: 73379.91826 | L46: 31216.23391 | M46: 31975.55949
C47: Distribution substation equipment & property maintenance | D47: 74606.25864 | E47: 55954.69398 | F47: 124032.905 | G47: 175324.7078 | H47: 204234.633 | I47: 193173.3226 | J47: 230427.0253 | K47: 183450.2619 | L47: 156081.1696 | M47: 159877.7974
C48: Zone substation equipment maintenance | D48: 271380.2658 | E48: 319874.3339 | F48: 1000656.444 | G48: 1242194.206 | H48: 1149868.961 | I48: 893636.5637 | J48: 1219043.884 | K48: 1173175.956 | L48: 1114381.382 | M48: 1600476.789
C49: Zone substation property maintenance | D49: 11190.9388 | E49: 13056.09526 | F49: 41966.02049 | G49: 52224.38105 | H49: 47561.48988 | I49: 37235.05111 | J49: 50793.80604 | K49: 48882.02066 | L49: 46432.55759 | M49: 64974.42151
C50: Public lighting maintenance | D50: 188380.8031 | E50: 136156.422 | F50: 0 | G50: 0 | H50: 0 | I50: 0 | J50: 0 | K50: 0 | L50: 0 | M50: 0
C51: SCADA & network control maintenance | D51: 61550.16338 | E51: 52224.38105 | F51: 129628.3744 | G51: 164133.769 | H51: 146414.7826 | I51: 114204.463 | J51: 149414.8868 | K51: 132008.314 | L51: 137368.336 | M51: 130850.894
C52: Protection systems maintenance | D52: 30775.08169 | E52: 24247.03406 | F52: 85797.19744 | G52: 104448.7621 | H52: 192111.116 | I52: 171088.9375 | J52: 168744.4358 | K52: 205571.0176 | L52: 143585.6148 | M52: 179836.5648
C53: Subtransmission asset maintenance - for DNSP with dual function assets | D53: 0 | E53: 0 | F53: 0 | G53: 0 | H53: 0 | I53: 0 | J53: 0 | K53: 0 | L53: 0 | M53: 0
C54: Other | D54: 188380.8031 | E54: 173459.5513 | F54: 341323.6333 | G54: 494266.4635 | H54: 635085.7767 | I54: 193396.2088 | J54: 739209.069 | K54: 685517.7424 | L54: 519087.901 | M54: 702723.4376
B55: OVERHEADS | C55: Network overheads | D55: 2399603.576 | E55: 4283230.217 | F55: 5940728.413 | G55: 8006190.299 | H55: 6296628.166 | I55: 8464082.529 | J55: 7525135.056 | K55: 4866812.564 | L55: 8196315.811 | M55: 3796694.944
C56: Corporate overheads | D56: 1655586.405 | E56: 1168616.147 | F56: 1952820.573 | G56: 1673868.055 | H56: 1191947.339 | I56: 248829.9735 | J56: -204811.1864 | K56: 202358.1817 | L56: 90708.81376 | M56: -355418.3304
B57: AUGMENTATION | C57: Subtransmission substations, switching stations, zone substations | D57: 25740000 | E57: 11619000 | F57: 16066000 | G57: 14288000 | H57: 9779000 | I57: 13303000 | J57: 10558909 | K57: 6284261 | L57: 4314605.17 | M57: 3115731.608
C58: Subtransmission lines | D58: 9398000 | E58: 4358000 | F58: 3583000 | G58: 2857000 | H58: 2077000 | I58: 3377000 | J58: 5349697 | K58: 1226934 | L58: 1051248.673 | M58: 356349.4791
C59: HV feeders | D59: 7346000 | E59: 5754000 | F59: 9116000 | G59: 14837000 | H59: 12785000 | I59: 16463000 | J59: 28965272 | K59: 10125015 | L59: 4393940.023 | M59: 6842984.762
C60: Distribution substations | D60: 1850000 | E60: 1805000 | F60: 3627000 | G60: 3952000 | H60: 2820000 | I60: 4478000 | J60: 2662513 | K60: 1347893 | L60: 925865.5664 | M60: 1015882.755
C61: LV feeders | D61: 802000 | E61: 349000 | F61: 687000 | G61: 679000 | H61: 753000 | I61: 642000 | J61: 2130432 | K61: 936338 | L61: 361199.3893 | M61: 691276.9803
C62: Other assets | D62: 560000 | E62: 2504000 | F62: 9327000 | G62: 6167000 | H62: 3822000 | I62: 782000 | J62: 1003686 | K62: 89699 | L62: 751738.5155 | M62: 623154.1004
B63: CONNECTIONS | C63: Simple and complex customer connections | D63: 58461000 | E63: 49192000 | F63: 41168000 | G63: 35349000 | H63: 30201000 | I63: 31045000 | J63: 28145119 | K63: 27214905.14 | L63: 20626257.21 | M63: 22734714
B64: EMERGENCY RESPONSE | C64: Major storms | D64: 10323.13749 | E64: 230550.0705 | F64: 1957094.815 | G64: 0 | H64: 0 | I64: 409167.8774 | J64: 463183.6943 | K64: 29297.06418 | L64: 557736.1905 | M64: 184934.8626
C65: Major event days | D65: 2580.784371 | E65: 26668.10517 | F65: 27528.36663 | G65: 190117.782 | H65: 865423.0259 | I65: 162309.8304 | J65: 64400.03294 | K65: 71967.75298 | L65: 142357.0876 | M65: 131817.7662
B66: PUBLIC LIGHTING | C66: All public lighting services | D66: 1974900.246 | E66: 1761870.217 | F66: 2386182.344 | G66: 3942250.868 | H66: 2727508.784 | I66: 4591846.436 | J66: 4283763.524 | K66: 4408559.855 | L66: 3374248.595 | M66: 2407802.394
B67: METERING | C67: All metering services | D67: 3429224.545 | E67: 4794023.39 | F67: 4213229.368 | G67: 4927003.213 | H67: 4956275.497 | I67: 4137961.342 | J67: 7600439.433 | K67: 5193681.764 | L67: 5917903.537 | M67: 3232719.059
B68: FEE-BASED SERVICES | C68: All fee-based services | D68: 13000 | E68: 23000 | F68: 10000 | G68: 17000 | H68: 10000 | I68: 8000 | J68: 1557
B69: QUOTED SERVICES | C69: All quoted services | D69: 10348716.2 | E69: 6211227.632 | F69: 6626328.622 | G69: 13431949.2 | H69: 14837465.93 | I69: 9503561.265 | J69: 9142368.111 | K69: 7326435.996 | L69: 7630624.162 | M69: 5652192.808
B70: REPLACEMENT | C70: Poles | D70: 1946523.008 | E70: 2088022.351 | F70: 4528886.011 | G70: 4731157.507 | H70: 6362028.135 | I70: 5551128.056 | J70: 10185333.15 | K70: 6214304.636 | L70: 7140650.397 | M70: 10644186.69
C71: Pole top structures | D71: 854438.3381 | E71: 1090270.576 | F71: 2606853.274 | G71: 2748352.616 | H71: 2545174.073 | I71: 2306620.694 | J71: 4630456.711 | K71: 3463572.835 | L71: 3757635.728 | M71: 6485304.482
C72: Overhead conductors | D72: 3389634.893 | E72: 4434553.116 | F72: 8161609.518 | G72: 10519024.85 | H72: 7239142.65 | I72: 4920730.344 | J72: 11209533.79 | K72: 5387739.854 | L72: 5265171.956 | M72: 3021346.681
C73: Underground cables | D73: 374610.4391 | E73: 119730.213 | F73: 311117.1443 | G73: 345584.9329 | H73: 275742.3087 | I73: 222226.5317 | J73: 912934.7731 | K73: 664051.8796 | L73: 466807.6328 | M73: 1226585.882
C74: Service lines | D74: 616792.0063 | E74: 613163.818 | F74: 1366012.884 | G74: 2756516.04 | H74: 1558306.863 | I74: 1525653.168 | J74: 4729771.646 | K74: 1684852.628 | L74: 1841017.105 | M74: 1272516.621
C75: Transformers | D75: 6891743.623 | E75: 5406907.573 | F75: 8007411.517 | G75: 6271323.428 | H75: 8577037.075 | I75: 6630514.067 | J75: 10132757.74 | K75: 6072136.799 | L75: 6756438.794 | M75: 9775718.622
C76: Switchgear | D76: 2433607.284 | E76: 2792797.922 | F76: 4311194.714 | G76: 6056353.273 | H76: 7587448.724 | I76: 2688487.51 | J76: 7718827.088 | K76: 3758559.961 | L76: 3639809.155 | M76: 8602258.946
C77: Public lighting | D77: 0 | E77: 0 | F77: 0 | G77: 0 | H77: 0 | I77: 0 | J77: 0 | K77: 0 | L77: 282451.3001 | M77: 772216.2251
C78: SCADA network control and protection systems | D78: 1643554.775 | E78: 2500342.365 | F78: 5289281.709 | G78: 5336325.705 | H78: 4300510.607 | I78: 4316938.136 | J78: 2929724.019 | K78: 3530007.683 | L78: 2690860.137 | M78: 1743478.289
C79: Other | D79: 1872160.568 | E79: 611351.5379 | F79: 628386.7889 | G79: 3485849.911 | H79: 1228148.079 | I79: 1371478.75 | J79: 3155571.978 | K79: 1573882.675 | L79: 488782.9389 | M79: 2139688.097
B80: NON-NETWORK EXPENDITURE | C80: IT and communications | D80: 1232709.992 | E80: 1297598.24 | F80: 1483694.297 | G80: 1784563.784 | H80: 1859969.008 | I80: 1871213.65 | J80: 2219122.367 | K80: 2480184.944 | L80: 2637228.468 | M80: 2571529.537
C81: Motor vehicles | D81: 14702647.8 | E81: 12583117.83 | F81: 14289392.98 | G81: 14250912.4 | H81: 12049392.4 | I81: 8654079.157 | J81: 11533463.02 | K81: 10038448.99 | L81: 9369098.088 | M81: 6507362.669
C82: Buildings and property | D82: 2872671.736 | E82: 4697054.825 | F82: 6435390.07 | G82: 4411081.929 | H82: 3047711.146 | I82: 366535.2607 | J82: 378279.1477 | K82: 149901.2927 | L82: 361314.0335 | M82: 195322.7199
C83: Other | D83: 0 | E83: 0 | F83: 0 | G83: 0 | H83: 0 | I83: 0 | J83: 4400683.148 | K83: 5845215.528 | L83: 3614613.556 | M83: 2598180.563
B86: 2.12.2 - DIRECT LABOUR EXPENDITURE
D87: EXPENDITURE
D88: Actual ($0's)
D89: =IF(dms_RPT="financial",dms_CRYf_y1,dms_CRYc_y1) -> 2008-09 | E89: =IF(dms_RPT="financial",dms_CRYf_y2,dms_CRYc_y2) -> 2009-10 | F89: =IF(dms_RPT="financial",dms_CRYf_y3,dms_CRYc_y3) -> 2010-11 | G89: =IF(dms_RPT="financial",dms_CRYf_y4,dms_CRYc_y4) -> 2011-12 | H89: =IF(dms_RPT="financial",dms_CRYf_y5,dms_CRYc_y5) -> 2012-13 | I89: =IF(dms_RPT="financial",dms_CRYf_y6,dms_CRYc_y6) -> 2013-14 | J89: =IF(dms_RPT="financial",dms_CRYf_y7,dms_CRYc_y7) -> 2014-15 | K89: =IF(dms_RPT="financial",dms_CRYf_y8,dms_CRYc_y8) -> 2015-16 | L89: =IF(dms_RPT="financial",dms_CRYf_y9,dms_CRYc_y9) -> 2016-17 | M89: =IF(dms_RPT="financial",dms_CRYf_y10,dms_CRYc_y10) -> 2017-18
B90: VEGETATION MANAGEMENT | C90: =IF(ISBLANK(C13)," ",C13) -> Zone 1 | D90: 761000 | E90: 756000 | F90: 625000 | G90: 682000 | H90: 395000 | I90: 392000 | J90: 691784.241 | K90: 752828 | L90: 642505.737 | M90: 788640.9658
C91: =IF(ISBLANK(C14)," ",C14) -> Zone 2 | D91: 513000 | E91: 510000 | F91: 421000 | G91: 458000 | H91: 359000 | I91: 381000 | J91: 491083.8556 | K91: 723356 | L91: 473351.0863 | M91: 510892.3902
C92: Zone 3 | D92: 619000 | E92: 615000 | F92: 509000 | G92: 551000 | H92: 365000 | I92: 487000 | J92: 658214.4577 | K92: 592797 | L92: 562384.6401 | M92: 651095.5606
C93: Zone 4
C94: Zone 5
C95: Zone 6
C96: Zone 7
C97: Zone 8
C98: Zone 9
C99: Zone 10
C100: Zone 11
C101: Zone 12
C102: Zone 13
C103: Zone 14
C104: Zone 15
C105: Zone 16
C106: Zone 17
C107: Zone 18
B108: ROUTINE MAINTENANCE | C108: Pole top, overhead line & service line maintenance | D108: 0 | E108: 192111.116 | F108: 283503.7828 | G108: 333863.0074 | H108: 428053.4089 | I108: 80201.72804 | J108: 289675.0155 | K108: 685582.0903 | L108: 209622.9589 | M108: 258394.6665
C109: Pole inspection and treatment | D109: 3039272.461 | E109: 3006632.223 | F109: 3153979.584 | G109: 3708863.633 | H109: 3620268.701 | I109: 3495303.217 | J109: 4260550.381 | K109: 3714102.857 | L109: 4343468.121 | M109: 5065247.973
C110: Overhead asset inspection | D110: 134291.2656 | E110: 142684.4696 | F110: 187448.2248 | G110: 220088.463 | H110: 93257.8233 | I110: 82999.46274 | J110: 208387.8967 | K110: 2891.925101 | L110: 0 | M110: 0
C111: Network underground cable maintenance | D111: 0 | E111: 0 | F111: 0 | G111: 0 | H111: 0 | I111: 0 | J111: 47657.36135 | K111: 14772.03921 | L111: 38669.2783 | M111: 16086.47418
C112: Distribution substation equipment & property maintenance | D112: 312413.7081 | E112: 486805.8376 | F112: 749792.8993 | G112: 881286.4302 | H112: 888747.056 | I112: 692905.6271 | J112: 1268563.699 | K112: 1458784.568 | L112: 1413232.952 | M112: 1153314.995
C113: Zone substation equipment maintenance | D113: 567940.1439 | E113: 734871.6476 | F113: 1066869.499 | G113: 863567.4438 | H113: 1354103.594 | I113: 1155464.431 | J113: 639907.2273 | K113: 808498.6991 | L113: 1148199.125 | M113: 1002374.068
C114: Zone substation property maintenance | D114: 32640.23816 | E114: 36370.55109 | F114: 40100.86402 | G114: 37303.12932 | H114: 160403.4561 | I114: 171594.3949 | J114: 324305.6897 | K114: 206852.3801 | L114: 348635.1477 | M114: 394826.3946
C115: Public lighting maintenance | D115: 461626.2253 | E115: 248998.3882 | F115: 0 | G115: 0 | H115: 0 | I115: 0 | J115: 0 | K115: 10340.42745 | L115: 0 | M115: 0
C116: Scada & network control maintenance | D116: 7460.625864 | E116: 8393.204097 | F116: 11190.9388 | G116: 6528.047631 | H116: 4662.891165 | I116: 55954.69398 | J116: 52210.14204 | K116: 170603.0642 | L116: 2795.716746 | M116: 255.6502755
C117: Protection systems maintenance | D117: 132426.1091 | E117: 141751.8914 | F117: 164133.769 | G117: 99785.87093 | H117: 166931.5037 | I117: 179987.599 | J117: 128770.71 | K117: 173035.2282 | L117: 294841.2891 | M117: 280943.6824
C118: Subtransmission asset maintenance - for dnsps with dual function assets | D118: 0 | E118: 0 | F118: 0 | G118: 0 | H118: 0 | I118: 0 | J118: 0 | K118: 0 | L118: 0 | M118: 0
C119: Other | D119: 1360631.642 | E119: 1017442.852 | F119: 792691.4981 | G119: 806680.1715 | H119: 677051.7972 | I119: 1050083.09 | J119: 252715.8199 | K119: 1617529.9 | L119: 1331902.579 | M119: 1402131.225
B120: NON-ROUTINE MAINTENANCE | C120: Pole top, overhead line & service line maintenance | D120: 5875242.868 | E120: 5463975.867 | F120: 4569633.342 | G120: 5769861.528 | H120: 6150353.447 | I120: 5709243.942 | J120: 7218826.501 | K120: 5769595.743 | L120: 4902203.155 | M120: 5054696.64
C121: Pole inspection and treatment | D121: 139886.735 | E121: 129628.3744 | F121: 109111.6533 | G121: 138021.5785 | H121: 146414.7826 | I121: 136156.422 | J121: 171877.0283 | K121: 137371.5715 | L121: 119565.9306 | M121: 109878.2244
C122: Overhead asset inspection | D122: 139886.735 | E122: 129628.3744 | F122: 109111.6533 | G122: 138021.5785 | H122: 146414.7826 | I122: 136156.422 | J122: 171877.0283 | K122: 137371.5715 | L122: 119565.9306 | M122: 109878.2244
C123: Network underground cable maintenance | D123: 279773.4699 | E123: 260189.327 | F123: 217290.7283 | G123: 275110.5787 | H123: 292829.5652 | I123: 272312.844 | J123: 343754.0566 | K123: 274742.2103 | L123: 119565.9306 | M123: 109878.2244
C124: Distribution substation equipment & property maintenance | D124: 700366.253 | E124: 650939.6066 | F124: 543693.1098 | G124: 687310.1577 | H124: 733006.4911 | I124: 679849.5319 | J124: 859384.2728 | K124: 686855.9921 | L124: 597829.653 | M124: 549391.1218
C125: Zone substation equipment maintenance | D125: 2532882.481 | E125: 3719121.993 | F125: 4388713.165 | G125: 4873653.846 | H125: 4123860.946 | I125: 3144653.802 | J125: 4546454.581 | K125: 4392486.376 | L125: 4268357.528 | M125: 5499748.887
C126: Zone substation property maintenance | D126: 105381.3403 | E126: 154807.9867 | F126: 182785.3337 | G126: 203302.0548 | H126: 171594.3949 | I126: 130560.9526 | J126: 189435.6438 | K126: 183020.3434 | L126: 177848.2303 | M126: 223272.8427
C127: Public lighting maintenance | D127: 1759775.126 | E127: 1585382.996 | F127: 0 | G127: 0 | H127: 0 | I127: 0 | J127: 0 | K127: 0 | L127: 0 | M127: 0
C128: SCADA & network control maintenance | D128: 570737.8786 | E128: 608041.0079 | F128: 567007.5657 | G128: 644411.559 | H128: 525041.5452 | I128: 401941.2184 | J128: 557247.3234 | K128: 494253.4074 | L128: 526154.852 | M128: 449645.4203
C129: Protection systems maintenance | D129: 284436.3611 | E129: 276975.7352 | F129: 376761.6061 | G129: 408469.2661 | H129: 687310.1577 | I129: 602445.5385 | J129: 629335.9138 | K129: 769678.265 | L129: 549968.574 | M129: 617975.8143
C130: Subtransmission asset maintenance - for DNSP with dual function assets | D130: 0 | E130: 0 | F130: 0 | G130: 0 | H130: 0 | I130: 0 | J130: 0 | K130: 0 | L130: 0 | M130: 0
C131: Other | D131: 1759775.126 | E131: 2008773.514 | F131: 1495855.486 | G131: 1936964.99 | H131: 2277356.045 | I131: 680782.1101 | J131: 2756900.722 | K131: 2566648.341 | L131: 1988235.612 | M131: 2414781.939
B132: OVERHEADS | C132: Network overheads | D132: 143602442.1 | E132: 147345606.1 | F132: 158662130.4 | G132: 178349292.5 | H132: 164927675.6 | I132: 130109548.1 | J132: 148578761.5 | K132: 154391215.2 | L132: 112364009 | M132: 98360372.65
C133: Corporate overheads | D133: 41568185.33 | E133: 38810551.56 | F133: 49797889.05 | G133: 51739276.39 | H133: 46524907.23 | I133: 44321736.05 | J133: 46612702.44 | K133: 48841814.88 | L133: 24247709.16 | M133: 23855433.18
B134: AUGMENTATION | C134: Subtransmission substations, switching stations, zone substations | D134: 18855000 | E134: 15218000 | F134: 10407000 | G134: 9831000 | H134: 7694000 | I134: 9171000 | J134: 7097411.682 | K134: 7251970 | L134: 4056466.422 | M134: 3230305.052
C135: Subtransmission lines | D135: 6884000 | E135: 5708000 | F135: 2321000 | G135: 1966000 | H135: 1634000 | I135: 2328000 | J135: 3595920.802 | K135: 1415868 | L135: 988353.4587 | M135: 369453.3636
C136: HV feeders | D136: 5381000 | E136: 7537000 | F136: 5905000 | G136: 10209000 | H136: 10060000 | I136: 11350000 | J136: 19469667.49 | K136: 11684159 | L136: 4131054.745 | M136: 7094618.866
C137: Distribution substations | D137: 1355000 | E137: 2364000 | F137: 2349000 | G137: 2719000 | H137: 2219000 | I137: 3088000 | J137: 1789668.575 | K137: 155454 | L137: 870471.9048 | M137: 1053239.37
C138: LV feeders | D138: 587000 | E138: 457000 | F138: 445000 | G138: 467000 | H138: 592000 | I138: 443000 | J138: 1432018.832 | K138: 1080524 | L138: 339589.1713 | M138: 716697.0082
C139: Other assets | D139: 411000 | E139: 3279000 | F139: 6042000 | G139: 4243000 | H139: 3008000 | I139: 539000 | J139: 674650.9063 | K139: 103512 | L139: 706762.7107 | M139: 646069.0753
B140: CONNECTIONS | C140: Simple and complex customer connections | D140: 27970000 | E140: 23119000 | F140: 19947000 | G140: 17812000 | H140: 15612000 | I140: 22656000 | J140: 19068339.39 | K140: 23340677.97 | L140: 18498493.53 | M140: 22603495.86
B141: EMERGENCY RESPONSE | C141: Major storms | D141: 73982.48532 | E141: 1058981.854 | F141: 9905910.679 | G141: 0 | H141: 0 | I141: 2201409.069 | J141: 3234427.763 | K141: 227886.701 | L141: 3743116.695 | M141: 1077047.871
C142: Major event days | D142: 15484.70623 | E142: 124737.9113 | F142: 133340.5259 | G142: 1145868.261 | H142: 3393731.448 | I142: 873165.379 | J142: 449708.2998 | K142: 559804.8201 | L142: 955396.4766 | M142: 767697.5691
B143: PUBLIC LIGHTING | C143: All public lighting services | D143: 2007275.639 | E143: 2070869.785 | F143: 2626015.705 | G143: 2627150.05 | H143: 1713075.014 | I143: 3356713.676 | J143: 3816905.848 | K143: 4721584.054 | L143: 3548239.71 | M143: 3698721.626
B144: METERING | C144: All metering services | D144: 8306101.179 | E144: 11611850.67 | F144: 10205079.79 | G144: 11933948.2 | H144: 12004849.57 | I144: 10022769.1 | J144: 12124621.51 | K144: 10479628.56 | L144: 9422599.897 | M144: 7215464.05
B145: FEE-BASED SERVICES | C145: All fee-based services | D145: 1407000 | E145: 1357000 | F145: 1412000 | G145: 1427000 | H145: 1032000 | I145: 1337000 | J145: 883443.7411 | K145: 819865 | L145: 767261.9312 | M145: 1223362.776
B146: QUOTED SERVICES | C146: All quoted services | D146: 3755000 | E146: 4310000 | F146: 2172000 | G146: 6216000 | H146: 8863000 | I146: 7865000 | J146: 10270672.03 | K146: 15502332 | L146: 19139899.15 | M146: 16228674.26
B147: REPLACEMENT | C147: Poles | D147: 2410931.107 | E147: 2882595.582 | F147: 4681269.918 | G147: 4695782.671 | H147: 6797410.728 | I147: 6882673.152 | J147: 8415299.408 | K147: 10594613.62 | L147: 11852706.71 | M147: 15390625.68
C148: Pole top structures | D148: 1058523.928 | E148: 1504791.086 | F148: 2694836.839 | G148: 2728397.581 | H148: 2719327.11 | I148: 2860826.453 | J148: 3825763.67 | K148: 5904959.861 | L148: 6237268.558 | M148: 9377221.261
C149: Overhead conductors | D149: 4196906.784 | E149: 6120753.615 | F149: 8436444.78 | G149: 10441018.8 | H149: 7734390.349 | I149: 6100798.58 | J149: 9261511.768 | K149: 9185424.383 | L149: 8739615.511 | M149: 4368620.844
C150: Underground cables | D150: 463501.0518 | E150: 165082.5664 | F150: 322001.7092 | G150: 342863.7917 | H150: 293883.25 | I150: 275742.3087 | J150: 754282.835 | K150: 1132126.263 | L150: 774850.1401 | M150: 1773543.131
C151: Service lines | D151: 763733.6313 | E151: 845367.8674 | F151: 1412272.285 | G151: 2735653.957 | H151: 1664431.37 | I151: 1891193.137 | J151: 3907819.459 | K151: 2872463.866 | L151: 3055889.111 | M151: 1839955.232
C152: Transformers | D152: 8538034.051 | E152: 7459555.087 | F152: 8274990.402 | G152: 6222342.887 | H152: 9170245.858 | I152: 8222381.672 | J152: 8371860.544 | K152: 10352236.13 | L152: 11214957.04 | M152: 14134891.7
C153: Switchgear | D153: 3014117.407 | E153: 3854950.039 | F153: 4456322.245 | G153: 6011907.967 | H153: 8107186.694 | I153: 3333397.975 | J153: 6377429.114 | K153: 6407875.736 | L153: 6041689.202 | M153: 12438164.73
C154: Public lighting | D154: 0 | E154: 0 | F154: 0 | G154: 0 | H154: 0 | I154: 0 | J154: 0 | K154: 0 | L154: 468838.5839 | M154: 1116561.67
C155: SCADA network control and protection systems | D155: 2436283.979 | E155: 3706321.307 | F155: 7840438.664 | G155: 7910173.35 | H155: 6374757.634 | I155: 6399107.312 | J155: 2420589.139 | K155: 6018223.736 | L155: 4466536.551 | M155: 2520927.387
C156: Other | D156: 2318087.583 | E156: 843775.0928 | F156: 649577.2225 | G156: 3460041.701 | H156: 1312332.025 | I156: 1701087.863 | J156: 2607188.734 | K156: 2683273.803 | L156: 811326.7697 | M156: 3093814.45
B157: NON-NETWORK EXPENDITURE | C157: IT and communications | D157: 8609365.948 | E157: 9062551.758 | F157: 10362264.64 | G157: 12463566.27 | H157: 12990203.66 | I157: 13068737.32 | J157: 15498565.49 | K157: 17321851.81 | L157: 18418658.99 | M157: 17959811.3
C158: Motor vehicles | D158: 0 | E158: 0 | F158: 0 | G158: 0 | H158: 0 | I158: 0 | J158: 0 | K158: 0 | L158: 0 | M158: 0
C159: Buildings and property | D159: 195477.4732 | E159: 301471.4273 | F159: 438958.3967 | G159: 317469.911 | H159: 217479.3879 | I159: 586455.9172 | J159: 950506.7303 | K159: 492099.3601 | L159: 386364.6315 | M159: 381725.9344
C160: Other | D160: 0 | E160: 0 | F160: 0 | G160: 0 | H160: 0 | I160: 0 | J160: 0 | K160: 0 | L160: 0 | M160: 0
B163: 2.12.3 - CONTRACT EXPENDITURE
D164: EXPENDITURE
D165: Actual ($0's)
D166: =IF(dms_RPT="financial",dms_CRYf_y1,dms_CRYc_y1) -> 2008-09 | E166: =IF(dms_RPT="financial",dms_CRYf_y2,dms_CRYc_y2) -> 2009-10 | F166: =IF(dms_RPT="financial",dms_CRYf_y3,dms_CRYc_y3) -> 2010-11 | G166: =IF(dms_RPT="financial",dms_CRYf_y4,dms_CRYc_y4) -> 2011-12 | H166: =IF(dms_RPT="financial",dms_CRYf_y5,dms_CRYc_y5) -> 2012-13 | I166: =IF(dms_RPT="financial",dms_CRYf_y6,dms_CRYc_y6) -> 2013-14 | J166: =IF(dms_RPT="financial",dms_CRYf_y7,dms_CRYc_y7) -> 2014-15 | K166: =IF(dms_RPT="financial",dms_CRYf_y8,dms_CRYc_y8) -> 2015-16 | L166: =IF(dms_RPT="financial",dms_CRYf_y9,dms_CRYc_y9) -> 2016-17 | M166: =IF(dms_RPT="financial",dms_CRYf_y10,dms_CRYc_y10) -> 2017-18
B167: VEGETATION MANAGEMENT | C167: =IF(ISBLANK(C13)," ",C13) -> Zone 1 | D167: 17784000 | E167: 19882000 | F167: 18536000 | G167: 22451000 | H167: 14106000 | I167: 12641000 | J167: 16211159 | K167: 11805040 | L167: 13210400.06 | M167: 14340554.68
C168: Zone 2 | D168: 11991000 | E168: 13405000 | F168: 12499000 | G168: 15057000 | H168: 12818000 | I168: 12630000 | J168: 13062389 | K168: 13894881 | L168: 14687811.05 | M168: 11285227.31
C169: Zone 3 | D169: 14473000 | E169: 16180000 | F169: 15085000 | G169: 18119000 | H169: 13052000 | I169: 13772000 | J169: 15668164 | K169: 11457472 | L169: 12520283.32 | M169: 13794079.4
C170: Zone 4
C171: Zone 5
C172: Zone 6
C173: Zone 7
C174: Zone 8
C175: Zone 9
C176: Zone 10
C177: Zone 11
C178: Zone 12
C179: Zone 13
C180: Zone 14
C181: Zone 15
C182: Zone 16
C183: Zone 17
C184: Zone 18
B185: ROUTINE MAINTENANCE | C185: Pole top, overhead line & service line maintenance | D185: 0 | E185: 817871.1103 | F185: 1003454.179 | G185: 1504248.69 | H185: 1935099.833 | I185: 264852.2182 | J185: 864334.0231 | K185: 2454180.339 | L185: 554237.3769 | M185: 769018.9752
C186: Pole inspection and treatment | D186: 13704237.13 | E186: 12830411.33 | F186: 11154568.24 | G186: 16724858.03 | H186: 16364882.83 | I186: 11545318.52 | J186: 12712659.34 | K186: 13295382.71 | L186: 11484011.06 | M186: 15074892.44
C187: Overhead asset inspection | D187: 605243.2732 | E187: 610838.7426 | F187: 663063.1237 | G187: 992263.2399 | H187: 422457.9395 | I187: 272312.844 | J187: 621788.1436 | K187: 10350.68581 | L187: 0 | M187: 0
C188: Network underground cable maintenance | D188: 0 | E188: 0 | F188: 0 | G188: 0 | H188: 0 | I188: 0 | J188: 142200.4615 | K188: 52880.91612 | L188: 102240.5154 | M188: 47875.61623
C189: Distribution substation equipment & property maintenance | D189: 1406327.975 | E189: 2079649.46 | F189: 2652252.495 | G189: 3976513.586 | H189: 4016614.45 | I189: 2287614.406 | J189: 3785147.6 | K189: 5222016.579 | L189: 3736549.318 | M189: 3432428.105
C190: Zone substation equipment maintenance | D190: 2558994.671 | E190: 3135328.019 | F190: 3772278.952 | G190: 3892581.545 | H190: 6121443.521 | I190: 3816110.129 | J190: 1909359.742 | K190: 2894182.872 | L190: 3035807.119 | M190: 2983206.615
C191: Zone substation property maintenance | D191: 144549.6261 | E191: 153875.4084 | F191: 140819.3132 | G191: 165066.3472 | H191: 727411.0217 | I191: 567940.1439 | J191: 967664.6239 | K191: 740470.8473 | L191: 921781.8064 | M191: 1175059.042
C192: Public lighting maintenance | D192: 2079649.46 | E192: 1062206.607 | F192: 0 | G192: 0 | H192: 0 | I192: 0 | J192: 0 | K192: 0 | L192: 0 | M192: 0
C193: Scada & network control maintenance | D193: 32640.23816 | E193: 37303.12932 | F193: 39168.28579 | G193: 29842.50346 | H193: 21449.29936 | I193: 182785.3337 | J193: 155785.3287 | K193: 37015.89522 | L193: 7391.798703 | M193: 760.8512807
C194: Protection systems maintenance | D194: 597782.6474 | E194: 604310.695 | F194: 580996.2392 | G194: 447637.5518 | H194: 755388.3687 | I194: 594984.9127 | J194: 384225.0297 | K194: 610709.1142 | L194: 779552.3139 | M194: 836128.0273
C195: Subtransmission asset maintenance - for dnsps with dual function assets | D195: 0 | E195: 0 | F195: 0 | G195: 0 | H195: 0 | I195: 0 | J195: 0 | K195: 0 | L195: 0 | M195: 0
C196: Other | D196: 6137297.351 | E196: 4339286.518 | F196: 2805195.325 | G196: 3637987.687 | H196: 3057924.026 | I196: 3467325.87 | J196: 5939021.893 | K196: 5790276.598 | L196: 3521514.034 | M196: 4172940.303
B197: NON-ROUTINE MAINTENANCE | C197: Pole top, overhead line & service line maintenance | D197: 725545.8653 | E197: 1331721.717 | F197: 1727134.888 | G197: 1752314.5 | H197: 1047285.356 | I197: 995623.3193 | J197: 1625720.735 | K197: 1098304.846 | L197: 865960.7869 | M197: 1700867.885
C198: Pole inspection and treatment | D198: 17718.98643 | E198: 31707.65992 | F198: 41033.44225 | G198: 41966.02049 | H198: 25179.61229 | I198: 23705.2061 | J198: 38707.59214 | K198: 26149.49365 | L198: 21120.9948 | M198: 36973.20658
C199: Overhead asset inspection | D199: 17718.98643 | E199: 31707.65992 | F199: 41033.44225 | G199: 41966.02049 | H199: 25179.61229 | I199: 23705.2061 | J199: 38707.59214 | K199: 26149.49365 | L199: 21120.9948 | M199: 36973.20658
C200: Network underground cable maintenance | D200: 34505.39462 | E200: 63415.31984 | F200: 82066.8845 | G200: 83932.04097 | H200: 49426.64635 | I200: 47410.41221 | J200: 77415.18428 | K200: 52299.91988 | L200: 21120.9948 | M200: 36973.20658
C201: Distribution substation equipment & property maintenance | D201: 86729.77567 | E201: 158538.2996 | F201: 205167.2113 | G201: 208897.5242 | H201: 124965.4832 | I201: 118526.9631 | J201: 193537.9607 | K201: 130750.266 | L201: 105604.974 | M201: 184866.0329
C202: Zone substation equipment maintenance | D202: 312413.7081 | E202: 906466.0425 | F202: 1658124.098 | G202: 1480001.656 | H202: 702231.4094 | I202: 548314.035 | J202: 1023886.968 | K202: 836157.1043 | L202: 753993.6895 | M202: 1850624.661
C203: Zone substation property maintenance | D203: 13056.09526 | E203: 37303.12932 | F203: 69010.78924 | G203: 61550.16338 | H203: 28909.92522 | I203: 22846.30155 | J203: 42661.72385 | K203: 34839.25763 | L203: 31416.40373 | M203: 75129.65364
C204: Public lighting maintenance | D204: 217290.7283 | E204: 387019.9667 | F204: 0 | G204: 0 | H204: 0 | I204: 0 | J204: 0 | K204: 0 | L204: 0 | M204: 0
C205: SCADA & network control maintenance | D205: 70875.94571 | E205: 149212.5173 | F205: 213560.4154 | G205: 195841.4289 | H205: 89527.51037 | I205: 70072.99585 | J205: 125495.1877 | K205: 94085.95277 | L205: 92943.81633 | M205: 151302.345
C206: Protection systems maintenance | D206: 35437.97285 | E206: 68078.21101 | F206: 141751.8914 | G206: 124032.905 | H206: 116572.2791 | I206: 104975.6688 | J206: 141729.5095 | K206: 146516.4336 | L206: 97150.44524 | M206: 207944.2727
... 256 more rows

Sheet 4.1 Public lighting
B1: REGULATORY REPORTING STATEMENT
B2: =INDEX(dms_TradingNameFull_List,MATCH(dms_TradingName,dms_TradingName_List)) -> Ergon Energy
B3: =IF(SUM(dms_SingleYear_Model)>0,("CATEGORY ANALYSIS "&CRY&" to "&FRY),("CATEGORY ANALYSIS "&CRY)) -> CATEGORY ANALYSIS 2008-09 to 2017-18
B4: 4.1 PUBLIC LIGHTING
B6: There are THREE tables on this worksheet. Each table has been 'grouped' (and 'sub-grouped') for easy navigation. See the Instructions sheet on how to group or ungroup data.
B8: 4.1.1 - DESCRIPTOR METRICS OVER YEAR
C9: LIGHT TYPE | E9: VOLUMES (0's)
E10: =IF(dms_RPT="financial",dms_CRYf_y1,dms_CRYc_y1) -> 2008-09 | F10: =IF(dms_RPT="financial",dms_CRYf_y2,dms_CRYc_y2) -> 2009-10 | G10: =IF(dms_RPT="financial",dms_CRYf_y3,dms_CRYc_y3) -> 2010-11 | H10: =IF(dms_RPT="financial",dms_CRYf_y4,dms_CRYc_y4) -> 2011-12 | I10: =IF(dms_RPT="financial",dms_CRYf_y5,dms_CRYc_y5) -> 2012-13 | J10: =IF(dms_RPT="financial",dms_CRYf_y6,dms_CRYc_y6) -> 2013-14 | K10: =IF(dms_RPT="financial",dms_CRYf_y7,dms_CRYc_y7) -> 2014-15 | L10: =IF(dms_RPT="financial",dms_CRYf_y8,dms_CRYc_y8) -> 2015-16 | M10: =IF(dms_RPT="financial",dms_CRYf_y9,dms_CRYc_y9) -> 2016-17 | N10: =IF(dms_RPT="financial",dms_CRYf_y10,dms_CRYc_y10) -> 2017-18
B11: POPULATION OF LIGHTS | C11: DNSP to enter description for type of light
B183: 4.1.2 - DESCRIPTOR METRICS ANNUALLY
B186: SERVICE/SERVICE QUALITY | C186: DESCRIPTOR METRIC | E186: VOLUMES & EXPENDITURE
D187: UNITS | E187: =IF(dms_RPT="financial",dms_CRYf_y1,dms_CRYc_y1) -> 2008-09 | F187: =IF(dms_RPT="financial",dms_CRYf_y2,dms_CRYc_y2) -> 2009-10 | G187: =IF(dms_RPT="financial",dms_CRYf_y3,dms_CRYc_y3) -> 2010-11 | H187: =IF(dms_RPT="financial",dms_CRYf_y4,dms_CRYc_y4) -> 2011-12 | I187: =IF(dms_RPT="financial",dms_CRYf_y5,dms_CRYc_y5) -> 2012-13 | J187: =IF(dms_RPT="financial",dms_CRYf_y6,dms_CRYc_y6) -> 2013-14 | K187: =IF(dms_RPT="financial",dms_CRYf_y7,dms_CRYc_y7) -> 2014-15 | L187: =IF(dms_RPT="financial",dms_CRYf_y8,dms_CRYc_y8) -> 2015-16 | M187: =IF(dms_RPT="financial",dms_CRYf_y9,dms_CRYc_y9) -> 2016-17 | N187: =IF(dms_RPT="financial",dms_CRYf_y10,dms_CRYc_y10) -> 2017-18
B188: LIGHT INSTALLATION | C188: Major road light installation | D188: 0's
C189: Minor road light installation | D189: 0's
C190: Number of poles installed | D190: 0's
C191: Total cost | D191: $0s | E191: 5193526.737 | F191: 6292444.172 | G191: 4589157.157 | H191: 5735914.948 | I191: 4126872.267 | J191: 5685526.217 | K191: 4690323.845 | L191: 6225934.055 | M191: 2366817.211 | N191: 3032347.773
B192: LIGHT REPLACEMENT | C192: Major road light replacement | D192: 0's
C193: Minor road light replacement | D193: 0's
C194: Number of poles replaced | D194: 0's
C195: Total cost | D195: $0s | E195: 1204296.929 | F195: 1916472.944 | G195: 5205316.059 | H195: 3373652.794 | I195: 4584821.364 | J195: 1775335.485 | K195: 4254515.217 | L195: 3162141.961 | M195: 3620694.031 | N195: 2652715.188
B196: LIGHT MAINTENANCE | C196: Major road light maintenance | D196: 0's
C197: Minor road light maintenance | D197: 0's
C198: Number of poles installed | D198: 0's
C199: Total cost | D199: $0s | E199: 8719589.628 | F199: 6175478.892 | G199: 7418828.77 | H199: 10063230.05 | I199: 8490796.79 | J199: 10449793.91 | K199: 10787503.47 | L199: 9764115.543 | M199: 8337436.887 | N199: 9525275.097
B200: QUALITY OF SUPPLY | C200: Mean days to rectify/replace public lighting assets | D200: days
C201: GSO breaches | D201: 0's
C202: GSL payments | D202: $0s
C203: Customer complaints | D203: 0's
B206: 4.1.3 - COST METRICS
E207: AVERAGE UNIT COST ($)
B208: ACTIVITY TYPE | C208: LIGHT TYPE | E208: =IF(dms_RPT="financial",dms_CRYf_y1,dms_CRYc_y1) -> 2008-09 | F208: =IF(dms_RPT="financial",dms_CRYf_y2,dms_CRYc_y2) -> 2009-10 | G208: =IF(dms_RPT="financial",dms_CRYf_y3,dms_CRYc_y3) -> 2010-11 | H208: =IF(dms_RPT="financial",dms_CRYf_y4,dms_CRYc_y4) -> 2011-12 | I208: =IF(dms_RPT="financial",dms_CRYf_y5,dms_CRYc_y5) -> 2012-13 | J208: =IF(dms_RPT="financial",dms_CRYf_y6,dms_CRYc_y6) -> 2013-14 | K208: =IF(dms_RPT="financial",dms_CRYf_y7,dms_CRYc_y7) -> 2014-15 | L208: =IF(dms_RPT="financial",dms_CRYf_y8,dms_CRYc_y8) -> 2015-16 | M208: =IF(dms_RPT="financial",dms_CRYf_y9,dms_CRYc_y9) -> 2016-17 | N208: =IF(dms_RPT="financial",dms_CRYf_y10,dms_CRYc_y10) -> 2017-18
B209: LIGHT INSTALLATION | C209: S100 | E209: 3648.247259 | F209: 3736.546217 | G209: 3808.790237 | H209: 3794.010965 | I209: 3782.575716 | J209: 3441.734488 | K209: 3152.320044 | L209: 2988.691439 | M209: 1878.74683
C210: S150 | E210: 3674.888055 | F210: 3865.153424 | G210: 4031.331718 | H210: 3976.765124 | I210: 4179.780131 | J210: 3783.31009 | K210: 3086.90871 | L210: 3455.530224 | M210: 2313.980397
C211: S250 | E211: 3689.568886 | F211: 3881.126054 | G211: 3999.871671 | H211: 3990.469063 | I211: 4016.919633 | J211: 3796.922233 | K211: 3908.644113 | L211: 4286.933133 | M211: 2635.814536
C212: S400 | E212: 3885.872756 | F212: 4127.495341 | G212: 4234.477864 | H212: 4269.714691 | I212: 4311.41663 | J212: 3955.927268 | K212: 3482.639769 | L212: 4367.635565 | M212: 3920.718465
C213: M250 | E213: 3818.905831 | F213: 3763.600023 | G213: 3800.817036 | H213: 3876.247714 | I213: 3859.934125 | J213: 2844.111602 | K213: 0 | M213: 0
C214: M400 | E214: 4345.261594 | F214: 4439.237008 | G214: 4727.072186 | H214: 0 | I214: 4665.909342 | J214: 4306.249786 | K214: 0 | M214: 0
C215: MH150 | E215: 0 | F215: 0 | G215: 0 | H215: 0 | I215: 4266.541147 | J215: 3937.712176 | K215: 5345.312885 | M215: 0
C216: MH250 | E216: 0 | F216: 0 | G216: 0 | H216: 0 | I216: 4124.072635 | J216: 3906.042307 | K216: 0 | M216: 0
C217: MH400 | E217: 0 | F217: 0 | G217: 0 | H217: 0 | I217: 4967.776305 | J217: 4608.287228 | K217: 4429.760672 | M217: 0
C218: LPS70 | E218: 2829.321958 | F218: 2608.784149 | G218: 2493.238304 | H218: 2807.445369 | I218: 2335.26926 | J218: 2404.497102 | K218: 2623.782727 | L218: 1725.319385 | M218: 1256.592082
C219: LPS90 | E219: 3035.473601 | F219: 2805.412727 | G219: 2681.998592 | H219: 0 | I219: 0 | J219: 0 | K219: 0 | M219: 0
C220: M125 | E220: 2410.210267 | F220: 1981.760084 | G220: 2012.826718 | H220: 2102.708822 | I220: 2122.943442 | J220: 1725.883279 | K220: 0 | M220: 0
C221: M50 | E221: 2763.279288 | F221: 0 | G221: 0 | H221: 0 | I221: 0 | J221: 2147.479395 | K221: 1775.277704 | L221: 1436.212167 | M221: 872.0418252
C222: M80 | E222: 2776.52846 | F222: 2345.104623 | G222: 2405.952736 | H222: 2398.097559 | I222: 2613.124823 | J222: 2213.468124 | K222: 1711.767552 | L222: 1536.231252 | M222: 962.5593736
C223: F32 | K223: 2162.248307 | L223: 2151.020125 | M223: 2080.980517
C224: L22 | L224: 1762.326578 | M224: 1479.655122
C225: H35 | L225: 3129.848569 | M225: 0
C226: H70 | L226: 1921.095565 | M226: 1818.333018
C227: Major road luminaire | N227: 2752.243886
C228: Minor road luminaire | N228: 1321.632225
B279: LIGHT REPLACEMENT | C279: S100 | E279: 187.1498876 | F279: 188.4848974 | G279: 222.6595055 | H279: 230.4228854 | I279: 218.4893116 | J279: 189.8487344 | K279: 378.3849334 | L279: 503.0460352 | M279: 464.2621705
C280: S150 | E280: 223.5999946 | F280: 241.3204677 | G280: 296.595208 | H280: 253.9097324 | I280: 346.1785515 | J280: 294.6281354 | K280: 363.2328562 | L280: 742.9633244 | M280: 732.0681383
C281: S250 | E281: 232.2066147 | F281: 242.5400527 | G281: 265.8301924 | H281: 268.2562486 | I281: 274.6295638 | J281: 269.593858 | K281: 575.4720734 | L281: 1065.012452 | M281: 885.7470617
C282: S400 | E282: 228.5692268 | F282: 332.3828156 | G282: 332.1598807 | H282: 338.8085862 | I282: 355.3713375 | J282: 277.8162215 | K282: 465.7566064 | L282: 1076.932912 | M282: 1497.356814
C283: M250 | E283: 387.6728585 | F283: 371.5144467 | G283: 371.8685198 | H283: 384.0119147 | I283: 382.0317283 | J283: 259.824064 | K283: 0 | L283: 0 | M283: 0
C284: M400 | E284: 451.7531975 | F284: 453.7643094 | G284: 484.6342356 | H284: 484.385073 | I284: 480.14931 | J284: 416.232564 | K284: 0 | L284: 0 | M284: 0
C285: MH150 | E285: 0 | F285: 254.8539272 | G285: 255.2080003 | H285: 0 | I285: 0 | J285: 0 | K285: 923.3438826 | M285: 0
C286: MH250 | E286: 0 | F286: 0 | G286: 0 | H286: 0 | I286: 237.6092573 | J286: 220.0105144 | K286: 0 | M286: 0
C287: MH400 | K287: 754.127127 | L287: 0 | M287: 0
C288: LPS50 | E288: 0 | F288: 604.2060225 | G288: 0 | H288: 0 | I288: 0 | J288: 0 | K288: 0 | L288: 0 | M288: 0
C289: LPS70 | E289: 494.4263767 | F289: 604.2060225 | G289: 568.6806912 | H289: 691.8456642 | I289: 456.5050973 | J289: 608.625379 | K289: 722.9164809 | L289: 984.4149302 | M289: 791.1678981
C290: LPS90 | E290: 0 | F290: 800.7690314 | G290: 0 | H290: 878.9142693 | I290: 646.6947909 | J290: 271.5084753 | K290: 0 | L290: 0 | M290: 0
C291: M125 | E291: 269.1861079 | F291: 271.2593128 | G291: 305.0798478 | H291: 315.6495846 | I291: 326.8618985 | J291: 288.0712267 | K291: 0 | L291: 0 | M291: 0
C292: M50 | E292: 0 | F292: 447.4434494 | G292: 0 | H292: 0 | I292: 0 | J292: 285.3697803 | K292: 399.2066552 | L292: 752.7724598 | M292: 498.0039849
C293: M80 | E293: 452.8991384 | F293: 452.9381389 | G293: 501.262556 | H293: 463.0488921 | I293: 570.7920158 | J293: 506.7047902 | K293: 373.9822815 | L293: 820.8593997 | M293: 552.0755953
C294: F32 | K294: 549.65778 | L294: 1387.99266 | M294: 1506.131641
C295: H70 | L295: 1220.201367 | M295: 1304.679868
C296: L22 | L296: 1060.26525 | M296: 1012.200131
C297: Major road luminaire | N297: 607.1571796
C298: Minor road luminaire | N298: 821.6951721
B349: LIGHT MAINTENANCE | C349: Major Lights | E349: 166.9939629 | F349: 116.3982432 | G349: 80.3745868 | H349: 94.94403792 | I349: 143.9241459 | J349: 0 | K349: 0 | M349: 0 | N349: 288.3529626
C350: S100 | F350: 0 | G350: 0 | H350: 0 | I350: 0 | J350: 126.8368418 | K350: 147.2832333 | L350: 138.2852044 | M350: 166.7325638
C351: S150 | F351: 0 | G351: 0 | H351: 0 | I351: 0 | J351: 152.749745 | K351: 132.9701776 | L351: 141.117789 | M351: 209.205765
C352: S250 | F352: 0 | G352: 0 | H352: 0 | I352: 0 | J352: 142.691447 | K352: 138.6904762 | L352: 140.6981468 | M352: 223.7037766
C353: S400 | F353: 0 | G353: 0 | H353: 0 | I353: 0 | J353: 139.3605374 | K353: 156.1740173 | L353: 137.0262779 | M353: 272.1499413
C354: M250 | F354: 0 | G354: 0 | H354: 0 | I354: 0 | J354: 177.6791119 | K354: 0 | M354: 0
C355: M400 | F355: 0 | G355: 0 | H355: 0 | I355: 0 | J355: 177.6791119 | K355: 168.6570598 | M355: 0
C356: MH150 | F356: 0 | G356: 0 | H356: 0 | I356: 0 | J356: 119.4406488 | K356: 0 | M356: 0
C357: MH250 | F357: 0 | G357: 0 | H357: 0 | I357: 0 | J357: 119.4406488 | K357: 0 | M357: 0
C358: S700 | K358: 190.7527814 | M358: 0
C359: M150 | K359: 209.1055688 | M359: 0
C360: M360 | M360: 0
C361: H400 | M361: 0
C362: Minor Lights | E362: 166.9939629 | F362: 116.3982432 | G362: 80.3745868 | H362: 94.94403792 | I362: 143.9241459 | J362: 0 | K362: 0 | M362: 0 | N362: 103.3865699
C363: LPS50 | F363: 0 | G363: 0 | H363: 0 | I363: 0 | J363: 99.00932131 | K363: 0 | M363: 0
C364: LPS70 | F364: 0 | G364: 0 | H364: 0 | I364: 0 | J364: 96.59637891 | K364: 113.1127482 | L364: 98.6945897 | M364: 52.8987376
C365: LPS90 | F365: 0 | G365: 0 | H365: 0 | I365: 0 | J365: 156.1068822 | K365: 183.656567 | L365: 130.2070929 | M365: 0
C366: M125 | F366: 0 | G366: 0 | H366: 0 | I366: 0 | J366: 87.0101784 | K366: 105.0544806 | L366: 90.90498217 | M366: 41.63698624
C367: M50 | F367: 0 | G367: 0 | H367: 0 | I367: 0 | J367: 86.105325 | K367: 105.6948437 | L367: 94.5506234 | M367: 62.27086048
C368: M80 | F368: 0 | G368: 0 | H368: 0 | I368: 0 | J368: 86.105325 | K368: 105.0304423 | L368: 92.08522573 | M368: 121.2294412
C369: F32 | K369: 109.0341922 | L369: 104.8930571 | M369: 133.0016094
C370: F36 | K370: 104.158311 | L370: 90.67093101 | M370: 0

Sheet 4.2 Metering
B1: REGULATORY REPORTING STATEMENT
B2: =INDEX(dms_TradingNameFull_List,MATCH(dms_TradingName,dms_TradingName_List)) -> Ergon Energy
B3: =IF(SUM(dms_SingleYear_Model)>0,("CATEGORY ANALYSIS "&CRY&" to "&FRY),("CATEGORY ANALYSIS "&CRY)) -> CATEGORY ANALYSIS 2008-09 to 2017-18
B4: 4.2 METERING
B6: There are TWO tables on this worksheet. Each table has been 'grouped' (and 'sub-grouped') for easy navigation. See the Instructions sheet on how to group or ungroup data.
B8: 4.2.1 - METERING DESCRIPTOR METRIC
D9: VOLUMES (0's)
B10: ASSET CATEGORY | C10: ASSET SUBCATEGORY | D10: =IF(dms_RPT="financial",dms_CRYf_y1,dms_CRYc_y1) -> 2008-09 | E10: =IF(dms_RPT="financial",dms_CRYf_y2,dms_CRYc_y2) -> 2009-10 | F10: =IF(dms_RPT="financial",dms_CRYf_y3,dms_CRYc_y3) -> 2010-11 | G10: =IF(dms_RPT="financial",dms_CRYf_y4,dms_CRYc_y4) -> 2011-12 | H10: =IF(dms_RPT="financial",dms_CRYf_y5,dms_CRYc_y5) -> 2012-13 | I10: =IF(dms_RPT="financial",dms_CRYf_y6,dms_CRYc_y6) -> 2013-14 | J10: =IF(dms_RPT="financial",dms_CRYf_y7,dms_CRYc_y7) -> 2014-15 | K10: =IF(dms_RPT="financial",dms_CRYf_y8,dms_CRYc_y8) -> 2015-16 | L10: =IF(dms_RPT="financial",dms_CRYf_y9,dms_CRYc_y9) -> 2016-17 | M10: =IF(dms_RPT="financial",dms_CRYf_y10,dms_CRYc_y10) -> 2017-18
B11: Meter Type 4 | C11: Single phase meter population
C12: Multi phase meter population
C13: Current transformer connected meter population
C14: Direct connect meter population
B15: Meter Type 5 | C15: Single phase meter population
C16: Multi phase meter population
C17: Current transformer connected meter population
C18: Direct connect meter population
B19: Meter Type 6 | C19: Single phase meter population
C20: Multi phase meter population
C21: Current transformer connected meter population
C22: Direct connect meter population
B25: 4.2.2 - COST METRICS
B26: EXPENDITURE
D27: EXPENDITURE ($0's)
B28: SERVICE SUBCATEGORY | C28: METER TYPE | D28: =IF(dms_RPT="financial",dms_CRYf_y1,dms_CRYc_y1) -> 2008-09 | E28: =IF(dms_RPT="financial",dms_CRYf_y2,dms_CRYc_y2) -> 2009-10 | F28: =IF(dms_RPT="financial",dms_CRYf_y3,dms_CRYc_y3) -> 2010-11 | G28: =IF(dms_RPT="financial",dms_CRYf_y4,dms_CRYc_y4) -> 2011-12 | H28: =IF(dms_RPT="financial",dms_CRYf_y5,dms_CRYc_y5) -> 2012-13 | I28: =IF(dms_RPT="financial",dms_CRYf_y6,dms_CRYc_y6) -> 2013-14 | J28: =IF(dms_RPT="financial",dms_CRYf_y7,dms_CRYc_y7) -> 2014-15 | K28: =IF(dms_RPT="financial",dms_CRYf_y8,dms_CRYc_y8) -> 2015-16 | L28: =IF(dms_RPT="financial",dms_CRYf_y9,dms_CRYc_y9) -> 2016-17 | M28: =IF(dms_RPT="financial",dms_CRYf_y10,dms_CRYc_y10) -> 2017-18
B29: Meter purchase | C29: Meter Type 4 | D29: 0 | E29: 0 | F29: 0 | G29: 0 | H29: 0 | I29: 0 | J29: 0 | K29: 0 | L29: 0 | M29: 0
C30: Meter Type 5 | D30: 0 | E30: 0 | F30: 0 | G30: 0 | H30: 0 | I30: 0 | J30: 0 | K30: 0 | L30: 0 | M30: 0
C31: Meter Type 6 | D31: 2009401.541 | E31: 3703393.313 | F31: 3470132.033 | G31: 4693272.32 | H31: 5165905.907 | I31: 2477291.166 | J31: 3544095.163 | K31: 1702240.606 | L31: 4864953.791 | M31: 437520.0508
B32: Meter testing | C32: Meter Type 4 | D32: 0 | E32: 0 | F32: 0 | G32: 0 | H32: 0 | I32: 0 | J32: 0 | K32: 0 | L32: 0 | M32: 0
C33: Meter Type 5 | D33: 0 | E33: 0 | F33: 0 | G33: 0 | H33: 0 | I33: 0 | J33: 0 | K33: 0 | L33: 0 | M33: 0
C34: Meter Type 6 | D34: 613664.8712 | E34: 891667.4554 | F34: 1140560.096 | G34: 893556.6028 | H34: 1046041.103 | I34: 978868.7553 | J34: 2142536.983 | K34: 1305903.247 | L34: 1293867.44 | M34: 1176061.63
B35: Meter investigation | C35: Meter Type 4 | D35: 0 | E35: 0 | F35: 0 | G35: 0 | H35: 0 | I35: 0 | J35: 0 | K35: 0 | L35: 0 | M35: 0
C36: Meter Type 5 | D36: 0 | E36: 0 | F36: 0 | G36: 0 | H36: 0 | I36: 0 | J36: 0 | K36: 0 | L36: 0 | M36: 0
C37: Meter Type 6 | D37: 1024788.661 | E37: 581177.9741 | F37: 611491.7949 | G37: 726994.3467 | H37: 740040.0087 | I37: 817300.0965 | J37: 2115269.944 | K37: 658195.3175 | L37: 943485.7708 | M37: 948512.2879
B38: Scheduled meter reading | C38: Meter Type 4 | D38: 0 | E38: 0 | F38: 0 | G38: 0 | H38: 0 | I38: 0 | J38: 0 | K38: 0 | L38: 0 | M38: 0
C39: Meter Type 5 | D39: 0 | E39: 0 | F39: 0 | G39: 0 | H39: 0 | I39: 0 | J39: 0 | K39: 0 | L39: 0 | M39: 0
C40: Meter Type 6 | D40: 6960134.668 | E40: 6936901.895 | F40: 6344263.899 | G40: 6832957.287 | H40: 6717964.752 | I40: 6680426.05 | J40: 4648244.438 | K40: 5303382.34 | L40: 5915574.391 | M40: 6606887.586
B41: Special meter reading | C41: Meter Type 4 | D41: 0 | E41: 0 | F41: 0 | G41: 0 | H41: 0 | I41: 0 | J41: 0 | K41: 0 | L41: 0 | M41: 0
C42: Meter Type 5 | D42: 0 | E42: 0 | F42: 0 | G42: 0 | H42: 0 | I42: 0 | J42: 0 | K42: 0 | L42: 0 | M42: 0
C43: Meter Type 6 | D43: 424530.3156 | E43: 396944.4592 | F43: 414531.6807 | G43: 416722.0824 | H43: 477316.9094 | I43: 619383.1067 | J43: 491591.7799 | K43: 292350.8817 | L43: 120079.2561 | M43: 1685477.097
B44: New meter installation | C44: Meter Type 4 | D44: 0 | E44: 0 | F44: 0 | G44: 0 | H44: 0 | I44: 0 | J44: 0 | K44: 0 | L44: 0 | M44: 0
C45: Meter Type 5 | D45: 0 | E45: 0 | F45: 0 | G45: 0 | H45: 0 | I45: 0 | J45: 0 | K45: 0 | L45: 0 | M45: 0
C46: Meter Type 6 | D46: 2702666.057 | E46: 2017106.015 | F46: 1738249.207 | G46: 1835913.097 | H46: 1977840.486 | I46: 1949712.251 | J46: 1925129.502 | K46: 1705213.96 | L46: 1358330.636 | M46: 688425.8694
B47: Meter replacement | C47: Meter Type 4 | D47: 0 | E47: 0 | F47: 0 | G47: 0 | H47: 0 | I47: 0 | J47: 0 | K47: 0 | L47: 0 | M47: 0
C48: Meter Type 5 | D48: 0 | E48: 0 | F48: 0 | G48: 0 | H48: 0 | I48: 0 | J48: 0 | K48: 0 | L48: 0 | M48: 0
C49: Meter Type 6 | D49: 228825.2285 | E49: 559048.4396 | F49: 0 | G49: 0 | H49: 0 | I49: 18691.47876 | J49: 1837916.395 | K49: 1680108.75 | L49: 4060999.269 | M49: 890343.612
B50: Meter maintenance | C50: Meter Type 4 | D50: 0 | E50: 0 | F50: 0 | G50: 0 | H50: 0 | I50: 0 | J50: 0 | K50: 0 | L50: 0 | M50: 0
C51: Meter Type 5 | D51: 0 | E51: 0 | F51: 0 | G51: 0 | H51: 0 | I51: 0 | J51: 0 | K51: 0 | L51: 0 | M51: 0
C52: Meter Type 6 | D52: 802230.7713 | E52: 1305309.674 | F52: 1196872.772 | G52: 1841879.152 | H52: 2230240.588 | I52: 2180813.093 | J52: 2083912.345 | K52: 1639915.46 | L52: 1215760.547 | M52: 2328943.427
B53: Remote meter reading | C53: Meter Type 4 | D53: 0 | E53: 0 | F53: 0 | G53: 0 | H53: 0 | I53: 0 | J53: 0 | K53: 0 | L53: 0 | M53: 0
B54: Remote meter re-configuration | C54: Meter Type 4 | D54: 0 | E54: 0 | F54: 0 | G54: 0 | H54: 0 | I54: 0 | J54: 0 | K54: 0 | L54: 0 | M54: 0
B55: Other metering | C55: Meter Type 4 | D55: 0 | E55: 0 | F55: 0 | G55: 0 | H55: 0 | I55: 0 | J55: 0 | K55: 0 | L55: 0 | M55: 0
C56: Meter Type 5 | D56: 0 | E56: 0 | F56: 0 | G56: 0 | H56: 0 | I56: 0 | J56: 0 | K56: 0 | L56: 0 | M56: 0
C57: Meter Type 6 | D57: 5015265.422 | E57: 17777764.37 | F57: 15113613.19 | G57: 17875831.57 | H57: 16970412.01 | I57: 13770756.73 | J57: 17286324.93 | K57: 15981454.24 | L57: 17860792.11 | M57: 11225046.84
C58: Meter Type 7 | D58: 0 | E58: 0 | F58: 0 | G58: 0 | H58: 0 | I58: 0 | J58: 0 | K58: 0 | L58: 0 | M58: 0
B59: IT infrastructure capex | C59: Meter Type 4 | D59: 0 | E59: 0 | F59: 0 | G59: 0 | H59: 0 | I59: 0 | J59: 0 | K59: 0 | L59: 0 | M59: 0
B60: IT infrastructure opex | C60: Meter Type 4 | D60: 0 | E60: 0 | F60: 0 | G60: 0 | H60: 0 | I60: 0 | J60: 0 | K60: 0 | L60: 0 | M60: 0
B61: Communications infrastructure capex | C61: Meter Type 4 | D61: 0 | E61: 0 | F61: 0 | G61: 0 | H61: 0 | I61: 0 | J61: 0 | K61: 0 | L61: 0 | M61: 0
B62: Communications infrastructure opex | C62: Meter Type 4 | D62: 0 | E62: 0 | F62: 0 | G62: 0 | H62: 0 | I62: 0 | J62: 0 | K62: 0 | L62: 0 | M62: 0
B64: VOLUMES
D65: VOLUMES (0's)
D66: =IF(dms_RPT="financial",dms_CRYf_y1,dms_CRYc_y1) -> 2008-09 | E66: =IF(dms_RPT="financial",dms_CRYf_y2,dms_CRYc_y2) -> 2009-10 | F66: =IF(dms_RPT="financial",dms_CRYf_y3,dms_CRYc_y3) -> 2010-11 | G66: =IF(dms_RPT="financial",dms_CRYf_y4,dms_CRYc_y4) -> 2011-12 | H66: =IF(dms_RPT="financial",dms_CRYf_y5,dms_CRYc_y5) -> 2012-13 | I66: =IF(dms_RPT="financial",dms_CRYf_y6,dms_CRYc_y6) -> 2013-14 | J66: =IF(dms_RPT="financial",dms_CRYf_y7,dms_CRYc_y7) -> 2014-15 | K66: =IF(dms_RPT="financial",dms_CRYf_y8,dms_CRYc_y8) -> 2015-16 | L66: =IF(dms_RPT="financial",dms_CRYf_y9,dms_CRYc_y9) -> 2016-17 | M66: =IF(dms_RPT="financial",dms_CRYf_y10,dms_CRYc_y10) -> 2017-18
B67: Meter purchase | C67: Meter Type 4
C68: Meter Type 5
C69: Meter Type 6
B70: Meter testing | C70: Meter Type 4
C71: Meter Type 5
C72: Meter Type 6
B73: Meter investigation | C73: Meter Type 4
C74: Meter Type 5
C75: Meter Type 6
B76: Scheduled meter reading | C76: Meter Type 4
C77: Meter Type 5
C78: Meter Type 6
B79: Special meter reading | C79: Meter Type 4
C80: Meter Type 5
C81: Meter Type 6
B82: New meter installation | C82: Meter Type 4
C83: Meter Type 5
C84: Meter Type 6
B85: Meter replacement | C85: Meter Type 4
C86: Meter Type 5
C87: Meter Type 6
B88: Meter maintenance | C88: Meter Type 4
C89: Meter Type 5
C90: Meter Type 6
B91: Remote meter reading | C91: Meter Type 4
B92: Remote meter re-configuration | C92: Meter Type 4

Sheet 4.3 Fee-based services
B1: REGULATORY REPORTING STATEMENT
B2: =INDEX(dms_TradingNameFull_List,MATCH(dms_TradingName,dms_TradingName_List)) -> Ergon Energy
B3: =IF(SUM(dms_SingleYear_Model)>0,("CATEGORY ANALYSIS "&CRY&" to "&FRY),("CATEGORY ANALYSIS "&CRY)) -> CATEGORY ANALYSIS 2008-09 to 2017-18
B4: 4.3 ANCILLARY SERVICES - FEE BASED SERVICES
B6: There is ONE table on this worksheet. The COLUMNS AND ROWS have been 'grouped' for easy navigation. See the Instructions sheet on how to group or ungroup data.
B8: 4.3.1 - COST METRICS FOR FEE-BASED SERVICES
B9: COMMON FEE-BASED SERVICES
C10: EXPENDITURE ($0's) | M10: VOLUMES (0's)
B11: SERVICE SUBCATEGORY | C11: =IF(dms_RPT="financial",dms_CRYf_y1,dms_CRYc_y1) -> 2008-09 | D11: =IF(dms_RPT="financial",dms_CRYf_y2,dms_CRYc_y2) -> 2009-10 | E11: =IF(dms_RPT="financial",dms_CRYf_y3,dms_CRYc_y3) -> 2010-11 | F11: =IF(dms_RPT="financial",dms_CRYf_y4,dms_CRYc_y4) -> 2011-12 | G11: =IF(dms_RPT="financial",dms_CRYf_y5,dms_CRYc_y5) -> 2012-13 | H11: =IF(dms_RPT="financial",dms_CRYf_y6,dms_CRYc_y6) -> 2013-14 | I11: =IF(dms_RPT="financial",dms_CRYf_y7,dms_CRYc_y7) -> 2014-15 | J11: =IF(dms_RPT="financial",dms_CRYf_y8,dms_CRYc_y8) -> 2015-16 | K11: =IF(dms_RPT="financial",dms_CRYf_y9,dms_CRYc_y9) -> 2016-17 | L11: =IF(dms_RPT="financial",dms_CRYf_y10,dms_CRYc_y10) -> 2017-18 | M11: =IF(dms_RPT="financial",dms_CRYf_y1,dms_CRYc_y1) -> 2008-09 | N11: =IF(dms_RPT="financial",dms_CRYf_y2,dms_CRYc_y2) -> 2009-10 | O11: =IF(dms_RPT="financial",dms_CRYf_y3,dms_CRYc_y3) -> 2010-11 | P11: =IF(dms_RPT="financial",dms_CRYf_y4,dms_CRYc_y4) -> 2011-12 | Q11: =IF(dms_RPT="financial",dms_CRYf_y5,dms_CRYc_y5) -> 2012-13 | R11: =IF(dms_RPT="financial",dms_CRYf_y6,dms_CRYc_y6) -> 2013-14 | S11: =IF(dms_RPT="financial",dms_CRYf_y7,dms_CRYc_y7) -> 2014-15 | T11: =IF(dms_RPT="financial",dms_CRYf_y8,dms_CRYc_y8) -> 2015-16 | U11: =IF(dms_RPT="financial",dms_CRYf_y9,dms_CRYc_y9) -> 2016-17 | V11: =IF(dms_RPT="financial",dms_CRYf_y10,dms_CRYc_y10) -> 2017-18
B12: Energisation
B13: De-energisation
B14: Re-energisation
B15: MISCELLANEOUS FEE-BASED SERVICES
B16: < Enter description of service >

Sheet 4.4 Quoted services
B1: REGULATORY REPORTING STATEMENT
B2: =INDEX(dms_TradingNameFull_List,MATCH(dms_TradingName,dms_TradingName_List)) -> Ergon Energy
B3: =IF(SUM(dms_SingleYear_Model)>0,("CATEGORY ANALYSIS "&CRY&" to "&FRY),("CATEGORY ANALYSIS "&CRY)) -> CATEGORY ANALYSIS 2008-09 to 2017-18
B4: 4.4 ANCILLARY SERVICES - QUOTED SERVICES
B6: There is ONE table on this worksheet. The COLUMNS have been 'grouped' for easy navigation. See the Instructions sheet on how to group or ungroup data.
B8: 4.4.1 - COST METRICS FOR QUOTED SERVICES
B9: SERVICE SUBCATEGORY | C9: EXPENDITURE ($0's) | M9: VOLUMES (0's)
C10: =IF(dms_RPT="financial",dms_CRYf_y1,dms_CRYc_y1) -> 2008-09 | D10: =IF(dms_RPT="financial",dms_CRYf_y2,dms_CRYc_y2) -> 2009-10 | E10: =IF(dms_RPT="financial",dms_CRYf_y3,dms_CRYc_y3) -> 2010-11 | F10: =IF(dms_RPT="financial",dms_CRYf_y4,dms_CRYc_y4) -> 2011-12 | G10: =IF(dms_RPT="financial",dms_CRYf_y5,dms_CRYc_y5) -> 2012-13 | H10: =IF(dms_RPT="financial",dms_CRYf_y6,dms_CRYc_y6) -> 2013-14 | I10: =IF(dms_RPT="financial",dms_CRYf_y7,dms_CRYc_y7) -> 2014-15 | J10: =IF(dms_RPT="financial",dms_CRYf_y8,dms_CRYc_y8) -> 2015-16 | K10: =IF(dms_RPT="financial",dms_CRYf_y9,dms_CRYc_y9) -> 2016-17 | L10: =IF(dms_RPT="financial",dms_CRYf_y10,dms_CRYc_y10) -> 2017-18 | M10: =IF(dms_RPT="financial",dms_CRYf_y1,dms_CRYc_y1) -> 2008-09 | N10: =IF(dms_RPT="financial",dms_CRYf_y2,dms_CRYc_y2) -> 2009-10 | O10: =IF(dms_RPT="financial",dms_CRYf_y3,dms_CRYc_y3) -> 2010-11 | P10: =IF(dms_RPT="financial",dms_CRYf_y4,dms_CRYc_y4) -> 2011-12 | Q10: =IF(dms_RPT="financial",dms_CRYf_y5,dms_CRYc_y5) -> 2012-13 | R10: =IF(dms_RPT="financial",dms_CRYf_y6,dms_CRYc_y6) -> 2013-14 | S10: =IF(dms_RPT="financial",dms_CRYf_y7,dms_CRYc_y7) -> 2014-15 | T10: =IF(dms_RPT="financial",dms_CRYf_y8,dms_CRYc_y8) -> 2015-16 | U10: =IF(dms_RPT="financial",dms_CRYf_y9,dms_CRYc_y9) -> 2016-17 | V10: =IF(dms_RPT="financial",dms_CRYf_y10,dms_CRYc_y10) -> 2017-18
B11: Sale of Inventory | C11: 10348716.2 | D11: 6211227.632 | E11: 6626328.622 | F11: 13431949.2 | G11: 14837465.93 | H11: 9503561.265 | I11: 9142368.111 | J11: 7326435.996 | K11: 7630624.162 | L11: 5652192.808 | M11: 464513.456 | N11: 278797.7522 | O11: 297430.0145 | P11: 602907.7446 | Q11: 665995.902 | R11: 426577.7516 | S11: 410365.2015 | T11: 328855.1005 | U11: 342508.9193 | V11: 253704.8621

Sheet Amendments
B1: =CONCATENATE("If ",dms_TradingName," resubmits this Regulatory Reporting Statement, please use this worksheet to identify amendments made to data resubmitted to the AER.") -> If Ergon Energy resubmits this Regulatory Reporting Statement, please use this worksheet to identify amendments made to data resubmitted to the AER.
B2: NSP data amendments
B3: Worksheet | C3: Table/Cell | D3: Reason for amendment
